Workbook

Sheet Invoergegevens
B1: Invoergegevens
B4: PROJECTGEGEVENS
B6: ALGEMEEN | D6: Naam Project | F6: Projectnaam
D7: Opdrachtgever | F7: opdrachtgever
D8: Startjaar | F8: 2021
D9: Eindjaar | F9: 2070
D10: Evaluatieperiode | F10: =F9-F8+1&" jaar" -> 50 jaar
B12: Omvang businesscase
H13: Start volloop (jaar) | J13: Einde volloop (jaar)
B14: OMVANG | D14: Aantal woningen | F14: 500 | H14: 2021 | J14: 2030
D15: Aantal utiliteitsgebouwen
... 16 more rows

Sheet DB - kernfinancien
C1: Dashboard - Kernfinanciën
AF3: 0 | AG3: 1 | AH3: 2 | AI3: 3 | AJ3: 4 | AK3: 5 | AL3: 6 | AM3: 7 | AN3: 8 | AO3: 9 | AP3: 10 | AQ3: 11 | AR3: 12 | AS3: 13 | AT3: 14 | AU3: 15 | AV3: 16 | AW3: 17 | AX3: 18 | AY3: 19 | AZ3: 20 | BA3: 21 | BB3: 22 | BC3: 23 | BD3: 24 | BE3: 25 | BF3: 26 | BG3: 27 | BH3: 28 | BI3: 29 | BJ3: 30 | BK3: 31 | BL3: 32 | BM3: 33 | BN3: 34 | BO3: 35 | BP3: 36 | BQ3: 37 | BR3: 38 | BS3: 39 | BT3: 40 | BU3: 41 | BV3: 42 | BW3: 43 | BX3: 44 | BY3: 45 | BZ3: 46 | CA3: 47 | CB3: 48 | CC3: 49 | CD3: 50 | CE3: 51 | CF3: 52 | CG3: 53 | CH3: 54 | CI3: 55 | CJ3: 56 | CK3: 57 | CL3: 58 | CM3: 59 | CN3: 60 | CO3: 61 | CP3: 62 | CQ3: 63 | CR3: 64 | CS3: 65 | CT3: 66 | CU3: 67 | CV3: 68 | CW3: 69 | CX3: 70
AE4: =IF(CX4<Invoergegevens!F9,"Let op, tijdsbalk op deze sheet is te kort!","") ->  | AF4: =Invoergegevens!$F$8 -> 2021 | AG4: =IF(AF4<Invoergegevens!$F$9,AF4+1,"") -> 2022 | AH4: =IF(AG4<Invoergegevens!$F$9,AG4+1,"") -> 2023 | AI4: =IF(AH4<Invoergegevens!$F$9,AH4+1,"") -> 2024 | AJ4: =IF(AI4<Invoergegevens!$F$9,AI4+1,"") -> 2025 | AK4: =IF(AJ4<Invoergegevens!$F$9,AJ4+1,"") -> 2026 | AL4: =IF(AK4<Invoergegevens!$F$9,AK4+1,"") -> 2027 | AM4: =IF(AL4<Invoergegevens!$F$9,AL4+1,"") -> 2028 | AN4: =IF(AM4<Invoergegevens!$F$9,AM4+1,"") -> 2029 | AO4: =IF(AN4<Invoergegevens!$F$9,AN4+1,"") -> 2030 | AP4: =IF(AO4<Invoergegevens!$F$9,AO4+1,"") -> 2031 | AQ4: =IF(AP4<Invoergegevens!$F$9,AP4+1,"") -> 2032 | AR4: =IF(AQ4<Invoergegevens!$F$9,AQ4+1,"") -> 2033 | AS4: =IF(AR4<Invoergegevens!$F$9,AR4+1,"") -> 2034 | AT4: =IF(AS4<Invoergegevens!$F$9,AS4+1,"") -> 2035 | AU4: =IF(AT4<Invoergegevens!$F$9,AT4+1,"") -> 2036 | AV4: =IF(AU4<Invoergegevens!$F$9,AU4+1,"") -> 2037 | AW4: =IF(AV4<Invoergegevens!$F$9,AV4+1,"") -> 2038 | AX4: =IF(AW4<Invoergegevens!$F$9,AW4+1,"") -> 2039 | AY4: =IF(AX4<Invoergegevens!$F$9,AX4+1,"") -> 2040 | AZ4: =IF(AY4<Invoergegevens!$F$9,AY4+1,"") -> 2041 | BA4: =IF(AZ4<Invoergegevens!$F$9,AZ4+1,"") -> 2042 | BB4: =IF(BA4<Invoergegevens!$F$9,BA4+1,"") -> 2043 | BC4: =IF(BB4<Invoergegevens!$F$9,BB4+1,"") -> 2044 | BD4: =IF(BC4<Invoergegevens!$F$9,BC4+1,"") -> 2045 | BE4: =IF(BD4<Invoergegevens!$F$9,BD4+1,"") -> 2046 | BF4: =IF(BE4<Invoergegevens!$F$9,BE4+1,"") -> 2047 | BG4: =IF(BF4<Invoergegevens!$F$9,BF4+1,"") -> 2048 | BH4: =IF(BG4<Invoergegevens!$F$9,BG4+1,"") -> 2049 | BI4: =IF(BH4<Invoergegevens!$F$9,BH4+1,"") -> 2050 | BJ4: =IF(BI4<Invoergegevens!$F$9,BI4+1,"") -> 2051 | BK4: =IF(BJ4<Invoergegevens!$F$9,BJ4+1,"") -> 2052 | BL4: =IF(BK4<Invoergegevens!$F$9,BK4+1,"") -> 2053 | BM4: =IF(BL4<Invoergegevens!$F$9,BL4+1,"") -> 2054 | BN4: =IF(BM4<Invoergegevens!$F$9,BM4+1,"") -> 2055 | BO4: =IF(BN4<Invoergegevens!$F$9,BN4+1,"") -> 2056 | BP4: =IF(BO4<Invoergegevens!$F$9,BO4+1,"") -> 2057 | BQ4: =IF(BP4<Invoergegevens!$F$9,BP4+1,"") -> 2058 | BR4: =IF(BQ4<Invoergegevens!$F$9,BQ4+1,"") -> 2059 | BS4: =IF(BR4<Invoergegevens!$F$9,BR4+1,"") -> 2060 | BT4: =IF(BS4<Invoergegevens!$F$9,BS4+1,"") -> 2061 | BU4: =IF(BT4<Invoergegevens!$F$9,BT4+1,"") -> 2062 | BV4: =IF(BU4<Invoergegevens!$F$9,BU4+1,"") -> 2063 | BW4: =IF(BV4<Invoergegevens!$F$9,BV4+1,"") -> 2064 | BX4: =IF(BW4<Invoergegevens!$F$9,BW4+1,"") -> 2065 | BY4: =IF(BX4<Invoergegevens!$F$9,BX4+1,"") -> 2066 | BZ4: =IF(BY4<Invoergegevens!$F$9,BY4+1,"") -> 2067 | CA4: =IF(BZ4<Invoergegevens!$F$9,BZ4+1,"") -> 2068 | CB4: =IF(CA4<Invoergegevens!$F$9,CA4+1,"") -> 2069 | CC4: =IF(CB4<Invoergegevens!$F$9,CB4+1,"") -> 2070 | CD4: =IF(CC4<Invoergegevens!$F$9,CC4+1,"") ->  | CE4: =IF(CD4<Invoergegevens!$F$9,CD4+1,"") ->  | CF4: =IF(CE4<Invoergegevens!$F$9,CE4+1,"") ->  | CG4: =IF(CF4<Invoergegevens!$F$9,CF4+1,"") ->  | CH4: =IF(CG4<Invoergegevens!$F$9,CG4+1,"") ->  | CI4: =IF(CH4<Invoergegevens!$F$9,CH4+1,"") ->  | CJ4: =IF(CI4<Invoergegevens!$F$9,CI4+1,"") ->  | CK4: =IF(CJ4<Invoergegevens!$F$9,CJ4+1,"") ->  | CL4: =IF(CK4<Invoergegevens!$F$9,CK4+1,"") ->  | CM4: =IF(CL4<Invoergegevens!$F$9,CL4+1,"") ->  | CN4: =IF(CM4<Invoergegevens!$F$9,CM4+1,"") ->  | CO4: =IF(CN4<Invoergegevens!$F$9,CN4+1,"") ->  | CP4: =IF(CO4<Invoergegevens!$F$9,CO4+1,"") ->  | CQ4: =IF(CP4<Invoergegevens!$F$9,CP4+1,"") ->  | CR4: =IF(CQ4<Invoergegevens!$F$9,CQ4+1,"") ->  | CS4: =IF(CR4<Invoergegevens!$F$9,CR4+1,"") ->  | CT4: =IF(CS4<Invoergegevens!$F$9,CS4+1,"") ->  | CU4: =IF(CT4<Invoergegevens!$F$9,CT4+1,"") ->  | CV4: =IF(CU4<Invoergegevens!$F$9,CU4+1,"") ->  | CW4: =IF(CV4<Invoergegevens!$F$9,CV4+1,"") ->  | CX4: =IF(CW4<Invoergegevens!$F$9,CW4+1,"") -> 
C5: Kasstroomoverzicht per variant / per partner
C6: Variant: | D6: Variant 1
C8: Partners | AD8: Controle
C9: =Invoergegevens!D46 -> Totaaloverzicht | AD9: =ROUNDUP(SUM(AF9:CX9),0)=ROUNDUP(INDEX(INDIRECT("'"&$C9&"'!E3:CX500"),MATCH($D$6,INDIRECT("'"&$C9&"'!E3:E500"),0)+95,1),0) -> TRUE | AF9: =INDEX(INDIRECT("'"&$C9&"'!E3:CX500"),MATCH($D$6,INDIRECT("'"&$C9&"'!E3:E500"),0)+95,MATCH(AF$3,INDIRECT("'"&$C9&"'!E3:CX3"),0)) -> 0 | AG9: =INDEX(INDIRECT("'"&$C9&"'!E3:CX500"),MATCH($D$6,INDIRECT("'"&$C9&"'!E3:E500"),0)+95,MATCH(AG$3,INDIRECT("'"&$C9&"'!E3:CX3"),0)) -> -13540 | AH9: -13863.4 | AI9: -14275.483 | AJ9: -14781.78412 | AK9: -15388.10107 | AL9: -16100.50505 | AM9: -16925.35199 | AN9: -17869.29433 | AO9: -18939.29317 | AP9: -20142.63088 | AQ9: -26289.58587 | AR9: -26548.01088 | AS9: -26831.37645 | AT9: -27140.55515 | AU9: -27476.4482 | AV9: -27839.98638 | AW9: =INDEX(INDIRECT("'"&$C9&"'!E3:CX500"),MATCH($D$6,INDIRECT("'"&$C9&"'!E3:E500"),0)+95,MATCH(AW$3,INDIRECT("'"&$C9&"'!E3:CX3"),0)) -> -28232.13099 | AX9: -28653.87483 | AY9: -29106.24313 | AZ9: -29590.29467 | BA9: -37234.4947 | BB9: -37705.14243 | BC9: -38210.86144 | BD9: -38752.85545 | BE9: -39332.3673 | BF9: -39950.68022 | BG9: -40609.11909 | BH9: -41309.05173 | BI9: -42051.89032 | BJ9: -42839.09271 | BK9: -52360.39056 | BL9: -53143.25999 | BM9: =INDEX(INDIRECT("'"&$C9&"'!E3:CX500"),MATCH($D$6,INDIRECT("'"&$C9&"'!E3:E500"),0)+95,MATCH(BM$3,INDIRECT("'"&$C9&"'!E3:CX3"),0)) -> -53975.15569 | BN9: -54857.73323 | BO9: -55792.70151 | BP9: -56781.82446 | BQ9: -57826.92281 | BR9: -58929.8758 | BS9: -60092.62306 | BT9: -61317.16649 | BU9: -73196.47198 | BV9: -74431.86888 | BW9: -75735.46106 | BX9: -77109.51957 | BY9: -78556.38815 | BZ9: -80078.4854 | CA9: -81678.3072 | CB9: -83358.42907 | CC9: =INDEX(INDIRECT("'"&$C9&"'!E3:CX500"),MATCH($D$6,INDIRECT("'"&$C9&"'!E3:E500"),0)+95,MATCH(CC$3,INDIRECT("'"&$C9&"'!E3:CX3"),0)) -> -85121.50867 | CD9: 0 | CE9: 0 | CF9: 0 | CG9: 0 | CH9: 0 | CI9: 0 | CJ9: 0 | CK9: 0 | CL9: 0 | CM9: 0 | CN9: 0 | CO9: 0 | CP9: 0 | CQ9: 0 | CR9: 0 | CS9: =INDEX(INDIRECT("'"&$C9&"'!E3:CX500"),MATCH($D$6,INDIRECT("'"&$C9&"'!E3:E500"),0)+95,MATCH(CS$3,INDIRECT("'"&$C9&"'!E3:CX3"),0)) -> 0 | CT9: 0 | CU9: 0 | CV9: 0 | CW9: 0 | CX9: 0
C10: =Invoergegevens!D47 -> Partij 1 | AD10: =ROUNDUP(SUM(AF10:CX10),0)=ROUNDUP(INDEX(INDIRECT("'"&$C10&"'!E3:CX500"),MATCH($D$6,INDIRECT("'"&$C10&"'!E3:E500"),0)+95,1),0) -> TRUE | AF10: =INDEX(INDIRECT("'"&$C10&"'!E3:CX500"),MATCH($D$6,INDIRECT("'"&$C10&"'!E3:E500"),0)+95,MATCH(AF$3,INDIRECT("'"&$C10&"'!E3:CX3"),0)) -> 0 | AG10: -13540 | AH10: -13863.4 | AI10: -14275.483 | AJ10: -14781.78412 | AK10: -15388.10107 | AL10: -16100.50505 | AM10: -16925.35199 | AN10: -17869.29433 | AO10: -18939.29317 | AP10: -20142.63088 | AQ10: -26289.58587 | AR10: -26548.01088 | AS10: -26831.37645 | AT10: -27140.55515 | AU10: -27476.4482 | AV10: -27839.98638 | AW10: -28232.13099 | AX10: -28653.87483 | AY10: -29106.24313 | AZ10: -29590.29467 | BA10: -37234.4947 | BB10: -37705.14243 | BC10: -38210.86144 | BD10: -38752.85545 | BE10: -39332.3673 | BF10: -39950.68022 | BG10: -40609.11909 | BH10: -41309.05173 | BI10: -42051.89032 | BJ10: -42839.09271 | BK10: -52360.39056 | BL10: -53143.25999 | BM10: -53975.15569 | BN10: -54857.73323 | BO10: -55792.70151 | BP10: -56781.82446 | BQ10: -57826.92281 | BR10: -58929.8758 | BS10: -60092.62306 | BT10: -61317.16649 | BU10: -73196.47198 | BV10: -74431.86888 | BW10: -75735.46106 | BX10: -77109.51957 | BY10: -78556.38815 | BZ10: -80078.4854 | CA10: -81678.3072 | CB10: -83358.42907 | CC10: -85121.50867 | CD10: 0 | CE10: 0 | CF10: 0 | CG10: 0 | CH10: 0 | CI10: 0 | CJ10: 0 | CK10: 0 | CL10: 0 | CM10: 0 | CN10: 0 | CO10: 0 | CP10: 0 | CQ10: 0 | CR10: 0 | CS10: 0 | CT10: 0 | CU10: 0 | CV10: 0 | CW10: 0 | CX10: 0
C11: =Invoergegevens!D48 -> Partij 2 | AD11: TRUE | AF11: 0 | AG11: 0 | AH11: 0 | AI11: 0 | AJ11: 0 | AK11: 0 | AL11: 0 | AM11: 0 | AN11: 0 | AO11: 0 | AP11: 0 | AQ11: 0 | AR11: 0 | AS11: 0 | AT11: 0 | AU11: 0 | AV11: 0 | AW11: 0 | AX11: 0 | AY11: 0 | AZ11: 0 | BA11: 0 | BB11: 0 | BC11: 0 | BD11: 0 | BE11: 0 | BF11: 0 | BG11: 0 | BH11: 0 | BI11: 0 | BJ11: 0 | BK11: 0 | BL11: 0 | BM11: 0 | BN11: 0 | BO11: 0 | BP11: 0 | BQ11: 0 | BR11: 0 | BS11: 0 | BT11: 0 | BU11: 0 | BV11: 0 | BW11: 0 | BX11: 0 | BY11: 0 | BZ11: 0 | CA11: 0 | CB11: 0 | CC11: 0 | CD11: 0 | CE11: 0 | CF11: 0 | CG11: 0 | CH11: 0 | CI11: 0 | CJ11: 0 | CK11: 0 | CL11: 0 | CM11: 0 | CN11: 0 | CO11: 0 | CP11: 0 | CQ11: 0 | CR11: 0 | CS11: 0 | CT11: 0 | CU11: 0 | CV11: 0 | CW11: 0 | CX11: 0
C12: =Invoergegevens!D49 -> Partij 3 | AD12: TRUE | AF12: 0 | AG12: 0 | AH12: 0 | AI12: 0 | AJ12: 0 | AK12: 0 | AL12: 0 | AM12: 0 | AN12: 0 | AO12: 0 | AP12: 0 | AQ12: 0 | AR12: 0 | AS12: 0 | AT12: 0 | AU12: 0 | AV12: 0 | AW12: 0 | AX12: 0 | AY12: 0 | AZ12: 0 | BA12: 0 | BB12: 0 | BC12: 0 | BD12: 0 | BE12: 0 | BF12: 0 | BG12: 0 | BH12: 0 | BI12: 0 | BJ12: 0 | BK12: 0 | BL12: 0 | BM12: 0 | BN12: 0 | BO12: 0 | BP12: 0 | BQ12: 0 | BR12: 0 | BS12: 0 | BT12: 0 | BU12: 0 | BV12: 0 | BW12: 0 | BX12: 0 | BY12: 0 | BZ12: 0 | CA12: 0 | CB12: 0 | CC12: 0 | CD12: 0 | CE12: 0 | CF12: 0 | CG12: 0 | CH12: 0 | CI12: 0 | CJ12: 0 | CK12: 0 | CL12: 0 | CM12: 0 | CN12: 0 | CO12: 0 | CP12: 0 | CQ12: 0 | CR12: 0 | CS12: 0 | CT12: 0 | CU12: 0 | CV12: 0 | CW12: 0 | CX12: 0
C13: =Invoergegevens!D50 -> Partij 4 | AD13: TRUE | AF13: 0 | AG13: 0 | AH13: 0 | AI13: 0 | AJ13: 0 | AK13: 0 | AL13: 0 | AM13: 0 | AN13: 0 | AO13: 0 | AP13: 0 | AQ13: 0 | AR13: 0 | AS13: 0 | AT13: 0 | AU13: 0 | AV13: 0 | AW13: 0 | AX13: 0 | AY13: 0 | AZ13: 0 | BA13: 0 | BB13: 0 | BC13: 0 | BD13: 0 | BE13: 0 | BF13: 0 | BG13: 0 | BH13: 0 | BI13: 0 | BJ13: 0 | BK13: 0 | BL13: 0 | BM13: 0 | BN13: 0 | BO13: 0 | BP13: 0 | BQ13: 0 | BR13: 0 | BS13: 0 | BT13: 0 | BU13: 0 | BV13: 0 | BW13: 0 | BX13: 0 | BY13: 0 | BZ13: 0 | CA13: 0 | CB13: 0 | CC13: 0 | CD13: 0 | CE13: 0 | CF13: 0 | CG13: 0 | CH13: 0 | CI13: 0 | CJ13: 0 | CK13: 0 | CL13: 0 | CM13: 0 | CN13: 0 | CO13: 0 | CP13: 0 | CQ13: 0 | CR13: 0 | CS13: 0 | CT13: 0 | CU13: 0 | CV13: 0 | CW13: 0 | CX13: 0
C14: =Invoergegevens!D51 -> Partij 5 | AD14: TRUE | AF14: 0 | AG14: 0 | AH14: 0 | AI14: 0 | AJ14: 0 | AK14: 0 | AL14: 0 | AM14: 0 | AN14: 0 | AO14: 0 | AP14: 0 | AQ14: 0 | AR14: 0 | AS14: 0 | AT14: 0 | AU14: 0 | AV14: 0 | AW14: 0 | AX14: 0 | AY14: 0 | AZ14: 0 | BA14: 0 | BB14: 0 | BC14: 0 | BD14: 0 | BE14: 0 | BF14: 0 | BG14: 0 | BH14: 0 | BI14: 0 | BJ14: 0 | BK14: 0 | BL14: 0 | BM14: 0 | BN14: 0 | BO14: 0 | BP14: 0 | BQ14: 0 | BR14: 0 | BS14: 0 | BT14: 0 | BU14: 0 | BV14: 0 | BW14: 0 | BX14: 0 | BY14: 0 | BZ14: 0 | CA14: 0 | CB14: 0 | CC14: 0 | CD14: 0 | CE14: 0 | CF14: 0 | CG14: 0 | CH14: 0 | CI14: 0 | CJ14: 0 | CK14: 0 | CL14: 0 | CM14: 0 | CN14: 0 | CO14: 0 | CP14: 0 | CQ14: 0 | CR14: 0 | CS14: 0 | CT14: 0 | CU14: 0 | CV14: 0 | CW14: 0 | CX14: 0
C15: =Invoergegevens!D52 -> Partij 6 | AD15: TRUE | AF15: 0 | AG15: 0 | AH15: 0 | AI15: 0 | AJ15: 0 | AK15: 0 | AL15: 0 | AM15: 0 | AN15: 0 | AO15: 0 | AP15: 0 | AQ15: 0 | AR15: 0 | AS15: 0 | AT15: 0 | AU15: 0 | AV15: 0 | AW15: 0 | AX15: 0 | AY15: 0 | AZ15: 0 | BA15: 0 | BB15: 0 | BC15: 0 | BD15: 0 | BE15: 0 | BF15: 0 | BG15: 0 | BH15: 0 | BI15: 0 | BJ15: 0 | BK15: 0 | BL15: 0 | BM15: 0 | BN15: 0 | BO15: 0 | BP15: 0 | BQ15: 0 | BR15: 0 | BS15: 0 | BT15: 0 | BU15: 0 | BV15: 0 | BW15: 0 | BX15: 0 | BY15: 0 | BZ15: 0 | CA15: 0 | CB15: 0 | CC15: 0 | CD15: 0 | CE15: 0 | CF15: 0 | CG15: 0 | CH15: 0 | CI15: 0 | CJ15: 0 | CK15: 0 | CL15: 0 | CM15: 0 | CN15: 0 | CO15: 0 | CP15: 0 | CQ15: 0 | CR15: 0 | CS15: 0 | CT15: 0 | CU15: 0 | CV15: 0 | CW15: 0 | CX15: 0
... 17 more rows

Sheet DB - grafieken
B1: Dashboard - Grafieken | F1: Let op: Pas bereik grafieken aan aan doorlooptijd project
B3: Kasstroomoverzicht per partner voor gekozen variant bij Dashboard - Kernfinancien | N3: Kasstroomoverzicht 'Totaal' per variant
... 3 more rows

Sheet DB - per partner
C1: Dashboard voor Partner: | D1: Totaaloverzicht
D3: =Invoergegevens!$D$38 -> Variant 1 | E3: =Invoergegevens!$D$39 -> Variant 2 | F3: =Invoergegevens!$D$40 -> Variant 3 | G3: =Invoergegevens!$D$41 -> Variant 4 | H3: =Invoergegevens!$D$42 -> Variant 5 | J3: =Invoergegevens!$D$38 -> Variant 1 | K3: =Invoergegevens!$D$39 -> Variant 2 | L3: =Invoergegevens!$D$40 -> Variant 3 | M3: =Invoergegevens!$D$41 -> Variant 4 | N3: =Invoergegevens!$D$42 -> Variant 5 | P3: =Invoergegevens!$D$38 -> Variant 1 | Q3: =Invoergegevens!$D$39 -> Variant 2 | R3: =Invoergegevens!$D$40 -> Variant 3 | S3: =Invoergegevens!$D$41 -> Variant 4 | T3: =Invoergegevens!$D$42 -> Variant 5 | V3: =Invoergegevens!$D$38 -> Variant 1 | W3: =Invoergegevens!$D$39 -> Variant 2 | X3: =Invoergegevens!$D$40 -> Variant 3 | Y3: =Invoergegevens!$D$41 -> Variant 4 | Z3: =Invoergegevens!$D$42 -> Variant 5
B5: Investeringen (Afschrijftermijn) | D5: Totale investeringskosten (in eerste afschrijftermijn) | J5: Gemiddelde investeringskosten (in eerste afschrijftermijn) per jaar | P5: Gemiddelde investeringskosten (in eerste afschrijftermijn) per woning | V5: Gemiddelde investeringskosten (in eerste afschrijftermijn) per inwoner
B6: =Invoergegevens!C60 -> 01 | C6: =Invoergegevens!D60& " ("& INDEX(Invoergegevens!$C$58:$J$74,MATCH($B6,Invoergegevens!$C$58:$C$74,0),MATCH(Invoergegevens!$F$31,Invoergegevens!$C$59:$J$59,0))& " jaar)" -> 10 jaar (10 jaar) | D6: =SUMIF(INDIRECT("'"&$D$1&"'!AF3:CX3"),"<"&INDEX(INDIRECT("'"&$D$1&"'!E3:CX1000"),MATCH(D$3,INDIRECT("'"&$D$1&"'!E3:E1000"),0)+3+($B6-1)*4,1),INDEX(INDIRECT("'"&$D$1&"'!E3:CX1000"),MATCH(D$3,INDIRECT("'"&$D$1&"'!E3:E1000"),0)+3+($B6-1)*4,MATCH(0,INDIRECT("'"&$D$1&"'!E3:CX3"),0))) -> 100000 | E6: =SUMIF(INDIRECT("'"&$D$1&"'!AF3:CX3"),"<"&INDEX(INDIRECT("'"&$D$1&"'!E3:CX1000"),MATCH(E$3,INDIRECT("'"&$D$1&"'!E3:E1000"),0)+3+($B6-1)*4,1),INDEX(INDIRECT("'"&$D$1&"'!E3:CX1000"),MATCH(E$3,INDIRECT("'"&$D$1&"'!E3:E1000"),0)+3+($B6-1)*4,MATCH(0,INDIRECT("'"&$D$1&"'!E3:CX3"),0))) -> 200000 | F6: =SUMIF(INDIRECT("'"&$D$1&"'!AF3:CX3"),"<"&INDEX(INDIRECT("'"&$D$1&"'!E3:CX1000"),MATCH(F$3,INDIRECT("'"&$D$1&"'!E3:E1000"),0)+3+($B6-1)*4,1),INDEX(INDIRECT("'"&$D$1&"'!E3:CX1000"),MATCH(F$3,INDIRECT("'"&$D$1&"'!E3:E1000"),0)+3+($B6-1)*4,MATCH(0,INDIRECT("'"&$D$1&"'!E3:CX3"),0))) -> 300000 | G6: 0 | H6: 0 | J6: =D6/INDEX(Invoergegevens!$C$59:$J$74,MATCH($B6,Invoergegevens!$C$59:$C$74,0),MATCH(Invoergegevens!$F$31,Invoergegevens!$C$59:$J$59,0)) -> 10000 | K6: =E6/INDEX(Invoergegevens!$C$59:$J$74,MATCH($B6,Invoergegevens!$C$59:$C$74,0),MATCH(Invoergegevens!$F$31,Invoergegevens!$C$59:$J$59,0)) -> 20000 | L6: =F6/INDEX(Invoergegevens!$C$59:$J$74,MATCH($B6,Invoergegevens!$C$59:$C$74,0),MATCH(Invoergegevens!$F$31,Invoergegevens!$C$59:$J$59,0)) -> 30000 | M6: =G6/INDEX(Invoergegevens!$C$59:$J$74,MATCH($B6,Invoergegevens!$C$59:$C$74,0),MATCH(Invoergegevens!$F$31,Invoergegevens!$C$59:$J$59,0)) -> 0 | N6: =H6/INDEX(Invoergegevens!$C$59:$J$74,MATCH($B6,Invoergegevens!$C$59:$C$74,0),MATCH(Invoergegevens!$F$31,Invoergegevens!$C$59:$J$59,0)) -> 0 | P6: =D6/Invoergegevens!$F$14 -> 200 | Q6: =E6/Invoergegevens!$F$14 -> 400 | R6: =F6/Invoergegevens!$F$14 -> 600 | S6: =G6/Invoergegevens!$F$14 -> 0 | T6: =H6/Invoergegevens!$F$14 -> 0 | V6: =D6/Invoergegevens!$F$17 ->  | W6: =E6/Invoergegevens!$F$17 ->  | X6: =F6/Invoergegevens!$F$17 ->  | Y6: =G6/Invoergegevens!$F$17 ->  | Z6: =H6/Invoergegevens!$F$17 -> 
B7: =Invoergegevens!C61 -> 02 | C7: =Invoergegevens!D61& " ("& INDEX(Invoergegevens!$C$58:$J$74,MATCH($B7,Invoergegevens!$C$58:$C$74,0),MATCH(Invoergegevens!$F$31,Invoergegevens!$C$59:$J$59,0))& " jaar)" -> 15 jaar (15 jaar) | D7: =SUMIF(INDIRECT("'"&$D$1&"'!AF3:CX3"),"<"&INDEX(INDIRECT("'"&$D$1&"'!E3:CX1000"),MATCH(D$3,INDIRECT("'"&$D$1&"'!E3:E1000"),0)+3+($B7-1)*4,1),INDEX(INDIRECT("'"&$D$1&"'!E3:CX1000"),MATCH(D$3,INDIRECT("'"&$D$1&"'!E3:E1000"),0)+3+($B7-1)*4,MATCH(0,INDIRECT("'"&$D$1&"'!E3:CX3"),0))) -> 0 | E7: 0 | F7: 0 | G7: 0 | H7: 0 | J7: =D7/INDEX(Invoergegevens!$C$59:$J$74,MATCH($B7,Invoergegevens!$C$59:$C$74,0),MATCH(Invoergegevens!$F$31,Invoergegevens!$C$59:$J$59,0)) -> 0 | K7: =E7/INDEX(Invoergegevens!$C$59:$J$74,MATCH($B7,Invoergegevens!$C$59:$C$74,0),MATCH(Invoergegevens!$F$31,Invoergegevens!$C$59:$J$59,0)) -> 0 | L7: =F7/INDEX(Invoergegevens!$C$59:$J$74,MATCH($B7,Invoergegevens!$C$59:$C$74,0),MATCH(Invoergegevens!$F$31,Invoergegevens!$C$59:$J$59,0)) -> 0 | M7: =G7/INDEX(Invoergegevens!$C$59:$J$74,MATCH($B7,Invoergegevens!$C$59:$C$74,0),MATCH(Invoergegevens!$F$31,Invoergegevens!$C$59:$J$59,0)) -> 0 | N7: =H7/INDEX(Invoergegevens!$C$59:$J$74,MATCH($B7,Invoergegevens!$C$59:$C$74,0),MATCH(Invoergegevens!$F$31,Invoergegevens!$C$59:$J$59,0)) -> 0 | P7: =D7/Invoergegevens!$F$14 -> 0 | Q7: =E7/Invoergegevens!$F$14 -> 0 | R7: =F7/Invoergegevens!$F$14 -> 0 | S7: =G7/Invoergegevens!$F$14 -> 0 | T7: =H7/Invoergegevens!$F$14 -> 0 | V7: =D7/Invoergegevens!$F$17 ->  | W7: =E7/Invoergegevens!$F$17 ->  | X7: =F7/Invoergegevens!$F$17 ->  | Y7: =G7/Invoergegevens!$F$17 ->  | Z7: =H7/Invoergegevens!$F$17 -> 
B8: =Invoergegevens!C62 -> 03 | C8: =Invoergegevens!D62& " ("& INDEX(Invoergegevens!$C$58:$J$74,MATCH($B8,Invoergegevens!$C$58:$C$74,0),MATCH(Invoergegevens!$F$31,Invoergegevens!$C$59:$J$59,0))& " jaar)" -> 20 jaar (20 jaar) | D8: 0 | E8: 0 | F8: 0 | G8: 0 | H8: 0 | J8: =D8/INDEX(Invoergegevens!$C$59:$J$74,MATCH($B8,Invoergegevens!$C$59:$C$74,0),MATCH(Invoergegevens!$F$31,Invoergegevens!$C$59:$J$59,0)) -> 0 | K8: =E8/INDEX(Invoergegevens!$C$59:$J$74,MATCH($B8,Invoergegevens!$C$59:$C$74,0),MATCH(Invoergegevens!$F$31,Invoergegevens!$C$59:$J$59,0)) -> 0 | L8: =F8/INDEX(Invoergegevens!$C$59:$J$74,MATCH($B8,Invoergegevens!$C$59:$C$74,0),MATCH(Invoergegevens!$F$31,Invoergegevens!$C$59:$J$59,0)) -> 0 | M8: =G8/INDEX(Invoergegevens!$C$59:$J$74,MATCH($B8,Invoergegevens!$C$59:$C$74,0),MATCH(Invoergegevens!$F$31,Invoergegevens!$C$59:$J$59,0)) -> 0 | N8: =H8/INDEX(Invoergegevens!$C$59:$J$74,MATCH($B8,Invoergegevens!$C$59:$C$74,0),MATCH(Invoergegevens!$F$31,Invoergegevens!$C$59:$J$59,0)) -> 0 | P8: =D8/Invoergegevens!$F$14 -> 0 | Q8: =E8/Invoergegevens!$F$14 -> 0 | R8: =F8/Invoergegevens!$F$14 -> 0 | S8: =G8/Invoergegevens!$F$14 -> 0 | T8: =H8/Invoergegevens!$F$14 -> 0 | V8: =D8/Invoergegevens!$F$17 ->  | W8: =E8/Invoergegevens!$F$17 ->  | X8: =F8/Invoergegevens!$F$17 ->  | Y8: =G8/Invoergegevens!$F$17 ->  | Z8: =H8/Invoergegevens!$F$17 -> 
B9: =Invoergegevens!C63 -> 04 | C9: =Invoergegevens!D63& " ("& INDEX(Invoergegevens!$C$58:$J$74,MATCH($B9,Invoergegevens!$C$58:$C$74,0),MATCH(Invoergegevens!$F$31,Invoergegevens!$C$59:$J$59,0))& " jaar)" -> 25 jaar (25 jaar) | D9: 0 | E9: 0 | F9: 0 | G9: 0 | H9: 0 | J9: =D9/INDEX(Invoergegevens!$C$59:$J$74,MATCH($B9,Invoergegevens!$C$59:$C$74,0),MATCH(Invoergegevens!$F$31,Invoergegevens!$C$59:$J$59,0)) -> 0 | K9: =E9/INDEX(Invoergegevens!$C$59:$J$74,MATCH($B9,Invoergegevens!$C$59:$C$74,0),MATCH(Invoergegevens!$F$31,Invoergegevens!$C$59:$J$59,0)) -> 0 | L9: =F9/INDEX(Invoergegevens!$C$59:$J$74,MATCH($B9,Invoergegevens!$C$59:$C$74,0),MATCH(Invoergegevens!$F$31,Invoergegevens!$C$59:$J$59,0)) -> 0 | M9: =G9/INDEX(Invoergegevens!$C$59:$J$74,MATCH($B9,Invoergegevens!$C$59:$C$74,0),MATCH(Invoergegevens!$F$31,Invoergegevens!$C$59:$J$59,0)) -> 0 | N9: =H9/INDEX(Invoergegevens!$C$59:$J$74,MATCH($B9,Invoergegevens!$C$59:$C$74,0),MATCH(Invoergegevens!$F$31,Invoergegevens!$C$59:$J$59,0)) -> 0 | P9: =D9/Invoergegevens!$F$14 -> 0 | Q9: =E9/Invoergegevens!$F$14 -> 0 | R9: =F9/Invoergegevens!$F$14 -> 0 | S9: =G9/Invoergegevens!$F$14 -> 0 | T9: =H9/Invoergegevens!$F$14 -> 0 | V9: =D9/Invoergegevens!$F$17 ->  | W9: =E9/Invoergegevens!$F$17 ->  | X9: =F9/Invoergegevens!$F$17 ->  | Y9: =G9/Invoergegevens!$F$17 ->  | Z9: =H9/Invoergegevens!$F$17 -> 
B10: =Invoergegevens!C64 -> 05 | C10: =Invoergegevens!D64& " ("& INDEX(Invoergegevens!$C$58:$J$74,MATCH($B10,Invoergegevens!$C$58:$C$74,0),MATCH(Invoergegevens!$F$31,Invoergegevens!$C$59:$J$59,0))& " jaar)" -> 30 jaar (30 jaar) | D10: 0 | E10: 0 | F10: 0 | G10: 0 | H10: 0 | J10: =D10/INDEX(Invoergegevens!$C$59:$J$74,MATCH($B10,Invoergegevens!$C$59:$C$74,0),MATCH(Invoergegevens!$F$31,Invoergegevens!$C$59:$J$59,0)) -> 0 | K10: =E10/INDEX(Invoergegevens!$C$59:$J$74,MATCH($B10,Invoergegevens!$C$59:$C$74,0),MATCH(Invoergegevens!$F$31,Invoergegevens!$C$59:$J$59,0)) -> 0 | L10: =F10/INDEX(Invoergegevens!$C$59:$J$74,MATCH($B10,Invoergegevens!$C$59:$C$74,0),MATCH(Invoergegevens!$F$31,Invoergegevens!$C$59:$J$59,0)) -> 0 | M10: =G10/INDEX(Invoergegevens!$C$59:$J$74,MATCH($B10,Invoergegevens!$C$59:$C$74,0),MATCH(Invoergegevens!$F$31,Invoergegevens!$C$59:$J$59,0)) -> 0 | N10: =H10/INDEX(Invoergegevens!$C$59:$J$74,MATCH($B10,Invoergegevens!$C$59:$C$74,0),MATCH(Invoergegevens!$F$31,Invoergegevens!$C$59:$J$59,0)) -> 0 | P10: =D10/Invoergegevens!$F$14 -> 0 | Q10: =E10/Invoergegevens!$F$14 -> 0 | R10: =F10/Invoergegevens!$F$14 -> 0 | S10: =G10/Invoergegevens!$F$14 -> 0 | T10: =H10/Invoergegevens!$F$14 -> 0 | V10: =D10/Invoergegevens!$F$17 ->  | W10: =E10/Invoergegevens!$F$17 ->  | X10: =F10/Invoergegevens!$F$17 ->  | Y10: =G10/Invoergegevens!$F$17 ->  | Z10: =H10/Invoergegevens!$F$17 -> 
B11: =Invoergegevens!C65 -> 06 | C11: =Invoergegevens!D65& " ("& INDEX(Invoergegevens!$C$58:$J$74,MATCH($B11,Invoergegevens!$C$58:$C$74,0),MATCH(Invoergegevens!$F$31,Invoergegevens!$C$59:$J$59,0))& " jaar)" -> 40 jaar (40 jaar) | D11: 0 | E11: 0 | F11: 0 | G11: 0 | H11: 0 | J11: =D11/INDEX(Invoergegevens!$C$59:$J$74,MATCH($B11,Invoergegevens!$C$59:$C$74,0),MATCH(Invoergegevens!$F$31,Invoergegevens!$C$59:$J$59,0)) -> 0 | K11: =E11/INDEX(Invoergegevens!$C$59:$J$74,MATCH($B11,Invoergegevens!$C$59:$C$74,0),MATCH(Invoergegevens!$F$31,Invoergegevens!$C$59:$J$59,0)) -> 0 | L11: =F11/INDEX(Invoergegevens!$C$59:$J$74,MATCH($B11,Invoergegevens!$C$59:$C$74,0),MATCH(Invoergegevens!$F$31,Invoergegevens!$C$59:$J$59,0)) -> 0 | M11: =G11/INDEX(Invoergegevens!$C$59:$J$74,MATCH($B11,Invoergegevens!$C$59:$C$74,0),MATCH(Invoergegevens!$F$31,Invoergegevens!$C$59:$J$59,0)) -> 0 | N11: =H11/INDEX(Invoergegevens!$C$59:$J$74,MATCH($B11,Invoergegevens!$C$59:$C$74,0),MATCH(Invoergegevens!$F$31,Invoergegevens!$C$59:$J$59,0)) -> 0 | P11: =D11/Invoergegevens!$F$14 -> 0 | Q11: =E11/Invoergegevens!$F$14 -> 0 | R11: =F11/Invoergegevens!$F$14 -> 0 | S11: =G11/Invoergegevens!$F$14 -> 0 | T11: =H11/Invoergegevens!$F$14 -> 0 | V11: =D11/Invoergegevens!$F$17 ->  | W11: =E11/Invoergegevens!$F$17 ->  | X11: =F11/Invoergegevens!$F$17 ->  | Y11: =G11/Invoergegevens!$F$17 ->  | Z11: =H11/Invoergegevens!$F$17 -> 
B12: =Invoergegevens!C66 -> 07 | C12: =Invoergegevens!D66& " ("& INDEX(Invoergegevens!$C$58:$J$74,MATCH($B12,Invoergegevens!$C$58:$C$74,0),MATCH(Invoergegevens!$F$31,Invoergegevens!$C$59:$J$59,0))& " jaar)" -> 50 jaar (50 jaar) | D12: 0 | E12: 0 | F12: 0 | G12: 0 | H12: 0 | J12: =D12/INDEX(Invoergegevens!$C$59:$J$74,MATCH($B12,Invoergegevens!$C$59:$C$74,0),MATCH(Invoergegevens!$F$31,Invoergegevens!$C$59:$J$59,0)) -> 0 | K12: =E12/INDEX(Invoergegevens!$C$59:$J$74,MATCH($B12,Invoergegevens!$C$59:$C$74,0),MATCH(Invoergegevens!$F$31,Invoergegevens!$C$59:$J$59,0)) -> 0 | L12: =F12/INDEX(Invoergegevens!$C$59:$J$74,MATCH($B12,Invoergegevens!$C$59:$C$74,0),MATCH(Invoergegevens!$F$31,Invoergegevens!$C$59:$J$59,0)) -> 0 | M12: =G12/INDEX(Invoergegevens!$C$59:$J$74,MATCH($B12,Invoergegevens!$C$59:$C$74,0),MATCH(Invoergegevens!$F$31,Invoergegevens!$C$59:$J$59,0)) -> 0 | N12: =H12/INDEX(Invoergegevens!$C$59:$J$74,MATCH($B12,Invoergegevens!$C$59:$C$74,0),MATCH(Invoergegevens!$F$31,Invoergegevens!$C$59:$J$59,0)) -> 0 | P12: =D12/Invoergegevens!$F$14 -> 0 | Q12: =E12/Invoergegevens!$F$14 -> 0 | R12: =F12/Invoergegevens!$F$14 -> 0 | S12: =G12/Invoergegevens!$F$14 -> 0 | T12: =H12/Invoergegevens!$F$14 -> 0 | V12: =D12/Invoergegevens!$F$17 ->  | W12: =E12/Invoergegevens!$F$17 ->  | X12: =F12/Invoergegevens!$F$17 ->  | Y12: =G12/Invoergegevens!$F$17 ->  | Z12: =H12/Invoergegevens!$F$17 -> 
B13: =Invoergegevens!C67 -> 08 | C13: =Invoergegevens!D67& " ("& INDEX(Invoergegevens!$C$58:$J$74,MATCH($B13,Invoergegevens!$C$58:$C$74,0),MATCH(Invoergegevens!$F$31,Invoergegevens!$C$59:$J$59,0))& " jaar)" -> anders 2 (50 jaar) | D13: 0 | E13: 0 | F13: 0 | G13: 0 | H13: 0 | J13: =D13/INDEX(Invoergegevens!$C$59:$J$74,MATCH($B13,Invoergegevens!$C$59:$C$74,0),MATCH(Invoergegevens!$F$31,Invoergegevens!$C$59:$J$59,0)) -> 0 | K13: =E13/INDEX(Invoergegevens!$C$59:$J$74,MATCH($B13,Invoergegevens!$C$59:$C$74,0),MATCH(Invoergegevens!$F$31,Invoergegevens!$C$59:$J$59,0)) -> 0 | L13: =F13/INDEX(Invoergegevens!$C$59:$J$74,MATCH($B13,Invoergegevens!$C$59:$C$74,0),MATCH(Invoergegevens!$F$31,Invoergegevens!$C$59:$J$59,0)) -> 0 | M13: =G13/INDEX(Invoergegevens!$C$59:$J$74,MATCH($B13,Invoergegevens!$C$59:$C$74,0),MATCH(Invoergegevens!$F$31,Invoergegevens!$C$59:$J$59,0)) -> 0 | N13: =H13/INDEX(Invoergegevens!$C$59:$J$74,MATCH($B13,Invoergegevens!$C$59:$C$74,0),MATCH(Invoergegevens!$F$31,Invoergegevens!$C$59:$J$59,0)) -> 0 | P13: =D13/Invoergegevens!$F$14 -> 0 | Q13: =E13/Invoergegevens!$F$14 -> 0 | R13: =F13/Invoergegevens!$F$14 -> 0 | S13: =G13/Invoergegevens!$F$14 -> 0 | T13: =H13/Invoergegevens!$F$14 -> 0 | V13: =D13/Invoergegevens!$F$17 ->  | W13: =E13/Invoergegevens!$F$17 ->  | X13: =F13/Invoergegevens!$F$17 ->  | Y13: =G13/Invoergegevens!$F$17 ->  | Z13: =H13/Invoergegevens!$F$17 -> 
B14: =Invoergegevens!C68 -> 09 | C14: =Invoergegevens!D68& " ("& INDEX(Invoergegevens!$C$58:$J$74,MATCH($B14,Invoergegevens!$C$58:$C$74,0),MATCH(Invoergegevens!$F$31,Invoergegevens!$C$59:$J$59,0))& " jaar)" -> anders 3 (50 jaar) | D14: 0 | E14: 0 | F14: 0 | G14: 0 | H14: 0 | J14: =D14/INDEX(Invoergegevens!$C$59:$J$74,MATCH($B14,Invoergegevens!$C$59:$C$74,0),MATCH(Invoergegevens!$F$31,Invoergegevens!$C$59:$J$59,0)) -> 0 | K14: =E14/INDEX(Invoergegevens!$C$59:$J$74,MATCH($B14,Invoergegevens!$C$59:$C$74,0),MATCH(Invoergegevens!$F$31,Invoergegevens!$C$59:$J$59,0)) -> 0 | L14: =F14/INDEX(Invoergegevens!$C$59:$J$74,MATCH($B14,Invoergegevens!$C$59:$C$74,0),MATCH(Invoergegevens!$F$31,Invoergegevens!$C$59:$J$59,0)) -> 0 | M14: =G14/INDEX(Invoergegevens!$C$59:$J$74,MATCH($B14,Invoergegevens!$C$59:$C$74,0),MATCH(Invoergegevens!$F$31,Invoergegevens!$C$59:$J$59,0)) -> 0 | N14: =H14/INDEX(Invoergegevens!$C$59:$J$74,MATCH($B14,Invoergegevens!$C$59:$C$74,0),MATCH(Invoergegevens!$F$31,Invoergegevens!$C$59:$J$59,0)) -> 0 | P14: =D14/Invoergegevens!$F$14 -> 0 | Q14: =E14/Invoergegevens!$F$14 -> 0 | R14: =F14/Invoergegevens!$F$14 -> 0 | S14: =G14/Invoergegevens!$F$14 -> 0 | T14: =H14/Invoergegevens!$F$14 -> 0 | V14: =D14/Invoergegevens!$F$17 ->  | W14: =E14/Invoergegevens!$F$17 ->  | X14: =F14/Invoergegevens!$F$17 ->  | Y14: =G14/Invoergegevens!$F$17 ->  | Z14: =H14/Invoergegevens!$F$17 -> 
B15: =Invoergegevens!C69 -> 10 | C15: =Invoergegevens!D69& " ("& INDEX(Invoergegevens!$C$58:$J$74,MATCH($B15,Invoergegevens!$C$58:$C$74,0),MATCH(Invoergegevens!$F$31,Invoergegevens!$C$59:$J$59,0))& " jaar)" -> anders 4 (50 jaar) | D15: 0 | E15: 0 | F15: 0 | G15: 0 | H15: 0 | J15: =D15/INDEX(Invoergegevens!$C$59:$J$74,MATCH($B15,Invoergegevens!$C$59:$C$74,0),MATCH(Invoergegevens!$F$31,Invoergegevens!$C$59:$J$59,0)) -> 0 | K15: =E15/INDEX(Invoergegevens!$C$59:$J$74,MATCH($B15,Invoergegevens!$C$59:$C$74,0),MATCH(Invoergegevens!$F$31,Invoergegevens!$C$59:$J$59,0)) -> 0 | L15: =F15/INDEX(Invoergegevens!$C$59:$J$74,MATCH($B15,Invoergegevens!$C$59:$C$74,0),MATCH(Invoergegevens!$F$31,Invoergegevens!$C$59:$J$59,0)) -> 0 | M15: =G15/INDEX(Invoergegevens!$C$59:$J$74,MATCH($B15,Invoergegevens!$C$59:$C$74,0),MATCH(Invoergegevens!$F$31,Invoergegevens!$C$59:$J$59,0)) -> 0 | N15: =H15/INDEX(Invoergegevens!$C$59:$J$74,MATCH($B15,Invoergegevens!$C$59:$C$74,0),MATCH(Invoergegevens!$F$31,Invoergegevens!$C$59:$J$59,0)) -> 0 | P15: =D15/Invoergegevens!$F$14 -> 0 | Q15: =E15/Invoergegevens!$F$14 -> 0 | R15: =F15/Invoergegevens!$F$14 -> 0 | S15: =G15/Invoergegevens!$F$14 -> 0 | T15: =H15/Invoergegevens!$F$14 -> 0 | V15: =D15/Invoergegevens!$F$17 ->  | W15: =E15/Invoergegevens!$F$17 ->  | X15: =F15/Invoergegevens!$F$17 ->  | Y15: =G15/Invoergegevens!$F$17 ->  | Z15: =H15/Invoergegevens!$F$17 -> 
... 14 more rows

Sheet DB - per variant
C1: Dashboard voor variant: | D1: Variant 1
D3: =Invoergegevens!$D$46 -> Totaaloverzicht | E3: =Invoergegevens!$D$47 -> Partij 1 | F3: =Invoergegevens!$D$48 -> Partij 2 | G3: =Invoergegevens!$D$49 -> Partij 3 | H3: =Invoergegevens!$D$50 -> Partij 4 | I3: =Invoergegevens!$D$51 -> Partij 5 | J3: =Invoergegevens!$D$52 -> Partij 6 | K3: =Invoergegevens!$D$53 -> Partij 7 | L3: =Invoergegevens!$D$54 -> Partij 8 | M3: =Invoergegevens!$D$55 -> Partij 9 | N3: =Invoergegevens!$D$56 -> Partij 10 | P3: =Invoergegevens!$D$46 -> Totaaloverzicht | Q3: =Invoergegevens!$D$47 -> Partij 1 | R3: =Invoergegevens!$D$48 -> Partij 2 | S3: =Invoergegevens!$D$49 -> Partij 3 | T3: =Invoergegevens!$D$50 -> Partij 4 | U3: =Invoergegevens!$D$51 -> Partij 5 | V3: =Invoergegevens!$D$52 -> Partij 6 | W3: =Invoergegevens!$D$53 -> Partij 7 | X3: =Invoergegevens!$D$54 -> Partij 8 | Y3: =Invoergegevens!$D$55 -> Partij 9 | Z3: =Invoergegevens!$D$56 -> Partij 10 | AB3: =Invoergegevens!$D$46 -> Totaaloverzicht | AC3: =Invoergegevens!$D$47 -> Partij 1 | AD3: =Invoergegevens!$D$48 -> Partij 2 | AE3: =Invoergegevens!$D$49 -> Partij 3 | AF3: =Invoergegevens!$D$50 -> Partij 4 | AG3: =Invoergegevens!$D$51 -> Partij 5 | AH3: =Invoergegevens!$D$52 -> Partij 6 | AI3: =Invoergegevens!$D$53 -> Partij 7 | AJ3: =Invoergegevens!$D$54 -> Partij 8 | AK3: =Invoergegevens!$D$55 -> Partij 9 | AL3: =Invoergegevens!$D$56 -> Partij 10 | AN3: =Invoergegevens!$D$46 -> Totaaloverzicht | AO3: =Invoergegevens!$D$47 -> Partij 1 | AP3: =Invoergegevens!$D$48 -> Partij 2 | AQ3: =Invoergegevens!$D$49 -> Partij 3 | AR3: =Invoergegevens!$D$50 -> Partij 4 | AS3: =Invoergegevens!$D$51 -> Partij 5 | AT3: =Invoergegevens!$D$52 -> Partij 6 | AU3: =Invoergegevens!$D$53 -> Partij 7 | AV3: =Invoergegevens!$D$54 -> Partij 8 | AW3: =Invoergegevens!$D$55 -> Partij 9 | AX3: =Invoergegevens!$D$56 -> Partij 10
B5: Investeringen (Afschrijftermijn) | D5: Totale investeringskosten (in eerste afschrijftermijn) | P5: Gemiddelde investeringskosten (in eerste afschrijftermijn) per jaar | AB5: Gemiddelde investeringskosten (in eerste afschrijftermijn) per woning | AN5: Gemiddelde investeringskosten (in eerste afschrijftermijn) per inwoner
B6: =Invoergegevens!C60 -> 01 | C6: =Invoergegevens!D60& " ("& INDEX(Invoergegevens!$C$58:$J$74,MATCH($B6,Invoergegevens!$C$58:$C$74,0),MATCH(Invoergegevens!$F$31,Invoergegevens!$C$59:$J$59,0))& " jaar)" -> 10 jaar (10 jaar) | D6: =SUMIF(INDIRECT("'"&D$3&"'!AF3:CX3"),"<"&INDEX(INDIRECT("'"&D$3&"'!E3:CX1000"),MATCH($D$1,INDIRECT("'"&D$3&"'!E3:E1000"),0)+3+($B6-1)*4,1),INDEX(INDIRECT("'"&D$3&"'!E3:CX1000"),MATCH($D$1,INDIRECT("'"&D$3&"'!E3:E1000"),0)+3+($B6-1)*4,MATCH(0,INDIRECT("'"&D$3&"'!E3:CX3"),0))) -> 100000 | E6: =SUMIF(INDIRECT("'"&E$3&"'!AF3:CX3"),"<"&INDEX(INDIRECT("'"&E$3&"'!E3:CX1000"),MATCH($D$1,INDIRECT("'"&E$3&"'!E3:E1000"),0)+3+($B6-1)*4,1),INDEX(INDIRECT("'"&E$3&"'!E3:CX1000"),MATCH($D$1,INDIRECT("'"&E$3&"'!E3:E1000"),0)+3+($B6-1)*4,MATCH(0,INDIRECT("'"&E$3&"'!E3:CX3"),0))) -> 100000 | F6: 0 | G6: 0 | H6: 0 | I6: 0 | J6: 0 | K6: 0 | L6: 0 | M6: 0 | N6: 0 | P6: =D6/INDEX(Invoergegevens!$C$59:$J$74,MATCH($B6,Invoergegevens!$C$59:$C$74,0),MATCH(Invoergegevens!$F$31,Invoergegevens!$C$59:$J$59,0)) -> 10000 | Q6: =E6/INDEX(Invoergegevens!$C$59:$J$74,MATCH($B6,Invoergegevens!$C$59:$C$74,0),MATCH(Invoergegevens!$F$31,Invoergegevens!$C$59:$J$59,0)) -> 10000 | R6: =F6/INDEX(Invoergegevens!$C$59:$J$74,MATCH($B6,Invoergegevens!$C$59:$C$74,0),MATCH(Invoergegevens!$F$31,Invoergegevens!$C$59:$J$59,0)) -> 0 | S6: =G6/INDEX(Invoergegevens!$C$59:$J$74,MATCH($B6,Invoergegevens!$C$59:$C$74,0),MATCH(Invoergegevens!$F$31,Invoergegevens!$C$59:$J$59,0)) -> 0 | T6: =H6/INDEX(Invoergegevens!$C$59:$J$74,MATCH($B6,Invoergegevens!$C$59:$C$74,0),MATCH(Invoergegevens!$F$31,Invoergegevens!$C$59:$J$59,0)) -> 0 | U6: =I6/INDEX(Invoergegevens!$C$59:$J$74,MATCH($B6,Invoergegevens!$C$59:$C$74,0),MATCH(Invoergegevens!$F$31,Invoergegevens!$C$59:$J$59,0)) -> 0 | V6: =J6/INDEX(Invoergegevens!$C$59:$J$74,MATCH($B6,Invoergegevens!$C$59:$C$74,0),MATCH(Invoergegevens!$F$31,Invoergegevens!$C$59:$J$59,0)) -> 0 | W6: =K6/INDEX(Invoergegevens!$C$59:$J$74,MATCH($B6,Invoergegevens!$C$59:$C$74,0),MATCH(Invoergegevens!$F$31,Invoergegevens!$C$59:$J$59,0)) -> 0 | X6: =L6/INDEX(Invoergegevens!$C$59:$J$74,MATCH($B6,Invoergegevens!$C$59:$C$74,0),MATCH(Invoergegevens!$F$31,Invoergegevens!$C$59:$J$59,0)) -> 0 | Y6: =M6/INDEX(Invoergegevens!$C$59:$J$74,MATCH($B6,Invoergegevens!$C$59:$C$74,0),MATCH(Invoergegevens!$F$31,Invoergegevens!$C$59:$J$59,0)) -> 0 | Z6: =N6/INDEX(Invoergegevens!$C$59:$J$74,MATCH($B6,Invoergegevens!$C$59:$C$74,0),MATCH(Invoergegevens!$F$31,Invoergegevens!$C$59:$J$59,0)) -> 0 | AB6: =D6/Invoergegevens!$F$14 -> 200 | AC6: =E6/Invoergegevens!$F$14 -> 200 | AD6: =F6/Invoergegevens!$F$14 -> 0 | AE6: =G6/Invoergegevens!$F$14 -> 0 | AF6: =H6/Invoergegevens!$F$14 -> 0 | AG6: =I6/Invoergegevens!$F$14 -> 0 | AH6: =J6/Invoergegevens!$F$14 -> 0 | AI6: =K6/Invoergegevens!$F$14 -> 0 | AJ6: =L6/Invoergegevens!$F$14 -> 0 | AK6: =M6/Invoergegevens!$F$14 -> 0 | AL6: =N6/Invoergegevens!$F$14 -> 0 | AN6: =D6/Invoergegevens!$F$17 ->  | AO6: =E6/Invoergegevens!$F$17 ->  | AP6: =F6/Invoergegevens!$F$17 ->  | AQ6: =G6/Invoergegevens!$F$17 ->  | AR6: =H6/Invoergegevens!$F$17 ->  | AS6: =I6/Invoergegevens!$F$17 ->  | AT6: =J6/Invoergegevens!$F$17 ->  | AU6: =K6/Invoergegevens!$F$17 ->  | AV6: =L6/Invoergegevens!$F$17 ->  | AW6: =M6/Invoergegevens!$F$17 ->  | AX6: =N6/Invoergegevens!$F$17 -> 
B7: =Invoergegevens!C61 -> 02 | C7: =Invoergegevens!D61& " ("& INDEX(Invoergegevens!$C$58:$J$74,MATCH($B7,Invoergegevens!$C$58:$C$74,0),MATCH(Invoergegevens!$F$31,Invoergegevens!$C$59:$J$59,0))& " jaar)" -> 15 jaar (15 jaar) | D7: =SUMIF(INDIRECT("'"&D$3&"'!AF3:CX3"),"<"&INDEX(INDIRECT("'"&D$3&"'!E3:CX1000"),MATCH($D$1,INDIRECT("'"&D$3&"'!E3:E1000"),0)+3+($B7-1)*4,1),INDEX(INDIRECT("'"&D$3&"'!E3:CX1000"),MATCH($D$1,INDIRECT("'"&D$3&"'!E3:E1000"),0)+3+($B7-1)*4,MATCH(0,INDIRECT("'"&D$3&"'!E3:CX3"),0))) -> 0 | E7: 0 | F7: 0 | G7: 0 | H7: 0 | I7: 0 | J7: 0 | K7: 0 | L7: 0 | M7: 0 | N7: 0 | P7: =D7/INDEX(Invoergegevens!$C$59:$J$74,MATCH($B7,Invoergegevens!$C$59:$C$74,0),MATCH(Invoergegevens!$F$31,Invoergegevens!$C$59:$J$59,0)) -> 0 | Q7: =E7/INDEX(Invoergegevens!$C$59:$J$74,MATCH($B7,Invoergegevens!$C$59:$C$74,0),MATCH(Invoergegevens!$F$31,Invoergegevens!$C$59:$J$59,0)) -> 0 | R7: =F7/INDEX(Invoergegevens!$C$59:$J$74,MATCH($B7,Invoergegevens!$C$59:$C$74,0),MATCH(Invoergegevens!$F$31,Invoergegevens!$C$59:$J$59,0)) -> 0 | S7: =G7/INDEX(Invoergegevens!$C$59:$J$74,MATCH($B7,Invoergegevens!$C$59:$C$74,0),MATCH(Invoergegevens!$F$31,Invoergegevens!$C$59:$J$59,0)) -> 0 | T7: =H7/INDEX(Invoergegevens!$C$59:$J$74,MATCH($B7,Invoergegevens!$C$59:$C$74,0),MATCH(Invoergegevens!$F$31,Invoergegevens!$C$59:$J$59,0)) -> 0 | U7: =I7/INDEX(Invoergegevens!$C$59:$J$74,MATCH($B7,Invoergegevens!$C$59:$C$74,0),MATCH(Invoergegevens!$F$31,Invoergegevens!$C$59:$J$59,0)) -> 0 | V7: =J7/INDEX(Invoergegevens!$C$59:$J$74,MATCH($B7,Invoergegevens!$C$59:$C$74,0),MATCH(Invoergegevens!$F$31,Invoergegevens!$C$59:$J$59,0)) -> 0 | W7: =K7/INDEX(Invoergegevens!$C$59:$J$74,MATCH($B7,Invoergegevens!$C$59:$C$74,0),MATCH(Invoergegevens!$F$31,Invoergegevens!$C$59:$J$59,0)) -> 0 | X7: =L7/INDEX(Invoergegevens!$C$59:$J$74,MATCH($B7,Invoergegevens!$C$59:$C$74,0),MATCH(Invoergegevens!$F$31,Invoergegevens!$C$59:$J$59,0)) -> 0 | Y7: =M7/INDEX(Invoergegevens!$C$59:$J$74,MATCH($B7,Invoergegevens!$C$59:$C$74,0),MATCH(Invoergegevens!$F$31,Invoergegevens!$C$59:$J$59,0)) -> 0 | Z7: =N7/INDEX(Invoergegevens!$C$59:$J$74,MATCH($B7,Invoergegevens!$C$59:$C$74,0),MATCH(Invoergegevens!$F$31,Invoergegevens!$C$59:$J$59,0)) -> 0 | AB7: =D7/Invoergegevens!$F$14 -> 0 | AC7: =E7/Invoergegevens!$F$14 -> 0 | AD7: =F7/Invoergegevens!$F$14 -> 0 | AE7: =G7/Invoergegevens!$F$14 -> 0 | AF7: =H7/Invoergegevens!$F$14 -> 0 | AG7: =I7/Invoergegevens!$F$14 -> 0 | AH7: =J7/Invoergegevens!$F$14 -> 0 | AI7: =K7/Invoergegevens!$F$14 -> 0 | AJ7: =L7/Invoergegevens!$F$14 -> 0 | AK7: =M7/Invoergegevens!$F$14 -> 0 | AL7: =N7/Invoergegevens!$F$14 -> 0 | AN7: =D7/Invoergegevens!$F$17 ->  | AO7: =E7/Invoergegevens!$F$17 ->  | AP7: =F7/Invoergegevens!$F$17 ->  | AQ7: =G7/Invoergegevens!$F$17 ->  | AR7: =H7/Invoergegevens!$F$17 ->  | AS7: =I7/Invoergegevens!$F$17 ->  | AT7: =J7/Invoergegevens!$F$17 ->  | AU7: =K7/Invoergegevens!$F$17 ->  | AV7: =L7/Invoergegevens!$F$17 ->  | AW7: =M7/Invoergegevens!$F$17 ->  | AX7: =N7/Invoergegevens!$F$17 -> 
B8: =Invoergegevens!C62 -> 03 | C8: =Invoergegevens!D62& " ("& INDEX(Invoergegevens!$C$58:$J$74,MATCH($B8,Invoergegevens!$C$58:$C$74,0),MATCH(Invoergegevens!$F$31,Invoergegevens!$C$59:$J$59,0))& " jaar)" -> 20 jaar (20 jaar) | D8: 0 | E8: 0 | F8: 0 | G8: 0 | H8: 0 | I8: 0 | J8: 0 | K8: 0 | L8: 0 | M8: 0 | N8: 0 | P8: =D8/INDEX(Invoergegevens!$C$59:$J$74,MATCH($B8,Invoergegevens!$C$59:$C$74,0),MATCH(Invoergegevens!$F$31,Invoergegevens!$C$59:$J$59,0)) -> 0 | Q8: =E8/INDEX(Invoergegevens!$C$59:$J$74,MATCH($B8,Invoergegevens!$C$59:$C$74,0),MATCH(Invoergegevens!$F$31,Invoergegevens!$C$59:$J$59,0)) -> 0 | R8: =F8/INDEX(Invoergegevens!$C$59:$J$74,MATCH($B8,Invoergegevens!$C$59:$C$74,0),MATCH(Invoergegevens!$F$31,Invoergegevens!$C$59:$J$59,0)) -> 0 | S8: =G8/INDEX(Invoergegevens!$C$59:$J$74,MATCH($B8,Invoergegevens!$C$59:$C$74,0),MATCH(Invoergegevens!$F$31,Invoergegevens!$C$59:$J$59,0)) -> 0 | T8: =H8/INDEX(Invoergegevens!$C$59:$J$74,MATCH($B8,Invoergegevens!$C$59:$C$74,0),MATCH(Invoergegevens!$F$31,Invoergegevens!$C$59:$J$59,0)) -> 0 | U8: =I8/INDEX(Invoergegevens!$C$59:$J$74,MATCH($B8,Invoergegevens!$C$59:$C$74,0),MATCH(Invoergegevens!$F$31,Invoergegevens!$C$59:$J$59,0)) -> 0 | V8: =J8/INDEX(Invoergegevens!$C$59:$J$74,MATCH($B8,Invoergegevens!$C$59:$C$74,0),MATCH(Invoergegevens!$F$31,Invoergegevens!$C$59:$J$59,0)) -> 0 | W8: =K8/INDEX(Invoergegevens!$C$59:$J$74,MATCH($B8,Invoergegevens!$C$59:$C$74,0),MATCH(Invoergegevens!$F$31,Invoergegevens!$C$59:$J$59,0)) -> 0 | X8: =L8/INDEX(Invoergegevens!$C$59:$J$74,MATCH($B8,Invoergegevens!$C$59:$C$74,0),MATCH(Invoergegevens!$F$31,Invoergegevens!$C$59:$J$59,0)) -> 0 | Y8: =M8/INDEX(Invoergegevens!$C$59:$J$74,MATCH($B8,Invoergegevens!$C$59:$C$74,0),MATCH(Invoergegevens!$F$31,Invoergegevens!$C$59:$J$59,0)) -> 0 | Z8: =N8/INDEX(Invoergegevens!$C$59:$J$74,MATCH($B8,Invoergegevens!$C$59:$C$74,0),MATCH(Invoergegevens!$F$31,Invoergegevens!$C$59:$J$59,0)) -> 0 | AB8: =D8/Invoergegevens!$F$14 -> 0 | AC8: =E8/Invoergegevens!$F$14 -> 0 | AD8: =F8/Invoergegevens!$F$14 -> 0 | AE8: =G8/Invoergegevens!$F$14 -> 0 | AF8: =H8/Invoergegevens!$F$14 -> 0 | AG8: =I8/Invoergegevens!$F$14 -> 0 | AH8: =J8/Invoergegevens!$F$14 -> 0 | AI8: =K8/Invoergegevens!$F$14 -> 0 | AJ8: =L8/Invoergegevens!$F$14 -> 0 | AK8: =M8/Invoergegevens!$F$14 -> 0 | AL8: =N8/Invoergegevens!$F$14 -> 0 | AN8: =D8/Invoergegevens!$F$17 ->  | AO8: =E8/Invoergegevens!$F$17 ->  | AP8: =F8/Invoergegevens!$F$17 ->  | AQ8: =G8/Invoergegevens!$F$17 ->  | AR8: =H8/Invoergegevens!$F$17 ->  | AS8: =I8/Invoergegevens!$F$17 ->  | AT8: =J8/Invoergegevens!$F$17 ->  | AU8: =K8/Invoergegevens!$F$17 ->  | AV8: =L8/Invoergegevens!$F$17 ->  | AW8: =M8/Invoergegevens!$F$17 ->  | AX8: =N8/Invoergegevens!$F$17 -> 
B9: =Invoergegevens!C63 -> 04 | C9: =Invoergegevens!D63& " ("& INDEX(Invoergegevens!$C$58:$J$74,MATCH($B9,Invoergegevens!$C$58:$C$74,0),MATCH(Invoergegevens!$F$31,Invoergegevens!$C$59:$J$59,0))& " jaar)" -> 25 jaar (25 jaar) | D9: 0 | E9: 0 | F9: 0 | G9: 0 | H9: 0 | I9: 0 | J9: 0 | K9: 0 | L9: 0 | M9: 0 | N9: 0 | P9: =D9/INDEX(Invoergegevens!$C$59:$J$74,MATCH($B9,Invoergegevens!$C$59:$C$74,0),MATCH(Invoergegevens!$F$31,Invoergegevens!$C$59:$J$59,0)) -> 0 | Q9: =E9/INDEX(Invoergegevens!$C$59:$J$74,MATCH($B9,Invoergegevens!$C$59:$C$74,0),MATCH(Invoergegevens!$F$31,Invoergegevens!$C$59:$J$59,0)) -> 0 | R9: =F9/INDEX(Invoergegevens!$C$59:$J$74,MATCH($B9,Invoergegevens!$C$59:$C$74,0),MATCH(Invoergegevens!$F$31,Invoergegevens!$C$59:$J$59,0)) -> 0 | S9: =G9/INDEX(Invoergegevens!$C$59:$J$74,MATCH($B9,Invoergegevens!$C$59:$C$74,0),MATCH(Invoergegevens!$F$31,Invoergegevens!$C$59:$J$59,0)) -> 0 | T9: =H9/INDEX(Invoergegevens!$C$59:$J$74,MATCH($B9,Invoergegevens!$C$59:$C$74,0),MATCH(Invoergegevens!$F$31,Invoergegevens!$C$59:$J$59,0)) -> 0 | U9: =I9/INDEX(Invoergegevens!$C$59:$J$74,MATCH($B9,Invoergegevens!$C$59:$C$74,0),MATCH(Invoergegevens!$F$31,Invoergegevens!$C$59:$J$59,0)) -> 0 | V9: =J9/INDEX(Invoergegevens!$C$59:$J$74,MATCH($B9,Invoergegevens!$C$59:$C$74,0),MATCH(Invoergegevens!$F$31,Invoergegevens!$C$59:$J$59,0)) -> 0 | W9: =K9/INDEX(Invoergegevens!$C$59:$J$74,MATCH($B9,Invoergegevens!$C$59:$C$74,0),MATCH(Invoergegevens!$F$31,Invoergegevens!$C$59:$J$59,0)) -> 0 | X9: =L9/INDEX(Invoergegevens!$C$59:$J$74,MATCH($B9,Invoergegevens!$C$59:$C$74,0),MATCH(Invoergegevens!$F$31,Invoergegevens!$C$59:$J$59,0)) -> 0 | Y9: =M9/INDEX(Invoergegevens!$C$59:$J$74,MATCH($B9,Invoergegevens!$C$59:$C$74,0),MATCH(Invoergegevens!$F$31,Invoergegevens!$C$59:$J$59,0)) -> 0 | Z9: =N9/INDEX(Invoergegevens!$C$59:$J$74,MATCH($B9,Invoergegevens!$C$59:$C$74,0),MATCH(Invoergegevens!$F$31,Invoergegevens!$C$59:$J$59,0)) -> 0 | AB9: =D9/Invoergegevens!$F$14 -> 0 | AC9: =E9/Invoergegevens!$F$14 -> 0 | AD9: =F9/Invoergegevens!$F$14 -> 0 | AE9: =G9/Invoergegevens!$F$14 -> 0 | AF9: =H9/Invoergegevens!$F$14 -> 0 | AG9: =I9/Invoergegevens!$F$14 -> 0 | AH9: =J9/Invoergegevens!$F$14 -> 0 | AI9: =K9/Invoergegevens!$F$14 -> 0 | AJ9: =L9/Invoergegevens!$F$14 -> 0 | AK9: =M9/Invoergegevens!$F$14 -> 0 | AL9: =N9/Invoergegevens!$F$14 -> 0 | AN9: =D9/Invoergegevens!$F$17 ->  | AO9: =E9/Invoergegevens!$F$17 ->  | AP9: =F9/Invoergegevens!$F$17 ->  | AQ9: =G9/Invoergegevens!$F$17 ->  | AR9: =H9/Invoergegevens!$F$17 ->  | AS9: =I9/Invoergegevens!$F$17 ->  | AT9: =J9/Invoergegevens!$F$17 ->  | AU9: =K9/Invoergegevens!$F$17 ->  | AV9: =L9/Invoergegevens!$F$17 ->  | AW9: =M9/Invoergegevens!$F$17 ->  | AX9: =N9/Invoergegevens!$F$17 -> 
B10: =Invoergegevens!C64 -> 05 | C10: =Invoergegevens!D64& " ("& INDEX(Invoergegevens!$C$58:$J$74,MATCH($B10,Invoergegevens!$C$58:$C$74,0),MATCH(Invoergegevens!$F$31,Invoergegevens!$C$59:$J$59,0))& " jaar)" -> 30 jaar (30 jaar) | D10: 0 | E10: 0 | F10: 0 | G10: 0 | H10: 0 | I10: 0 | J10: 0 | K10: 0 | L10: 0 | M10: 0 | N10: 0 | P10: =D10/INDEX(Invoergegevens!$C$59:$J$74,MATCH($B10,Invoergegevens!$C$59:$C$74,0),MATCH(Invoergegevens!$F$31,Invoergegevens!$C$59:$J$59,0)) -> 0 | Q10: =E10/INDEX(Invoergegevens!$C$59:$J$74,MATCH($B10,Invoergegevens!$C$59:$C$74,0),MATCH(Invoergegevens!$F$31,Invoergegevens!$C$59:$J$59,0)) -> 0 | R10: =F10/INDEX(Invoergegevens!$C$59:$J$74,MATCH($B10,Invoergegevens!$C$59:$C$74,0),MATCH(Invoergegevens!$F$31,Invoergegevens!$C$59:$J$59,0)) -> 0 | S10: =G10/INDEX(Invoergegevens!$C$59:$J$74,MATCH($B10,Invoergegevens!$C$59:$C$74,0),MATCH(Invoergegevens!$F$31,Invoergegevens!$C$59:$J$59,0)) -> 0 | T10: =H10/INDEX(Invoergegevens!$C$59:$J$74,MATCH($B10,Invoergegevens!$C$59:$C$74,0),MATCH(Invoergegevens!$F$31,Invoergegevens!$C$59:$J$59,0)) -> 0 | U10: =I10/INDEX(Invoergegevens!$C$59:$J$74,MATCH($B10,Invoergegevens!$C$59:$C$74,0),MATCH(Invoergegevens!$F$31,Invoergegevens!$C$59:$J$59,0)) -> 0 | V10: =J10/INDEX(Invoergegevens!$C$59:$J$74,MATCH($B10,Invoergegevens!$C$59:$C$74,0),MATCH(Invoergegevens!$F$31,Invoergegevens!$C$59:$J$59,0)) -> 0 | W10: =K10/INDEX(Invoergegevens!$C$59:$J$74,MATCH($B10,Invoergegevens!$C$59:$C$74,0),MATCH(Invoergegevens!$F$31,Invoergegevens!$C$59:$J$59,0)) -> 0 | X10: =L10/INDEX(Invoergegevens!$C$59:$J$74,MATCH($B10,Invoergegevens!$C$59:$C$74,0),MATCH(Invoergegevens!$F$31,Invoergegevens!$C$59:$J$59,0)) -> 0 | Y10: =M10/INDEX(Invoergegevens!$C$59:$J$74,MATCH($B10,Invoergegevens!$C$59:$C$74,0),MATCH(Invoergegevens!$F$31,Invoergegevens!$C$59:$J$59,0)) -> 0 | Z10: =N10/INDEX(Invoergegevens!$C$59:$J$74,MATCH($B10,Invoergegevens!$C$59:$C$74,0),MATCH(Invoergegevens!$F$31,Invoergegevens!$C$59:$J$59,0)) -> 0 | AB10: =D10/Invoergegevens!$F$14 -> 0 | AC10: =E10/Invoergegevens!$F$14 -> 0 | AD10: =F10/Invoergegevens!$F$14 -> 0 | AE10: =G10/Invoergegevens!$F$14 -> 0 | AF10: =H10/Invoergegevens!$F$14 -> 0 | AG10: =I10/Invoergegevens!$F$14 -> 0 | AH10: =J10/Invoergegevens!$F$14 -> 0 | AI10: =K10/Invoergegevens!$F$14 -> 0 | AJ10: =L10/Invoergegevens!$F$14 -> 0 | AK10: =M10/Invoergegevens!$F$14 -> 0 | AL10: =N10/Invoergegevens!$F$14 -> 0 | AN10: =D10/Invoergegevens!$F$17 ->  | AO10: =E10/Invoergegevens!$F$17 ->  | AP10: =F10/Invoergegevens!$F$17 ->  | AQ10: =G10/Invoergegevens!$F$17 ->  | AR10: =H10/Invoergegevens!$F$17 ->  | AS10: =I10/Invoergegevens!$F$17 ->  | AT10: =J10/Invoergegevens!$F$17 ->  | AU10: =K10/Invoergegevens!$F$17 ->  | AV10: =L10/Invoergegevens!$F$17 ->  | AW10: =M10/Invoergegevens!$F$17 ->  | AX10: =N10/Invoergegevens!$F$17 -> 
B11: =Invoergegevens!C65 -> 06 | C11: =Invoergegevens!D65& " ("& INDEX(Invoergegevens!$C$58:$J$74,MATCH($B11,Invoergegevens!$C$58:$C$74,0),MATCH(Invoergegevens!$F$31,Invoergegevens!$C$59:$J$59,0))& " jaar)" -> 40 jaar (40 jaar) | D11: 0 | E11: 0 | F11: 0 | G11: 0 | H11: 0 | I11: 0 | J11: 0 | K11: 0 | L11: 0 | M11: 0 | N11: 0 | P11: =D11/INDEX(Invoergegevens!$C$59:$J$74,MATCH($B11,Invoergegevens!$C$59:$C$74,0),MATCH(Invoergegevens!$F$31,Invoergegevens!$C$59:$J$59,0)) -> 0 | Q11: =E11/INDEX(Invoergegevens!$C$59:$J$74,MATCH($B11,Invoergegevens!$C$59:$C$74,0),MATCH(Invoergegevens!$F$31,Invoergegevens!$C$59:$J$59,0)) -> 0 | R11: =F11/INDEX(Invoergegevens!$C$59:$J$74,MATCH($B11,Invoergegevens!$C$59:$C$74,0),MATCH(Invoergegevens!$F$31,Invoergegevens!$C$59:$J$59,0)) -> 0 | S11: =G11/INDEX(Invoergegevens!$C$59:$J$74,MATCH($B11,Invoergegevens!$C$59:$C$74,0),MATCH(Invoergegevens!$F$31,Invoergegevens!$C$59:$J$59,0)) -> 0 | T11: =H11/INDEX(Invoergegevens!$C$59:$J$74,MATCH($B11,Invoergegevens!$C$59:$C$74,0),MATCH(Invoergegevens!$F$31,Invoergegevens!$C$59:$J$59,0)) -> 0 | U11: =I11/INDEX(Invoergegevens!$C$59:$J$74,MATCH($B11,Invoergegevens!$C$59:$C$74,0),MATCH(Invoergegevens!$F$31,Invoergegevens!$C$59:$J$59,0)) -> 0 | V11: =J11/INDEX(Invoergegevens!$C$59:$J$74,MATCH($B11,Invoergegevens!$C$59:$C$74,0),MATCH(Invoergegevens!$F$31,Invoergegevens!$C$59:$J$59,0)) -> 0 | W11: =K11/INDEX(Invoergegevens!$C$59:$J$74,MATCH($B11,Invoergegevens!$C$59:$C$74,0),MATCH(Invoergegevens!$F$31,Invoergegevens!$C$59:$J$59,0)) -> 0 | X11: =L11/INDEX(Invoergegevens!$C$59:$J$74,MATCH($B11,Invoergegevens!$C$59:$C$74,0),MATCH(Invoergegevens!$F$31,Invoergegevens!$C$59:$J$59,0)) -> 0 | Y11: =M11/INDEX(Invoergegevens!$C$59:$J$74,MATCH($B11,Invoergegevens!$C$59:$C$74,0),MATCH(Invoergegevens!$F$31,Invoergegevens!$C$59:$J$59,0)) -> 0 | Z11: =N11/INDEX(Invoergegevens!$C$59:$J$74,MATCH($B11,Invoergegevens!$C$59:$C$74,0),MATCH(Invoergegevens!$F$31,Invoergegevens!$C$59:$J$59,0)) -> 0 | AB11: =D11/Invoergegevens!$F$14 -> 0 | AC11: =E11/Invoergegevens!$F$14 -> 0 | AD11: =F11/Invoergegevens!$F$14 -> 0 | AE11: =G11/Invoergegevens!$F$14 -> 0 | AF11: =H11/Invoergegevens!$F$14 -> 0 | AG11: =I11/Invoergegevens!$F$14 -> 0 | AH11: =J11/Invoergegevens!$F$14 -> 0 | AI11: =K11/Invoergegevens!$F$14 -> 0 | AJ11: =L11/Invoergegevens!$F$14 -> 0 | AK11: =M11/Invoergegevens!$F$14 -> 0 | AL11: =N11/Invoergegevens!$F$14 -> 0 | AN11: =D11/Invoergegevens!$F$17 ->  | AO11: =E11/Invoergegevens!$F$17 ->  | AP11: =F11/Invoergegevens!$F$17 ->  | AQ11: =G11/Invoergegevens!$F$17 ->  | AR11: =H11/Invoergegevens!$F$17 ->  | AS11: =I11/Invoergegevens!$F$17 ->  | AT11: =J11/Invoergegevens!$F$17 ->  | AU11: =K11/Invoergegevens!$F$17 ->  | AV11: =L11/Invoergegevens!$F$17 ->  | AW11: =M11/Invoergegevens!$F$17 ->  | AX11: =N11/Invoergegevens!$F$17 -> 
B12: =Invoergegevens!C66 -> 07 | C12: =Invoergegevens!D66& " ("& INDEX(Invoergegevens!$C$58:$J$74,MATCH($B12,Invoergegevens!$C$58:$C$74,0),MATCH(Invoergegevens!$F$31,Invoergegevens!$C$59:$J$59,0))& " jaar)" -> 50 jaar (50 jaar) | D12: 0 | E12: 0 | F12: 0 | G12: 0 | H12: 0 | I12: 0 | J12: 0 | K12: 0 | L12: 0 | M12: 0 | N12: 0 | P12: =D12/INDEX(Invoergegevens!$C$59:$J$74,MATCH($B12,Invoergegevens!$C$59:$C$74,0),MATCH(Invoergegevens!$F$31,Invoergegevens!$C$59:$J$59,0)) -> 0 | Q12: =E12/INDEX(Invoergegevens!$C$59:$J$74,MATCH($B12,Invoergegevens!$C$59:$C$74,0),MATCH(Invoergegevens!$F$31,Invoergegevens!$C$59:$J$59,0)) -> 0 | R12: =F12/INDEX(Invoergegevens!$C$59:$J$74,MATCH($B12,Invoergegevens!$C$59:$C$74,0),MATCH(Invoergegevens!$F$31,Invoergegevens!$C$59:$J$59,0)) -> 0 | S12: =G12/INDEX(Invoergegevens!$C$59:$J$74,MATCH($B12,Invoergegevens!$C$59:$C$74,0),MATCH(Invoergegevens!$F$31,Invoergegevens!$C$59:$J$59,0)) -> 0 | T12: =H12/INDEX(Invoergegevens!$C$59:$J$74,MATCH($B12,Invoergegevens!$C$59:$C$74,0),MATCH(Invoergegevens!$F$31,Invoergegevens!$C$59:$J$59,0)) -> 0 | U12: =I12/INDEX(Invoergegevens!$C$59:$J$74,MATCH($B12,Invoergegevens!$C$59:$C$74,0),MATCH(Invoergegevens!$F$31,Invoergegevens!$C$59:$J$59,0)) -> 0 | V12: =J12/INDEX(Invoergegevens!$C$59:$J$74,MATCH($B12,Invoergegevens!$C$59:$C$74,0),MATCH(Invoergegevens!$F$31,Invoergegevens!$C$59:$J$59,0)) -> 0 | W12: =K12/INDEX(Invoergegevens!$C$59:$J$74,MATCH($B12,Invoergegevens!$C$59:$C$74,0),MATCH(Invoergegevens!$F$31,Invoergegevens!$C$59:$J$59,0)) -> 0 | X12: =L12/INDEX(Invoergegevens!$C$59:$J$74,MATCH($B12,Invoergegevens!$C$59:$C$74,0),MATCH(Invoergegevens!$F$31,Invoergegevens!$C$59:$J$59,0)) -> 0 | Y12: =M12/INDEX(Invoergegevens!$C$59:$J$74,MATCH($B12,Invoergegevens!$C$59:$C$74,0),MATCH(Invoergegevens!$F$31,Invoergegevens!$C$59:$J$59,0)) -> 0 | Z12: =N12/INDEX(Invoergegevens!$C$59:$J$74,MATCH($B12,Invoergegevens!$C$59:$C$74,0),MATCH(Invoergegevens!$F$31,Invoergegevens!$C$59:$J$59,0)) -> 0 | AB12: =D12/Invoergegevens!$F$14 -> 0 | AC12: =E12/Invoergegevens!$F$14 -> 0 | AD12: =F12/Invoergegevens!$F$14 -> 0 | AE12: =G12/Invoergegevens!$F$14 -> 0 | AF12: =H12/Invoergegevens!$F$14 -> 0 | AG12: =I12/Invoergegevens!$F$14 -> 0 | AH12: =J12/Invoergegevens!$F$14 -> 0 | AI12: =K12/Invoergegevens!$F$14 -> 0 | AJ12: =L12/Invoergegevens!$F$14 -> 0 | AK12: =M12/Invoergegevens!$F$14 -> 0 | AL12: =N12/Invoergegevens!$F$14 -> 0 | AN12: =D12/Invoergegevens!$F$17 ->  | AO12: =E12/Invoergegevens!$F$17 ->  | AP12: =F12/Invoergegevens!$F$17 ->  | AQ12: =G12/Invoergegevens!$F$17 ->  | AR12: =H12/Invoergegevens!$F$17 ->  | AS12: =I12/Invoergegevens!$F$17 ->  | AT12: =J12/Invoergegevens!$F$17 ->  | AU12: =K12/Invoergegevens!$F$17 ->  | AV12: =L12/Invoergegevens!$F$17 ->  | AW12: =M12/Invoergegevens!$F$17 ->  | AX12: =N12/Invoergegevens!$F$17 -> 
B13: =Invoergegevens!C67 -> 08 | C13: =Invoergegevens!D67& " ("& INDEX(Invoergegevens!$C$58:$J$74,MATCH($B13,Invoergegevens!$C$58:$C$74,0),MATCH(Invoergegevens!$F$31,Invoergegevens!$C$59:$J$59,0))& " jaar)" -> anders 2 (50 jaar) | D13: 0 | E13: 0 | F13: 0 | G13: 0 | H13: 0 | I13: 0 | J13: 0 | K13: 0 | L13: 0 | M13: 0 | N13: 0 | P13: =D13/INDEX(Invoergegevens!$C$59:$J$74,MATCH($B13,Invoergegevens!$C$59:$C$74,0),MATCH(Invoergegevens!$F$31,Invoergegevens!$C$59:$J$59,0)) -> 0 | Q13: =E13/INDEX(Invoergegevens!$C$59:$J$74,MATCH($B13,Invoergegevens!$C$59:$C$74,0),MATCH(Invoergegevens!$F$31,Invoergegevens!$C$59:$J$59,0)) -> 0 | R13: =F13/INDEX(Invoergegevens!$C$59:$J$74,MATCH($B13,Invoergegevens!$C$59:$C$74,0),MATCH(Invoergegevens!$F$31,Invoergegevens!$C$59:$J$59,0)) -> 0 | S13: =G13/INDEX(Invoergegevens!$C$59:$J$74,MATCH($B13,Invoergegevens!$C$59:$C$74,0),MATCH(Invoergegevens!$F$31,Invoergegevens!$C$59:$J$59,0)) -> 0 | T13: =H13/INDEX(Invoergegevens!$C$59:$J$74,MATCH($B13,Invoergegevens!$C$59:$C$74,0),MATCH(Invoergegevens!$F$31,Invoergegevens!$C$59:$J$59,0)) -> 0 | U13: =I13/INDEX(Invoergegevens!$C$59:$J$74,MATCH($B13,Invoergegevens!$C$59:$C$74,0),MATCH(Invoergegevens!$F$31,Invoergegevens!$C$59:$J$59,0)) -> 0 | V13: =J13/INDEX(Invoergegevens!$C$59:$J$74,MATCH($B13,Invoergegevens!$C$59:$C$74,0),MATCH(Invoergegevens!$F$31,Invoergegevens!$C$59:$J$59,0)) -> 0 | W13: =K13/INDEX(Invoergegevens!$C$59:$J$74,MATCH($B13,Invoergegevens!$C$59:$C$74,0),MATCH(Invoergegevens!$F$31,Invoergegevens!$C$59:$J$59,0)) -> 0 | X13: =L13/INDEX(Invoergegevens!$C$59:$J$74,MATCH($B13,Invoergegevens!$C$59:$C$74,0),MATCH(Invoergegevens!$F$31,Invoergegevens!$C$59:$J$59,0)) -> 0 | Y13: =M13/INDEX(Invoergegevens!$C$59:$J$74,MATCH($B13,Invoergegevens!$C$59:$C$74,0),MATCH(Invoergegevens!$F$31,Invoergegevens!$C$59:$J$59,0)) -> 0 | Z13: =N13/INDEX(Invoergegevens!$C$59:$J$74,MATCH($B13,Invoergegevens!$C$59:$C$74,0),MATCH(Invoergegevens!$F$31,Invoergegevens!$C$59:$J$59,0)) -> 0 | AB13: =D13/Invoergegevens!$F$14 -> 0 | AC13: =E13/Invoergegevens!$F$14 -> 0 | AD13: =F13/Invoergegevens!$F$14 -> 0 | AE13: =G13/Invoergegevens!$F$14 -> 0 | AF13: =H13/Invoergegevens!$F$14 -> 0 | AG13: =I13/Invoergegevens!$F$14 -> 0 | AH13: =J13/Invoergegevens!$F$14 -> 0 | AI13: =K13/Invoergegevens!$F$14 -> 0 | AJ13: =L13/Invoergegevens!$F$14 -> 0 | AK13: =M13/Invoergegevens!$F$14 -> 0 | AL13: =N13/Invoergegevens!$F$14 -> 0 | AN13: =D13/Invoergegevens!$F$17 ->  | AO13: =E13/Invoergegevens!$F$17 ->  | AP13: =F13/Invoergegevens!$F$17 ->  | AQ13: =G13/Invoergegevens!$F$17 ->  | AR13: =H13/Invoergegevens!$F$17 ->  | AS13: =I13/Invoergegevens!$F$17 ->  | AT13: =J13/Invoergegevens!$F$17 ->  | AU13: =K13/Invoergegevens!$F$17 ->  | AV13: =L13/Invoergegevens!$F$17 ->  | AW13: =M13/Invoergegevens!$F$17 ->  | AX13: =N13/Invoergegevens!$F$17 -> 
B14: =Invoergegevens!C68 -> 09 | C14: =Invoergegevens!D68& " ("& INDEX(Invoergegevens!$C$58:$J$74,MATCH($B14,Invoergegevens!$C$58:$C$74,0),MATCH(Invoergegevens!$F$31,Invoergegevens!$C$59:$J$59,0))& " jaar)" -> anders 3 (50 jaar) | D14: 0 | E14: 0 | F14: 0 | G14: 0 | H14: 0 | I14: 0 | J14: 0 | K14: 0 | L14: 0 | M14: 0 | N14: 0 | P14: =D14/INDEX(Invoergegevens!$C$59:$J$74,MATCH($B14,Invoergegevens!$C$59:$C$74,0),MATCH(Invoergegevens!$F$31,Invoergegevens!$C$59:$J$59,0)) -> 0 | Q14: =E14/INDEX(Invoergegevens!$C$59:$J$74,MATCH($B14,Invoergegevens!$C$59:$C$74,0),MATCH(Invoergegevens!$F$31,Invoergegevens!$C$59:$J$59,0)) -> 0 | R14: =F14/INDEX(Invoergegevens!$C$59:$J$74,MATCH($B14,Invoergegevens!$C$59:$C$74,0),MATCH(Invoergegevens!$F$31,Invoergegevens!$C$59:$J$59,0)) -> 0 | S14: =G14/INDEX(Invoergegevens!$C$59:$J$74,MATCH($B14,Invoergegevens!$C$59:$C$74,0),MATCH(Invoergegevens!$F$31,Invoergegevens!$C$59:$J$59,0)) -> 0 | T14: =H14/INDEX(Invoergegevens!$C$59:$J$74,MATCH($B14,Invoergegevens!$C$59:$C$74,0),MATCH(Invoergegevens!$F$31,Invoergegevens!$C$59:$J$59,0)) -> 0 | U14: =I14/INDEX(Invoergegevens!$C$59:$J$74,MATCH($B14,Invoergegevens!$C$59:$C$74,0),MATCH(Invoergegevens!$F$31,Invoergegevens!$C$59:$J$59,0)) -> 0 | V14: =J14/INDEX(Invoergegevens!$C$59:$J$74,MATCH($B14,Invoergegevens!$C$59:$C$74,0),MATCH(Invoergegevens!$F$31,Invoergegevens!$C$59:$J$59,0)) -> 0 | W14: =K14/INDEX(Invoergegevens!$C$59:$J$74,MATCH($B14,Invoergegevens!$C$59:$C$74,0),MATCH(Invoergegevens!$F$31,Invoergegevens!$C$59:$J$59,0)) -> 0 | X14: =L14/INDEX(Invoergegevens!$C$59:$J$74,MATCH($B14,Invoergegevens!$C$59:$C$74,0),MATCH(Invoergegevens!$F$31,Invoergegevens!$C$59:$J$59,0)) -> 0 | Y14: =M14/INDEX(Invoergegevens!$C$59:$J$74,MATCH($B14,Invoergegevens!$C$59:$C$74,0),MATCH(Invoergegevens!$F$31,Invoergegevens!$C$59:$J$59,0)) -> 0 | Z14: =N14/INDEX(Invoergegevens!$C$59:$J$74,MATCH($B14,Invoergegevens!$C$59:$C$74,0),MATCH(Invoergegevens!$F$31,Invoergegevens!$C$59:$J$59,0)) -> 0 | AB14: =D14/Invoergegevens!$F$14 -> 0 | AC14: =E14/Invoergegevens!$F$14 -> 0 | AD14: =F14/Invoergegevens!$F$14 -> 0 | AE14: =G14/Invoergegevens!$F$14 -> 0 | AF14: =H14/Invoergegevens!$F$14 -> 0 | AG14: =I14/Invoergegevens!$F$14 -> 0 | AH14: =J14/Invoergegevens!$F$14 -> 0 | AI14: =K14/Invoergegevens!$F$14 -> 0 | AJ14: =L14/Invoergegevens!$F$14 -> 0 | AK14: =M14/Invoergegevens!$F$14 -> 0 | AL14: =N14/Invoergegevens!$F$14 -> 0 | AN14: =D14/Invoergegevens!$F$17 ->  | AO14: =E14/Invoergegevens!$F$17 ->  | AP14: =F14/Invoergegevens!$F$17 ->  | AQ14: =G14/Invoergegevens!$F$17 ->  | AR14: =H14/Invoergegevens!$F$17 ->  | AS14: =I14/Invoergegevens!$F$17 ->  | AT14: =J14/Invoergegevens!$F$17 ->  | AU14: =K14/Invoergegevens!$F$17 ->  | AV14: =L14/Invoergegevens!$F$17 ->  | AW14: =M14/Invoergegevens!$F$17 ->  | AX14: =N14/Invoergegevens!$F$17 -> 
B15: =Invoergegevens!C69 -> 10 | C15: =Invoergegevens!D69& " ("& INDEX(Invoergegevens!$C$58:$J$74,MATCH($B15,Invoergegevens!$C$58:$C$74,0),MATCH(Invoergegevens!$F$31,Invoergegevens!$C$59:$J$59,0))& " jaar)" -> anders 4 (50 jaar) | D15: 0 | E15: 0 | F15: 0 | G15: 0 | H15: 0 | I15: 0 | J15: 0 | K15: 0 | L15: 0 | M15: 0 | N15: 0 | P15: =D15/INDEX(Invoergegevens!$C$59:$J$74,MATCH($B15,Invoergegevens!$C$59:$C$74,0),MATCH(Invoergegevens!$F$31,Invoergegevens!$C$59:$J$59,0)) -> 0 | Q15: =E15/INDEX(Invoergegevens!$C$59:$J$74,MATCH($B15,Invoergegevens!$C$59:$C$74,0),MATCH(Invoergegevens!$F$31,Invoergegevens!$C$59:$J$59,0)) -> 0 | R15: =F15/INDEX(Invoergegevens!$C$59:$J$74,MATCH($B15,Invoergegevens!$C$59:$C$74,0),MATCH(Invoergegevens!$F$31,Invoergegevens!$C$59:$J$59,0)) -> 0 | S15: =G15/INDEX(Invoergegevens!$C$59:$J$74,MATCH($B15,Invoergegevens!$C$59:$C$74,0),MATCH(Invoergegevens!$F$31,Invoergegevens!$C$59:$J$59,0)) -> 0 | T15: =H15/INDEX(Invoergegevens!$C$59:$J$74,MATCH($B15,Invoergegevens!$C$59:$C$74,0),MATCH(Invoergegevens!$F$31,Invoergegevens!$C$59:$J$59,0)) -> 0 | U15: =I15/INDEX(Invoergegevens!$C$59:$J$74,MATCH($B15,Invoergegevens!$C$59:$C$74,0),MATCH(Invoergegevens!$F$31,Invoergegevens!$C$59:$J$59,0)) -> 0 | V15: =J15/INDEX(Invoergegevens!$C$59:$J$74,MATCH($B15,Invoergegevens!$C$59:$C$74,0),MATCH(Invoergegevens!$F$31,Invoergegevens!$C$59:$J$59,0)) -> 0 | W15: =K15/INDEX(Invoergegevens!$C$59:$J$74,MATCH($B15,Invoergegevens!$C$59:$C$74,0),MATCH(Invoergegevens!$F$31,Invoergegevens!$C$59:$J$59,0)) -> 0 | X15: =L15/INDEX(Invoergegevens!$C$59:$J$74,MATCH($B15,Invoergegevens!$C$59:$C$74,0),MATCH(Invoergegevens!$F$31,Invoergegevens!$C$59:$J$59,0)) -> 0 | Y15: =M15/INDEX(Invoergegevens!$C$59:$J$74,MATCH($B15,Invoergegevens!$C$59:$C$74,0),MATCH(Invoergegevens!$F$31,Invoergegevens!$C$59:$J$59,0)) -> 0 | Z15: =N15/INDEX(Invoergegevens!$C$59:$J$74,MATCH($B15,Invoergegevens!$C$59:$C$74,0),MATCH(Invoergegevens!$F$31,Invoergegevens!$C$59:$J$59,0)) -> 0 | AB15: =D15/Invoergegevens!$F$14 -> 0 | AC15: =E15/Invoergegevens!$F$14 -> 0 | AD15: =F15/Invoergegevens!$F$14 -> 0 | AE15: =G15/Invoergegevens!$F$14 -> 0 | AF15: =H15/Invoergegevens!$F$14 -> 0 | AG15: =I15/Invoergegevens!$F$14 -> 0 | AH15: =J15/Invoergegevens!$F$14 -> 0 | AI15: =K15/Invoergegevens!$F$14 -> 0 | AJ15: =L15/Invoergegevens!$F$14 -> 0 | AK15: =M15/Invoergegevens!$F$14 -> 0 | AL15: =N15/Invoergegevens!$F$14 -> 0 | AN15: =D15/Invoergegevens!$F$17 ->  | AO15: =E15/Invoergegevens!$F$17 ->  | AP15: =F15/Invoergegevens!$F$17 ->  | AQ15: =G15/Invoergegevens!$F$17 ->  | AR15: =H15/Invoergegevens!$F$17 ->  | AS15: =I15/Invoergegevens!$F$17 ->  | AT15: =J15/Invoergegevens!$F$17 ->  | AU15: =K15/Invoergegevens!$F$17 ->  | AV15: =L15/Invoergegevens!$F$17 ->  | AW15: =M15/Invoergegevens!$F$17 ->  | AX15: =N15/Invoergegevens!$F$17 -> 
... 14 more rows

Sheet Uitgangspunten
B1: Eenheidsprijzen
E2: =Invoergegevens!D38 -> Variant 1 | F2: =Invoergegevens!D39 -> Variant 2 | G2: =Invoergegevens!D40 -> Variant 3 | H2: =Invoergegevens!D41 -> Variant 4 | I2: =Invoergegevens!D42 -> Variant 5
B3: Hoofdposten | C3: Onderdeel | D3: Detaillering | E3: Getalswaarde (excl. btw) | J3: Eenheid | K3: Betrouwbaarheid | L3: Bron
B4: CO2 emissie | C4: CO2 emissie elektriciteit | D4: CO2 emissie elektriciteit | E4: 340 | J4: kg CO2/kWh | K4: goed | L4: NEV 2017 | M4: 2017
B5: CO2 emissie | C5: CO2 emissie | D5: Afname CO2 emissie elektriciteit | E5: =1/30 -> 0.03333333333 | J5: per jaar | K5: nagaan waar deze factor gebruikt wordt
B6: CO2 emissie | C6: CO2 emissie aardgas | D6: CO2 emissie aardgas | E6: 1.89 | J6: kg CO2/Nm3 | K6: matig | M6: jaar?
B7: CO2 emissie | C7: CO2 emissie groengas | D7: CO2 emissie groengas | E7: =E6/10 -> 0.189 | J7: kg CO2/Nm3 | K7: matig | L7: schatting | M7: jaar?
B8: CO2 emissie | C8: CO2 emissie 70 °C MT stadswarmte | D8: CO2 emissie 70 °C MT stadswarmte | E8: 36 | J8: kg CO2/GJ | K8: matig | M8: jaar?
B9: CO2 emissie | C9: CO2 emissie 70 °C MT omgevingswarmte | D9: CO2 emissie 70 °C MT omgevingswarmte | E9: 0 | J9: kg CO2/GJ | K9: matig | M9: jaar?
B10: CO2 emissie | C10: CO2 emissie 40 °C LT omgevingswarmte | D10: CO2 emissie 40 °C LT omgevingswarmte | E10: 0 | J10: kg CO2/GJ | K10: matig | M10: jaar?
B11: CO2 emissie | C11: CO2 emissie 15 °C ZLT omgevingswarmte | D11: CO2 emissie 15 °C ZLT omgevingswarmte | E11: 0 | J11: kg CO2/GJ | K11: matig | M11: jaar?
B12: CO2 emissie | C12: CO2 emissie koude | D12: CO2 emissie koude | E12: 0 | J12: kg CO2/GJ | K12: matig | M12: jaar?
B13: CO2 emissie | C13: overig - geen CO2 emissie | D13: overig - geen CO2 emissie | E13: 0 | J13: kg CO2/GJ | K13: matig | M13: jaar?
B14: CO2 emissie
B16: Hoofdposten | C16: Onderdeel | D16: Detaillering | E16: Getalswaarde (excl. btw) | J16: Eenheid | K16: Betrouwbaarheid | L16: Bron
B17: Energie | C17: 1 kWh | E17: 0.0036 | J17: GJ | K17: goed | L17: binas
B18: energie | C18: warmtecapaciteit water | E18: 0.004186 | J18: GJ/m³.K | K18: goed | L18: binas
B19: gas | C19: stookwaarde biogas | E19: 0.022617 | J19: GJ/Nm³ | K19: goed | L19: binas
B20: gas | C20: stookwaarde aardgas (bovenwaarde) | E20: =35.17/1000 -> 0.03517 | J20: GJ/Nm³ | K20: goed | L20: binas
B21: gas | E21: =stookwaarde_aardgas_GJpNm3/0.0036 -> 9.769444444 | J21: kWh/Nm3 | K21: goed | L21: binas
B22: gas | C22: biogasprijs | E22: 0.15 | J22: €/Nm³ | K22: matig | L22: schatting | M22: jaar?
B23: Elektriciteit | C23: tarief elektriciteit particulier | E23: 0.19 | J23: €/kWh | K23: goed | M23: 2020
B24: Elektriciteit | C24: tarief elektriciteit zakelijk middel | E24: 0.11 | J24: €/kWh | K24: matig | L24: schatting | M24: jaar?
B25: Elektriciteit | C25: tarief elektriciteit zakelijk groot | E25: 0.08 | J25: €/kWh | K25: matig | L25: schatting | M25: jaar?
B26: Warmte | C26: tarief warmte uit grijs water | J26: €/GJ
B27: Warmte | C27: tarief warmte uit oppervlaktewater | J27: €/GJ
B28: Warmte | C28: warmtetarief | J28: €/GJ
B29: Warmte | C29: koeltarief | J29: €/GJ
B30: Warmte | C30: aansluitbijdrage warmtenet woningen | J30: €/huis
B31: Warmte | C31: aansluitbijdrage warmtenet utiliteit | J31: €/utiliteit
B32: Warmte | C32: vastrecht warmtenet | J32: €/huis.jaar
B33: CO2 | C33: CO2 tarief | D33: prijspeil 2020 | E33: 72 | F33: 72 | G33: 72 | H33: 72 | I33: 72 | J33: €/ton CO2 | K33: Controleren

Sheet ramingen
E1: Materiaalkosten | G1: Montagekosten | I1: Bouwkosten
A2: scenario | C2: # eenheden | D2: eenheid | E2: nettoprijs/ eenheid | F2: subtotaal eenheden | G2: uren | H2: subtotaal uren | J2: Levensduur [jaar] | K2: Onderhoud [%/jaar] | L2: Onderhoud [Euro/jaar]
A3: hoofdcomponent 1
B4: subcomponent 1.1 | C4: 1 | D4: st. | E4: 10000 | F4: =C4*E4 -> 10000 | G4: 100 | H4: =G4*$O$5 -> 5000 | I4: =F4+H4 -> 15000 | J4: 50 | K4: 0.01 | L4: =K4*I4 -> 150 | N4: Loonkosten rekenwaarde
B5: subcomponent 1.2 | C5: 1 | D5: st. | E5: 20000 | F5: 20000 | G5: 150 | H5: 7500 | I5: =F5+H5 -> 27500 | J5: 30 | K5: 0.02 | L5: =K5*I5 -> 550 | N5: Ploeg-/uurloon | O5: 50
B6: subcomponent 1.3 | C6: 1 | D6: st. | E6: 30000 | F6: 30000 | G6: 200 | H6: 10000 | I6: 40000 | J6: 10 | K6: 0.03 | L6: 1200
B7: … | F7: 0 | H7: 0 | I7: 0 | L7: 0 | N7: Standaard onderhoudspercentages
B8: … | F8: 0 | H8: 0 | I8: 0 | L8: 0 | N8: WTB (werktuigbouwkundig) | O8: 3 | P8: Waternet
B9: … | F9: 0 | H9: 0 | I9: 0 | L9: 0 | N9: E (elektrotechniek) | O9: 3 | P9: Waternet
B10: … | F10: 0 | H10: 0 | I10: 0 | L10: 0 | N10: waterleiding / riool | O10: 2 | P10: Waternet
B11: … | F11: 0 | H11: 0 | I11: 0 | L11: 0 | N11: CT (civiele techniek) | O11: 0.5 | P11: Waternet
A12: subtotaal 1 | I12: =SUM(I4:I11) -> 82500 | N12: PA (procesautomatisering) | O12: 1 | P12: Waternet
N13: TEO | O13: 3 | P13: Vesta MAIS 4.0
A14: hoofdcomponent 2 | N14: WKO | O14: 2 | P14: Vesta MAIS 4.0
B15: subcomponent 2.1 | C15: 1 | D15: st. | E15: 40000 | F15: =C15*E15 -> 40000 | G15: 250 | H15: =G15*$O$5 -> 12500 | I15: =F15+H15 -> 52500 | J15: 50 | K15: 0.01 | L15: 525 | N15: primaire leidingen warmtenet | O15: 3 | P15: Vesta MAIS 4.0
... 16 more rows

Sheet Energie
B1: huidig | F1: na isolatie | Z1: B: 70°C (TEA WKO) met piekketel | AA1: aanname: 30% van het piekvermogen opstellen met warmtepompen geeft 80% van de totaal benodigde warmte | AR1: C: 15°C (TEA WKO) met individuele warmtepompen
A2: Warmtebehoefte totaal | B2: =aantal_woningen*B4/1000 -> 25 | C2: TJ | F2: =0.9*B2 -> 22.5 | G2: TJ | Z2: Warmtevraag | AE2: Warmteketen (GJ) | AR2: Warmtevraag | AW2: Warmteketen (GJ)
B3: =B2*1000 -> 25000 | C3: GJ | F3: =F2*1000 -> 22500 | G3: GJ | Z3: Aantal woningen | AA3: =aantal_woningen -> 500 | AD3: Bron -> warmtecentrale, totaal | AE3: =AE4+AE5 -> 16071.42857 | AF3: GJ/jaar | AR3: Aantal woningen | AS3: =aantal_woningen -> 500 | AV3: Bron -> warmtecentrale, totaal | AW3: =AW4+AW5 -> 15789.47368 | AX3: GJ/jaar
A4: per woning: | B4: 50 | C4: GJ | D4: =D5+D6 -> 13888.88889 | E4: kWh | F4: =F3/aantal_woningen -> 45 | G4: GJ | H4: =H6+H5 -> 12500 | I4: kWh | Z4: Totaal rv warmte | AA4: =aantal_woningen*F5 -> 19000 | AB4: GJ/j | AD4: Bron -> warmtepomp, zomer | AE4: =AE8-AE7 -> 6428.571429 | AF4: GJ/jaar | AR4: Totaal rv warmte | AS4: =aantal_woningen*F5 -> 19000 | AT4: GJ/j | AV4: Bron -> warmtepomp, zomer | AW4: =AW8-AW7 -> 6315.789474 | AX4: GJ/jaar
A5: ruimteverwarming | B5: =B4-B6 -> 43 | C5: GJ | D5: =B5/3.6*1000 -> 11944.44444 | E5: kWh | F5: =F4-F6 -> 38 | G5: GJ | H5: =F5/3.6*1000 -> 10555.55556 | I5: kWh | Z5: Totaal tw warmte | AA5: =aantal_woningen*F6 -> 3500 | AB5: GJ/j | AD5: Bron naar WKO, zomer | AE5: =AE7/(1-AA10) -> 9642.857143 | AF5: GJ/jaar | AR5: Totaal tw warmte | AS5: =aantal_woningen*F6 -> 3500 | AT5: GJ/j | AV5: Bron naar WKO, zomer | AW5: =AW7/(1-AS10) -> 9473.684211 | AX5: GJ/jaar
A6: warm tapwater | B6: 7 | C6: GJ | D6: =B6/3.6*1000 -> 1944.444444 | E6: kWh | F6: 7 | G6: GJ | H6: =F6/3.6*1000 -> 1944.444444 | I6: kWh | Z6: Totaal warmte | AA6: =F3 -> 22500 | AB6: GJ/j | AD6: Verlies in WKO | AE6: =AE5-AE7 -> 0 | AF6: GJ/jaar | AR6: Totaal warmte | AS6: =F3 -> 22500 | AT6: GJ/j | AV6: Verlies in WKO | AW6: =AW5-AW7 -> 0 | AX6: GJ/jaar
A7: koeling | B7: 0 | C7: GJ | D7: 0 | E7: kWh | F7: 0 | G7: GJ | H7: =F7/3.6*1000 -> 0 | I7: kWh | Z7: aandeel GJ direct TEA naar wp (zomer/ ts) | AA7: 0.4 | AD7: WKO -> warmtenet, winter | AE7: =AE8*(1-AA7) -> 9642.857143 | AF7: GJ/jaar | AR7: aandeel GJ direct TEA naar wp (zomer/ ts) | AS7: 0.4 | AV7: WKO -> warmtenet, winter | AW7: =AW8*(1-AS7) -> 9473.684211 | AX7: GJ/jaar
A8: vermogen ruimteverwarming | B8: 12 | C8: kW/woning | F8: 10 | G8: kW/woning | Z8: Aandeel wp (GJ) | AA8: =1-AA9 -> 0.8 | AD8: Warmtepomp in | AE8: =AE10-AE9 -> 16071.42857 | AF8: GJ/jaar | AR8: Aandeel wp (GJ) | AS8: =1-AS9 -> 1 | AV8: Warmtepomp in | AW8: =AW10-AW9 -> 15789.47368 | AX8: GJ/jaar
A9: vermogen warm tapwater | F9: 4 | G9: kW/woning | Z9: Aandeel groengasketel (GJ) | AA9: 0.2 | AD9: warmtepomp elektra | AE9: =AE10/AA13 -> 6428.571429 | AF9: GJ/jaar | AI9: Totaal energie verbruik per jaar | AO9: SPF | AR9: Aandeel gasketel (GJ) | AS9: 0 | AV9: warmtepomp elektra | AW9: =AW10/AS13 -> 7894.736842 | AX9: GJ/jaar | BA9: Totaal energie verbruik per jaar
A10: vermogen koeling | F10: 0 | G10: kW/woning | Z10: verlies in WKO | AA10: 0 | AD10: warmtepomp output | AE10: =AE12*AA8 -> 22500 | AF10: GJ/jaar | AI10: Elektra | AJ10: =AE9/0.0036 -> 1785714.286 | AK10: kwh/jaar | AL10: =AJ10*3.6/1000 -> 6428.571429 | AM10: GJ/jaar | AN10: =AL10/AL13 -> 0.2261904762 | AO10: =(AL10+AL12)/AL10 -> 3.5 | AP10: zonder groengas | AR10: verlies in WKO | AS10: 0 | AV10: warmtepomp output | AW10: =AW12*AS8 -> 23684.21053 | AX10: GJ/jaar | BA10: Elektra | BB10: =AW9/0.0036 -> 2192982.456 | BC10: kwh/jaar | BD10: =BB10*3.6/1000 -> 7894.736842 | BE10: GJ/jaar | BF10: =BD10/BD13 -> 0.3333333333
A11: vermogen utiliteit totaal | F11: 320 | G11: kW | Z11: verlies in warmtenet (GJ) | AA11: 0.2 | AD11: Piek opwekking | AE11: =AE12*AA9 -> 5625 | AF11: GJ/jaar | AI11: Groengas | AJ11: =AE51 -> 187079.0721 | AK11: m3/jaar | AL11: =AJ11*31.65/1000 -> 5921.052632 | AM11: GJ/jaar | AN11: =AL11/AL13 -> 0.2083333333 | AR11: verlies in warmtenet (GJ) | AS11: 0.05 | AV11: Piek opwekking | AW11: =AW12*AS9 -> 0 | AX11: GJ/jaar | BA11: Gas | BB11: =AW51 -> 0 | BC11: m3/jaar | BD11: =BB11*31.65/1000 -> 0 | BE11: GJ/jaar | BF11: =BD11/BD13 -> 0
Z12: verlies in warmtenet (kW) | AA12: 0.05 | AD12: totaal opwekking | AE12: =AE14/(1-AA11) -> 28125 | AF12: GJ/jaar | AI12: warmte uit afvalwater | AJ12: =AE3 -> 16071.42857 | AK12: gj/jaar | AL12: =AJ12 -> 16071.42857 | AM12: GJ/jaar | AN12: =AL12/AL13 -> 0.5654761905 | AR12: verlies in warmtenet (kW) | AS12: 0.01 | AV12: totaal opwekking | AW12: =AW14/(1-AS11) -> 23684.21053 | AX12: GJ/jaar | BA12: warmte uit afvalwater | BB12: =AW3 -> 15789.47368 | BC12: gj/jaar | BD12: =BB12 -> 15789.47368 | BE12: GJ/jaar | BF12: =BD12/BD13 -> 0.6666666667
A13: Gelijktijdigheidsfactor | Z13: COP 70 (HT systeem) | AA13: 3.5 | AB13: - | AD13: Verlies distributie/ opslag | AE13: =AE12-AE14 -> 5625 | AF13: GJ/jaar | AI13: Totaal nodig | AL13: =SUM(AL10:AL12) -> 28421.05263 | AM13: GJ/jaar | AR13: COP 70 (individuele warmtepomp) | AS13: 3 | AT13: - | AV13: Verlies distributie/ opslag | AW13: =AW12-AW14 -> 1184.210526 | AX13: GJ/jaar | BA13: Totaal nodig | BD13: =SUM(BD10:BD12) -> 23684.21053 | BE13: GJ/jaar
A14: n woningen | AD14: Levering totaal | AE14: =AA6 -> 22500 | AF14: GJ/jaar | AI14: Totaal afname | AL14: =AE14 -> 22500 | AM14: GJ/jaar | AV14: Levering totaal | AW14: =AS6 -> 22500 | AX14: GJ/jaar | BA14: Totaal afname | BD14: =AW14 -> 22500 | BE14: GJ/jaar
A15: 1-5 | B15: 1 | Z15: Totaal rv | AA15: =((aantal_woningen*F8)+F11)*AA24 -> 2926 | AB15: kW | AD15: Levering per appartement | AE15: =AE14/aantal_woningen -> 45 | AF15: GJ/jaar | AI15: Verlies | AL15: =AL13-AL14 -> 5921.052632 | AM15: GJ/jaar | AN15: =AL15/AL13 -> 0.2083333333 | AR15: Totaal rv | AS15: =((aantal_woningen*vermogen_RV_kWpwoning)+F11)*AS24 -> 2926 | AT15: kW | AV15: Levering per appartement | AW15: =AW14/aantal_woningen -> 45 | AX15: GJ/jaar | BA15: Verlies | BD15: =BD13-BD14 -> 1184.210526 | BE15: GJ/jaar | BF15: =BD15/BD13 -> 0.05
... 17 more rows

Sheet Investeringskosten
C1: Investeringskosten
K2: Investering moet binnen afschrijftermijn liggen | Q2: Mate van bijdrage stakeholders (in %) | W2: Totaal (moet gelijk zijn aan 100% | Z2: Van toepassing op varianten | AD2: Selecteer minimaal 1 variant | AF2: 0 | AG2: 1 | AH2: 2 | AI2: 3 | AJ2: 4 | AK2: 5 | AL2: 6 | AM2: 7 | AN2: 8 | AO2: 9 | AP2: 10 | AQ2: 11 | AR2: 12 | AS2: 13 | AT2: 14 | AU2: 15 | AV2: 16 | AW2: 17 | AX2: 18 | AY2: 19 | AZ2: 20 | BA2: 21 | BB2: 22 | BC2: 23 | BD2: 24 | BE2: 25 | BF2: 26 | BG2: 27 | BH2: 28 | BI2: 29 | BJ2: 30 | BK2: 31 | BL2: 32 | BM2: 33 | BN2: 34 | BO2: 35 | BP2: 36 | BQ2: 37 | BR2: 38 | BS2: 39 | BT2: 40 | BU2: 41 | BV2: 42 | BW2: 43 | BX2: 44 | BY2: 45 | BZ2: 46 | CA2: 47 | CB2: 48 | CC2: 49 | CD2: 50 | CE2: 51 | CF2: 52 | CG2: 53 | CH2: 54 | CI2: 55 | CJ2: 56 | CK2: 57 | CL2: 58 | CM2: 59 | CN2: 60 | CO2: 61 | CP2: 62 | CQ2: 63 | CR2: 64 | CS2: 65 | CT2: 66 | CU2: 67 | CV2: 68 | CW2: 69 | CX2: 70
B3: Nr | C3: Omschrijving | D3: Specificatie | E3: € / eenheid (excl. BTW) | F3: Eenheid | G3: Aantal | H3: Totaal | I3: Start investering | J3: Einde investering | K3: Controle | M3: =Invoergegevens!$D$47 -> Partij 1 | N3: =Invoergegevens!$D$48 -> Partij 2 | O3: =Invoergegevens!$D$49 -> Partij 3 | P3: =Invoergegevens!$D$50 -> Partij 4 | Q3: =Invoergegevens!$D$51 -> Partij 5 | R3: =Invoergegevens!$D$52 -> Partij 6 | S3: =Invoergegevens!$D$53 -> Partij 7 | T3: =Invoergegevens!$D$54 -> Partij 8 | U3: =Invoergegevens!$D$55 -> Partij 9 | V3: =Invoergegevens!$D$56 -> Partij 10 | W3: Controle | Y3: =Invoergegevens!$D$38 -> Variant 1 | Z3: =Invoergegevens!$D$39 -> Variant 2 | AA3: =Invoergegevens!$D$40 -> Variant 3 | AB3: =Invoergegevens!$D$41 -> Variant 4 | AC3: =Invoergegevens!$D$42 -> Variant 5 | AF3: =Invoergegevens!F8 -> 2021 | AG3: =IF(COLUMN()-COLUMN($AE$4)<=Invoergegevens!$F$9-Invoergegevens!$F$8,AF3+1,0) -> 2022 | AH3: =IF(COLUMN()-COLUMN($AE$4)<=Invoergegevens!$F$9-Invoergegevens!$F$8,AG3+1,0) -> 2023 | AI3: =IF(COLUMN()-COLUMN($AE$4)<=Invoergegevens!$F$9-Invoergegevens!$F$8,AH3+1,0) -> 2024 | AJ3: =IF(COLUMN()-COLUMN($AE$4)<=Invoergegevens!$F$9-Invoergegevens!$F$8,AI3+1,0) -> 2025 | AK3: =IF(COLUMN()-COLUMN($AE$4)<=Invoergegevens!$F$9-Invoergegevens!$F$8,AJ3+1,0) -> 2026 | AL3: =IF(COLUMN()-COLUMN($AE$4)<=Invoergegevens!$F$9-Invoergegevens!$F$8,AK3+1,0) -> 2027 | AM3: =IF(COLUMN()-COLUMN($AE$4)<=Invoergegevens!$F$9-Invoergegevens!$F$8,AL3+1,0) -> 2028 | AN3: =IF(COLUMN()-COLUMN($AE$4)<=Invoergegevens!$F$9-Invoergegevens!$F$8,AM3+1,0) -> 2029 | AO3: =IF(COLUMN()-COLUMN($AE$4)<=Invoergegevens!$F$9-Invoergegevens!$F$8,AN3+1,0) -> 2030 | AP3: =IF(COLUMN()-COLUMN($AE$4)<=Invoergegevens!$F$9-Invoergegevens!$F$8,AO3+1,0) -> 2031 | AQ3: =IF(COLUMN()-COLUMN($AE$4)<=Invoergegevens!$F$9-Invoergegevens!$F$8,AP3+1,0) -> 2032 | AR3: =IF(COLUMN()-COLUMN($AE$4)<=Invoergegevens!$F$9-Invoergegevens!$F$8,AQ3+1,0) -> 2033 | AS3: =IF(COLUMN()-COLUMN($AE$4)<=Invoergegevens!$F$9-Invoergegevens!$F$8,AR3+1,0) -> 2034 | AT3: =IF(COLUMN()-COLUMN($AE$4)<=Invoergegevens!$F$9-Invoergegevens!$F$8,AS3+1,0) -> 2035 | AU3: =IF(COLUMN()-COLUMN($AE$4)<=Invoergegevens!$F$9-Invoergegevens!$F$8,AT3+1,0) -> 2036 | AV3: =IF(COLUMN()-COLUMN($AE$4)<=Invoergegevens!$F$9-Invoergegevens!$F$8,AU3+1,0) -> 2037 | AW3: =IF(COLUMN()-COLUMN($AE$4)<=Invoergegevens!$F$9-Invoergegevens!$F$8,AV3+1,0) -> 2038 | AX3: =IF(COLUMN()-COLUMN($AE$4)<=Invoergegevens!$F$9-Invoergegevens!$F$8,AW3+1,0) -> 2039 | AY3: =IF(COLUMN()-COLUMN($AE$4)<=Invoergegevens!$F$9-Invoergegevens!$F$8,AX3+1,0) -> 2040 | AZ3: =IF(COLUMN()-COLUMN($AE$4)<=Invoergegevens!$F$9-Invoergegevens!$F$8,AY3+1,0) -> 2041 | BA3: =IF(COLUMN()-COLUMN($AE$4)<=Invoergegevens!$F$9-Invoergegevens!$F$8,AZ3+1,0) -> 2042 | BB3: =IF(COLUMN()-COLUMN($AE$4)<=Invoergegevens!$F$9-Invoergegevens!$F$8,BA3+1,0) -> 2043 | BC3: =IF(COLUMN()-COLUMN($AE$4)<=Invoergegevens!$F$9-Invoergegevens!$F$8,BB3+1,0) -> 2044 | BD3: =IF(COLUMN()-COLUMN($AE$4)<=Invoergegevens!$F$9-Invoergegevens!$F$8,BC3+1,0) -> 2045 | BE3: =IF(COLUMN()-COLUMN($AE$4)<=Invoergegevens!$F$9-Invoergegevens!$F$8,BD3+1,0) -> 2046 | BF3: =IF(COLUMN()-COLUMN($AE$4)<=Invoergegevens!$F$9-Invoergegevens!$F$8,BE3+1,0) -> 2047 | BG3: =IF(COLUMN()-COLUMN($AE$4)<=Invoergegevens!$F$9-Invoergegevens!$F$8,BF3+1,0) -> 2048 | BH3: =IF(COLUMN()-COLUMN($AE$4)<=Invoergegevens!$F$9-Invoergegevens!$F$8,BG3+1,0) -> 2049 | BI3: =IF(COLUMN()-COLUMN($AE$4)<=Invoergegevens!$F$9-Invoergegevens!$F$8,BH3+1,0) -> 2050 | BJ3: =IF(COLUMN()-COLUMN($AE$4)<=Invoergegevens!$F$9-Invoergegevens!$F$8,BI3+1,0) -> 2051 | BK3: =IF(COLUMN()-COLUMN($AE$4)<=Invoergegevens!$F$9-Invoergegevens!$F$8,BJ3+1,0) -> 2052 | BL3: =IF(COLUMN()-COLUMN($AE$4)<=Invoergegevens!$F$9-Invoergegevens!$F$8,BK3+1,0) -> 2053 | BM3: =IF(COLUMN()-COLUMN($AE$4)<=Invoergegevens!$F$9-Invoergegevens!$F$8,BL3+1,0) -> 2054 | BN3: =IF(COLUMN()-COLUMN($AE$4)<=Invoergegevens!$F$9-Invoergegevens!$F$8,BM3+1,0) -> 2055 | BO3: =IF(COLUMN()-COLUMN($AE$4)<=Invoergegevens!$F$9-Invoergegevens!$F$8,BN3+1,0) -> 2056 | BP3: =IF(COLUMN()-COLUMN($AE$4)<=Invoergegevens!$F$9-Invoergegevens!$F$8,BO3+1,0) -> 2057 | BQ3: =IF(COLUMN()-COLUMN($AE$4)<=Invoergegevens!$F$9-Invoergegevens!$F$8,BP3+1,0) -> 2058 | BR3: =IF(COLUMN()-COLUMN($AE$4)<=Invoergegevens!$F$9-Invoergegevens!$F$8,BQ3+1,0) -> 2059 | BS3: =IF(COLUMN()-COLUMN($AE$4)<=Invoergegevens!$F$9-Invoergegevens!$F$8,BR3+1,0) -> 2060 | BT3: =IF(COLUMN()-COLUMN($AE$4)<=Invoergegevens!$F$9-Invoergegevens!$F$8,BS3+1,0) -> 2061 | BU3: =IF(COLUMN()-COLUMN($AE$4)<=Invoergegevens!$F$9-Invoergegevens!$F$8,BT3+1,0) -> 2062 | BV3: =IF(COLUMN()-COLUMN($AE$4)<=Invoergegevens!$F$9-Invoergegevens!$F$8,BU3+1,0) -> 2063 | BW3: =IF(COLUMN()-COLUMN($AE$4)<=Invoergegevens!$F$9-Invoergegevens!$F$8,BV3+1,0) -> 2064 | BX3: =IF(COLUMN()-COLUMN($AE$4)<=Invoergegevens!$F$9-Invoergegevens!$F$8,BW3+1,0) -> 2065 | BY3: =IF(COLUMN()-COLUMN($AE$4)<=Invoergegevens!$F$9-Invoergegevens!$F$8,BX3+1,0) -> 2066 | BZ3: =IF(COLUMN()-COLUMN($AE$4)<=Invoergegevens!$F$9-Invoergegevens!$F$8,BY3+1,0) -> 2067 | CA3: =IF(COLUMN()-COLUMN($AE$4)<=Invoergegevens!$F$9-Invoergegevens!$F$8,BZ3+1,0) -> 2068 | CB3: =IF(COLUMN()-COLUMN($AE$4)<=Invoergegevens!$F$9-Invoergegevens!$F$8,CA3+1,0) -> 2069 | CC3: =IF(COLUMN()-COLUMN($AE$4)<=Invoergegevens!$F$9-Invoergegevens!$F$8,CB3+1,0) -> 0 | CD3: =IF(COLUMN()-COLUMN($AE$4)<=Invoergegevens!$F$9-Invoergegevens!$F$8,CC3+1,0) -> 0 | CE3: =IF(COLUMN()-COLUMN($AE$4)<=Invoergegevens!$F$9-Invoergegevens!$F$8,CD3+1,0) -> 0 | CF3: =IF(COLUMN()-COLUMN($AE$4)<=Invoergegevens!$F$9-Invoergegevens!$F$8,CE3+1,0) -> 0 | CG3: =IF(COLUMN()-COLUMN($AE$4)<=Invoergegevens!$F$9-Invoergegevens!$F$8,CF3+1,0) -> 0 | CH3: =IF(COLUMN()-COLUMN($AE$4)<=Invoergegevens!$F$9-Invoergegevens!$F$8,CG3+1,0) -> 0 | CI3: =IF(COLUMN()-COLUMN($AE$4)<=Invoergegevens!$F$9-Invoergegevens!$F$8,CH3+1,0) -> 0 | CJ3: =IF(COLUMN()-COLUMN($AE$4)<=Invoergegevens!$F$9-Invoergegevens!$F$8,CI3+1,0) -> 0 | CK3: =IF(COLUMN()-COLUMN($AE$4)<=Invoergegevens!$F$9-Invoergegevens!$F$8,CJ3+1,0) -> 0 | CL3: =IF(COLUMN()-COLUMN($AE$4)<=Invoergegevens!$F$9-Invoergegevens!$F$8,CK3+1,0) -> 0 | CM3: =IF(COLUMN()-COLUMN($AE$4)<=Invoergegevens!$F$9-Invoergegevens!$F$8,CL3+1,0) -> 0 | CN3: =IF(COLUMN()-COLUMN($AE$4)<=Invoergegevens!$F$9-Invoergegevens!$F$8,CM3+1,0) -> 0 | CO3: =IF(COLUMN()-COLUMN($AE$4)<=Invoergegevens!$F$9-Invoergegevens!$F$8,CN3+1,0) -> 0 | CP3: =IF(COLUMN()-COLUMN($AE$4)<=Invoergegevens!$F$9-Invoergegevens!$F$8,CO3+1,0) -> 0 | CQ3: =IF(COLUMN()-COLUMN($AE$4)<=Invoergegevens!$F$9-Invoergegevens!$F$8,CP3+1,0) -> 0 | CR3: =IF(COLUMN()-COLUMN($AE$4)<=Invoergegevens!$F$9-Invoergegevens!$F$8,CQ3+1,0) -> 0 | CS3: =IF(COLUMN()-COLUMN($AE$4)<=Invoergegevens!$F$9-Invoergegevens!$F$8,CR3+1,0) -> 0 | CT3: =IF(COLUMN()-COLUMN($AE$4)<=Invoergegevens!$F$9-Invoergegevens!$F$8,CS3+1,0) -> 0 | CU3: =IF(COLUMN()-COLUMN($AE$4)<=Invoergegevens!$F$9-Invoergegevens!$F$8,CT3+1,0) -> 0 | CV3: =IF(COLUMN()-COLUMN($AE$4)<=Invoergegevens!$F$9-Invoergegevens!$F$8,CU3+1,0) -> 0 | CW3: =IF(COLUMN()-COLUMN($AE$4)<=Invoergegevens!$F$9-Invoergegevens!$F$8,CV3+1,0) -> 0 | CX3: =IF(COLUMN()-COLUMN($AE$4)<=Invoergegevens!$F$9-Invoergegevens!$F$8,CW3+1,0) -> 0
B5: 01 | C5: =Invoergegevens!$D$60 -> 10 jaar | D5: Specificatie | E5: € / eenheid (excl. BTW) | F5: Eenheid | G5: Aantal | H5: Totaal | I5: Start investering | J5: Einde investering | K5: Controle | M5: =Invoergegevens!$D$47 -> Partij 1 | N5: =Invoergegevens!$D$48 -> Partij 2 | O5: =Invoergegevens!$D$49 -> Partij 3 | P5: =Invoergegevens!$D$50 -> Partij 4 | Q5: =Invoergegevens!$D$51 -> Partij 5 | R5: =Invoergegevens!$D$52 -> Partij 6 | S5: =Invoergegevens!$D$53 -> Partij 7 | T5: =Invoergegevens!$D$54 -> Partij 8 | U5: =Invoergegevens!$D$55 -> Partij 9 | V5: =Invoergegevens!$D$56 -> Partij 10 | W5: Controle | Y5: =Invoergegevens!$D$38 -> Variant 1 | Z5: =Invoergegevens!$D$39 -> Variant 2 | AA5: =Invoergegevens!$D$40 -> Variant 3 | AB5: =Invoergegevens!$D$41 -> Variant 4 | AC5: =Invoergegevens!$D$42 -> Variant 5
B6: 01.1 | C6: Test | E6: 100000 | G6: 1 | H6: =E6*G6 -> 100000 | I6: 2021 | J6: 2021 | K6: =IF($H6<>0,IF(OR($I6<Invoergegevens!$F$8,$J6>=Invoergegevens!$F$8+INDEX(Invoergegevens!$C$59:$J$74,MATCH(LEFT($B6,2),Invoergegevens!$C$59:$C$74,0),MATCH(Invoergegevens!$F$31,Invoergegevens!$C$59:$J$59,0))),"fout","goed"),"") -> goed | M6: 1 | W6: =IF(H6<>0,IF(SUM(M6:V6)=1,"goed","fout"),"") -> goed | Y6: ja | AD6: =IF(H6<>0,IF(COUNTA(Y6:AC6)>0,"goed","fout"),"") -> goed | AF6: =(AF$2<=Invoergegevens!$F$9-Invoergegevens!$F$8)*(AF$2>=$I6-Invoergegevens!$F$8)*(AF$2<=$J6-Invoergegevens!$F$8)*($H6/($J6-$I6+1))*(1+Invoergegevens!$F$26)^AF$2 -> 100000 | AG6: =(AG$2<=Invoergegevens!$F$9-Invoergegevens!$F$8)*(AG$2>=$I6-Invoergegevens!$F$8)*(AG$2<=$J6-Invoergegevens!$F$8)*($H6/($J6-$I6+1))*(1+Invoergegevens!$F$26)^AG$2 -> 0 | AH6: =(AH$2<=Invoergegevens!$F$9-Invoergegevens!$F$8)*(AH$2>=$I6-Invoergegevens!$F$8)*(AH$2<=$J6-Invoergegevens!$F$8)*($H6/($J6-$I6+1))*(1+Invoergegevens!$F$26)^AH$2 -> 0 | AI6: =(AI$2<=Invoergegevens!$F$9-Invoergegevens!$F$8)*(AI$2>=$I6-Invoergegevens!$F$8)*(AI$2<=$J6-Invoergegevens!$F$8)*($H6/($J6-$I6+1))*(1+Invoergegevens!$F$26)^AI$2 -> 0 | AJ6: =(AJ$2<=Invoergegevens!$F$9-Invoergegevens!$F$8)*(AJ$2>=$I6-Invoergegevens!$F$8)*(AJ$2<=$J6-Invoergegevens!$F$8)*($H6/($J6-$I6+1))*(1+Invoergegevens!$F$26)^AJ$2 -> 0 | AK6: =(AK$2<=Invoergegevens!$F$9-Invoergegevens!$F$8)*(AK$2>=$I6-Invoergegevens!$F$8)*(AK$2<=$J6-Invoergegevens!$F$8)*($H6/($J6-$I6+1))*(1+Invoergegevens!$F$26)^AK$2 -> 0 | AL6: =(AL$2<=Invoergegevens!$F$9-Invoergegevens!$F$8)*(AL$2>=$I6-Invoergegevens!$F$8)*(AL$2<=$J6-Invoergegevens!$F$8)*($H6/($J6-$I6+1))*(1+Invoergegevens!$F$26)^AL$2 -> 0 | AM6: =(AM$2<=Invoergegevens!$F$9-Invoergegevens!$F$8)*(AM$2>=$I6-Invoergegevens!$F$8)*(AM$2<=$J6-Invoergegevens!$F$8)*($H6/($J6-$I6+1))*(1+Invoergegevens!$F$26)^AM$2 -> 0 | AN6: =(AN$2<=Invoergegevens!$F$9-Invoergegevens!$F$8)*(AN$2>=$I6-Invoergegevens!$F$8)*(AN$2<=$J6-Invoergegevens!$F$8)*($H6/($J6-$I6+1))*(1+Invoergegevens!$F$26)^AN$2 -> 0 | AO6: =(AO$2<=Invoergegevens!$F$9-Invoergegevens!$F$8)*(AO$2>=$I6-Invoergegevens!$F$8)*(AO$2<=$J6-Invoergegevens!$F$8)*($H6/($J6-$I6+1))*(1+Invoergegevens!$F$26)^AO$2 -> 0 | AP6: =(AP$2<=Invoergegevens!$F$9-Invoergegevens!$F$8)*(AP$2>=$I6-Invoergegevens!$F$8)*(AP$2<=$J6-Invoergegevens!$F$8)*($H6/($J6-$I6+1))*(1+Invoergegevens!$F$26)^AP$2 -> 0 | AQ6: =(AQ$2<=Invoergegevens!$F$9-Invoergegevens!$F$8)*(AQ$2>=$I6-Invoergegevens!$F$8)*(AQ$2<=$J6-Invoergegevens!$F$8)*($H6/($J6-$I6+1))*(1+Invoergegevens!$F$26)^AQ$2 -> 0 | AR6: =(AR$2<=Invoergegevens!$F$9-Invoergegevens!$F$8)*(AR$2>=$I6-Invoergegevens!$F$8)*(AR$2<=$J6-Invoergegevens!$F$8)*($H6/($J6-$I6+1))*(1+Invoergegevens!$F$26)^AR$2 -> 0 | AS6: =(AS$2<=Invoergegevens!$F$9-Invoergegevens!$F$8)*(AS$2>=$I6-Invoergegevens!$F$8)*(AS$2<=$J6-Invoergegevens!$F$8)*($H6/($J6-$I6+1))*(1+Invoergegevens!$F$26)^AS$2 -> 0 | AT6: =(AT$2<=Invoergegevens!$F$9-Invoergegevens!$F$8)*(AT$2>=$I6-Invoergegevens!$F$8)*(AT$2<=$J6-Invoergegevens!$F$8)*($H6/($J6-$I6+1))*(1+Invoergegevens!$F$26)^AT$2 -> 0 | AU6: =(AU$2<=Invoergegevens!$F$9-Invoergegevens!$F$8)*(AU$2>=$I6-Invoergegevens!$F$8)*(AU$2<=$J6-Invoergegevens!$F$8)*($H6/($J6-$I6+1))*(1+Invoergegevens!$F$26)^AU$2 -> 0 | AV6: =(AV$2<=Invoergegevens!$F$9-Invoergegevens!$F$8)*(AV$2>=$I6-Invoergegevens!$F$8)*(AV$2<=$J6-Invoergegevens!$F$8)*($H6/($J6-$I6+1))*(1+Invoergegevens!$F$26)^AV$2 -> 0 | AW6: =(AW$2<=Invoergegevens!$F$9-Invoergegevens!$F$8)*(AW$2>=$I6-Invoergegevens!$F$8)*(AW$2<=$J6-Invoergegevens!$F$8)*($H6/($J6-$I6+1))*(1+Invoergegevens!$F$26)^AW$2 -> 0 | AX6: =(AX$2<=Invoergegevens!$F$9-Invoergegevens!$F$8)*(AX$2>=$I6-Invoergegevens!$F$8)*(AX$2<=$J6-Invoergegevens!$F$8)*($H6/($J6-$I6+1))*(1+Invoergegevens!$F$26)^AX$2 -> 0 | AY6: =(AY$2<=Invoergegevens!$F$9-Invoergegevens!$F$8)*(AY$2>=$I6-Invoergegevens!$F$8)*(AY$2<=$J6-Invoergegevens!$F$8)*($H6/($J6-$I6+1))*(1+Invoergegevens!$F$26)^AY$2 -> 0 | AZ6: =(AZ$2<=Invoergegevens!$F$9-Invoergegevens!$F$8)*(AZ$2>=$I6-Invoergegevens!$F$8)*(AZ$2<=$J6-Invoergegevens!$F$8)*($H6/($J6-$I6+1))*(1+Invoergegevens!$F$26)^AZ$2 -> 0 | BA6: =(BA$2<=Invoergegevens!$F$9-Invoergegevens!$F$8)*(BA$2>=$I6-Invoergegevens!$F$8)*(BA$2<=$J6-Invoergegevens!$F$8)*($H6/($J6-$I6+1))*(1+Invoergegevens!$F$26)^BA$2 -> 0 | BB6: =(BB$2<=Invoergegevens!$F$9-Invoergegevens!$F$8)*(BB$2>=$I6-Invoergegevens!$F$8)*(BB$2<=$J6-Invoergegevens!$F$8)*($H6/($J6-$I6+1))*(1+Invoergegevens!$F$26)^BB$2 -> 0 | BC6: =(BC$2<=Invoergegevens!$F$9-Invoergegevens!$F$8)*(BC$2>=$I6-Invoergegevens!$F$8)*(BC$2<=$J6-Invoergegevens!$F$8)*($H6/($J6-$I6+1))*(1+Invoergegevens!$F$26)^BC$2 -> 0 | BD6: =(BD$2<=Invoergegevens!$F$9-Invoergegevens!$F$8)*(BD$2>=$I6-Invoergegevens!$F$8)*(BD$2<=$J6-Invoergegevens!$F$8)*($H6/($J6-$I6+1))*(1+Invoergegevens!$F$26)^BD$2 -> 0 | BE6: =(BE$2<=Invoergegevens!$F$9-Invoergegevens!$F$8)*(BE$2>=$I6-Invoergegevens!$F$8)*(BE$2<=$J6-Invoergegevens!$F$8)*($H6/($J6-$I6+1))*(1+Invoergegevens!$F$26)^BE$2 -> 0 | BF6: =(BF$2<=Invoergegevens!$F$9-Invoergegevens!$F$8)*(BF$2>=$I6-Invoergegevens!$F$8)*(BF$2<=$J6-Invoergegevens!$F$8)*($H6/($J6-$I6+1))*(1+Invoergegevens!$F$26)^BF$2 -> 0 | BG6: =(BG$2<=Invoergegevens!$F$9-Invoergegevens!$F$8)*(BG$2>=$I6-Invoergegevens!$F$8)*(BG$2<=$J6-Invoergegevens!$F$8)*($H6/($J6-$I6+1))*(1+Invoergegevens!$F$26)^BG$2 -> 0 | BH6: =(BH$2<=Invoergegevens!$F$9-Invoergegevens!$F$8)*(BH$2>=$I6-Invoergegevens!$F$8)*(BH$2<=$J6-Invoergegevens!$F$8)*($H6/($J6-$I6+1))*(1+Invoergegevens!$F$26)^BH$2 -> 0 | BI6: =(BI$2<=Invoergegevens!$F$9-Invoergegevens!$F$8)*(BI$2>=$I6-Invoergegevens!$F$8)*(BI$2<=$J6-Invoergegevens!$F$8)*($H6/($J6-$I6+1))*(1+Invoergegevens!$F$26)^BI$2 -> 0 | BJ6: =(BJ$2<=Invoergegevens!$F$9-Invoergegevens!$F$8)*(BJ$2>=$I6-Invoergegevens!$F$8)*(BJ$2<=$J6-Invoergegevens!$F$8)*($H6/($J6-$I6+1))*(1+Invoergegevens!$F$26)^BJ$2 -> 0 | BK6: =(BK$2<=Invoergegevens!$F$9-Invoergegevens!$F$8)*(BK$2>=$I6-Invoergegevens!$F$8)*(BK$2<=$J6-Invoergegevens!$F$8)*($H6/($J6-$I6+1))*(1+Invoergegevens!$F$26)^BK$2 -> 0 | BL6: =(BL$2<=Invoergegevens!$F$9-Invoergegevens!$F$8)*(BL$2>=$I6-Invoergegevens!$F$8)*(BL$2<=$J6-Invoergegevens!$F$8)*($H6/($J6-$I6+1))*(1+Invoergegevens!$F$26)^BL$2 -> 0 | BM6: =(BM$2<=Invoergegevens!$F$9-Invoergegevens!$F$8)*(BM$2>=$I6-Invoergegevens!$F$8)*(BM$2<=$J6-Invoergegevens!$F$8)*($H6/($J6-$I6+1))*(1+Invoergegevens!$F$26)^BM$2 -> 0 | BN6: =(BN$2<=Invoergegevens!$F$9-Invoergegevens!$F$8)*(BN$2>=$I6-Invoergegevens!$F$8)*(BN$2<=$J6-Invoergegevens!$F$8)*($H6/($J6-$I6+1))*(1+Invoergegevens!$F$26)^BN$2 -> 0 | BO6: =(BO$2<=Invoergegevens!$F$9-Invoergegevens!$F$8)*(BO$2>=$I6-Invoergegevens!$F$8)*(BO$2<=$J6-Invoergegevens!$F$8)*($H6/($J6-$I6+1))*(1+Invoergegevens!$F$26)^BO$2 -> 0 | BP6: =(BP$2<=Invoergegevens!$F$9-Invoergegevens!$F$8)*(BP$2>=$I6-Invoergegevens!$F$8)*(BP$2<=$J6-Invoergegevens!$F$8)*($H6/($J6-$I6+1))*(1+Invoergegevens!$F$26)^BP$2 -> 0 | BQ6: =(BQ$2<=Invoergegevens!$F$9-Invoergegevens!$F$8)*(BQ$2>=$I6-Invoergegevens!$F$8)*(BQ$2<=$J6-Invoergegevens!$F$8)*($H6/($J6-$I6+1))*(1+Invoergegevens!$F$26)^BQ$2 -> 0 | BR6: =(BR$2<=Invoergegevens!$F$9-Invoergegevens!$F$8)*(BR$2>=$I6-Invoergegevens!$F$8)*(BR$2<=$J6-Invoergegevens!$F$8)*($H6/($J6-$I6+1))*(1+Invoergegevens!$F$26)^BR$2 -> 0 | BS6: =(BS$2<=Invoergegevens!$F$9-Invoergegevens!$F$8)*(BS$2>=$I6-Invoergegevens!$F$8)*(BS$2<=$J6-Invoergegevens!$F$8)*($H6/($J6-$I6+1))*(1+Invoergegevens!$F$26)^BS$2 -> 0 | BT6: =(BT$2<=Invoergegevens!$F$9-Invoergegevens!$F$8)*(BT$2>=$I6-Invoergegevens!$F$8)*(BT$2<=$J6-Invoergegevens!$F$8)*($H6/($J6-$I6+1))*(1+Invoergegevens!$F$26)^BT$2 -> 0 | BU6: =(BU$2<=Invoergegevens!$F$9-Invoergegevens!$F$8)*(BU$2>=$I6-Invoergegevens!$F$8)*(BU$2<=$J6-Invoergegevens!$F$8)*($H6/($J6-$I6+1))*(1+Invoergegevens!$F$26)^BU$2 -> 0 | BV6: =(BV$2<=Invoergegevens!$F$9-Invoergegevens!$F$8)*(BV$2>=$I6-Invoergegevens!$F$8)*(BV$2<=$J6-Invoergegevens!$F$8)*($H6/($J6-$I6+1))*(1+Invoergegevens!$F$26)^BV$2 -> 0 | BW6: =(BW$2<=Invoergegevens!$F$9-Invoergegevens!$F$8)*(BW$2>=$I6-Invoergegevens!$F$8)*(BW$2<=$J6-Invoergegevens!$F$8)*($H6/($J6-$I6+1))*(1+Invoergegevens!$F$26)^BW$2 -> 0 | BX6: =(BX$2<=Invoergegevens!$F$9-Invoergegevens!$F$8)*(BX$2>=$I6-Invoergegevens!$F$8)*(BX$2<=$J6-Invoergegevens!$F$8)*($H6/($J6-$I6+1))*(1+Invoergegevens!$F$26)^BX$2 -> 0 | BY6: =(BY$2<=Invoergegevens!$F$9-Invoergegevens!$F$8)*(BY$2>=$I6-Invoergegevens!$F$8)*(BY$2<=$J6-Invoergegevens!$F$8)*($H6/($J6-$I6+1))*(1+Invoergegevens!$F$26)^BY$2 -> 0 | BZ6: =(BZ$2<=Invoergegevens!$F$9-Invoergegevens!$F$8)*(BZ$2>=$I6-Invoergegevens!$F$8)*(BZ$2<=$J6-Invoergegevens!$F$8)*($H6/($J6-$I6+1))*(1+Invoergegevens!$F$26)^BZ$2 -> 0 | CA6: =(CA$2<=Invoergegevens!$F$9-Invoergegevens!$F$8)*(CA$2>=$I6-Invoergegevens!$F$8)*(CA$2<=$J6-Invoergegevens!$F$8)*($H6/($J6-$I6+1))*(1+Invoergegevens!$F$26)^CA$2 -> 0 | CB6: =(CB$2<=Invoergegevens!$F$9-Invoergegevens!$F$8)*(CB$2>=$I6-Invoergegevens!$F$8)*(CB$2<=$J6-Invoergegevens!$F$8)*($H6/($J6-$I6+1))*(1+Invoergegevens!$F$26)^CB$2 -> 0 | CC6: =(CC$2<=Invoergegevens!$F$9-Invoergegevens!$F$8)*(CC$2>=$I6-Invoergegevens!$F$8)*(CC$2<=$J6-Invoergegevens!$F$8)*($H6/($J6-$I6+1))*(1+Invoergegevens!$F$26)^CC$2 -> 0 | CD6: =(CD$2<=Invoergegevens!$F$9-Invoergegevens!$F$8)*(CD$2>=$I6-Invoergegevens!$F$8)*(CD$2<=$J6-Invoergegevens!$F$8)*($H6/($J6-$I6+1))*(1+Invoergegevens!$F$26)^CD$2 -> 0 | CE6: =(CE$2<=Invoergegevens!$F$9-Invoergegevens!$F$8)*(CE$2>=$I6-Invoergegevens!$F$8)*(CE$2<=$J6-Invoergegevens!$F$8)*($H6/($J6-$I6+1))*(1+Invoergegevens!$F$26)^CE$2 -> 0 | CF6: =(CF$2<=Invoergegevens!$F$9-Invoergegevens!$F$8)*(CF$2>=$I6-Invoergegevens!$F$8)*(CF$2<=$J6-Invoergegevens!$F$8)*($H6/($J6-$I6+1))*(1+Invoergegevens!$F$26)^CF$2 -> 0 | CG6: =(CG$2<=Invoergegevens!$F$9-Invoergegevens!$F$8)*(CG$2>=$I6-Invoergegevens!$F$8)*(CG$2<=$J6-Invoergegevens!$F$8)*($H6/($J6-$I6+1))*(1+Invoergegevens!$F$26)^CG$2 -> 0 | CH6: =(CH$2<=Invoergegevens!$F$9-Invoergegevens!$F$8)*(CH$2>=$I6-Invoergegevens!$F$8)*(CH$2<=$J6-Invoergegevens!$F$8)*($H6/($J6-$I6+1))*(1+Invoergegevens!$F$26)^CH$2 -> 0 | CI6: =(CI$2<=Invoergegevens!$F$9-Invoergegevens!$F$8)*(CI$2>=$I6-Invoergegevens!$F$8)*(CI$2<=$J6-Invoergegevens!$F$8)*($H6/($J6-$I6+1))*(1+Invoergegevens!$F$26)^CI$2 -> 0 | CJ6: =(CJ$2<=Invoergegevens!$F$9-Invoergegevens!$F$8)*(CJ$2>=$I6-Invoergegevens!$F$8)*(CJ$2<=$J6-Invoergegevens!$F$8)*($H6/($J6-$I6+1))*(1+Invoergegevens!$F$26)^CJ$2 -> 0 | CK6: =(CK$2<=Invoergegevens!$F$9-Invoergegevens!$F$8)*(CK$2>=$I6-Invoergegevens!$F$8)*(CK$2<=$J6-Invoergegevens!$F$8)*($H6/($J6-$I6+1))*(1+Invoergegevens!$F$26)^CK$2 -> 0 | CL6: =(CL$2<=Invoergegevens!$F$9-Invoergegevens!$F$8)*(CL$2>=$I6-Invoergegevens!$F$8)*(CL$2<=$J6-Invoergegevens!$F$8)*($H6/($J6-$I6+1))*(1+Invoergegevens!$F$26)^CL$2 -> 0 | CM6: =(CM$2<=Invoergegevens!$F$9-Invoergegevens!$F$8)*(CM$2>=$I6-Invoergegevens!$F$8)*(CM$2<=$J6-Invoergegevens!$F$8)*($H6/($J6-$I6+1))*(1+Invoergegevens!$F$26)^CM$2 -> 0 | CN6: =(CN$2<=Invoergegevens!$F$9-Invoergegevens!$F$8)*(CN$2>=$I6-Invoergegevens!$F$8)*(CN$2<=$J6-Invoergegevens!$F$8)*($H6/($J6-$I6+1))*(1+Invoergegevens!$F$26)^CN$2 -> 0 | CO6: =(CO$2<=Invoergegevens!$F$9-Invoergegevens!$F$8)*(CO$2>=$I6-Invoergegevens!$F$8)*(CO$2<=$J6-Invoergegevens!$F$8)*($H6/($J6-$I6+1))*(1+Invoergegevens!$F$26)^CO$2 -> 0 | CP6: =(CP$2<=Invoergegevens!$F$9-Invoergegevens!$F$8)*(CP$2>=$I6-Invoergegevens!$F$8)*(CP$2<=$J6-Invoergegevens!$F$8)*($H6/($J6-$I6+1))*(1+Invoergegevens!$F$26)^CP$2 -> 0 | CQ6: =(CQ$2<=Invoergegevens!$F$9-Invoergegevens!$F$8)*(CQ$2>=$I6-Invoergegevens!$F$8)*(CQ$2<=$J6-Invoergegevens!$F$8)*($H6/($J6-$I6+1))*(1+Invoergegevens!$F$26)^CQ$2 -> 0 | CR6: =(CR$2<=Invoergegevens!$F$9-Invoergegevens!$F$8)*(CR$2>=$I6-Invoergegevens!$F$8)*(CR$2<=$J6-Invoergegevens!$F$8)*($H6/($J6-$I6+1))*(1+Invoergegevens!$F$26)^CR$2 -> 0 | CS6: =(CS$2<=Invoergegevens!$F$9-Invoergegevens!$F$8)*(CS$2>=$I6-Invoergegevens!$F$8)*(CS$2<=$J6-Invoergegevens!$F$8)*($H6/($J6-$I6+1))*(1+Invoergegevens!$F$26)^CS$2 -> 0 | CT6: =(CT$2<=Invoergegevens!$F$9-Invoergegevens!$F$8)*(CT$2>=$I6-Invoergegevens!$F$8)*(CT$2<=$J6-Invoergegevens!$F$8)*($H6/($J6-$I6+1))*(1+Invoergegevens!$F$26)^CT$2 -> 0 | CU6: =(CU$2<=Invoergegevens!$F$9-Invoergegevens!$F$8)*(CU$2>=$I6-Invoergegevens!$F$8)*(CU$2<=$J6-Invoergegevens!$F$8)*($H6/($J6-$I6+1))*(1+Invoergegevens!$F$26)^CU$2 -> 0 | CV6: =(CV$2<=Invoergegevens!$F$9-Invoergegevens!$F$8)*(CV$2>=$I6-Invoergegevens!$F$8)*(CV$2<=$J6-Invoergegevens!$F$8)*($H6/($J6-$I6+1))*(1+Invoergegevens!$F$26)^CV$2 -> 0 | CW6: =(CW$2<=Invoergegevens!$F$9-Invoergegevens!$F$8)*(CW$2>=$I6-Invoergegevens!$F$8)*(CW$2<=$J6-Invoergegevens!$F$8)*($H6/($J6-$I6+1))*(1+Invoergegevens!$F$26)^CW$2 -> 0 | CX6: =(CX$2<=Invoergegevens!$F$9-Invoergegevens!$F$8)*(CX$2>=$I6-Invoergegevens!$F$8)*(CX$2<=$J6-Invoergegevens!$F$8)*($H6/($J6-$I6+1))*(1+Invoergegevens!$F$26)^CX$2 -> 0
B7: 01.2 | C7: Test | E7: 200000 | G7: 1 | H7: 200000 | I7: 2021 | J7: 2021 | K7: =IF($H7<>0,IF(OR($I7<Invoergegevens!$F$8,$J7>=Invoergegevens!$F$8+INDEX(Invoergegevens!$C$59:$J$74,MATCH(LEFT($B7,2),Invoergegevens!$C$59:$C$74,0),MATCH(Invoergegevens!$F$31,Invoergegevens!$C$59:$J$59,0))),"fout","goed"),"") -> goed | M7: 1 | W7: goed | Z7: ja | AD7: goed | AF7: =(AF$2<=Invoergegevens!$F$9-Invoergegevens!$F$8)*(AF$2>=$I7-Invoergegevens!$F$8)*(AF$2<=$J7-Invoergegevens!$F$8)*($H7/($J7-$I7+1))*(1+Invoergegevens!$F$26)^AF$2 -> 200000 | AG7: =(AG$2<=Invoergegevens!$F$9-Invoergegevens!$F$8)*(AG$2>=$I7-Invoergegevens!$F$8)*(AG$2<=$J7-Invoergegevens!$F$8)*($H7/($J7-$I7+1))*(1+Invoergegevens!$F$26)^AG$2 -> 0 | AH7: =(AH$2<=Invoergegevens!$F$9-Invoergegevens!$F$8)*(AH$2>=$I7-Invoergegevens!$F$8)*(AH$2<=$J7-Invoergegevens!$F$8)*($H7/($J7-$I7+1))*(1+Invoergegevens!$F$26)^AH$2 -> 0 | AI7: =(AI$2<=Invoergegevens!$F$9-Invoergegevens!$F$8)*(AI$2>=$I7-Invoergegevens!$F$8)*(AI$2<=$J7-Invoergegevens!$F$8)*($H7/($J7-$I7+1))*(1+Invoergegevens!$F$26)^AI$2 -> 0 | AJ7: =(AJ$2<=Invoergegevens!$F$9-Invoergegevens!$F$8)*(AJ$2>=$I7-Invoergegevens!$F$8)*(AJ$2<=$J7-Invoergegevens!$F$8)*($H7/($J7-$I7+1))*(1+Invoergegevens!$F$26)^AJ$2 -> 0 | AK7: =(AK$2<=Invoergegevens!$F$9-Invoergegevens!$F$8)*(AK$2>=$I7-Invoergegevens!$F$8)*(AK$2<=$J7-Invoergegevens!$F$8)*($H7/($J7-$I7+1))*(1+Invoergegevens!$F$26)^AK$2 -> 0 | AL7: =(AL$2<=Invoergegevens!$F$9-Invoergegevens!$F$8)*(AL$2>=$I7-Invoergegevens!$F$8)*(AL$2<=$J7-Invoergegevens!$F$8)*($H7/($J7-$I7+1))*(1+Invoergegevens!$F$26)^AL$2 -> 0 | AM7: =(AM$2<=Invoergegevens!$F$9-Invoergegevens!$F$8)*(AM$2>=$I7-Invoergegevens!$F$8)*(AM$2<=$J7-Invoergegevens!$F$8)*($H7/($J7-$I7+1))*(1+Invoergegevens!$F$26)^AM$2 -> 0 | AN7: =(AN$2<=Invoergegevens!$F$9-Invoergegevens!$F$8)*(AN$2>=$I7-Invoergegevens!$F$8)*(AN$2<=$J7-Invoergegevens!$F$8)*($H7/($J7-$I7+1))*(1+Invoergegevens!$F$26)^AN$2 -> 0 | AO7: =(AO$2<=Invoergegevens!$F$9-Invoergegevens!$F$8)*(AO$2>=$I7-Invoergegevens!$F$8)*(AO$2<=$J7-Invoergegevens!$F$8)*($H7/($J7-$I7+1))*(1+Invoergegevens!$F$26)^AO$2 -> 0 | AP7: =(AP$2<=Invoergegevens!$F$9-Invoergegevens!$F$8)*(AP$2>=$I7-Invoergegevens!$F$8)*(AP$2<=$J7-Invoergegevens!$F$8)*($H7/($J7-$I7+1))*(1+Invoergegevens!$F$26)^AP$2 -> 0 | AQ7: =(AQ$2<=Invoergegevens!$F$9-Invoergegevens!$F$8)*(AQ$2>=$I7-Invoergegevens!$F$8)*(AQ$2<=$J7-Invoergegevens!$F$8)*($H7/($J7-$I7+1))*(1+Invoergegevens!$F$26)^AQ$2 -> 0 | AR7: =(AR$2<=Invoergegevens!$F$9-Invoergegevens!$F$8)*(AR$2>=$I7-Invoergegevens!$F$8)*(AR$2<=$J7-Invoergegevens!$F$8)*($H7/($J7-$I7+1))*(1+Invoergegevens!$F$26)^AR$2 -> 0 | AS7: =(AS$2<=Invoergegevens!$F$9-Invoergegevens!$F$8)*(AS$2>=$I7-Invoergegevens!$F$8)*(AS$2<=$J7-Invoergegevens!$F$8)*($H7/($J7-$I7+1))*(1+Invoergegevens!$F$26)^AS$2 -> 0 | AT7: =(AT$2<=Invoergegevens!$F$9-Invoergegevens!$F$8)*(AT$2>=$I7-Invoergegevens!$F$8)*(AT$2<=$J7-Invoergegevens!$F$8)*($H7/($J7-$I7+1))*(1+Invoergegevens!$F$26)^AT$2 -> 0 | AU7: =(AU$2<=Invoergegevens!$F$9-Invoergegevens!$F$8)*(AU$2>=$I7-Invoergegevens!$F$8)*(AU$2<=$J7-Invoergegevens!$F$8)*($H7/($J7-$I7+1))*(1+Invoergegevens!$F$26)^AU$2 -> 0 | AV7: =(AV$2<=Invoergegevens!$F$9-Invoergegevens!$F$8)*(AV$2>=$I7-Invoergegevens!$F$8)*(AV$2<=$J7-Invoergegevens!$F$8)*($H7/($J7-$I7+1))*(1+Invoergegevens!$F$26)^AV$2 -> 0 | AW7: =(AW$2<=Invoergegevens!$F$9-Invoergegevens!$F$8)*(AW$2>=$I7-Invoergegevens!$F$8)*(AW$2<=$J7-Invoergegevens!$F$8)*($H7/($J7-$I7+1))*(1+Invoergegevens!$F$26)^AW$2 -> 0 | AX7: =(AX$2<=Invoergegevens!$F$9-Invoergegevens!$F$8)*(AX$2>=$I7-Invoergegevens!$F$8)*(AX$2<=$J7-Invoergegevens!$F$8)*($H7/($J7-$I7+1))*(1+Invoergegevens!$F$26)^AX$2 -> 0 | AY7: =(AY$2<=Invoergegevens!$F$9-Invoergegevens!$F$8)*(AY$2>=$I7-Invoergegevens!$F$8)*(AY$2<=$J7-Invoergegevens!$F$8)*($H7/($J7-$I7+1))*(1+Invoergegevens!$F$26)^AY$2 -> 0 | AZ7: =(AZ$2<=Invoergegevens!$F$9-Invoergegevens!$F$8)*(AZ$2>=$I7-Invoergegevens!$F$8)*(AZ$2<=$J7-Invoergegevens!$F$8)*($H7/($J7-$I7+1))*(1+Invoergegevens!$F$26)^AZ$2 -> 0 | BA7: =(BA$2<=Invoergegevens!$F$9-Invoergegevens!$F$8)*(BA$2>=$I7-Invoergegevens!$F$8)*(BA$2<=$J7-Invoergegevens!$F$8)*($H7/($J7-$I7+1))*(1+Invoergegevens!$F$26)^BA$2 -> 0 | BB7: =(BB$2<=Invoergegevens!$F$9-Invoergegevens!$F$8)*(BB$2>=$I7-Invoergegevens!$F$8)*(BB$2<=$J7-Invoergegevens!$F$8)*($H7/($J7-$I7+1))*(1+Invoergegevens!$F$26)^BB$2 -> 0 | BC7: =(BC$2<=Invoergegevens!$F$9-Invoergegevens!$F$8)*(BC$2>=$I7-Invoergegevens!$F$8)*(BC$2<=$J7-Invoergegevens!$F$8)*($H7/($J7-$I7+1))*(1+Invoergegevens!$F$26)^BC$2 -> 0 | BD7: =(BD$2<=Invoergegevens!$F$9-Invoergegevens!$F$8)*(BD$2>=$I7-Invoergegevens!$F$8)*(BD$2<=$J7-Invoergegevens!$F$8)*($H7/($J7-$I7+1))*(1+Invoergegevens!$F$26)^BD$2 -> 0 | BE7: =(BE$2<=Invoergegevens!$F$9-Invoergegevens!$F$8)*(BE$2>=$I7-Invoergegevens!$F$8)*(BE$2<=$J7-Invoergegevens!$F$8)*($H7/($J7-$I7+1))*(1+Invoergegevens!$F$26)^BE$2 -> 0 | BF7: =(BF$2<=Invoergegevens!$F$9-Invoergegevens!$F$8)*(BF$2>=$I7-Invoergegevens!$F$8)*(BF$2<=$J7-Invoergegevens!$F$8)*($H7/($J7-$I7+1))*(1+Invoergegevens!$F$26)^BF$2 -> 0 | BG7: =(BG$2<=Invoergegevens!$F$9-Invoergegevens!$F$8)*(BG$2>=$I7-Invoergegevens!$F$8)*(BG$2<=$J7-Invoergegevens!$F$8)*($H7/($J7-$I7+1))*(1+Invoergegevens!$F$26)^BG$2 -> 0 | BH7: =(BH$2<=Invoergegevens!$F$9-Invoergegevens!$F$8)*(BH$2>=$I7-Invoergegevens!$F$8)*(BH$2<=$J7-Invoergegevens!$F$8)*($H7/($J7-$I7+1))*(1+Invoergegevens!$F$26)^BH$2 -> 0 | BI7: =(BI$2<=Invoergegevens!$F$9-Invoergegevens!$F$8)*(BI$2>=$I7-Invoergegevens!$F$8)*(BI$2<=$J7-Invoergegevens!$F$8)*($H7/($J7-$I7+1))*(1+Invoergegevens!$F$26)^BI$2 -> 0 | BJ7: =(BJ$2<=Invoergegevens!$F$9-Invoergegevens!$F$8)*(BJ$2>=$I7-Invoergegevens!$F$8)*(BJ$2<=$J7-Invoergegevens!$F$8)*($H7/($J7-$I7+1))*(1+Invoergegevens!$F$26)^BJ$2 -> 0 | BK7: =(BK$2<=Invoergegevens!$F$9-Invoergegevens!$F$8)*(BK$2>=$I7-Invoergegevens!$F$8)*(BK$2<=$J7-Invoergegevens!$F$8)*($H7/($J7-$I7+1))*(1+Invoergegevens!$F$26)^BK$2 -> 0 | BL7: =(BL$2<=Invoergegevens!$F$9-Invoergegevens!$F$8)*(BL$2>=$I7-Invoergegevens!$F$8)*(BL$2<=$J7-Invoergegevens!$F$8)*($H7/($J7-$I7+1))*(1+Invoergegevens!$F$26)^BL$2 -> 0 | BM7: =(BM$2<=Invoergegevens!$F$9-Invoergegevens!$F$8)*(BM$2>=$I7-Invoergegevens!$F$8)*(BM$2<=$J7-Invoergegevens!$F$8)*($H7/($J7-$I7+1))*(1+Invoergegevens!$F$26)^BM$2 -> 0 | BN7: =(BN$2<=Invoergegevens!$F$9-Invoergegevens!$F$8)*(BN$2>=$I7-Invoergegevens!$F$8)*(BN$2<=$J7-Invoergegevens!$F$8)*($H7/($J7-$I7+1))*(1+Invoergegevens!$F$26)^BN$2 -> 0 | BO7: =(BO$2<=Invoergegevens!$F$9-Invoergegevens!$F$8)*(BO$2>=$I7-Invoergegevens!$F$8)*(BO$2<=$J7-Invoergegevens!$F$8)*($H7/($J7-$I7+1))*(1+Invoergegevens!$F$26)^BO$2 -> 0 | BP7: =(BP$2<=Invoergegevens!$F$9-Invoergegevens!$F$8)*(BP$2>=$I7-Invoergegevens!$F$8)*(BP$2<=$J7-Invoergegevens!$F$8)*($H7/($J7-$I7+1))*(1+Invoergegevens!$F$26)^BP$2 -> 0 | BQ7: =(BQ$2<=Invoergegevens!$F$9-Invoergegevens!$F$8)*(BQ$2>=$I7-Invoergegevens!$F$8)*(BQ$2<=$J7-Invoergegevens!$F$8)*($H7/($J7-$I7+1))*(1+Invoergegevens!$F$26)^BQ$2 -> 0 | BR7: =(BR$2<=Invoergegevens!$F$9-Invoergegevens!$F$8)*(BR$2>=$I7-Invoergegevens!$F$8)*(BR$2<=$J7-Invoergegevens!$F$8)*($H7/($J7-$I7+1))*(1+Invoergegevens!$F$26)^BR$2 -> 0 | BS7: =(BS$2<=Invoergegevens!$F$9-Invoergegevens!$F$8)*(BS$2>=$I7-Invoergegevens!$F$8)*(BS$2<=$J7-Invoergegevens!$F$8)*($H7/($J7-$I7+1))*(1+Invoergegevens!$F$26)^BS$2 -> 0 | BT7: =(BT$2<=Invoergegevens!$F$9-Invoergegevens!$F$8)*(BT$2>=$I7-Invoergegevens!$F$8)*(BT$2<=$J7-Invoergegevens!$F$8)*($H7/($J7-$I7+1))*(1+Invoergegevens!$F$26)^BT$2 -> 0 | BU7: =(BU$2<=Invoergegevens!$F$9-Invoergegevens!$F$8)*(BU$2>=$I7-Invoergegevens!$F$8)*(BU$2<=$J7-Invoergegevens!$F$8)*($H7/($J7-$I7+1))*(1+Invoergegevens!$F$26)^BU$2 -> 0 | BV7: =(BV$2<=Invoergegevens!$F$9-Invoergegevens!$F$8)*(BV$2>=$I7-Invoergegevens!$F$8)*(BV$2<=$J7-Invoergegevens!$F$8)*($H7/($J7-$I7+1))*(1+Invoergegevens!$F$26)^BV$2 -> 0 | BW7: =(BW$2<=Invoergegevens!$F$9-Invoergegevens!$F$8)*(BW$2>=$I7-Invoergegevens!$F$8)*(BW$2<=$J7-Invoergegevens!$F$8)*($H7/($J7-$I7+1))*(1+Invoergegevens!$F$26)^BW$2 -> 0 | BX7: =(BX$2<=Invoergegevens!$F$9-Invoergegevens!$F$8)*(BX$2>=$I7-Invoergegevens!$F$8)*(BX$2<=$J7-Invoergegevens!$F$8)*($H7/($J7-$I7+1))*(1+Invoergegevens!$F$26)^BX$2 -> 0 | BY7: =(BY$2<=Invoergegevens!$F$9-Invoergegevens!$F$8)*(BY$2>=$I7-Invoergegevens!$F$8)*(BY$2<=$J7-Invoergegevens!$F$8)*($H7/($J7-$I7+1))*(1+Invoergegevens!$F$26)^BY$2 -> 0 | BZ7: =(BZ$2<=Invoergegevens!$F$9-Invoergegevens!$F$8)*(BZ$2>=$I7-Invoergegevens!$F$8)*(BZ$2<=$J7-Invoergegevens!$F$8)*($H7/($J7-$I7+1))*(1+Invoergegevens!$F$26)^BZ$2 -> 0 | CA7: =(CA$2<=Invoergegevens!$F$9-Invoergegevens!$F$8)*(CA$2>=$I7-Invoergegevens!$F$8)*(CA$2<=$J7-Invoergegevens!$F$8)*($H7/($J7-$I7+1))*(1+Invoergegevens!$F$26)^CA$2 -> 0 | CB7: =(CB$2<=Invoergegevens!$F$9-Invoergegevens!$F$8)*(CB$2>=$I7-Invoergegevens!$F$8)*(CB$2<=$J7-Invoergegevens!$F$8)*($H7/($J7-$I7+1))*(1+Invoergegevens!$F$26)^CB$2 -> 0 | CC7: =(CC$2<=Invoergegevens!$F$9-Invoergegevens!$F$8)*(CC$2>=$I7-Invoergegevens!$F$8)*(CC$2<=$J7-Invoergegevens!$F$8)*($H7/($J7-$I7+1))*(1+Invoergegevens!$F$26)^CC$2 -> 0 | CD7: =(CD$2<=Invoergegevens!$F$9-Invoergegevens!$F$8)*(CD$2>=$I7-Invoergegevens!$F$8)*(CD$2<=$J7-Invoergegevens!$F$8)*($H7/($J7-$I7+1))*(1+Invoergegevens!$F$26)^CD$2 -> 0 | CE7: =(CE$2<=Invoergegevens!$F$9-Invoergegevens!$F$8)*(CE$2>=$I7-Invoergegevens!$F$8)*(CE$2<=$J7-Invoergegevens!$F$8)*($H7/($J7-$I7+1))*(1+Invoergegevens!$F$26)^CE$2 -> 0 | CF7: =(CF$2<=Invoergegevens!$F$9-Invoergegevens!$F$8)*(CF$2>=$I7-Invoergegevens!$F$8)*(CF$2<=$J7-Invoergegevens!$F$8)*($H7/($J7-$I7+1))*(1+Invoergegevens!$F$26)^CF$2 -> 0 | CG7: =(CG$2<=Invoergegevens!$F$9-Invoergegevens!$F$8)*(CG$2>=$I7-Invoergegevens!$F$8)*(CG$2<=$J7-Invoergegevens!$F$8)*($H7/($J7-$I7+1))*(1+Invoergegevens!$F$26)^CG$2 -> 0 | CH7: =(CH$2<=Invoergegevens!$F$9-Invoergegevens!$F$8)*(CH$2>=$I7-Invoergegevens!$F$8)*(CH$2<=$J7-Invoergegevens!$F$8)*($H7/($J7-$I7+1))*(1+Invoergegevens!$F$26)^CH$2 -> 0 | CI7: =(CI$2<=Invoergegevens!$F$9-Invoergegevens!$F$8)*(CI$2>=$I7-Invoergegevens!$F$8)*(CI$2<=$J7-Invoergegevens!$F$8)*($H7/($J7-$I7+1))*(1+Invoergegevens!$F$26)^CI$2 -> 0 | CJ7: =(CJ$2<=Invoergegevens!$F$9-Invoergegevens!$F$8)*(CJ$2>=$I7-Invoergegevens!$F$8)*(CJ$2<=$J7-Invoergegevens!$F$8)*($H7/($J7-$I7+1))*(1+Invoergegevens!$F$26)^CJ$2 -> 0 | CK7: =(CK$2<=Invoergegevens!$F$9-Invoergegevens!$F$8)*(CK$2>=$I7-Invoergegevens!$F$8)*(CK$2<=$J7-Invoergegevens!$F$8)*($H7/($J7-$I7+1))*(1+Invoergegevens!$F$26)^CK$2 -> 0 | CL7: =(CL$2<=Invoergegevens!$F$9-Invoergegevens!$F$8)*(CL$2>=$I7-Invoergegevens!$F$8)*(CL$2<=$J7-Invoergegevens!$F$8)*($H7/($J7-$I7+1))*(1+Invoergegevens!$F$26)^CL$2 -> 0 | CM7: =(CM$2<=Invoergegevens!$F$9-Invoergegevens!$F$8)*(CM$2>=$I7-Invoergegevens!$F$8)*(CM$2<=$J7-Invoergegevens!$F$8)*($H7/($J7-$I7+1))*(1+Invoergegevens!$F$26)^CM$2 -> 0 | CN7: =(CN$2<=Invoergegevens!$F$9-Invoergegevens!$F$8)*(CN$2>=$I7-Invoergegevens!$F$8)*(CN$2<=$J7-Invoergegevens!$F$8)*($H7/($J7-$I7+1))*(1+Invoergegevens!$F$26)^CN$2 -> 0 | CO7: =(CO$2<=Invoergegevens!$F$9-Invoergegevens!$F$8)*(CO$2>=$I7-Invoergegevens!$F$8)*(CO$2<=$J7-Invoergegevens!$F$8)*($H7/($J7-$I7+1))*(1+Invoergegevens!$F$26)^CO$2 -> 0 | CP7: =(CP$2<=Invoergegevens!$F$9-Invoergegevens!$F$8)*(CP$2>=$I7-Invoergegevens!$F$8)*(CP$2<=$J7-Invoergegevens!$F$8)*($H7/($J7-$I7+1))*(1+Invoergegevens!$F$26)^CP$2 -> 0 | CQ7: =(CQ$2<=Invoergegevens!$F$9-Invoergegevens!$F$8)*(CQ$2>=$I7-Invoergegevens!$F$8)*(CQ$2<=$J7-Invoergegevens!$F$8)*($H7/($J7-$I7+1))*(1+Invoergegevens!$F$26)^CQ$2 -> 0 | CR7: =(CR$2<=Invoergegevens!$F$9-Invoergegevens!$F$8)*(CR$2>=$I7-Invoergegevens!$F$8)*(CR$2<=$J7-Invoergegevens!$F$8)*($H7/($J7-$I7+1))*(1+Invoergegevens!$F$26)^CR$2 -> 0 | CS7: =(CS$2<=Invoergegevens!$F$9-Invoergegevens!$F$8)*(CS$2>=$I7-Invoergegevens!$F$8)*(CS$2<=$J7-Invoergegevens!$F$8)*($H7/($J7-$I7+1))*(1+Invoergegevens!$F$26)^CS$2 -> 0 | CT7: =(CT$2<=Invoergegevens!$F$9-Invoergegevens!$F$8)*(CT$2>=$I7-Invoergegevens!$F$8)*(CT$2<=$J7-Invoergegevens!$F$8)*($H7/($J7-$I7+1))*(1+Invoergegevens!$F$26)^CT$2 -> 0 | CU7: =(CU$2<=Invoergegevens!$F$9-Invoergegevens!$F$8)*(CU$2>=$I7-Invoergegevens!$F$8)*(CU$2<=$J7-Invoergegevens!$F$8)*($H7/($J7-$I7+1))*(1+Invoergegevens!$F$26)^CU$2 -> 0 | CV7: =(CV$2<=Invoergegevens!$F$9-Invoergegevens!$F$8)*(CV$2>=$I7-Invoergegevens!$F$8)*(CV$2<=$J7-Invoergegevens!$F$8)*($H7/($J7-$I7+1))*(1+Invoergegevens!$F$26)^CV$2 -> 0 | CW7: =(CW$2<=Invoergegevens!$F$9-Invoergegevens!$F$8)*(CW$2>=$I7-Invoergegevens!$F$8)*(CW$2<=$J7-Invoergegevens!$F$8)*($H7/($J7-$I7+1))*(1+Invoergegevens!$F$26)^CW$2 -> 0 | CX7: =(CX$2<=Invoergegevens!$F$9-Invoergegevens!$F$8)*(CX$2>=$I7-Invoergegevens!$F$8)*(CX$2<=$J7-Invoergegevens!$F$8)*($H7/($J7-$I7+1))*(1+Invoergegevens!$F$26)^CX$2 -> 0
B8: 01.3 | C8: test | E8: 300000 | G8: 1 | H8: 300000 | I8: 2021 | J8: 2021 | K8: =IF($H8<>0,IF(OR($I8<Invoergegevens!$F$8,$J8>=Invoergegevens!$F$8+INDEX(Invoergegevens!$C$59:$J$74,MATCH(LEFT($B8,2),Invoergegevens!$C$59:$C$74,0),MATCH(Invoergegevens!$F$31,Invoergegevens!$C$59:$J$59,0))),"fout","goed"),"") -> goed | M8: 1 | W8: goed | AA8: ja | AD8: goed | AF8: =(AF$2<=Invoergegevens!$F$9-Invoergegevens!$F$8)*(AF$2>=$I8-Invoergegevens!$F$8)*(AF$2<=$J8-Invoergegevens!$F$8)*($H8/($J8-$I8+1))*(1+Invoergegevens!$F$26)^AF$2 -> 300000 | AG8: =(AG$2<=Invoergegevens!$F$9-Invoergegevens!$F$8)*(AG$2>=$I8-Invoergegevens!$F$8)*(AG$2<=$J8-Invoergegevens!$F$8)*($H8/($J8-$I8+1))*(1+Invoergegevens!$F$26)^AG$2 -> 0 | AH8: =(AH$2<=Invoergegevens!$F$9-Invoergegevens!$F$8)*(AH$2>=$I8-Invoergegevens!$F$8)*(AH$2<=$J8-Invoergegevens!$F$8)*($H8/($J8-$I8+1))*(1+Invoergegevens!$F$26)^AH$2 -> 0 | AI8: =(AI$2<=Invoergegevens!$F$9-Invoergegevens!$F$8)*(AI$2>=$I8-Invoergegevens!$F$8)*(AI$2<=$J8-Invoergegevens!$F$8)*($H8/($J8-$I8+1))*(1+Invoergegevens!$F$26)^AI$2 -> 0 | AJ8: =(AJ$2<=Invoergegevens!$F$9-Invoergegevens!$F$8)*(AJ$2>=$I8-Invoergegevens!$F$8)*(AJ$2<=$J8-Invoergegevens!$F$8)*($H8/($J8-$I8+1))*(1+Invoergegevens!$F$26)^AJ$2 -> 0 | AK8: =(AK$2<=Invoergegevens!$F$9-Invoergegevens!$F$8)*(AK$2>=$I8-Invoergegevens!$F$8)*(AK$2<=$J8-Invoergegevens!$F$8)*($H8/($J8-$I8+1))*(1+Invoergegevens!$F$26)^AK$2 -> 0 | AL8: =(AL$2<=Invoergegevens!$F$9-Invoergegevens!$F$8)*(AL$2>=$I8-Invoergegevens!$F$8)*(AL$2<=$J8-Invoergegevens!$F$8)*($H8/($J8-$I8+1))*(1+Invoergegevens!$F$26)^AL$2 -> 0 | AM8: =(AM$2<=Invoergegevens!$F$9-Invoergegevens!$F$8)*(AM$2>=$I8-Invoergegevens!$F$8)*(AM$2<=$J8-Invoergegevens!$F$8)*($H8/($J8-$I8+1))*(1+Invoergegevens!$F$26)^AM$2 -> 0 | AN8: =(AN$2<=Invoergegevens!$F$9-Invoergegevens!$F$8)*(AN$2>=$I8-Invoergegevens!$F$8)*(AN$2<=$J8-Invoergegevens!$F$8)*($H8/($J8-$I8+1))*(1+Invoergegevens!$F$26)^AN$2 -> 0 | AO8: =(AO$2<=Invoergegevens!$F$9-Invoergegevens!$F$8)*(AO$2>=$I8-Invoergegevens!$F$8)*(AO$2<=$J8-Invoergegevens!$F$8)*($H8/($J8-$I8+1))*(1+Invoergegevens!$F$26)^AO$2 -> 0 | AP8: =(AP$2<=Invoergegevens!$F$9-Invoergegevens!$F$8)*(AP$2>=$I8-Invoergegevens!$F$8)*(AP$2<=$J8-Invoergegevens!$F$8)*($H8/($J8-$I8+1))*(1+Invoergegevens!$F$26)^AP$2 -> 0 | AQ8: =(AQ$2<=Invoergegevens!$F$9-Invoergegevens!$F$8)*(AQ$2>=$I8-Invoergegevens!$F$8)*(AQ$2<=$J8-Invoergegevens!$F$8)*($H8/($J8-$I8+1))*(1+Invoergegevens!$F$26)^AQ$2 -> 0 | AR8: =(AR$2<=Invoergegevens!$F$9-Invoergegevens!$F$8)*(AR$2>=$I8-Invoergegevens!$F$8)*(AR$2<=$J8-Invoergegevens!$F$8)*($H8/($J8-$I8+1))*(1+Invoergegevens!$F$26)^AR$2 -> 0 | AS8: =(AS$2<=Invoergegevens!$F$9-Invoergegevens!$F$8)*(AS$2>=$I8-Invoergegevens!$F$8)*(AS$2<=$J8-Invoergegevens!$F$8)*($H8/($J8-$I8+1))*(1+Invoergegevens!$F$26)^AS$2 -> 0 | AT8: =(AT$2<=Invoergegevens!$F$9-Invoergegevens!$F$8)*(AT$2>=$I8-Invoergegevens!$F$8)*(AT$2<=$J8-Invoergegevens!$F$8)*($H8/($J8-$I8+1))*(1+Invoergegevens!$F$26)^AT$2 -> 0 | AU8: =(AU$2<=Invoergegevens!$F$9-Invoergegevens!$F$8)*(AU$2>=$I8-Invoergegevens!$F$8)*(AU$2<=$J8-Invoergegevens!$F$8)*($H8/($J8-$I8+1))*(1+Invoergegevens!$F$26)^AU$2 -> 0 | AV8: =(AV$2<=Invoergegevens!$F$9-Invoergegevens!$F$8)*(AV$2>=$I8-Invoergegevens!$F$8)*(AV$2<=$J8-Invoergegevens!$F$8)*($H8/($J8-$I8+1))*(1+Invoergegevens!$F$26)^AV$2 -> 0 | AW8: =(AW$2<=Invoergegevens!$F$9-Invoergegevens!$F$8)*(AW$2>=$I8-Invoergegevens!$F$8)*(AW$2<=$J8-Invoergegevens!$F$8)*($H8/($J8-$I8+1))*(1+Invoergegevens!$F$26)^AW$2 -> 0 | AX8: =(AX$2<=Invoergegevens!$F$9-Invoergegevens!$F$8)*(AX$2>=$I8-Invoergegevens!$F$8)*(AX$2<=$J8-Invoergegevens!$F$8)*($H8/($J8-$I8+1))*(1+Invoergegevens!$F$26)^AX$2 -> 0 | AY8: =(AY$2<=Invoergegevens!$F$9-Invoergegevens!$F$8)*(AY$2>=$I8-Invoergegevens!$F$8)*(AY$2<=$J8-Invoergegevens!$F$8)*($H8/($J8-$I8+1))*(1+Invoergegevens!$F$26)^AY$2 -> 0 | AZ8: =(AZ$2<=Invoergegevens!$F$9-Invoergegevens!$F$8)*(AZ$2>=$I8-Invoergegevens!$F$8)*(AZ$2<=$J8-Invoergegevens!$F$8)*($H8/($J8-$I8+1))*(1+Invoergegevens!$F$26)^AZ$2 -> 0 | BA8: =(BA$2<=Invoergegevens!$F$9-Invoergegevens!$F$8)*(BA$2>=$I8-Invoergegevens!$F$8)*(BA$2<=$J8-Invoergegevens!$F$8)*($H8/($J8-$I8+1))*(1+Invoergegevens!$F$26)^BA$2 -> 0 | BB8: =(BB$2<=Invoergegevens!$F$9-Invoergegevens!$F$8)*(BB$2>=$I8-Invoergegevens!$F$8)*(BB$2<=$J8-Invoergegevens!$F$8)*($H8/($J8-$I8+1))*(1+Invoergegevens!$F$26)^BB$2 -> 0 | BC8: =(BC$2<=Invoergegevens!$F$9-Invoergegevens!$F$8)*(BC$2>=$I8-Invoergegevens!$F$8)*(BC$2<=$J8-Invoergegevens!$F$8)*($H8/($J8-$I8+1))*(1+Invoergegevens!$F$26)^BC$2 -> 0 | BD8: =(BD$2<=Invoergegevens!$F$9-Invoergegevens!$F$8)*(BD$2>=$I8-Invoergegevens!$F$8)*(BD$2<=$J8-Invoergegevens!$F$8)*($H8/($J8-$I8+1))*(1+Invoergegevens!$F$26)^BD$2 -> 0 | BE8: =(BE$2<=Invoergegevens!$F$9-Invoergegevens!$F$8)*(BE$2>=$I8-Invoergegevens!$F$8)*(BE$2<=$J8-Invoergegevens!$F$8)*($H8/($J8-$I8+1))*(1+Invoergegevens!$F$26)^BE$2 -> 0 | BF8: =(BF$2<=Invoergegevens!$F$9-Invoergegevens!$F$8)*(BF$2>=$I8-Invoergegevens!$F$8)*(BF$2<=$J8-Invoergegevens!$F$8)*($H8/($J8-$I8+1))*(1+Invoergegevens!$F$26)^BF$2 -> 0 | BG8: =(BG$2<=Invoergegevens!$F$9-Invoergegevens!$F$8)*(BG$2>=$I8-Invoergegevens!$F$8)*(BG$2<=$J8-Invoergegevens!$F$8)*($H8/($J8-$I8+1))*(1+Invoergegevens!$F$26)^BG$2 -> 0 | BH8: =(BH$2<=Invoergegevens!$F$9-Invoergegevens!$F$8)*(BH$2>=$I8-Invoergegevens!$F$8)*(BH$2<=$J8-Invoergegevens!$F$8)*($H8/($J8-$I8+1))*(1+Invoergegevens!$F$26)^BH$2 -> 0 | BI8: =(BI$2<=Invoergegevens!$F$9-Invoergegevens!$F$8)*(BI$2>=$I8-Invoergegevens!$F$8)*(BI$2<=$J8-Invoergegevens!$F$8)*($H8/($J8-$I8+1))*(1+Invoergegevens!$F$26)^BI$2 -> 0 | BJ8: =(BJ$2<=Invoergegevens!$F$9-Invoergegevens!$F$8)*(BJ$2>=$I8-Invoergegevens!$F$8)*(BJ$2<=$J8-Invoergegevens!$F$8)*($H8/($J8-$I8+1))*(1+Invoergegevens!$F$26)^BJ$2 -> 0 | BK8: =(BK$2<=Invoergegevens!$F$9-Invoergegevens!$F$8)*(BK$2>=$I8-Invoergegevens!$F$8)*(BK$2<=$J8-Invoergegevens!$F$8)*($H8/($J8-$I8+1))*(1+Invoergegevens!$F$26)^BK$2 -> 0 | BL8: =(BL$2<=Invoergegevens!$F$9-Invoergegevens!$F$8)*(BL$2>=$I8-Invoergegevens!$F$8)*(BL$2<=$J8-Invoergegevens!$F$8)*($H8/($J8-$I8+1))*(1+Invoergegevens!$F$26)^BL$2 -> 0 | BM8: =(BM$2<=Invoergegevens!$F$9-Invoergegevens!$F$8)*(BM$2>=$I8-Invoergegevens!$F$8)*(BM$2<=$J8-Invoergegevens!$F$8)*($H8/($J8-$I8+1))*(1+Invoergegevens!$F$26)^BM$2 -> 0 | BN8: =(BN$2<=Invoergegevens!$F$9-Invoergegevens!$F$8)*(BN$2>=$I8-Invoergegevens!$F$8)*(BN$2<=$J8-Invoergegevens!$F$8)*($H8/($J8-$I8+1))*(1+Invoergegevens!$F$26)^BN$2 -> 0 | BO8: =(BO$2<=Invoergegevens!$F$9-Invoergegevens!$F$8)*(BO$2>=$I8-Invoergegevens!$F$8)*(BO$2<=$J8-Invoergegevens!$F$8)*($H8/($J8-$I8+1))*(1+Invoergegevens!$F$26)^BO$2 -> 0 | BP8: =(BP$2<=Invoergegevens!$F$9-Invoergegevens!$F$8)*(BP$2>=$I8-Invoergegevens!$F$8)*(BP$2<=$J8-Invoergegevens!$F$8)*($H8/($J8-$I8+1))*(1+Invoergegevens!$F$26)^BP$2 -> 0 | BQ8: =(BQ$2<=Invoergegevens!$F$9-Invoergegevens!$F$8)*(BQ$2>=$I8-Invoergegevens!$F$8)*(BQ$2<=$J8-Invoergegevens!$F$8)*($H8/($J8-$I8+1))*(1+Invoergegevens!$F$26)^BQ$2 -> 0 | BR8: =(BR$2<=Invoergegevens!$F$9-Invoergegevens!$F$8)*(BR$2>=$I8-Invoergegevens!$F$8)*(BR$2<=$J8-Invoergegevens!$F$8)*($H8/($J8-$I8+1))*(1+Invoergegevens!$F$26)^BR$2 -> 0 | BS8: =(BS$2<=Invoergegevens!$F$9-Invoergegevens!$F$8)*(BS$2>=$I8-Invoergegevens!$F$8)*(BS$2<=$J8-Invoergegevens!$F$8)*($H8/($J8-$I8+1))*(1+Invoergegevens!$F$26)^BS$2 -> 0 | BT8: =(BT$2<=Invoergegevens!$F$9-Invoergegevens!$F$8)*(BT$2>=$I8-Invoergegevens!$F$8)*(BT$2<=$J8-Invoergegevens!$F$8)*($H8/($J8-$I8+1))*(1+Invoergegevens!$F$26)^BT$2 -> 0 | BU8: =(BU$2<=Invoergegevens!$F$9-Invoergegevens!$F$8)*(BU$2>=$I8-Invoergegevens!$F$8)*(BU$2<=$J8-Invoergegevens!$F$8)*($H8/($J8-$I8+1))*(1+Invoergegevens!$F$26)^BU$2 -> 0 | BV8: =(BV$2<=Invoergegevens!$F$9-Invoergegevens!$F$8)*(BV$2>=$I8-Invoergegevens!$F$8)*(BV$2<=$J8-Invoergegevens!$F$8)*($H8/($J8-$I8+1))*(1+Invoergegevens!$F$26)^BV$2 -> 0 | BW8: =(BW$2<=Invoergegevens!$F$9-Invoergegevens!$F$8)*(BW$2>=$I8-Invoergegevens!$F$8)*(BW$2<=$J8-Invoergegevens!$F$8)*($H8/($J8-$I8+1))*(1+Invoergegevens!$F$26)^BW$2 -> 0 | BX8: =(BX$2<=Invoergegevens!$F$9-Invoergegevens!$F$8)*(BX$2>=$I8-Invoergegevens!$F$8)*(BX$2<=$J8-Invoergegevens!$F$8)*($H8/($J8-$I8+1))*(1+Invoergegevens!$F$26)^BX$2 -> 0 | BY8: =(BY$2<=Invoergegevens!$F$9-Invoergegevens!$F$8)*(BY$2>=$I8-Invoergegevens!$F$8)*(BY$2<=$J8-Invoergegevens!$F$8)*($H8/($J8-$I8+1))*(1+Invoergegevens!$F$26)^BY$2 -> 0 | BZ8: =(BZ$2<=Invoergegevens!$F$9-Invoergegevens!$F$8)*(BZ$2>=$I8-Invoergegevens!$F$8)*(BZ$2<=$J8-Invoergegevens!$F$8)*($H8/($J8-$I8+1))*(1+Invoergegevens!$F$26)^BZ$2 -> 0 | CA8: =(CA$2<=Invoergegevens!$F$9-Invoergegevens!$F$8)*(CA$2>=$I8-Invoergegevens!$F$8)*(CA$2<=$J8-Invoergegevens!$F$8)*($H8/($J8-$I8+1))*(1+Invoergegevens!$F$26)^CA$2 -> 0 | CB8: =(CB$2<=Invoergegevens!$F$9-Invoergegevens!$F$8)*(CB$2>=$I8-Invoergegevens!$F$8)*(CB$2<=$J8-Invoergegevens!$F$8)*($H8/($J8-$I8+1))*(1+Invoergegevens!$F$26)^CB$2 -> 0 | CC8: =(CC$2<=Invoergegevens!$F$9-Invoergegevens!$F$8)*(CC$2>=$I8-Invoergegevens!$F$8)*(CC$2<=$J8-Invoergegevens!$F$8)*($H8/($J8-$I8+1))*(1+Invoergegevens!$F$26)^CC$2 -> 0 | CD8: =(CD$2<=Invoergegevens!$F$9-Invoergegevens!$F$8)*(CD$2>=$I8-Invoergegevens!$F$8)*(CD$2<=$J8-Invoergegevens!$F$8)*($H8/($J8-$I8+1))*(1+Invoergegevens!$F$26)^CD$2 -> 0 | CE8: =(CE$2<=Invoergegevens!$F$9-Invoergegevens!$F$8)*(CE$2>=$I8-Invoergegevens!$F$8)*(CE$2<=$J8-Invoergegevens!$F$8)*($H8/($J8-$I8+1))*(1+Invoergegevens!$F$26)^CE$2 -> 0 | CF8: =(CF$2<=Invoergegevens!$F$9-Invoergegevens!$F$8)*(CF$2>=$I8-Invoergegevens!$F$8)*(CF$2<=$J8-Invoergegevens!$F$8)*($H8/($J8-$I8+1))*(1+Invoergegevens!$F$26)^CF$2 -> 0 | CG8: =(CG$2<=Invoergegevens!$F$9-Invoergegevens!$F$8)*(CG$2>=$I8-Invoergegevens!$F$8)*(CG$2<=$J8-Invoergegevens!$F$8)*($H8/($J8-$I8+1))*(1+Invoergegevens!$F$26)^CG$2 -> 0 | CH8: =(CH$2<=Invoergegevens!$F$9-Invoergegevens!$F$8)*(CH$2>=$I8-Invoergegevens!$F$8)*(CH$2<=$J8-Invoergegevens!$F$8)*($H8/($J8-$I8+1))*(1+Invoergegevens!$F$26)^CH$2 -> 0 | CI8: =(CI$2<=Invoergegevens!$F$9-Invoergegevens!$F$8)*(CI$2>=$I8-Invoergegevens!$F$8)*(CI$2<=$J8-Invoergegevens!$F$8)*($H8/($J8-$I8+1))*(1+Invoergegevens!$F$26)^CI$2 -> 0 | CJ8: =(CJ$2<=Invoergegevens!$F$9-Invoergegevens!$F$8)*(CJ$2>=$I8-Invoergegevens!$F$8)*(CJ$2<=$J8-Invoergegevens!$F$8)*($H8/($J8-$I8+1))*(1+Invoergegevens!$F$26)^CJ$2 -> 0 | CK8: =(CK$2<=Invoergegevens!$F$9-Invoergegevens!$F$8)*(CK$2>=$I8-Invoergegevens!$F$8)*(CK$2<=$J8-Invoergegevens!$F$8)*($H8/($J8-$I8+1))*(1+Invoergegevens!$F$26)^CK$2 -> 0 | CL8: =(CL$2<=Invoergegevens!$F$9-Invoergegevens!$F$8)*(CL$2>=$I8-Invoergegevens!$F$8)*(CL$2<=$J8-Invoergegevens!$F$8)*($H8/($J8-$I8+1))*(1+Invoergegevens!$F$26)^CL$2 -> 0 | CM8: =(CM$2<=Invoergegevens!$F$9-Invoergegevens!$F$8)*(CM$2>=$I8-Invoergegevens!$F$8)*(CM$2<=$J8-Invoergegevens!$F$8)*($H8/($J8-$I8+1))*(1+Invoergegevens!$F$26)^CM$2 -> 0 | CN8: =(CN$2<=Invoergegevens!$F$9-Invoergegevens!$F$8)*(CN$2>=$I8-Invoergegevens!$F$8)*(CN$2<=$J8-Invoergegevens!$F$8)*($H8/($J8-$I8+1))*(1+Invoergegevens!$F$26)^CN$2 -> 0 | CO8: =(CO$2<=Invoergegevens!$F$9-Invoergegevens!$F$8)*(CO$2>=$I8-Invoergegevens!$F$8)*(CO$2<=$J8-Invoergegevens!$F$8)*($H8/($J8-$I8+1))*(1+Invoergegevens!$F$26)^CO$2 -> 0 | CP8: =(CP$2<=Invoergegevens!$F$9-Invoergegevens!$F$8)*(CP$2>=$I8-Invoergegevens!$F$8)*(CP$2<=$J8-Invoergegevens!$F$8)*($H8/($J8-$I8+1))*(1+Invoergegevens!$F$26)^CP$2 -> 0 | CQ8: =(CQ$2<=Invoergegevens!$F$9-Invoergegevens!$F$8)*(CQ$2>=$I8-Invoergegevens!$F$8)*(CQ$2<=$J8-Invoergegevens!$F$8)*($H8/($J8-$I8+1))*(1+Invoergegevens!$F$26)^CQ$2 -> 0 | CR8: =(CR$2<=Invoergegevens!$F$9-Invoergegevens!$F$8)*(CR$2>=$I8-Invoergegevens!$F$8)*(CR$2<=$J8-Invoergegevens!$F$8)*($H8/($J8-$I8+1))*(1+Invoergegevens!$F$26)^CR$2 -> 0 | CS8: =(CS$2<=Invoergegevens!$F$9-Invoergegevens!$F$8)*(CS$2>=$I8-Invoergegevens!$F$8)*(CS$2<=$J8-Invoergegevens!$F$8)*($H8/($J8-$I8+1))*(1+Invoergegevens!$F$26)^CS$2 -> 0 | CT8: =(CT$2<=Invoergegevens!$F$9-Invoergegevens!$F$8)*(CT$2>=$I8-Invoergegevens!$F$8)*(CT$2<=$J8-Invoergegevens!$F$8)*($H8/($J8-$I8+1))*(1+Invoergegevens!$F$26)^CT$2 -> 0 | CU8: =(CU$2<=Invoergegevens!$F$9-Invoergegevens!$F$8)*(CU$2>=$I8-Invoergegevens!$F$8)*(CU$2<=$J8-Invoergegevens!$F$8)*($H8/($J8-$I8+1))*(1+Invoergegevens!$F$26)^CU$2 -> 0 | CV8: =(CV$2<=Invoergegevens!$F$9-Invoergegevens!$F$8)*(CV$2>=$I8-Invoergegevens!$F$8)*(CV$2<=$J8-Invoergegevens!$F$8)*($H8/($J8-$I8+1))*(1+Invoergegevens!$F$26)^CV$2 -> 0 | CW8: =(CW$2<=Invoergegevens!$F$9-Invoergegevens!$F$8)*(CW$2>=$I8-Invoergegevens!$F$8)*(CW$2<=$J8-Invoergegevens!$F$8)*($H8/($J8-$I8+1))*(1+Invoergegevens!$F$26)^CW$2 -> 0 | CX8: =(CX$2<=Invoergegevens!$F$9-Invoergegevens!$F$8)*(CX$2>=$I8-Invoergegevens!$F$8)*(CX$2<=$J8-Invoergegevens!$F$8)*($H8/($J8-$I8+1))*(1+Invoergegevens!$F$26)^CX$2 -> 0
B9: 01.4 | H9: 0 | K9: =IF($H9<>0,IF(OR($I9<Invoergegevens!$F$8,$J9>=Invoergegevens!$F$8+INDEX(Invoergegevens!$C$59:$J$74,MATCH(LEFT($B9,2),Invoergegevens!$C$59:$C$74,0),MATCH(Invoergegevens!$F$31,Invoergegevens!$C$59:$J$59,0))),"fout","goed"),"") ->  | AF9: =(AF$2<=Invoergegevens!$F$9-Invoergegevens!$F$8)*(AF$2>=$I9-Invoergegevens!$F$8)*(AF$2<=$J9-Invoergegevens!$F$8)*($H9/($J9-$I9+1))*(1+Invoergegevens!$F$26)^AF$2 -> 0 | AG9: =(AG$2<=Invoergegevens!$F$9-Invoergegevens!$F$8)*(AG$2>=$I9-Invoergegevens!$F$8)*(AG$2<=$J9-Invoergegevens!$F$8)*($H9/($J9-$I9+1))*(1+Invoergegevens!$F$26)^AG$2 -> 0 | AH9: =(AH$2<=Invoergegevens!$F$9-Invoergegevens!$F$8)*(AH$2>=$I9-Invoergegevens!$F$8)*(AH$2<=$J9-Invoergegevens!$F$8)*($H9/($J9-$I9+1))*(1+Invoergegevens!$F$26)^AH$2 -> 0 | AI9: =(AI$2<=Invoergegevens!$F$9-Invoergegevens!$F$8)*(AI$2>=$I9-Invoergegevens!$F$8)*(AI$2<=$J9-Invoergegevens!$F$8)*($H9/($J9-$I9+1))*(1+Invoergegevens!$F$26)^AI$2 -> 0 | AJ9: =(AJ$2<=Invoergegevens!$F$9-Invoergegevens!$F$8)*(AJ$2>=$I9-Invoergegevens!$F$8)*(AJ$2<=$J9-Invoergegevens!$F$8)*($H9/($J9-$I9+1))*(1+Invoergegevens!$F$26)^AJ$2 -> 0 | AK9: =(AK$2<=Invoergegevens!$F$9-Invoergegevens!$F$8)*(AK$2>=$I9-Invoergegevens!$F$8)*(AK$2<=$J9-Invoergegevens!$F$8)*($H9/($J9-$I9+1))*(1+Invoergegevens!$F$26)^AK$2 -> 0 | AL9: =(AL$2<=Invoergegevens!$F$9-Invoergegevens!$F$8)*(AL$2>=$I9-Invoergegevens!$F$8)*(AL$2<=$J9-Invoergegevens!$F$8)*($H9/($J9-$I9+1))*(1+Invoergegevens!$F$26)^AL$2 -> 0 | AM9: =(AM$2<=Invoergegevens!$F$9-Invoergegevens!$F$8)*(AM$2>=$I9-Invoergegevens!$F$8)*(AM$2<=$J9-Invoergegevens!$F$8)*($H9/($J9-$I9+1))*(1+Invoergegevens!$F$26)^AM$2 -> 0 | AN9: =(AN$2<=Invoergegevens!$F$9-Invoergegevens!$F$8)*(AN$2>=$I9-Invoergegevens!$F$8)*(AN$2<=$J9-Invoergegevens!$F$8)*($H9/($J9-$I9+1))*(1+Invoergegevens!$F$26)^AN$2 -> 0 | AO9: =(AO$2<=Invoergegevens!$F$9-Invoergegevens!$F$8)*(AO$2>=$I9-Invoergegevens!$F$8)*(AO$2<=$J9-Invoergegevens!$F$8)*($H9/($J9-$I9+1))*(1+Invoergegevens!$F$26)^AO$2 -> 0 | AP9: =(AP$2<=Invoergegevens!$F$9-Invoergegevens!$F$8)*(AP$2>=$I9-Invoergegevens!$F$8)*(AP$2<=$J9-Invoergegevens!$F$8)*($H9/($J9-$I9+1))*(1+Invoergegevens!$F$26)^AP$2 -> 0 | AQ9: =(AQ$2<=Invoergegevens!$F$9-Invoergegevens!$F$8)*(AQ$2>=$I9-Invoergegevens!$F$8)*(AQ$2<=$J9-Invoergegevens!$F$8)*($H9/($J9-$I9+1))*(1+Invoergegevens!$F$26)^AQ$2 -> 0 | AR9: =(AR$2<=Invoergegevens!$F$9-Invoergegevens!$F$8)*(AR$2>=$I9-Invoergegevens!$F$8)*(AR$2<=$J9-Invoergegevens!$F$8)*($H9/($J9-$I9+1))*(1+Invoergegevens!$F$26)^AR$2 -> 0 | AS9: =(AS$2<=Invoergegevens!$F$9-Invoergegevens!$F$8)*(AS$2>=$I9-Invoergegevens!$F$8)*(AS$2<=$J9-Invoergegevens!$F$8)*($H9/($J9-$I9+1))*(1+Invoergegevens!$F$26)^AS$2 -> 0 | AT9: =(AT$2<=Invoergegevens!$F$9-Invoergegevens!$F$8)*(AT$2>=$I9-Invoergegevens!$F$8)*(AT$2<=$J9-Invoergegevens!$F$8)*($H9/($J9-$I9+1))*(1+Invoergegevens!$F$26)^AT$2 -> 0 | AU9: =(AU$2<=Invoergegevens!$F$9-Invoergegevens!$F$8)*(AU$2>=$I9-Invoergegevens!$F$8)*(AU$2<=$J9-Invoergegevens!$F$8)*($H9/($J9-$I9+1))*(1+Invoergegevens!$F$26)^AU$2 -> 0 | AV9: =(AV$2<=Invoergegevens!$F$9-Invoergegevens!$F$8)*(AV$2>=$I9-Invoergegevens!$F$8)*(AV$2<=$J9-Invoergegevens!$F$8)*($H9/($J9-$I9+1))*(1+Invoergegevens!$F$26)^AV$2 -> 0 | AW9: =(AW$2<=Invoergegevens!$F$9-Invoergegevens!$F$8)*(AW$2>=$I9-Invoergegevens!$F$8)*(AW$2<=$J9-Invoergegevens!$F$8)*($H9/($J9-$I9+1))*(1+Invoergegevens!$F$26)^AW$2 -> 0 | AX9: =(AX$2<=Invoergegevens!$F$9-Invoergegevens!$F$8)*(AX$2>=$I9-Invoergegevens!$F$8)*(AX$2<=$J9-Invoergegevens!$F$8)*($H9/($J9-$I9+1))*(1+Invoergegevens!$F$26)^AX$2 -> 0 | AY9: =(AY$2<=Invoergegevens!$F$9-Invoergegevens!$F$8)*(AY$2>=$I9-Invoergegevens!$F$8)*(AY$2<=$J9-Invoergegevens!$F$8)*($H9/($J9-$I9+1))*(1+Invoergegevens!$F$26)^AY$2 -> 0 | AZ9: =(AZ$2<=Invoergegevens!$F$9-Invoergegevens!$F$8)*(AZ$2>=$I9-Invoergegevens!$F$8)*(AZ$2<=$J9-Invoergegevens!$F$8)*($H9/($J9-$I9+1))*(1+Invoergegevens!$F$26)^AZ$2 -> 0 | BA9: =(BA$2<=Invoergegevens!$F$9-Invoergegevens!$F$8)*(BA$2>=$I9-Invoergegevens!$F$8)*(BA$2<=$J9-Invoergegevens!$F$8)*($H9/($J9-$I9+1))*(1+Invoergegevens!$F$26)^BA$2 -> 0 | BB9: =(BB$2<=Invoergegevens!$F$9-Invoergegevens!$F$8)*(BB$2>=$I9-Invoergegevens!$F$8)*(BB$2<=$J9-Invoergegevens!$F$8)*($H9/($J9-$I9+1))*(1+Invoergegevens!$F$26)^BB$2 -> 0 | BC9: =(BC$2<=Invoergegevens!$F$9-Invoergegevens!$F$8)*(BC$2>=$I9-Invoergegevens!$F$8)*(BC$2<=$J9-Invoergegevens!$F$8)*($H9/($J9-$I9+1))*(1+Invoergegevens!$F$26)^BC$2 -> 0 | BD9: =(BD$2<=Invoergegevens!$F$9-Invoergegevens!$F$8)*(BD$2>=$I9-Invoergegevens!$F$8)*(BD$2<=$J9-Invoergegevens!$F$8)*($H9/($J9-$I9+1))*(1+Invoergegevens!$F$26)^BD$2 -> 0 | BE9: =(BE$2<=Invoergegevens!$F$9-Invoergegevens!$F$8)*(BE$2>=$I9-Invoergegevens!$F$8)*(BE$2<=$J9-Invoergegevens!$F$8)*($H9/($J9-$I9+1))*(1+Invoergegevens!$F$26)^BE$2 -> 0 | BF9: =(BF$2<=Invoergegevens!$F$9-Invoergegevens!$F$8)*(BF$2>=$I9-Invoergegevens!$F$8)*(BF$2<=$J9-Invoergegevens!$F$8)*($H9/($J9-$I9+1))*(1+Invoergegevens!$F$26)^BF$2 -> 0 | BG9: =(BG$2<=Invoergegevens!$F$9-Invoergegevens!$F$8)*(BG$2>=$I9-Invoergegevens!$F$8)*(BG$2<=$J9-Invoergegevens!$F$8)*($H9/($J9-$I9+1))*(1+Invoergegevens!$F$26)^BG$2 -> 0 | BH9: =(BH$2<=Invoergegevens!$F$9-Invoergegevens!$F$8)*(BH$2>=$I9-Invoergegevens!$F$8)*(BH$2<=$J9-Invoergegevens!$F$8)*($H9/($J9-$I9+1))*(1+Invoergegevens!$F$26)^BH$2 -> 0 | BI9: =(BI$2<=Invoergegevens!$F$9-Invoergegevens!$F$8)*(BI$2>=$I9-Invoergegevens!$F$8)*(BI$2<=$J9-Invoergegevens!$F$8)*($H9/($J9-$I9+1))*(1+Invoergegevens!$F$26)^BI$2 -> 0 | BJ9: =(BJ$2<=Invoergegevens!$F$9-Invoergegevens!$F$8)*(BJ$2>=$I9-Invoergegevens!$F$8)*(BJ$2<=$J9-Invoergegevens!$F$8)*($H9/($J9-$I9+1))*(1+Invoergegevens!$F$26)^BJ$2 -> 0 | BK9: =(BK$2<=Invoergegevens!$F$9-Invoergegevens!$F$8)*(BK$2>=$I9-Invoergegevens!$F$8)*(BK$2<=$J9-Invoergegevens!$F$8)*($H9/($J9-$I9+1))*(1+Invoergegevens!$F$26)^BK$2 -> 0 | BL9: =(BL$2<=Invoergegevens!$F$9-Invoergegevens!$F$8)*(BL$2>=$I9-Invoergegevens!$F$8)*(BL$2<=$J9-Invoergegevens!$F$8)*($H9/($J9-$I9+1))*(1+Invoergegevens!$F$26)^BL$2 -> 0 | BM9: =(BM$2<=Invoergegevens!$F$9-Invoergegevens!$F$8)*(BM$2>=$I9-Invoergegevens!$F$8)*(BM$2<=$J9-Invoergegevens!$F$8)*($H9/($J9-$I9+1))*(1+Invoergegevens!$F$26)^BM$2 -> 0 | BN9: =(BN$2<=Invoergegevens!$F$9-Invoergegevens!$F$8)*(BN$2>=$I9-Invoergegevens!$F$8)*(BN$2<=$J9-Invoergegevens!$F$8)*($H9/($J9-$I9+1))*(1+Invoergegevens!$F$26)^BN$2 -> 0 | BO9: =(BO$2<=Invoergegevens!$F$9-Invoergegevens!$F$8)*(BO$2>=$I9-Invoergegevens!$F$8)*(BO$2<=$J9-Invoergegevens!$F$8)*($H9/($J9-$I9+1))*(1+Invoergegevens!$F$26)^BO$2 -> 0 | BP9: =(BP$2<=Invoergegevens!$F$9-Invoergegevens!$F$8)*(BP$2>=$I9-Invoergegevens!$F$8)*(BP$2<=$J9-Invoergegevens!$F$8)*($H9/($J9-$I9+1))*(1+Invoergegevens!$F$26)^BP$2 -> 0 | BQ9: =(BQ$2<=Invoergegevens!$F$9-Invoergegevens!$F$8)*(BQ$2>=$I9-Invoergegevens!$F$8)*(BQ$2<=$J9-Invoergegevens!$F$8)*($H9/($J9-$I9+1))*(1+Invoergegevens!$F$26)^BQ$2 -> 0 | BR9: =(BR$2<=Invoergegevens!$F$9-Invoergegevens!$F$8)*(BR$2>=$I9-Invoergegevens!$F$8)*(BR$2<=$J9-Invoergegevens!$F$8)*($H9/($J9-$I9+1))*(1+Invoergegevens!$F$26)^BR$2 -> 0 | BS9: =(BS$2<=Invoergegevens!$F$9-Invoergegevens!$F$8)*(BS$2>=$I9-Invoergegevens!$F$8)*(BS$2<=$J9-Invoergegevens!$F$8)*($H9/($J9-$I9+1))*(1+Invoergegevens!$F$26)^BS$2 -> 0 | BT9: =(BT$2<=Invoergegevens!$F$9-Invoergegevens!$F$8)*(BT$2>=$I9-Invoergegevens!$F$8)*(BT$2<=$J9-Invoergegevens!$F$8)*($H9/($J9-$I9+1))*(1+Invoergegevens!$F$26)^BT$2 -> 0 | BU9: =(BU$2<=Invoergegevens!$F$9-Invoergegevens!$F$8)*(BU$2>=$I9-Invoergegevens!$F$8)*(BU$2<=$J9-Invoergegevens!$F$8)*($H9/($J9-$I9+1))*(1+Invoergegevens!$F$26)^BU$2 -> 0 | BV9: =(BV$2<=Invoergegevens!$F$9-Invoergegevens!$F$8)*(BV$2>=$I9-Invoergegevens!$F$8)*(BV$2<=$J9-Invoergegevens!$F$8)*($H9/($J9-$I9+1))*(1+Invoergegevens!$F$26)^BV$2 -> 0 | BW9: =(BW$2<=Invoergegevens!$F$9-Invoergegevens!$F$8)*(BW$2>=$I9-Invoergegevens!$F$8)*(BW$2<=$J9-Invoergegevens!$F$8)*($H9/($J9-$I9+1))*(1+Invoergegevens!$F$26)^BW$2 -> 0 | BX9: =(BX$2<=Invoergegevens!$F$9-Invoergegevens!$F$8)*(BX$2>=$I9-Invoergegevens!$F$8)*(BX$2<=$J9-Invoergegevens!$F$8)*($H9/($J9-$I9+1))*(1+Invoergegevens!$F$26)^BX$2 -> 0 | BY9: =(BY$2<=Invoergegevens!$F$9-Invoergegevens!$F$8)*(BY$2>=$I9-Invoergegevens!$F$8)*(BY$2<=$J9-Invoergegevens!$F$8)*($H9/($J9-$I9+1))*(1+Invoergegevens!$F$26)^BY$2 -> 0 | BZ9: =(BZ$2<=Invoergegevens!$F$9-Invoergegevens!$F$8)*(BZ$2>=$I9-Invoergegevens!$F$8)*(BZ$2<=$J9-Invoergegevens!$F$8)*($H9/($J9-$I9+1))*(1+Invoergegevens!$F$26)^BZ$2 -> 0 | CA9: =(CA$2<=Invoergegevens!$F$9-Invoergegevens!$F$8)*(CA$2>=$I9-Invoergegevens!$F$8)*(CA$2<=$J9-Invoergegevens!$F$8)*($H9/($J9-$I9+1))*(1+Invoergegevens!$F$26)^CA$2 -> 0 | CB9: =(CB$2<=Invoergegevens!$F$9-Invoergegevens!$F$8)*(CB$2>=$I9-Invoergegevens!$F$8)*(CB$2<=$J9-Invoergegevens!$F$8)*($H9/($J9-$I9+1))*(1+Invoergegevens!$F$26)^CB$2 -> 0 | CC9: =(CC$2<=Invoergegevens!$F$9-Invoergegevens!$F$8)*(CC$2>=$I9-Invoergegevens!$F$8)*(CC$2<=$J9-Invoergegevens!$F$8)*($H9/($J9-$I9+1))*(1+Invoergegevens!$F$26)^CC$2 -> 0 | CD9: =(CD$2<=Invoergegevens!$F$9-Invoergegevens!$F$8)*(CD$2>=$I9-Invoergegevens!$F$8)*(CD$2<=$J9-Invoergegevens!$F$8)*($H9/($J9-$I9+1))*(1+Invoergegevens!$F$26)^CD$2 -> 0 | CE9: =(CE$2<=Invoergegevens!$F$9-Invoergegevens!$F$8)*(CE$2>=$I9-Invoergegevens!$F$8)*(CE$2<=$J9-Invoergegevens!$F$8)*($H9/($J9-$I9+1))*(1+Invoergegevens!$F$26)^CE$2 -> 0 | CF9: =(CF$2<=Invoergegevens!$F$9-Invoergegevens!$F$8)*(CF$2>=$I9-Invoergegevens!$F$8)*(CF$2<=$J9-Invoergegevens!$F$8)*($H9/($J9-$I9+1))*(1+Invoergegevens!$F$26)^CF$2 -> 0 | CG9: =(CG$2<=Invoergegevens!$F$9-Invoergegevens!$F$8)*(CG$2>=$I9-Invoergegevens!$F$8)*(CG$2<=$J9-Invoergegevens!$F$8)*($H9/($J9-$I9+1))*(1+Invoergegevens!$F$26)^CG$2 -> 0 | CH9: =(CH$2<=Invoergegevens!$F$9-Invoergegevens!$F$8)*(CH$2>=$I9-Invoergegevens!$F$8)*(CH$2<=$J9-Invoergegevens!$F$8)*($H9/($J9-$I9+1))*(1+Invoergegevens!$F$26)^CH$2 -> 0 | CI9: =(CI$2<=Invoergegevens!$F$9-Invoergegevens!$F$8)*(CI$2>=$I9-Invoergegevens!$F$8)*(CI$2<=$J9-Invoergegevens!$F$8)*($H9/($J9-$I9+1))*(1+Invoergegevens!$F$26)^CI$2 -> 0 | CJ9: =(CJ$2<=Invoergegevens!$F$9-Invoergegevens!$F$8)*(CJ$2>=$I9-Invoergegevens!$F$8)*(CJ$2<=$J9-Invoergegevens!$F$8)*($H9/($J9-$I9+1))*(1+Invoergegevens!$F$26)^CJ$2 -> 0 | CK9: =(CK$2<=Invoergegevens!$F$9-Invoergegevens!$F$8)*(CK$2>=$I9-Invoergegevens!$F$8)*(CK$2<=$J9-Invoergegevens!$F$8)*($H9/($J9-$I9+1))*(1+Invoergegevens!$F$26)^CK$2 -> 0 | CL9: =(CL$2<=Invoergegevens!$F$9-Invoergegevens!$F$8)*(CL$2>=$I9-Invoergegevens!$F$8)*(CL$2<=$J9-Invoergegevens!$F$8)*($H9/($J9-$I9+1))*(1+Invoergegevens!$F$26)^CL$2 -> 0 | CM9: =(CM$2<=Invoergegevens!$F$9-Invoergegevens!$F$8)*(CM$2>=$I9-Invoergegevens!$F$8)*(CM$2<=$J9-Invoergegevens!$F$8)*($H9/($J9-$I9+1))*(1+Invoergegevens!$F$26)^CM$2 -> 0 | CN9: =(CN$2<=Invoergegevens!$F$9-Invoergegevens!$F$8)*(CN$2>=$I9-Invoergegevens!$F$8)*(CN$2<=$J9-Invoergegevens!$F$8)*($H9/($J9-$I9+1))*(1+Invoergegevens!$F$26)^CN$2 -> 0 | CO9: =(CO$2<=Invoergegevens!$F$9-Invoergegevens!$F$8)*(CO$2>=$I9-Invoergegevens!$F$8)*(CO$2<=$J9-Invoergegevens!$F$8)*($H9/($J9-$I9+1))*(1+Invoergegevens!$F$26)^CO$2 -> 0 | CP9: =(CP$2<=Invoergegevens!$F$9-Invoergegevens!$F$8)*(CP$2>=$I9-Invoergegevens!$F$8)*(CP$2<=$J9-Invoergegevens!$F$8)*($H9/($J9-$I9+1))*(1+Invoergegevens!$F$26)^CP$2 -> 0 | CQ9: =(CQ$2<=Invoergegevens!$F$9-Invoergegevens!$F$8)*(CQ$2>=$I9-Invoergegevens!$F$8)*(CQ$2<=$J9-Invoergegevens!$F$8)*($H9/($J9-$I9+1))*(1+Invoergegevens!$F$26)^CQ$2 -> 0 | CR9: =(CR$2<=Invoergegevens!$F$9-Invoergegevens!$F$8)*(CR$2>=$I9-Invoergegevens!$F$8)*(CR$2<=$J9-Invoergegevens!$F$8)*($H9/($J9-$I9+1))*(1+Invoergegevens!$F$26)^CR$2 -> 0 | CS9: =(CS$2<=Invoergegevens!$F$9-Invoergegevens!$F$8)*(CS$2>=$I9-Invoergegevens!$F$8)*(CS$2<=$J9-Invoergegevens!$F$8)*($H9/($J9-$I9+1))*(1+Invoergegevens!$F$26)^CS$2 -> 0 | CT9: =(CT$2<=Invoergegevens!$F$9-Invoergegevens!$F$8)*(CT$2>=$I9-Invoergegevens!$F$8)*(CT$2<=$J9-Invoergegevens!$F$8)*($H9/($J9-$I9+1))*(1+Invoergegevens!$F$26)^CT$2 -> 0 | CU9: =(CU$2<=Invoergegevens!$F$9-Invoergegevens!$F$8)*(CU$2>=$I9-Invoergegevens!$F$8)*(CU$2<=$J9-Invoergegevens!$F$8)*($H9/($J9-$I9+1))*(1+Invoergegevens!$F$26)^CU$2 -> 0 | CV9: =(CV$2<=Invoergegevens!$F$9-Invoergegevens!$F$8)*(CV$2>=$I9-Invoergegevens!$F$8)*(CV$2<=$J9-Invoergegevens!$F$8)*($H9/($J9-$I9+1))*(1+Invoergegevens!$F$26)^CV$2 -> 0 | CW9: =(CW$2<=Invoergegevens!$F$9-Invoergegevens!$F$8)*(CW$2>=$I9-Invoergegevens!$F$8)*(CW$2<=$J9-Invoergegevens!$F$8)*($H9/($J9-$I9+1))*(1+Invoergegevens!$F$26)^CW$2 -> 0 | CX9: =(CX$2<=Invoergegevens!$F$9-Invoergegevens!$F$8)*(CX$2>=$I9-Invoergegevens!$F$8)*(CX$2<=$J9-Invoergegevens!$F$8)*($H9/($J9-$I9+1))*(1+Invoergegevens!$F$26)^CX$2 -> 0
B10: 01.5 | H10: 0 | K10: =IF($H10<>0,IF(OR($I10<Invoergegevens!$F$8,$J10>=Invoergegevens!$F$8+INDEX(Invoergegevens!$C$59:$J$74,MATCH(LEFT($B10,2),Invoergegevens!$C$59:$C$74,0),MATCH(Invoergegevens!$F$31,Invoergegevens!$C$59:$J$59,0))),"fout","goed"),"") ->  | AF10: =(AF$2<=Invoergegevens!$F$9-Invoergegevens!$F$8)*(AF$2>=$I10-Invoergegevens!$F$8)*(AF$2<=$J10-Invoergegevens!$F$8)*($H10/($J10-$I10+1))*(1+Invoergegevens!$F$26)^AF$2 -> 0 | AG10: =(AG$2<=Invoergegevens!$F$9-Invoergegevens!$F$8)*(AG$2>=$I10-Invoergegevens!$F$8)*(AG$2<=$J10-Invoergegevens!$F$8)*($H10/($J10-$I10+1))*(1+Invoergegevens!$F$26)^AG$2 -> 0 | AH10: =(AH$2<=Invoergegevens!$F$9-Invoergegevens!$F$8)*(AH$2>=$I10-Invoergegevens!$F$8)*(AH$2<=$J10-Invoergegevens!$F$8)*($H10/($J10-$I10+1))*(1+Invoergegevens!$F$26)^AH$2 -> 0 | AI10: =(AI$2<=Invoergegevens!$F$9-Invoergegevens!$F$8)*(AI$2>=$I10-Invoergegevens!$F$8)*(AI$2<=$J10-Invoergegevens!$F$8)*($H10/($J10-$I10+1))*(1+Invoergegevens!$F$26)^AI$2 -> 0 | AJ10: =(AJ$2<=Invoergegevens!$F$9-Invoergegevens!$F$8)*(AJ$2>=$I10-Invoergegevens!$F$8)*(AJ$2<=$J10-Invoergegevens!$F$8)*($H10/($J10-$I10+1))*(1+Invoergegevens!$F$26)^AJ$2 -> 0 | AK10: =(AK$2<=Invoergegevens!$F$9-Invoergegevens!$F$8)*(AK$2>=$I10-Invoergegevens!$F$8)*(AK$2<=$J10-Invoergegevens!$F$8)*($H10/($J10-$I10+1))*(1+Invoergegevens!$F$26)^AK$2 -> 0 | AL10: =(AL$2<=Invoergegevens!$F$9-Invoergegevens!$F$8)*(AL$2>=$I10-Invoergegevens!$F$8)*(AL$2<=$J10-Invoergegevens!$F$8)*($H10/($J10-$I10+1))*(1+Invoergegevens!$F$26)^AL$2 -> 0 | AM10: =(AM$2<=Invoergegevens!$F$9-Invoergegevens!$F$8)*(AM$2>=$I10-Invoergegevens!$F$8)*(AM$2<=$J10-Invoergegevens!$F$8)*($H10/($J10-$I10+1))*(1+Invoergegevens!$F$26)^AM$2 -> 0 | AN10: =(AN$2<=Invoergegevens!$F$9-Invoergegevens!$F$8)*(AN$2>=$I10-Invoergegevens!$F$8)*(AN$2<=$J10-Invoergegevens!$F$8)*($H10/($J10-$I10+1))*(1+Invoergegevens!$F$26)^AN$2 -> 0 | AO10: =(AO$2<=Invoergegevens!$F$9-Invoergegevens!$F$8)*(AO$2>=$I10-Invoergegevens!$F$8)*(AO$2<=$J10-Invoergegevens!$F$8)*($H10/($J10-$I10+1))*(1+Invoergegevens!$F$26)^AO$2 -> 0 | AP10: =(AP$2<=Invoergegevens!$F$9-Invoergegevens!$F$8)*(AP$2>=$I10-Invoergegevens!$F$8)*(AP$2<=$J10-Invoergegevens!$F$8)*($H10/($J10-$I10+1))*(1+Invoergegevens!$F$26)^AP$2 -> 0 | AQ10: =(AQ$2<=Invoergegevens!$F$9-Invoergegevens!$F$8)*(AQ$2>=$I10-Invoergegevens!$F$8)*(AQ$2<=$J10-Invoergegevens!$F$8)*($H10/($J10-$I10+1))*(1+Invoergegevens!$F$26)^AQ$2 -> 0 | AR10: =(AR$2<=Invoergegevens!$F$9-Invoergegevens!$F$8)*(AR$2>=$I10-Invoergegevens!$F$8)*(AR$2<=$J10-Invoergegevens!$F$8)*($H10/($J10-$I10+1))*(1+Invoergegevens!$F$26)^AR$2 -> 0 | AS10: =(AS$2<=Invoergegevens!$F$9-Invoergegevens!$F$8)*(AS$2>=$I10-Invoergegevens!$F$8)*(AS$2<=$J10-Invoergegevens!$F$8)*($H10/($J10-$I10+1))*(1+Invoergegevens!$F$26)^AS$2 -> 0 | AT10: =(AT$2<=Invoergegevens!$F$9-Invoergegevens!$F$8)*(AT$2>=$I10-Invoergegevens!$F$8)*(AT$2<=$J10-Invoergegevens!$F$8)*($H10/($J10-$I10+1))*(1+Invoergegevens!$F$26)^AT$2 -> 0 | AU10: =(AU$2<=Invoergegevens!$F$9-Invoergegevens!$F$8)*(AU$2>=$I10-Invoergegevens!$F$8)*(AU$2<=$J10-Invoergegevens!$F$8)*($H10/($J10-$I10+1))*(1+Invoergegevens!$F$26)^AU$2 -> 0 | AV10: =(AV$2<=Invoergegevens!$F$9-Invoergegevens!$F$8)*(AV$2>=$I10-Invoergegevens!$F$8)*(AV$2<=$J10-Invoergegevens!$F$8)*($H10/($J10-$I10+1))*(1+Invoergegevens!$F$26)^AV$2 -> 0 | AW10: =(AW$2<=Invoergegevens!$F$9-Invoergegevens!$F$8)*(AW$2>=$I10-Invoergegevens!$F$8)*(AW$2<=$J10-Invoergegevens!$F$8)*($H10/($J10-$I10+1))*(1+Invoergegevens!$F$26)^AW$2 -> 0 | AX10: =(AX$2<=Invoergegevens!$F$9-Invoergegevens!$F$8)*(AX$2>=$I10-Invoergegevens!$F$8)*(AX$2<=$J10-Invoergegevens!$F$8)*($H10/($J10-$I10+1))*(1+Invoergegevens!$F$26)^AX$2 -> 0 | AY10: =(AY$2<=Invoergegevens!$F$9-Invoergegevens!$F$8)*(AY$2>=$I10-Invoergegevens!$F$8)*(AY$2<=$J10-Invoergegevens!$F$8)*($H10/($J10-$I10+1))*(1+Invoergegevens!$F$26)^AY$2 -> 0 | AZ10: =(AZ$2<=Invoergegevens!$F$9-Invoergegevens!$F$8)*(AZ$2>=$I10-Invoergegevens!$F$8)*(AZ$2<=$J10-Invoergegevens!$F$8)*($H10/($J10-$I10+1))*(1+Invoergegevens!$F$26)^AZ$2 -> 0 | BA10: =(BA$2<=Invoergegevens!$F$9-Invoergegevens!$F$8)*(BA$2>=$I10-Invoergegevens!$F$8)*(BA$2<=$J10-Invoergegevens!$F$8)*($H10/($J10-$I10+1))*(1+Invoergegevens!$F$26)^BA$2 -> 0 | BB10: =(BB$2<=Invoergegevens!$F$9-Invoergegevens!$F$8)*(BB$2>=$I10-Invoergegevens!$F$8)*(BB$2<=$J10-Invoergegevens!$F$8)*($H10/($J10-$I10+1))*(1+Invoergegevens!$F$26)^BB$2 -> 0 | BC10: =(BC$2<=Invoergegevens!$F$9-Invoergegevens!$F$8)*(BC$2>=$I10-Invoergegevens!$F$8)*(BC$2<=$J10-Invoergegevens!$F$8)*($H10/($J10-$I10+1))*(1+Invoergegevens!$F$26)^BC$2 -> 0 | BD10: =(BD$2<=Invoergegevens!$F$9-Invoergegevens!$F$8)*(BD$2>=$I10-Invoergegevens!$F$8)*(BD$2<=$J10-Invoergegevens!$F$8)*($H10/($J10-$I10+1))*(1+Invoergegevens!$F$26)^BD$2 -> 0 | BE10: =(BE$2<=Invoergegevens!$F$9-Invoergegevens!$F$8)*(BE$2>=$I10-Invoergegevens!$F$8)*(BE$2<=$J10-Invoergegevens!$F$8)*($H10/($J10-$I10+1))*(1+Invoergegevens!$F$26)^BE$2 -> 0 | BF10: =(BF$2<=Invoergegevens!$F$9-Invoergegevens!$F$8)*(BF$2>=$I10-Invoergegevens!$F$8)*(BF$2<=$J10-Invoergegevens!$F$8)*($H10/($J10-$I10+1))*(1+Invoergegevens!$F$26)^BF$2 -> 0 | BG10: =(BG$2<=Invoergegevens!$F$9-Invoergegevens!$F$8)*(BG$2>=$I10-Invoergegevens!$F$8)*(BG$2<=$J10-Invoergegevens!$F$8)*($H10/($J10-$I10+1))*(1+Invoergegevens!$F$26)^BG$2 -> 0 | BH10: =(BH$2<=Invoergegevens!$F$9-Invoergegevens!$F$8)*(BH$2>=$I10-Invoergegevens!$F$8)*(BH$2<=$J10-Invoergegevens!$F$8)*($H10/($J10-$I10+1))*(1+Invoergegevens!$F$26)^BH$2 -> 0 | BI10: =(BI$2<=Invoergegevens!$F$9-Invoergegevens!$F$8)*(BI$2>=$I10-Invoergegevens!$F$8)*(BI$2<=$J10-Invoergegevens!$F$8)*($H10/($J10-$I10+1))*(1+Invoergegevens!$F$26)^BI$2 -> 0 | BJ10: =(BJ$2<=Invoergegevens!$F$9-Invoergegevens!$F$8)*(BJ$2>=$I10-Invoergegevens!$F$8)*(BJ$2<=$J10-Invoergegevens!$F$8)*($H10/($J10-$I10+1))*(1+Invoergegevens!$F$26)^BJ$2 -> 0 | BK10: =(BK$2<=Invoergegevens!$F$9-Invoergegevens!$F$8)*(BK$2>=$I10-Invoergegevens!$F$8)*(BK$2<=$J10-Invoergegevens!$F$8)*($H10/($J10-$I10+1))*(1+Invoergegevens!$F$26)^BK$2 -> 0 | BL10: =(BL$2<=Invoergegevens!$F$9-Invoergegevens!$F$8)*(BL$2>=$I10-Invoergegevens!$F$8)*(BL$2<=$J10-Invoergegevens!$F$8)*($H10/($J10-$I10+1))*(1+Invoergegevens!$F$26)^BL$2 -> 0 | BM10: =(BM$2<=Invoergegevens!$F$9-Invoergegevens!$F$8)*(BM$2>=$I10-Invoergegevens!$F$8)*(BM$2<=$J10-Invoergegevens!$F$8)*($H10/($J10-$I10+1))*(1+Invoergegevens!$F$26)^BM$2 -> 0 | BN10: =(BN$2<=Invoergegevens!$F$9-Invoergegevens!$F$8)*(BN$2>=$I10-Invoergegevens!$F$8)*(BN$2<=$J10-Invoergegevens!$F$8)*($H10/($J10-$I10+1))*(1+Invoergegevens!$F$26)^BN$2 -> 0 | BO10: =(BO$2<=Invoergegevens!$F$9-Invoergegevens!$F$8)*(BO$2>=$I10-Invoergegevens!$F$8)*(BO$2<=$J10-Invoergegevens!$F$8)*($H10/($J10-$I10+1))*(1+Invoergegevens!$F$26)^BO$2 -> 0 | BP10: =(BP$2<=Invoergegevens!$F$9-Invoergegevens!$F$8)*(BP$2>=$I10-Invoergegevens!$F$8)*(BP$2<=$J10-Invoergegevens!$F$8)*($H10/($J10-$I10+1))*(1+Invoergegevens!$F$26)^BP$2 -> 0 | BQ10: =(BQ$2<=Invoergegevens!$F$9-Invoergegevens!$F$8)*(BQ$2>=$I10-Invoergegevens!$F$8)*(BQ$2<=$J10-Invoergegevens!$F$8)*($H10/($J10-$I10+1))*(1+Invoergegevens!$F$26)^BQ$2 -> 0 | BR10: =(BR$2<=Invoergegevens!$F$9-Invoergegevens!$F$8)*(BR$2>=$I10-Invoergegevens!$F$8)*(BR$2<=$J10-Invoergegevens!$F$8)*($H10/($J10-$I10+1))*(1+Invoergegevens!$F$26)^BR$2 -> 0 | BS10: =(BS$2<=Invoergegevens!$F$9-Invoergegevens!$F$8)*(BS$2>=$I10-Invoergegevens!$F$8)*(BS$2<=$J10-Invoergegevens!$F$8)*($H10/($J10-$I10+1))*(1+Invoergegevens!$F$26)^BS$2 -> 0 | BT10: =(BT$2<=Invoergegevens!$F$9-Invoergegevens!$F$8)*(BT$2>=$I10-Invoergegevens!$F$8)*(BT$2<=$J10-Invoergegevens!$F$8)*($H10/($J10-$I10+1))*(1+Invoergegevens!$F$26)^BT$2 -> 0 | BU10: =(BU$2<=Invoergegevens!$F$9-Invoergegevens!$F$8)*(BU$2>=$I10-Invoergegevens!$F$8)*(BU$2<=$J10-Invoergegevens!$F$8)*($H10/($J10-$I10+1))*(1+Invoergegevens!$F$26)^BU$2 -> 0 | BV10: =(BV$2<=Invoergegevens!$F$9-Invoergegevens!$F$8)*(BV$2>=$I10-Invoergegevens!$F$8)*(BV$2<=$J10-Invoergegevens!$F$8)*($H10/($J10-$I10+1))*(1+Invoergegevens!$F$26)^BV$2 -> 0 | BW10: =(BW$2<=Invoergegevens!$F$9-Invoergegevens!$F$8)*(BW$2>=$I10-Invoergegevens!$F$8)*(BW$2<=$J10-Invoergegevens!$F$8)*($H10/($J10-$I10+1))*(1+Invoergegevens!$F$26)^BW$2 -> 0 | BX10: =(BX$2<=Invoergegevens!$F$9-Invoergegevens!$F$8)*(BX$2>=$I10-Invoergegevens!$F$8)*(BX$2<=$J10-Invoergegevens!$F$8)*($H10/($J10-$I10+1))*(1+Invoergegevens!$F$26)^BX$2 -> 0 | BY10: =(BY$2<=Invoergegevens!$F$9-Invoergegevens!$F$8)*(BY$2>=$I10-Invoergegevens!$F$8)*(BY$2<=$J10-Invoergegevens!$F$8)*($H10/($J10-$I10+1))*(1+Invoergegevens!$F$26)^BY$2 -> 0 | BZ10: =(BZ$2<=Invoergegevens!$F$9-Invoergegevens!$F$8)*(BZ$2>=$I10-Invoergegevens!$F$8)*(BZ$2<=$J10-Invoergegevens!$F$8)*($H10/($J10-$I10+1))*(1+Invoergegevens!$F$26)^BZ$2 -> 0 | CA10: =(CA$2<=Invoergegevens!$F$9-Invoergegevens!$F$8)*(CA$2>=$I10-Invoergegevens!$F$8)*(CA$2<=$J10-Invoergegevens!$F$8)*($H10/($J10-$I10+1))*(1+Invoergegevens!$F$26)^CA$2 -> 0 | CB10: =(CB$2<=Invoergegevens!$F$9-Invoergegevens!$F$8)*(CB$2>=$I10-Invoergegevens!$F$8)*(CB$2<=$J10-Invoergegevens!$F$8)*($H10/($J10-$I10+1))*(1+Invoergegevens!$F$26)^CB$2 -> 0 | CC10: =(CC$2<=Invoergegevens!$F$9-Invoergegevens!$F$8)*(CC$2>=$I10-Invoergegevens!$F$8)*(CC$2<=$J10-Invoergegevens!$F$8)*($H10/($J10-$I10+1))*(1+Invoergegevens!$F$26)^CC$2 -> 0 | CD10: =(CD$2<=Invoergegevens!$F$9-Invoergegevens!$F$8)*(CD$2>=$I10-Invoergegevens!$F$8)*(CD$2<=$J10-Invoergegevens!$F$8)*($H10/($J10-$I10+1))*(1+Invoergegevens!$F$26)^CD$2 -> 0 | CE10: =(CE$2<=Invoergegevens!$F$9-Invoergegevens!$F$8)*(CE$2>=$I10-Invoergegevens!$F$8)*(CE$2<=$J10-Invoergegevens!$F$8)*($H10/($J10-$I10+1))*(1+Invoergegevens!$F$26)^CE$2 -> 0 | CF10: =(CF$2<=Invoergegevens!$F$9-Invoergegevens!$F$8)*(CF$2>=$I10-Invoergegevens!$F$8)*(CF$2<=$J10-Invoergegevens!$F$8)*($H10/($J10-$I10+1))*(1+Invoergegevens!$F$26)^CF$2 -> 0 | CG10: =(CG$2<=Invoergegevens!$F$9-Invoergegevens!$F$8)*(CG$2>=$I10-Invoergegevens!$F$8)*(CG$2<=$J10-Invoergegevens!$F$8)*($H10/($J10-$I10+1))*(1+Invoergegevens!$F$26)^CG$2 -> 0 | CH10: =(CH$2<=Invoergegevens!$F$9-Invoergegevens!$F$8)*(CH$2>=$I10-Invoergegevens!$F$8)*(CH$2<=$J10-Invoergegevens!$F$8)*($H10/($J10-$I10+1))*(1+Invoergegevens!$F$26)^CH$2 -> 0 | CI10: =(CI$2<=Invoergegevens!$F$9-Invoergegevens!$F$8)*(CI$2>=$I10-Invoergegevens!$F$8)*(CI$2<=$J10-Invoergegevens!$F$8)*($H10/($J10-$I10+1))*(1+Invoergegevens!$F$26)^CI$2 -> 0 | CJ10: =(CJ$2<=Invoergegevens!$F$9-Invoergegevens!$F$8)*(CJ$2>=$I10-Invoergegevens!$F$8)*(CJ$2<=$J10-Invoergegevens!$F$8)*($H10/($J10-$I10+1))*(1+Invoergegevens!$F$26)^CJ$2 -> 0 | CK10: =(CK$2<=Invoergegevens!$F$9-Invoergegevens!$F$8)*(CK$2>=$I10-Invoergegevens!$F$8)*(CK$2<=$J10-Invoergegevens!$F$8)*($H10/($J10-$I10+1))*(1+Invoergegevens!$F$26)^CK$2 -> 0 | CL10: =(CL$2<=Invoergegevens!$F$9-Invoergegevens!$F$8)*(CL$2>=$I10-Invoergegevens!$F$8)*(CL$2<=$J10-Invoergegevens!$F$8)*($H10/($J10-$I10+1))*(1+Invoergegevens!$F$26)^CL$2 -> 0 | CM10: =(CM$2<=Invoergegevens!$F$9-Invoergegevens!$F$8)*(CM$2>=$I10-Invoergegevens!$F$8)*(CM$2<=$J10-Invoergegevens!$F$8)*($H10/($J10-$I10+1))*(1+Invoergegevens!$F$26)^CM$2 -> 0 | CN10: =(CN$2<=Invoergegevens!$F$9-Invoergegevens!$F$8)*(CN$2>=$I10-Invoergegevens!$F$8)*(CN$2<=$J10-Invoergegevens!$F$8)*($H10/($J10-$I10+1))*(1+Invoergegevens!$F$26)^CN$2 -> 0 | CO10: =(CO$2<=Invoergegevens!$F$9-Invoergegevens!$F$8)*(CO$2>=$I10-Invoergegevens!$F$8)*(CO$2<=$J10-Invoergegevens!$F$8)*($H10/($J10-$I10+1))*(1+Invoergegevens!$F$26)^CO$2 -> 0 | CP10: =(CP$2<=Invoergegevens!$F$9-Invoergegevens!$F$8)*(CP$2>=$I10-Invoergegevens!$F$8)*(CP$2<=$J10-Invoergegevens!$F$8)*($H10/($J10-$I10+1))*(1+Invoergegevens!$F$26)^CP$2 -> 0 | CQ10: =(CQ$2<=Invoergegevens!$F$9-Invoergegevens!$F$8)*(CQ$2>=$I10-Invoergegevens!$F$8)*(CQ$2<=$J10-Invoergegevens!$F$8)*($H10/($J10-$I10+1))*(1+Invoergegevens!$F$26)^CQ$2 -> 0 | CR10: =(CR$2<=Invoergegevens!$F$9-Invoergegevens!$F$8)*(CR$2>=$I10-Invoergegevens!$F$8)*(CR$2<=$J10-Invoergegevens!$F$8)*($H10/($J10-$I10+1))*(1+Invoergegevens!$F$26)^CR$2 -> 0 | CS10: =(CS$2<=Invoergegevens!$F$9-Invoergegevens!$F$8)*(CS$2>=$I10-Invoergegevens!$F$8)*(CS$2<=$J10-Invoergegevens!$F$8)*($H10/($J10-$I10+1))*(1+Invoergegevens!$F$26)^CS$2 -> 0 | CT10: =(CT$2<=Invoergegevens!$F$9-Invoergegevens!$F$8)*(CT$2>=$I10-Invoergegevens!$F$8)*(CT$2<=$J10-Invoergegevens!$F$8)*($H10/($J10-$I10+1))*(1+Invoergegevens!$F$26)^CT$2 -> 0 | CU10: =(CU$2<=Invoergegevens!$F$9-Invoergegevens!$F$8)*(CU$2>=$I10-Invoergegevens!$F$8)*(CU$2<=$J10-Invoergegevens!$F$8)*($H10/($J10-$I10+1))*(1+Invoergegevens!$F$26)^CU$2 -> 0 | CV10: =(CV$2<=Invoergegevens!$F$9-Invoergegevens!$F$8)*(CV$2>=$I10-Invoergegevens!$F$8)*(CV$2<=$J10-Invoergegevens!$F$8)*($H10/($J10-$I10+1))*(1+Invoergegevens!$F$26)^CV$2 -> 0 | CW10: =(CW$2<=Invoergegevens!$F$9-Invoergegevens!$F$8)*(CW$2>=$I10-Invoergegevens!$F$8)*(CW$2<=$J10-Invoergegevens!$F$8)*($H10/($J10-$I10+1))*(1+Invoergegevens!$F$26)^CW$2 -> 0 | CX10: =(CX$2<=Invoergegevens!$F$9-Invoergegevens!$F$8)*(CX$2>=$I10-Invoergegevens!$F$8)*(CX$2<=$J10-Invoergegevens!$F$8)*($H10/($J10-$I10+1))*(1+Invoergegevens!$F$26)^CX$2 -> 0
B11: 01.6 | H11: 0 | K11: =IF($H11<>0,IF(OR($I11<Invoergegevens!$F$8,$J11>=Invoergegevens!$F$8+INDEX(Invoergegevens!$C$59:$J$74,MATCH(LEFT($B11,2),Invoergegevens!$C$59:$C$74,0),MATCH(Invoergegevens!$F$31,Invoergegevens!$C$59:$J$59,0))),"fout","goed"),"") ->  | AF11: =(AF$2<=Invoergegevens!$F$9-Invoergegevens!$F$8)*(AF$2>=$I11-Invoergegevens!$F$8)*(AF$2<=$J11-Invoergegevens!$F$8)*($H11/($J11-$I11+1))*(1+Invoergegevens!$F$26)^AF$2 -> 0 | AG11: =(AG$2<=Invoergegevens!$F$9-Invoergegevens!$F$8)*(AG$2>=$I11-Invoergegevens!$F$8)*(AG$2<=$J11-Invoergegevens!$F$8)*($H11/($J11-$I11+1))*(1+Invoergegevens!$F$26)^AG$2 -> 0 | AH11: =(AH$2<=Invoergegevens!$F$9-Invoergegevens!$F$8)*(AH$2>=$I11-Invoergegevens!$F$8)*(AH$2<=$J11-Invoergegevens!$F$8)*($H11/($J11-$I11+1))*(1+Invoergegevens!$F$26)^AH$2 -> 0 | AI11: =(AI$2<=Invoergegevens!$F$9-Invoergegevens!$F$8)*(AI$2>=$I11-Invoergegevens!$F$8)*(AI$2<=$J11-Invoergegevens!$F$8)*($H11/($J11-$I11+1))*(1+Invoergegevens!$F$26)^AI$2 -> 0 | AJ11: =(AJ$2<=Invoergegevens!$F$9-Invoergegevens!$F$8)*(AJ$2>=$I11-Invoergegevens!$F$8)*(AJ$2<=$J11-Invoergegevens!$F$8)*($H11/($J11-$I11+1))*(1+Invoergegevens!$F$26)^AJ$2 -> 0 | AK11: =(AK$2<=Invoergegevens!$F$9-Invoergegevens!$F$8)*(AK$2>=$I11-Invoergegevens!$F$8)*(AK$2<=$J11-Invoergegevens!$F$8)*($H11/($J11-$I11+1))*(1+Invoergegevens!$F$26)^AK$2 -> 0 | AL11: =(AL$2<=Invoergegevens!$F$9-Invoergegevens!$F$8)*(AL$2>=$I11-Invoergegevens!$F$8)*(AL$2<=$J11-Invoergegevens!$F$8)*($H11/($J11-$I11+1))*(1+Invoergegevens!$F$26)^AL$2 -> 0 | AM11: =(AM$2<=Invoergegevens!$F$9-Invoergegevens!$F$8)*(AM$2>=$I11-Invoergegevens!$F$8)*(AM$2<=$J11-Invoergegevens!$F$8)*($H11/($J11-$I11+1))*(1+Invoergegevens!$F$26)^AM$2 -> 0 | AN11: =(AN$2<=Invoergegevens!$F$9-Invoergegevens!$F$8)*(AN$2>=$I11-Invoergegevens!$F$8)*(AN$2<=$J11-Invoergegevens!$F$8)*($H11/($J11-$I11+1))*(1+Invoergegevens!$F$26)^AN$2 -> 0 | AO11: =(AO$2<=Invoergegevens!$F$9-Invoergegevens!$F$8)*(AO$2>=$I11-Invoergegevens!$F$8)*(AO$2<=$J11-Invoergegevens!$F$8)*($H11/($J11-$I11+1))*(1+Invoergegevens!$F$26)^AO$2 -> 0 | AP11: =(AP$2<=Invoergegevens!$F$9-Invoergegevens!$F$8)*(AP$2>=$I11-Invoergegevens!$F$8)*(AP$2<=$J11-Invoergegevens!$F$8)*($H11/($J11-$I11+1))*(1+Invoergegevens!$F$26)^AP$2 -> 0 | AQ11: =(AQ$2<=Invoergegevens!$F$9-Invoergegevens!$F$8)*(AQ$2>=$I11-Invoergegevens!$F$8)*(AQ$2<=$J11-Invoergegevens!$F$8)*($H11/($J11-$I11+1))*(1+Invoergegevens!$F$26)^AQ$2 -> 0 | AR11: =(AR$2<=Invoergegevens!$F$9-Invoergegevens!$F$8)*(AR$2>=$I11-Invoergegevens!$F$8)*(AR$2<=$J11-Invoergegevens!$F$8)*($H11/($J11-$I11+1))*(1+Invoergegevens!$F$26)^AR$2 -> 0 | AS11: =(AS$2<=Invoergegevens!$F$9-Invoergegevens!$F$8)*(AS$2>=$I11-Invoergegevens!$F$8)*(AS$2<=$J11-Invoergegevens!$F$8)*($H11/($J11-$I11+1))*(1+Invoergegevens!$F$26)^AS$2 -> 0 | AT11: =(AT$2<=Invoergegevens!$F$9-Invoergegevens!$F$8)*(AT$2>=$I11-Invoergegevens!$F$8)*(AT$2<=$J11-Invoergegevens!$F$8)*($H11/($J11-$I11+1))*(1+Invoergegevens!$F$26)^AT$2 -> 0 | AU11: =(AU$2<=Invoergegevens!$F$9-Invoergegevens!$F$8)*(AU$2>=$I11-Invoergegevens!$F$8)*(AU$2<=$J11-Invoergegevens!$F$8)*($H11/($J11-$I11+1))*(1+Invoergegevens!$F$26)^AU$2 -> 0 | AV11: =(AV$2<=Invoergegevens!$F$9-Invoergegevens!$F$8)*(AV$2>=$I11-Invoergegevens!$F$8)*(AV$2<=$J11-Invoergegevens!$F$8)*($H11/($J11-$I11+1))*(1+Invoergegevens!$F$26)^AV$2 -> 0 | AW11: =(AW$2<=Invoergegevens!$F$9-Invoergegevens!$F$8)*(AW$2>=$I11-Invoergegevens!$F$8)*(AW$2<=$J11-Invoergegevens!$F$8)*($H11/($J11-$I11+1))*(1+Invoergegevens!$F$26)^AW$2 -> 0 | AX11: =(AX$2<=Invoergegevens!$F$9-Invoergegevens!$F$8)*(AX$2>=$I11-Invoergegevens!$F$8)*(AX$2<=$J11-Invoergegevens!$F$8)*($H11/($J11-$I11+1))*(1+Invoergegevens!$F$26)^AX$2 -> 0 | AY11: =(AY$2<=Invoergegevens!$F$9-Invoergegevens!$F$8)*(AY$2>=$I11-Invoergegevens!$F$8)*(AY$2<=$J11-Invoergegevens!$F$8)*($H11/($J11-$I11+1))*(1+Invoergegevens!$F$26)^AY$2 -> 0 | AZ11: =(AZ$2<=Invoergegevens!$F$9-Invoergegevens!$F$8)*(AZ$2>=$I11-Invoergegevens!$F$8)*(AZ$2<=$J11-Invoergegevens!$F$8)*($H11/($J11-$I11+1))*(1+Invoergegevens!$F$26)^AZ$2 -> 0 | BA11: =(BA$2<=Invoergegevens!$F$9-Invoergegevens!$F$8)*(BA$2>=$I11-Invoergegevens!$F$8)*(BA$2<=$J11-Invoergegevens!$F$8)*($H11/($J11-$I11+1))*(1+Invoergegevens!$F$26)^BA$2 -> 0 | BB11: =(BB$2<=Invoergegevens!$F$9-Invoergegevens!$F$8)*(BB$2>=$I11-Invoergegevens!$F$8)*(BB$2<=$J11-Invoergegevens!$F$8)*($H11/($J11-$I11+1))*(1+Invoergegevens!$F$26)^BB$2 -> 0 | BC11: =(BC$2<=Invoergegevens!$F$9-Invoergegevens!$F$8)*(BC$2>=$I11-Invoergegevens!$F$8)*(BC$2<=$J11-Invoergegevens!$F$8)*($H11/($J11-$I11+1))*(1+Invoergegevens!$F$26)^BC$2 -> 0 | BD11: =(BD$2<=Invoergegevens!$F$9-Invoergegevens!$F$8)*(BD$2>=$I11-Invoergegevens!$F$8)*(BD$2<=$J11-Invoergegevens!$F$8)*($H11/($J11-$I11+1))*(1+Invoergegevens!$F$26)^BD$2 -> 0 | BE11: =(BE$2<=Invoergegevens!$F$9-Invoergegevens!$F$8)*(BE$2>=$I11-Invoergegevens!$F$8)*(BE$2<=$J11-Invoergegevens!$F$8)*($H11/($J11-$I11+1))*(1+Invoergegevens!$F$26)^BE$2 -> 0 | BF11: =(BF$2<=Invoergegevens!$F$9-Invoergegevens!$F$8)*(BF$2>=$I11-Invoergegevens!$F$8)*(BF$2<=$J11-Invoergegevens!$F$8)*($H11/($J11-$I11+1))*(1+Invoergegevens!$F$26)^BF$2 -> 0 | BG11: =(BG$2<=Invoergegevens!$F$9-Invoergegevens!$F$8)*(BG$2>=$I11-Invoergegevens!$F$8)*(BG$2<=$J11-Invoergegevens!$F$8)*($H11/($J11-$I11+1))*(1+Invoergegevens!$F$26)^BG$2 -> 0 | BH11: =(BH$2<=Invoergegevens!$F$9-Invoergegevens!$F$8)*(BH$2>=$I11-Invoergegevens!$F$8)*(BH$2<=$J11-Invoergegevens!$F$8)*($H11/($J11-$I11+1))*(1+Invoergegevens!$F$26)^BH$2 -> 0 | BI11: =(BI$2<=Invoergegevens!$F$9-Invoergegevens!$F$8)*(BI$2>=$I11-Invoergegevens!$F$8)*(BI$2<=$J11-Invoergegevens!$F$8)*($H11/($J11-$I11+1))*(1+Invoergegevens!$F$26)^BI$2 -> 0 | BJ11: =(BJ$2<=Invoergegevens!$F$9-Invoergegevens!$F$8)*(BJ$2>=$I11-Invoergegevens!$F$8)*(BJ$2<=$J11-Invoergegevens!$F$8)*($H11/($J11-$I11+1))*(1+Invoergegevens!$F$26)^BJ$2 -> 0 | BK11: =(BK$2<=Invoergegevens!$F$9-Invoergegevens!$F$8)*(BK$2>=$I11-Invoergegevens!$F$8)*(BK$2<=$J11-Invoergegevens!$F$8)*($H11/($J11-$I11+1))*(1+Invoergegevens!$F$26)^BK$2 -> 0 | BL11: =(BL$2<=Invoergegevens!$F$9-Invoergegevens!$F$8)*(BL$2>=$I11-Invoergegevens!$F$8)*(BL$2<=$J11-Invoergegevens!$F$8)*($H11/($J11-$I11+1))*(1+Invoergegevens!$F$26)^BL$2 -> 0 | BM11: =(BM$2<=Invoergegevens!$F$9-Invoergegevens!$F$8)*(BM$2>=$I11-Invoergegevens!$F$8)*(BM$2<=$J11-Invoergegevens!$F$8)*($H11/($J11-$I11+1))*(1+Invoergegevens!$F$26)^BM$2 -> 0 | BN11: =(BN$2<=Invoergegevens!$F$9-Invoergegevens!$F$8)*(BN$2>=$I11-Invoergegevens!$F$8)*(BN$2<=$J11-Invoergegevens!$F$8)*($H11/($J11-$I11+1))*(1+Invoergegevens!$F$26)^BN$2 -> 0 | BO11: =(BO$2<=Invoergegevens!$F$9-Invoergegevens!$F$8)*(BO$2>=$I11-Invoergegevens!$F$8)*(BO$2<=$J11-Invoergegevens!$F$8)*($H11/($J11-$I11+1))*(1+Invoergegevens!$F$26)^BO$2 -> 0 | BP11: =(BP$2<=Invoergegevens!$F$9-Invoergegevens!$F$8)*(BP$2>=$I11-Invoergegevens!$F$8)*(BP$2<=$J11-Invoergegevens!$F$8)*($H11/($J11-$I11+1))*(1+Invoergegevens!$F$26)^BP$2 -> 0 | BQ11: =(BQ$2<=Invoergegevens!$F$9-Invoergegevens!$F$8)*(BQ$2>=$I11-Invoergegevens!$F$8)*(BQ$2<=$J11-Invoergegevens!$F$8)*($H11/($J11-$I11+1))*(1+Invoergegevens!$F$26)^BQ$2 -> 0 | BR11: =(BR$2<=Invoergegevens!$F$9-Invoergegevens!$F$8)*(BR$2>=$I11-Invoergegevens!$F$8)*(BR$2<=$J11-Invoergegevens!$F$8)*($H11/($J11-$I11+1))*(1+Invoergegevens!$F$26)^BR$2 -> 0 | BS11: =(BS$2<=Invoergegevens!$F$9-Invoergegevens!$F$8)*(BS$2>=$I11-Invoergegevens!$F$8)*(BS$2<=$J11-Invoergegevens!$F$8)*($H11/($J11-$I11+1))*(1+Invoergegevens!$F$26)^BS$2 -> 0 | BT11: =(BT$2<=Invoergegevens!$F$9-Invoergegevens!$F$8)*(BT$2>=$I11-Invoergegevens!$F$8)*(BT$2<=$J11-Invoergegevens!$F$8)*($H11/($J11-$I11+1))*(1+Invoergegevens!$F$26)^BT$2 -> 0 | BU11: =(BU$2<=Invoergegevens!$F$9-Invoergegevens!$F$8)*(BU$2>=$I11-Invoergegevens!$F$8)*(BU$2<=$J11-Invoergegevens!$F$8)*($H11/($J11-$I11+1))*(1+Invoergegevens!$F$26)^BU$2 -> 0 | BV11: =(BV$2<=Invoergegevens!$F$9-Invoergegevens!$F$8)*(BV$2>=$I11-Invoergegevens!$F$8)*(BV$2<=$J11-Invoergegevens!$F$8)*($H11/($J11-$I11+1))*(1+Invoergegevens!$F$26)^BV$2 -> 0 | BW11: =(BW$2<=Invoergegevens!$F$9-Invoergegevens!$F$8)*(BW$2>=$I11-Invoergegevens!$F$8)*(BW$2<=$J11-Invoergegevens!$F$8)*($H11/($J11-$I11+1))*(1+Invoergegevens!$F$26)^BW$2 -> 0 | BX11: =(BX$2<=Invoergegevens!$F$9-Invoergegevens!$F$8)*(BX$2>=$I11-Invoergegevens!$F$8)*(BX$2<=$J11-Invoergegevens!$F$8)*($H11/($J11-$I11+1))*(1+Invoergegevens!$F$26)^BX$2 -> 0 | BY11: =(BY$2<=Invoergegevens!$F$9-Invoergegevens!$F$8)*(BY$2>=$I11-Invoergegevens!$F$8)*(BY$2<=$J11-Invoergegevens!$F$8)*($H11/($J11-$I11+1))*(1+Invoergegevens!$F$26)^BY$2 -> 0 | BZ11: =(BZ$2<=Invoergegevens!$F$9-Invoergegevens!$F$8)*(BZ$2>=$I11-Invoergegevens!$F$8)*(BZ$2<=$J11-Invoergegevens!$F$8)*($H11/($J11-$I11+1))*(1+Invoergegevens!$F$26)^BZ$2 -> 0 | CA11: =(CA$2<=Invoergegevens!$F$9-Invoergegevens!$F$8)*(CA$2>=$I11-Invoergegevens!$F$8)*(CA$2<=$J11-Invoergegevens!$F$8)*($H11/($J11-$I11+1))*(1+Invoergegevens!$F$26)^CA$2 -> 0 | CB11: =(CB$2<=Invoergegevens!$F$9-Invoergegevens!$F$8)*(CB$2>=$I11-Invoergegevens!$F$8)*(CB$2<=$J11-Invoergegevens!$F$8)*($H11/($J11-$I11+1))*(1+Invoergegevens!$F$26)^CB$2 -> 0 | CC11: =(CC$2<=Invoergegevens!$F$9-Invoergegevens!$F$8)*(CC$2>=$I11-Invoergegevens!$F$8)*(CC$2<=$J11-Invoergegevens!$F$8)*($H11/($J11-$I11+1))*(1+Invoergegevens!$F$26)^CC$2 -> 0 | CD11: =(CD$2<=Invoergegevens!$F$9-Invoergegevens!$F$8)*(CD$2>=$I11-Invoergegevens!$F$8)*(CD$2<=$J11-Invoergegevens!$F$8)*($H11/($J11-$I11+1))*(1+Invoergegevens!$F$26)^CD$2 -> 0 | CE11: =(CE$2<=Invoergegevens!$F$9-Invoergegevens!$F$8)*(CE$2>=$I11-Invoergegevens!$F$8)*(CE$2<=$J11-Invoergegevens!$F$8)*($H11/($J11-$I11+1))*(1+Invoergegevens!$F$26)^CE$2 -> 0 | CF11: =(CF$2<=Invoergegevens!$F$9-Invoergegevens!$F$8)*(CF$2>=$I11-Invoergegevens!$F$8)*(CF$2<=$J11-Invoergegevens!$F$8)*($H11/($J11-$I11+1))*(1+Invoergegevens!$F$26)^CF$2 -> 0 | CG11: =(CG$2<=Invoergegevens!$F$9-Invoergegevens!$F$8)*(CG$2>=$I11-Invoergegevens!$F$8)*(CG$2<=$J11-Invoergegevens!$F$8)*($H11/($J11-$I11+1))*(1+Invoergegevens!$F$26)^CG$2 -> 0 | CH11: =(CH$2<=Invoergegevens!$F$9-Invoergegevens!$F$8)*(CH$2>=$I11-Invoergegevens!$F$8)*(CH$2<=$J11-Invoergegevens!$F$8)*($H11/($J11-$I11+1))*(1+Invoergegevens!$F$26)^CH$2 -> 0 | CI11: =(CI$2<=Invoergegevens!$F$9-Invoergegevens!$F$8)*(CI$2>=$I11-Invoergegevens!$F$8)*(CI$2<=$J11-Invoergegevens!$F$8)*($H11/($J11-$I11+1))*(1+Invoergegevens!$F$26)^CI$2 -> 0 | CJ11: =(CJ$2<=Invoergegevens!$F$9-Invoergegevens!$F$8)*(CJ$2>=$I11-Invoergegevens!$F$8)*(CJ$2<=$J11-Invoergegevens!$F$8)*($H11/($J11-$I11+1))*(1+Invoergegevens!$F$26)^CJ$2 -> 0 | CK11: =(CK$2<=Invoergegevens!$F$9-Invoergegevens!$F$8)*(CK$2>=$I11-Invoergegevens!$F$8)*(CK$2<=$J11-Invoergegevens!$F$8)*($H11/($J11-$I11+1))*(1+Invoergegevens!$F$26)^CK$2 -> 0 | CL11: =(CL$2<=Invoergegevens!$F$9-Invoergegevens!$F$8)*(CL$2>=$I11-Invoergegevens!$F$8)*(CL$2<=$J11-Invoergegevens!$F$8)*($H11/($J11-$I11+1))*(1+Invoergegevens!$F$26)^CL$2 -> 0 | CM11: =(CM$2<=Invoergegevens!$F$9-Invoergegevens!$F$8)*(CM$2>=$I11-Invoergegevens!$F$8)*(CM$2<=$J11-Invoergegevens!$F$8)*($H11/($J11-$I11+1))*(1+Invoergegevens!$F$26)^CM$2 -> 0 | CN11: =(CN$2<=Invoergegevens!$F$9-Invoergegevens!$F$8)*(CN$2>=$I11-Invoergegevens!$F$8)*(CN$2<=$J11-Invoergegevens!$F$8)*($H11/($J11-$I11+1))*(1+Invoergegevens!$F$26)^CN$2 -> 0 | CO11: =(CO$2<=Invoergegevens!$F$9-Invoergegevens!$F$8)*(CO$2>=$I11-Invoergegevens!$F$8)*(CO$2<=$J11-Invoergegevens!$F$8)*($H11/($J11-$I11+1))*(1+Invoergegevens!$F$26)^CO$2 -> 0 | CP11: =(CP$2<=Invoergegevens!$F$9-Invoergegevens!$F$8)*(CP$2>=$I11-Invoergegevens!$F$8)*(CP$2<=$J11-Invoergegevens!$F$8)*($H11/($J11-$I11+1))*(1+Invoergegevens!$F$26)^CP$2 -> 0 | CQ11: =(CQ$2<=Invoergegevens!$F$9-Invoergegevens!$F$8)*(CQ$2>=$I11-Invoergegevens!$F$8)*(CQ$2<=$J11-Invoergegevens!$F$8)*($H11/($J11-$I11+1))*(1+Invoergegevens!$F$26)^CQ$2 -> 0 | CR11: =(CR$2<=Invoergegevens!$F$9-Invoergegevens!$F$8)*(CR$2>=$I11-Invoergegevens!$F$8)*(CR$2<=$J11-Invoergegevens!$F$8)*($H11/($J11-$I11+1))*(1+Invoergegevens!$F$26)^CR$2 -> 0 | CS11: =(CS$2<=Invoergegevens!$F$9-Invoergegevens!$F$8)*(CS$2>=$I11-Invoergegevens!$F$8)*(CS$2<=$J11-Invoergegevens!$F$8)*($H11/($J11-$I11+1))*(1+Invoergegevens!$F$26)^CS$2 -> 0 | CT11: =(CT$2<=Invoergegevens!$F$9-Invoergegevens!$F$8)*(CT$2>=$I11-Invoergegevens!$F$8)*(CT$2<=$J11-Invoergegevens!$F$8)*($H11/($J11-$I11+1))*(1+Invoergegevens!$F$26)^CT$2 -> 0 | CU11: =(CU$2<=Invoergegevens!$F$9-Invoergegevens!$F$8)*(CU$2>=$I11-Invoergegevens!$F$8)*(CU$2<=$J11-Invoergegevens!$F$8)*($H11/($J11-$I11+1))*(1+Invoergegevens!$F$26)^CU$2 -> 0 | CV11: =(CV$2<=Invoergegevens!$F$9-Invoergegevens!$F$8)*(CV$2>=$I11-Invoergegevens!$F$8)*(CV$2<=$J11-Invoergegevens!$F$8)*($H11/($J11-$I11+1))*(1+Invoergegevens!$F$26)^CV$2 -> 0 | CW11: =(CW$2<=Invoergegevens!$F$9-Invoergegevens!$F$8)*(CW$2>=$I11-Invoergegevens!$F$8)*(CW$2<=$J11-Invoergegevens!$F$8)*($H11/($J11-$I11+1))*(1+Invoergegevens!$F$26)^CW$2 -> 0 | CX11: =(CX$2<=Invoergegevens!$F$9-Invoergegevens!$F$8)*(CX$2>=$I11-Invoergegevens!$F$8)*(CX$2<=$J11-Invoergegevens!$F$8)*($H11/($J11-$I11+1))*(1+Invoergegevens!$F$26)^CX$2 -> 0
B12: 01.7 | H12: 0 | K12: =IF($H12<>0,IF(OR($I12<Invoergegevens!$F$8,$J12>=Invoergegevens!$F$8+INDEX(Invoergegevens!$C$59:$J$74,MATCH(LEFT($B12,2),Invoergegevens!$C$59:$C$74,0),MATCH(Invoergegevens!$F$31,Invoergegevens!$C$59:$J$59,0))),"fout","goed"),"") ->  | AF12: =(AF$2<=Invoergegevens!$F$9-Invoergegevens!$F$8)*(AF$2>=$I12-Invoergegevens!$F$8)*(AF$2<=$J12-Invoergegevens!$F$8)*($H12/($J12-$I12+1))*(1+Invoergegevens!$F$26)^AF$2 -> 0 | AG12: =(AG$2<=Invoergegevens!$F$9-Invoergegevens!$F$8)*(AG$2>=$I12-Invoergegevens!$F$8)*(AG$2<=$J12-Invoergegevens!$F$8)*($H12/($J12-$I12+1))*(1+Invoergegevens!$F$26)^AG$2 -> 0 | AH12: =(AH$2<=Invoergegevens!$F$9-Invoergegevens!$F$8)*(AH$2>=$I12-Invoergegevens!$F$8)*(AH$2<=$J12-Invoergegevens!$F$8)*($H12/($J12-$I12+1))*(1+Invoergegevens!$F$26)^AH$2 -> 0 | AI12: =(AI$2<=Invoergegevens!$F$9-Invoergegevens!$F$8)*(AI$2>=$I12-Invoergegevens!$F$8)*(AI$2<=$J12-Invoergegevens!$F$8)*($H12/($J12-$I12+1))*(1+Invoergegevens!$F$26)^AI$2 -> 0 | AJ12: =(AJ$2<=Invoergegevens!$F$9-Invoergegevens!$F$8)*(AJ$2>=$I12-Invoergegevens!$F$8)*(AJ$2<=$J12-Invoergegevens!$F$8)*($H12/($J12-$I12+1))*(1+Invoergegevens!$F$26)^AJ$2 -> 0 | AK12: =(AK$2<=Invoergegevens!$F$9-Invoergegevens!$F$8)*(AK$2>=$I12-Invoergegevens!$F$8)*(AK$2<=$J12-Invoergegevens!$F$8)*($H12/($J12-$I12+1))*(1+Invoergegevens!$F$26)^AK$2 -> 0 | AL12: =(AL$2<=Invoergegevens!$F$9-Invoergegevens!$F$8)*(AL$2>=$I12-Invoergegevens!$F$8)*(AL$2<=$J12-Invoergegevens!$F$8)*($H12/($J12-$I12+1))*(1+Invoergegevens!$F$26)^AL$2 -> 0 | AM12: =(AM$2<=Invoergegevens!$F$9-Invoergegevens!$F$8)*(AM$2>=$I12-Invoergegevens!$F$8)*(AM$2<=$J12-Invoergegevens!$F$8)*($H12/($J12-$I12+1))*(1+Invoergegevens!$F$26)^AM$2 -> 0 | AN12: =(AN$2<=Invoergegevens!$F$9-Invoergegevens!$F$8)*(AN$2>=$I12-Invoergegevens!$F$8)*(AN$2<=$J12-Invoergegevens!$F$8)*($H12/($J12-$I12+1))*(1+Invoergegevens!$F$26)^AN$2 -> 0 | AO12: =(AO$2<=Invoergegevens!$F$9-Invoergegevens!$F$8)*(AO$2>=$I12-Invoergegevens!$F$8)*(AO$2<=$J12-Invoergegevens!$F$8)*($H12/($J12-$I12+1))*(1+Invoergegevens!$F$26)^AO$2 -> 0 | AP12: =(AP$2<=Invoergegevens!$F$9-Invoergegevens!$F$8)*(AP$2>=$I12-Invoergegevens!$F$8)*(AP$2<=$J12-Invoergegevens!$F$8)*($H12/($J12-$I12+1))*(1+Invoergegevens!$F$26)^AP$2 -> 0 | AQ12: =(AQ$2<=Invoergegevens!$F$9-Invoergegevens!$F$8)*(AQ$2>=$I12-Invoergegevens!$F$8)*(AQ$2<=$J12-Invoergegevens!$F$8)*($H12/($J12-$I12+1))*(1+Invoergegevens!$F$26)^AQ$2 -> 0 | AR12: =(AR$2<=Invoergegevens!$F$9-Invoergegevens!$F$8)*(AR$2>=$I12-Invoergegevens!$F$8)*(AR$2<=$J12-Invoergegevens!$F$8)*($H12/($J12-$I12+1))*(1+Invoergegevens!$F$26)^AR$2 -> 0 | AS12: =(AS$2<=Invoergegevens!$F$9-Invoergegevens!$F$8)*(AS$2>=$I12-Invoergegevens!$F$8)*(AS$2<=$J12-Invoergegevens!$F$8)*($H12/($J12-$I12+1))*(1+Invoergegevens!$F$26)^AS$2 -> 0 | AT12: =(AT$2<=Invoergegevens!$F$9-Invoergegevens!$F$8)*(AT$2>=$I12-Invoergegevens!$F$8)*(AT$2<=$J12-Invoergegevens!$F$8)*($H12/($J12-$I12+1))*(1+Invoergegevens!$F$26)^AT$2 -> 0 | AU12: =(AU$2<=Invoergegevens!$F$9-Invoergegevens!$F$8)*(AU$2>=$I12-Invoergegevens!$F$8)*(AU$2<=$J12-Invoergegevens!$F$8)*($H12/($J12-$I12+1))*(1+Invoergegevens!$F$26)^AU$2 -> 0 | AV12: =(AV$2<=Invoergegevens!$F$9-Invoergegevens!$F$8)*(AV$2>=$I12-Invoergegevens!$F$8)*(AV$2<=$J12-Invoergegevens!$F$8)*($H12/($J12-$I12+1))*(1+Invoergegevens!$F$26)^AV$2 -> 0 | AW12: =(AW$2<=Invoergegevens!$F$9-Invoergegevens!$F$8)*(AW$2>=$I12-Invoergegevens!$F$8)*(AW$2<=$J12-Invoergegevens!$F$8)*($H12/($J12-$I12+1))*(1+Invoergegevens!$F$26)^AW$2 -> 0 | AX12: =(AX$2<=Invoergegevens!$F$9-Invoergegevens!$F$8)*(AX$2>=$I12-Invoergegevens!$F$8)*(AX$2<=$J12-Invoergegevens!$F$8)*($H12/($J12-$I12+1))*(1+Invoergegevens!$F$26)^AX$2 -> 0 | AY12: =(AY$2<=Invoergegevens!$F$9-Invoergegevens!$F$8)*(AY$2>=$I12-Invoergegevens!$F$8)*(AY$2<=$J12-Invoergegevens!$F$8)*($H12/($J12-$I12+1))*(1+Invoergegevens!$F$26)^AY$2 -> 0 | AZ12: =(AZ$2<=Invoergegevens!$F$9-Invoergegevens!$F$8)*(AZ$2>=$I12-Invoergegevens!$F$8)*(AZ$2<=$J12-Invoergegevens!$F$8)*($H12/($J12-$I12+1))*(1+Invoergegevens!$F$26)^AZ$2 -> 0 | BA12: =(BA$2<=Invoergegevens!$F$9-Invoergegevens!$F$8)*(BA$2>=$I12-Invoergegevens!$F$8)*(BA$2<=$J12-Invoergegevens!$F$8)*($H12/($J12-$I12+1))*(1+Invoergegevens!$F$26)^BA$2 -> 0 | BB12: =(BB$2<=Invoergegevens!$F$9-Invoergegevens!$F$8)*(BB$2>=$I12-Invoergegevens!$F$8)*(BB$2<=$J12-Invoergegevens!$F$8)*($H12/($J12-$I12+1))*(1+Invoergegevens!$F$26)^BB$2 -> 0 | BC12: =(BC$2<=Invoergegevens!$F$9-Invoergegevens!$F$8)*(BC$2>=$I12-Invoergegevens!$F$8)*(BC$2<=$J12-Invoergegevens!$F$8)*($H12/($J12-$I12+1))*(1+Invoergegevens!$F$26)^BC$2 -> 0 | BD12: =(BD$2<=Invoergegevens!$F$9-Invoergegevens!$F$8)*(BD$2>=$I12-Invoergegevens!$F$8)*(BD$2<=$J12-Invoergegevens!$F$8)*($H12/($J12-$I12+1))*(1+Invoergegevens!$F$26)^BD$2 -> 0 | BE12: =(BE$2<=Invoergegevens!$F$9-Invoergegevens!$F$8)*(BE$2>=$I12-Invoergegevens!$F$8)*(BE$2<=$J12-Invoergegevens!$F$8)*($H12/($J12-$I12+1))*(1+Invoergegevens!$F$26)^BE$2 -> 0 | BF12: =(BF$2<=Invoergegevens!$F$9-Invoergegevens!$F$8)*(BF$2>=$I12-Invoergegevens!$F$8)*(BF$2<=$J12-Invoergegevens!$F$8)*($H12/($J12-$I12+1))*(1+Invoergegevens!$F$26)^BF$2 -> 0 | BG12: =(BG$2<=Invoergegevens!$F$9-Invoergegevens!$F$8)*(BG$2>=$I12-Invoergegevens!$F$8)*(BG$2<=$J12-Invoergegevens!$F$8)*($H12/($J12-$I12+1))*(1+Invoergegevens!$F$26)^BG$2 -> 0 | BH12: =(BH$2<=Invoergegevens!$F$9-Invoergegevens!$F$8)*(BH$2>=$I12-Invoergegevens!$F$8)*(BH$2<=$J12-Invoergegevens!$F$8)*($H12/($J12-$I12+1))*(1+Invoergegevens!$F$26)^BH$2 -> 0 | BI12: =(BI$2<=Invoergegevens!$F$9-Invoergegevens!$F$8)*(BI$2>=$I12-Invoergegevens!$F$8)*(BI$2<=$J12-Invoergegevens!$F$8)*($H12/($J12-$I12+1))*(1+Invoergegevens!$F$26)^BI$2 -> 0 | BJ12: =(BJ$2<=Invoergegevens!$F$9-Invoergegevens!$F$8)*(BJ$2>=$I12-Invoergegevens!$F$8)*(BJ$2<=$J12-Invoergegevens!$F$8)*($H12/($J12-$I12+1))*(1+Invoergegevens!$F$26)^BJ$2 -> 0 | BK12: =(BK$2<=Invoergegevens!$F$9-Invoergegevens!$F$8)*(BK$2>=$I12-Invoergegevens!$F$8)*(BK$2<=$J12-Invoergegevens!$F$8)*($H12/($J12-$I12+1))*(1+Invoergegevens!$F$26)^BK$2 -> 0 | BL12: =(BL$2<=Invoergegevens!$F$9-Invoergegevens!$F$8)*(BL$2>=$I12-Invoergegevens!$F$8)*(BL$2<=$J12-Invoergegevens!$F$8)*($H12/($J12-$I12+1))*(1+Invoergegevens!$F$26)^BL$2 -> 0 | BM12: =(BM$2<=Invoergegevens!$F$9-Invoergegevens!$F$8)*(BM$2>=$I12-Invoergegevens!$F$8)*(BM$2<=$J12-Invoergegevens!$F$8)*($H12/($J12-$I12+1))*(1+Invoergegevens!$F$26)^BM$2 -> 0 | BN12: =(BN$2<=Invoergegevens!$F$9-Invoergegevens!$F$8)*(BN$2>=$I12-Invoergegevens!$F$8)*(BN$2<=$J12-Invoergegevens!$F$8)*($H12/($J12-$I12+1))*(1+Invoergegevens!$F$26)^BN$2 -> 0 | BO12: =(BO$2<=Invoergegevens!$F$9-Invoergegevens!$F$8)*(BO$2>=$I12-Invoergegevens!$F$8)*(BO$2<=$J12-Invoergegevens!$F$8)*($H12/($J12-$I12+1))*(1+Invoergegevens!$F$26)^BO$2 -> 0 | BP12: =(BP$2<=Invoergegevens!$F$9-Invoergegevens!$F$8)*(BP$2>=$I12-Invoergegevens!$F$8)*(BP$2<=$J12-Invoergegevens!$F$8)*($H12/($J12-$I12+1))*(1+Invoergegevens!$F$26)^BP$2 -> 0 | BQ12: =(BQ$2<=Invoergegevens!$F$9-Invoergegevens!$F$8)*(BQ$2>=$I12-Invoergegevens!$F$8)*(BQ$2<=$J12-Invoergegevens!$F$8)*($H12/($J12-$I12+1))*(1+Invoergegevens!$F$26)^BQ$2 -> 0 | BR12: =(BR$2<=Invoergegevens!$F$9-Invoergegevens!$F$8)*(BR$2>=$I12-Invoergegevens!$F$8)*(BR$2<=$J12-Invoergegevens!$F$8)*($H12/($J12-$I12+1))*(1+Invoergegevens!$F$26)^BR$2 -> 0 | BS12: =(BS$2<=Invoergegevens!$F$9-Invoergegevens!$F$8)*(BS$2>=$I12-Invoergegevens!$F$8)*(BS$2<=$J12-Invoergegevens!$F$8)*($H12/($J12-$I12+1))*(1+Invoergegevens!$F$26)^BS$2 -> 0 | BT12: =(BT$2<=Invoergegevens!$F$9-Invoergegevens!$F$8)*(BT$2>=$I12-Invoergegevens!$F$8)*(BT$2<=$J12-Invoergegevens!$F$8)*($H12/($J12-$I12+1))*(1+Invoergegevens!$F$26)^BT$2 -> 0 | BU12: =(BU$2<=Invoergegevens!$F$9-Invoergegevens!$F$8)*(BU$2>=$I12-Invoergegevens!$F$8)*(BU$2<=$J12-Invoergegevens!$F$8)*($H12/($J12-$I12+1))*(1+Invoergegevens!$F$26)^BU$2 -> 0 | BV12: =(BV$2<=Invoergegevens!$F$9-Invoergegevens!$F$8)*(BV$2>=$I12-Invoergegevens!$F$8)*(BV$2<=$J12-Invoergegevens!$F$8)*($H12/($J12-$I12+1))*(1+Invoergegevens!$F$26)^BV$2 -> 0 | BW12: =(BW$2<=Invoergegevens!$F$9-Invoergegevens!$F$8)*(BW$2>=$I12-Invoergegevens!$F$8)*(BW$2<=$J12-Invoergegevens!$F$8)*($H12/($J12-$I12+1))*(1+Invoergegevens!$F$26)^BW$2 -> 0 | BX12: =(BX$2<=Invoergegevens!$F$9-Invoergegevens!$F$8)*(BX$2>=$I12-Invoergegevens!$F$8)*(BX$2<=$J12-Invoergegevens!$F$8)*($H12/($J12-$I12+1))*(1+Invoergegevens!$F$26)^BX$2 -> 0 | BY12: =(BY$2<=Invoergegevens!$F$9-Invoergegevens!$F$8)*(BY$2>=$I12-Invoergegevens!$F$8)*(BY$2<=$J12-Invoergegevens!$F$8)*($H12/($J12-$I12+1))*(1+Invoergegevens!$F$26)^BY$2 -> 0 | BZ12: =(BZ$2<=Invoergegevens!$F$9-Invoergegevens!$F$8)*(BZ$2>=$I12-Invoergegevens!$F$8)*(BZ$2<=$J12-Invoergegevens!$F$8)*($H12/($J12-$I12+1))*(1+Invoergegevens!$F$26)^BZ$2 -> 0 | CA12: =(CA$2<=Invoergegevens!$F$9-Invoergegevens!$F$8)*(CA$2>=$I12-Invoergegevens!$F$8)*(CA$2<=$J12-Invoergegevens!$F$8)*($H12/($J12-$I12+1))*(1+Invoergegevens!$F$26)^CA$2 -> 0 | CB12: =(CB$2<=Invoergegevens!$F$9-Invoergegevens!$F$8)*(CB$2>=$I12-Invoergegevens!$F$8)*(CB$2<=$J12-Invoergegevens!$F$8)*($H12/($J12-$I12+1))*(1+Invoergegevens!$F$26)^CB$2 -> 0 | CC12: =(CC$2<=Invoergegevens!$F$9-Invoergegevens!$F$8)*(CC$2>=$I12-Invoergegevens!$F$8)*(CC$2<=$J12-Invoergegevens!$F$8)*($H12/($J12-$I12+1))*(1+Invoergegevens!$F$26)^CC$2 -> 0 | CD12: =(CD$2<=Invoergegevens!$F$9-Invoergegevens!$F$8)*(CD$2>=$I12-Invoergegevens!$F$8)*(CD$2<=$J12-Invoergegevens!$F$8)*($H12/($J12-$I12+1))*(1+Invoergegevens!$F$26)^CD$2 -> 0 | CE12: =(CE$2<=Invoergegevens!$F$9-Invoergegevens!$F$8)*(CE$2>=$I12-Invoergegevens!$F$8)*(CE$2<=$J12-Invoergegevens!$F$8)*($H12/($J12-$I12+1))*(1+Invoergegevens!$F$26)^CE$2 -> 0 | CF12: =(CF$2<=Invoergegevens!$F$9-Invoergegevens!$F$8)*(CF$2>=$I12-Invoergegevens!$F$8)*(CF$2<=$J12-Invoergegevens!$F$8)*($H12/($J12-$I12+1))*(1+Invoergegevens!$F$26)^CF$2 -> 0 | CG12: =(CG$2<=Invoergegevens!$F$9-Invoergegevens!$F$8)*(CG$2>=$I12-Invoergegevens!$F$8)*(CG$2<=$J12-Invoergegevens!$F$8)*($H12/($J12-$I12+1))*(1+Invoergegevens!$F$26)^CG$2 -> 0 | CH12: =(CH$2<=Invoergegevens!$F$9-Invoergegevens!$F$8)*(CH$2>=$I12-Invoergegevens!$F$8)*(CH$2<=$J12-Invoergegevens!$F$8)*($H12/($J12-$I12+1))*(1+Invoergegevens!$F$26)^CH$2 -> 0 | CI12: =(CI$2<=Invoergegevens!$F$9-Invoergegevens!$F$8)*(CI$2>=$I12-Invoergegevens!$F$8)*(CI$2<=$J12-Invoergegevens!$F$8)*($H12/($J12-$I12+1))*(1+Invoergegevens!$F$26)^CI$2 -> 0 | CJ12: =(CJ$2<=Invoergegevens!$F$9-Invoergegevens!$F$8)*(CJ$2>=$I12-Invoergegevens!$F$8)*(CJ$2<=$J12-Invoergegevens!$F$8)*($H12/($J12-$I12+1))*(1+Invoergegevens!$F$26)^CJ$2 -> 0 | CK12: =(CK$2<=Invoergegevens!$F$9-Invoergegevens!$F$8)*(CK$2>=$I12-Invoergegevens!$F$8)*(CK$2<=$J12-Invoergegevens!$F$8)*($H12/($J12-$I12+1))*(1+Invoergegevens!$F$26)^CK$2 -> 0 | CL12: =(CL$2<=Invoergegevens!$F$9-Invoergegevens!$F$8)*(CL$2>=$I12-Invoergegevens!$F$8)*(CL$2<=$J12-Invoergegevens!$F$8)*($H12/($J12-$I12+1))*(1+Invoergegevens!$F$26)^CL$2 -> 0 | CM12: =(CM$2<=Invoergegevens!$F$9-Invoergegevens!$F$8)*(CM$2>=$I12-Invoergegevens!$F$8)*(CM$2<=$J12-Invoergegevens!$F$8)*($H12/($J12-$I12+1))*(1+Invoergegevens!$F$26)^CM$2 -> 0 | CN12: =(CN$2<=Invoergegevens!$F$9-Invoergegevens!$F$8)*(CN$2>=$I12-Invoergegevens!$F$8)*(CN$2<=$J12-Invoergegevens!$F$8)*($H12/($J12-$I12+1))*(1+Invoergegevens!$F$26)^CN$2 -> 0 | CO12: =(CO$2<=Invoergegevens!$F$9-Invoergegevens!$F$8)*(CO$2>=$I12-Invoergegevens!$F$8)*(CO$2<=$J12-Invoergegevens!$F$8)*($H12/($J12-$I12+1))*(1+Invoergegevens!$F$26)^CO$2 -> 0 | CP12: =(CP$2<=Invoergegevens!$F$9-Invoergegevens!$F$8)*(CP$2>=$I12-Invoergegevens!$F$8)*(CP$2<=$J12-Invoergegevens!$F$8)*($H12/($J12-$I12+1))*(1+Invoergegevens!$F$26)^CP$2 -> 0 | CQ12: =(CQ$2<=Invoergegevens!$F$9-Invoergegevens!$F$8)*(CQ$2>=$I12-Invoergegevens!$F$8)*(CQ$2<=$J12-Invoergegevens!$F$8)*($H12/($J12-$I12+1))*(1+Invoergegevens!$F$26)^CQ$2 -> 0 | CR12: =(CR$2<=Invoergegevens!$F$9-Invoergegevens!$F$8)*(CR$2>=$I12-Invoergegevens!$F$8)*(CR$2<=$J12-Invoergegevens!$F$8)*($H12/($J12-$I12+1))*(1+Invoergegevens!$F$26)^CR$2 -> 0 | CS12: =(CS$2<=Invoergegevens!$F$9-Invoergegevens!$F$8)*(CS$2>=$I12-Invoergegevens!$F$8)*(CS$2<=$J12-Invoergegevens!$F$8)*($H12/($J12-$I12+1))*(1+Invoergegevens!$F$26)^CS$2 -> 0 | CT12: =(CT$2<=Invoergegevens!$F$9-Invoergegevens!$F$8)*(CT$2>=$I12-Invoergegevens!$F$8)*(CT$2<=$J12-Invoergegevens!$F$8)*($H12/($J12-$I12+1))*(1+Invoergegevens!$F$26)^CT$2 -> 0 | CU12: =(CU$2<=Invoergegevens!$F$9-Invoergegevens!$F$8)*(CU$2>=$I12-Invoergegevens!$F$8)*(CU$2<=$J12-Invoergegevens!$F$8)*($H12/($J12-$I12+1))*(1+Invoergegevens!$F$26)^CU$2 -> 0 | CV12: =(CV$2<=Invoergegevens!$F$9-Invoergegevens!$F$8)*(CV$2>=$I12-Invoergegevens!$F$8)*(CV$2<=$J12-Invoergegevens!$F$8)*($H12/($J12-$I12+1))*(1+Invoergegevens!$F$26)^CV$2 -> 0 | CW12: =(CW$2<=Invoergegevens!$F$9-Invoergegevens!$F$8)*(CW$2>=$I12-Invoergegevens!$F$8)*(CW$2<=$J12-Invoergegevens!$F$8)*($H12/($J12-$I12+1))*(1+Invoergegevens!$F$26)^CW$2 -> 0 | CX12: =(CX$2<=Invoergegevens!$F$9-Invoergegevens!$F$8)*(CX$2>=$I12-Invoergegevens!$F$8)*(CX$2<=$J12-Invoergegevens!$F$8)*($H12/($J12-$I12+1))*(1+Invoergegevens!$F$26)^CX$2 -> 0
B13: 01.8 | H13: 0 | K13: =IF($H13<>0,IF(OR($I13<Invoergegevens!$F$8,$J13>=Invoergegevens!$F$8+INDEX(Invoergegevens!$C$59:$J$74,MATCH(LEFT($B13,2),Invoergegevens!$C$59:$C$74,0),MATCH(Invoergegevens!$F$31,Invoergegevens!$C$59:$J$59,0))),"fout","goed"),"") ->  | AF13: =(AF$2<=Invoergegevens!$F$9-Invoergegevens!$F$8)*(AF$2>=$I13-Invoergegevens!$F$8)*(AF$2<=$J13-Invoergegevens!$F$8)*($H13/($J13-$I13+1))*(1+Invoergegevens!$F$26)^AF$2 -> 0 | AG13: =(AG$2<=Invoergegevens!$F$9-Invoergegevens!$F$8)*(AG$2>=$I13-Invoergegevens!$F$8)*(AG$2<=$J13-Invoergegevens!$F$8)*($H13/($J13-$I13+1))*(1+Invoergegevens!$F$26)^AG$2 -> 0 | AH13: =(AH$2<=Invoergegevens!$F$9-Invoergegevens!$F$8)*(AH$2>=$I13-Invoergegevens!$F$8)*(AH$2<=$J13-Invoergegevens!$F$8)*($H13/($J13-$I13+1))*(1+Invoergegevens!$F$26)^AH$2 -> 0 | AI13: =(AI$2<=Invoergegevens!$F$9-Invoergegevens!$F$8)*(AI$2>=$I13-Invoergegevens!$F$8)*(AI$2<=$J13-Invoergegevens!$F$8)*($H13/($J13-$I13+1))*(1+Invoergegevens!$F$26)^AI$2 -> 0 | AJ13: =(AJ$2<=Invoergegevens!$F$9-Invoergegevens!$F$8)*(AJ$2>=$I13-Invoergegevens!$F$8)*(AJ$2<=$J13-Invoergegevens!$F$8)*($H13/($J13-$I13+1))*(1+Invoergegevens!$F$26)^AJ$2 -> 0 | AK13: =(AK$2<=Invoergegevens!$F$9-Invoergegevens!$F$8)*(AK$2>=$I13-Invoergegevens!$F$8)*(AK$2<=$J13-Invoergegevens!$F$8)*($H13/($J13-$I13+1))*(1+Invoergegevens!$F$26)^AK$2 -> 0 | AL13: =(AL$2<=Invoergegevens!$F$9-Invoergegevens!$F$8)*(AL$2>=$I13-Invoergegevens!$F$8)*(AL$2<=$J13-Invoergegevens!$F$8)*($H13/($J13-$I13+1))*(1+Invoergegevens!$F$26)^AL$2 -> 0 | AM13: =(AM$2<=Invoergegevens!$F$9-Invoergegevens!$F$8)*(AM$2>=$I13-Invoergegevens!$F$8)*(AM$2<=$J13-Invoergegevens!$F$8)*($H13/($J13-$I13+1))*(1+Invoergegevens!$F$26)^AM$2 -> 0 | AN13: =(AN$2<=Invoergegevens!$F$9-Invoergegevens!$F$8)*(AN$2>=$I13-Invoergegevens!$F$8)*(AN$2<=$J13-Invoergegevens!$F$8)*($H13/($J13-$I13+1))*(1+Invoergegevens!$F$26)^AN$2 -> 0 | AO13: =(AO$2<=Invoergegevens!$F$9-Invoergegevens!$F$8)*(AO$2>=$I13-Invoergegevens!$F$8)*(AO$2<=$J13-Invoergegevens!$F$8)*($H13/($J13-$I13+1))*(1+Invoergegevens!$F$26)^AO$2 -> 0 | AP13: =(AP$2<=Invoergegevens!$F$9-Invoergegevens!$F$8)*(AP$2>=$I13-Invoergegevens!$F$8)*(AP$2<=$J13-Invoergegevens!$F$8)*($H13/($J13-$I13+1))*(1+Invoergegevens!$F$26)^AP$2 -> 0 | AQ13: =(AQ$2<=Invoergegevens!$F$9-Invoergegevens!$F$8)*(AQ$2>=$I13-Invoergegevens!$F$8)*(AQ$2<=$J13-Invoergegevens!$F$8)*($H13/($J13-$I13+1))*(1+Invoergegevens!$F$26)^AQ$2 -> 0 | AR13: =(AR$2<=Invoergegevens!$F$9-Invoergegevens!$F$8)*(AR$2>=$I13-Invoergegevens!$F$8)*(AR$2<=$J13-Invoergegevens!$F$8)*($H13/($J13-$I13+1))*(1+Invoergegevens!$F$26)^AR$2 -> 0 | AS13: =(AS$2<=Invoergegevens!$F$9-Invoergegevens!$F$8)*(AS$2>=$I13-Invoergegevens!$F$8)*(AS$2<=$J13-Invoergegevens!$F$8)*($H13/($J13-$I13+1))*(1+Invoergegevens!$F$26)^AS$2 -> 0 | AT13: =(AT$2<=Invoergegevens!$F$9-Invoergegevens!$F$8)*(AT$2>=$I13-Invoergegevens!$F$8)*(AT$2<=$J13-Invoergegevens!$F$8)*($H13/($J13-$I13+1))*(1+Invoergegevens!$F$26)^AT$2 -> 0 | AU13: =(AU$2<=Invoergegevens!$F$9-Invoergegevens!$F$8)*(AU$2>=$I13-Invoergegevens!$F$8)*(AU$2<=$J13-Invoergegevens!$F$8)*($H13/($J13-$I13+1))*(1+Invoergegevens!$F$26)^AU$2 -> 0 | AV13: =(AV$2<=Invoergegevens!$F$9-Invoergegevens!$F$8)*(AV$2>=$I13-Invoergegevens!$F$8)*(AV$2<=$J13-Invoergegevens!$F$8)*($H13/($J13-$I13+1))*(1+Invoergegevens!$F$26)^AV$2 -> 0 | AW13: =(AW$2<=Invoergegevens!$F$9-Invoergegevens!$F$8)*(AW$2>=$I13-Invoergegevens!$F$8)*(AW$2<=$J13-Invoergegevens!$F$8)*($H13/($J13-$I13+1))*(1+Invoergegevens!$F$26)^AW$2 -> 0 | AX13: =(AX$2<=Invoergegevens!$F$9-Invoergegevens!$F$8)*(AX$2>=$I13-Invoergegevens!$F$8)*(AX$2<=$J13-Invoergegevens!$F$8)*($H13/($J13-$I13+1))*(1+Invoergegevens!$F$26)^AX$2 -> 0 | AY13: =(AY$2<=Invoergegevens!$F$9-Invoergegevens!$F$8)*(AY$2>=$I13-Invoergegevens!$F$8)*(AY$2<=$J13-Invoergegevens!$F$8)*($H13/($J13-$I13+1))*(1+Invoergegevens!$F$26)^AY$2 -> 0 | AZ13: =(AZ$2<=Invoergegevens!$F$9-Invoergegevens!$F$8)*(AZ$2>=$I13-Invoergegevens!$F$8)*(AZ$2<=$J13-Invoergegevens!$F$8)*($H13/($J13-$I13+1))*(1+Invoergegevens!$F$26)^AZ$2 -> 0 | BA13: =(BA$2<=Invoergegevens!$F$9-Invoergegevens!$F$8)*(BA$2>=$I13-Invoergegevens!$F$8)*(BA$2<=$J13-Invoergegevens!$F$8)*($H13/($J13-$I13+1))*(1+Invoergegevens!$F$26)^BA$2 -> 0 | BB13: =(BB$2<=Invoergegevens!$F$9-Invoergegevens!$F$8)*(BB$2>=$I13-Invoergegevens!$F$8)*(BB$2<=$J13-Invoergegevens!$F$8)*($H13/($J13-$I13+1))*(1+Invoergegevens!$F$26)^BB$2 -> 0 | BC13: =(BC$2<=Invoergegevens!$F$9-Invoergegevens!$F$8)*(BC$2>=$I13-Invoergegevens!$F$8)*(BC$2<=$J13-Invoergegevens!$F$8)*($H13/($J13-$I13+1))*(1+Invoergegevens!$F$26)^BC$2 -> 0 | BD13: =(BD$2<=Invoergegevens!$F$9-Invoergegevens!$F$8)*(BD$2>=$I13-Invoergegevens!$F$8)*(BD$2<=$J13-Invoergegevens!$F$8)*($H13/($J13-$I13+1))*(1+Invoergegevens!$F$26)^BD$2 -> 0 | BE13: =(BE$2<=Invoergegevens!$F$9-Invoergegevens!$F$8)*(BE$2>=$I13-Invoergegevens!$F$8)*(BE$2<=$J13-Invoergegevens!$F$8)*($H13/($J13-$I13+1))*(1+Invoergegevens!$F$26)^BE$2 -> 0 | BF13: =(BF$2<=Invoergegevens!$F$9-Invoergegevens!$F$8)*(BF$2>=$I13-Invoergegevens!$F$8)*(BF$2<=$J13-Invoergegevens!$F$8)*($H13/($J13-$I13+1))*(1+Invoergegevens!$F$26)^BF$2 -> 0 | BG13: =(BG$2<=Invoergegevens!$F$9-Invoergegevens!$F$8)*(BG$2>=$I13-Invoergegevens!$F$8)*(BG$2<=$J13-Invoergegevens!$F$8)*($H13/($J13-$I13+1))*(1+Invoergegevens!$F$26)^BG$2 -> 0 | BH13: =(BH$2<=Invoergegevens!$F$9-Invoergegevens!$F$8)*(BH$2>=$I13-Invoergegevens!$F$8)*(BH$2<=$J13-Invoergegevens!$F$8)*($H13/($J13-$I13+1))*(1+Invoergegevens!$F$26)^BH$2 -> 0 | BI13: =(BI$2<=Invoergegevens!$F$9-Invoergegevens!$F$8)*(BI$2>=$I13-Invoergegevens!$F$8)*(BI$2<=$J13-Invoergegevens!$F$8)*($H13/($J13-$I13+1))*(1+Invoergegevens!$F$26)^BI$2 -> 0 | BJ13: =(BJ$2<=Invoergegevens!$F$9-Invoergegevens!$F$8)*(BJ$2>=$I13-Invoergegevens!$F$8)*(BJ$2<=$J13-Invoergegevens!$F$8)*($H13/($J13-$I13+1))*(1+Invoergegevens!$F$26)^BJ$2 -> 0 | BK13: =(BK$2<=Invoergegevens!$F$9-Invoergegevens!$F$8)*(BK$2>=$I13-Invoergegevens!$F$8)*(BK$2<=$J13-Invoergegevens!$F$8)*($H13/($J13-$I13+1))*(1+Invoergegevens!$F$26)^BK$2 -> 0 | BL13: =(BL$2<=Invoergegevens!$F$9-Invoergegevens!$F$8)*(BL$2>=$I13-Invoergegevens!$F$8)*(BL$2<=$J13-Invoergegevens!$F$8)*($H13/($J13-$I13+1))*(1+Invoergegevens!$F$26)^BL$2 -> 0 | BM13: =(BM$2<=Invoergegevens!$F$9-Invoergegevens!$F$8)*(BM$2>=$I13-Invoergegevens!$F$8)*(BM$2<=$J13-Invoergegevens!$F$8)*($H13/($J13-$I13+1))*(1+Invoergegevens!$F$26)^BM$2 -> 0 | BN13: =(BN$2<=Invoergegevens!$F$9-Invoergegevens!$F$8)*(BN$2>=$I13-Invoergegevens!$F$8)*(BN$2<=$J13-Invoergegevens!$F$8)*($H13/($J13-$I13+1))*(1+Invoergegevens!$F$26)^BN$2 -> 0 | BO13: =(BO$2<=Invoergegevens!$F$9-Invoergegevens!$F$8)*(BO$2>=$I13-Invoergegevens!$F$8)*(BO$2<=$J13-Invoergegevens!$F$8)*($H13/($J13-$I13+1))*(1+Invoergegevens!$F$26)^BO$2 -> 0 | BP13: =(BP$2<=Invoergegevens!$F$9-Invoergegevens!$F$8)*(BP$2>=$I13-Invoergegevens!$F$8)*(BP$2<=$J13-Invoergegevens!$F$8)*($H13/($J13-$I13+1))*(1+Invoergegevens!$F$26)^BP$2 -> 0 | BQ13: =(BQ$2<=Invoergegevens!$F$9-Invoergegevens!$F$8)*(BQ$2>=$I13-Invoergegevens!$F$8)*(BQ$2<=$J13-Invoergegevens!$F$8)*($H13/($J13-$I13+1))*(1+Invoergegevens!$F$26)^BQ$2 -> 0 | BR13: =(BR$2<=Invoergegevens!$F$9-Invoergegevens!$F$8)*(BR$2>=$I13-Invoergegevens!$F$8)*(BR$2<=$J13-Invoergegevens!$F$8)*($H13/($J13-$I13+1))*(1+Invoergegevens!$F$26)^BR$2 -> 0 | BS13: =(BS$2<=Invoergegevens!$F$9-Invoergegevens!$F$8)*(BS$2>=$I13-Invoergegevens!$F$8)*(BS$2<=$J13-Invoergegevens!$F$8)*($H13/($J13-$I13+1))*(1+Invoergegevens!$F$26)^BS$2 -> 0 | BT13: =(BT$2<=Invoergegevens!$F$9-Invoergegevens!$F$8)*(BT$2>=$I13-Invoergegevens!$F$8)*(BT$2<=$J13-Invoergegevens!$F$8)*($H13/($J13-$I13+1))*(1+Invoergegevens!$F$26)^BT$2 -> 0 | BU13: =(BU$2<=Invoergegevens!$F$9-Invoergegevens!$F$8)*(BU$2>=$I13-Invoergegevens!$F$8)*(BU$2<=$J13-Invoergegevens!$F$8)*($H13/($J13-$I13+1))*(1+Invoergegevens!$F$26)^BU$2 -> 0 | BV13: =(BV$2<=Invoergegevens!$F$9-Invoergegevens!$F$8)*(BV$2>=$I13-Invoergegevens!$F$8)*(BV$2<=$J13-Invoergegevens!$F$8)*($H13/($J13-$I13+1))*(1+Invoergegevens!$F$26)^BV$2 -> 0 | BW13: =(BW$2<=Invoergegevens!$F$9-Invoergegevens!$F$8)*(BW$2>=$I13-Invoergegevens!$F$8)*(BW$2<=$J13-Invoergegevens!$F$8)*($H13/($J13-$I13+1))*(1+Invoergegevens!$F$26)^BW$2 -> 0 | BX13: =(BX$2<=Invoergegevens!$F$9-Invoergegevens!$F$8)*(BX$2>=$I13-Invoergegevens!$F$8)*(BX$2<=$J13-Invoergegevens!$F$8)*($H13/($J13-$I13+1))*(1+Invoergegevens!$F$26)^BX$2 -> 0 | BY13: =(BY$2<=Invoergegevens!$F$9-Invoergegevens!$F$8)*(BY$2>=$I13-Invoergegevens!$F$8)*(BY$2<=$J13-Invoergegevens!$F$8)*($H13/($J13-$I13+1))*(1+Invoergegevens!$F$26)^BY$2 -> 0 | BZ13: =(BZ$2<=Invoergegevens!$F$9-Invoergegevens!$F$8)*(BZ$2>=$I13-Invoergegevens!$F$8)*(BZ$2<=$J13-Invoergegevens!$F$8)*($H13/($J13-$I13+1))*(1+Invoergegevens!$F$26)^BZ$2 -> 0 | CA13: =(CA$2<=Invoergegevens!$F$9-Invoergegevens!$F$8)*(CA$2>=$I13-Invoergegevens!$F$8)*(CA$2<=$J13-Invoergegevens!$F$8)*($H13/($J13-$I13+1))*(1+Invoergegevens!$F$26)^CA$2 -> 0 | CB13: =(CB$2<=Invoergegevens!$F$9-Invoergegevens!$F$8)*(CB$2>=$I13-Invoergegevens!$F$8)*(CB$2<=$J13-Invoergegevens!$F$8)*($H13/($J13-$I13+1))*(1+Invoergegevens!$F$26)^CB$2 -> 0 | CC13: =(CC$2<=Invoergegevens!$F$9-Invoergegevens!$F$8)*(CC$2>=$I13-Invoergegevens!$F$8)*(CC$2<=$J13-Invoergegevens!$F$8)*($H13/($J13-$I13+1))*(1+Invoergegevens!$F$26)^CC$2 -> 0 | CD13: =(CD$2<=Invoergegevens!$F$9-Invoergegevens!$F$8)*(CD$2>=$I13-Invoergegevens!$F$8)*(CD$2<=$J13-Invoergegevens!$F$8)*($H13/($J13-$I13+1))*(1+Invoergegevens!$F$26)^CD$2 -> 0 | CE13: =(CE$2<=Invoergegevens!$F$9-Invoergegevens!$F$8)*(CE$2>=$I13-Invoergegevens!$F$8)*(CE$2<=$J13-Invoergegevens!$F$8)*($H13/($J13-$I13+1))*(1+Invoergegevens!$F$26)^CE$2 -> 0 | CF13: =(CF$2<=Invoergegevens!$F$9-Invoergegevens!$F$8)*(CF$2>=$I13-Invoergegevens!$F$8)*(CF$2<=$J13-Invoergegevens!$F$8)*($H13/($J13-$I13+1))*(1+Invoergegevens!$F$26)^CF$2 -> 0 | CG13: =(CG$2<=Invoergegevens!$F$9-Invoergegevens!$F$8)*(CG$2>=$I13-Invoergegevens!$F$8)*(CG$2<=$J13-Invoergegevens!$F$8)*($H13/($J13-$I13+1))*(1+Invoergegevens!$F$26)^CG$2 -> 0 | CH13: =(CH$2<=Invoergegevens!$F$9-Invoergegevens!$F$8)*(CH$2>=$I13-Invoergegevens!$F$8)*(CH$2<=$J13-Invoergegevens!$F$8)*($H13/($J13-$I13+1))*(1+Invoergegevens!$F$26)^CH$2 -> 0 | CI13: =(CI$2<=Invoergegevens!$F$9-Invoergegevens!$F$8)*(CI$2>=$I13-Invoergegevens!$F$8)*(CI$2<=$J13-Invoergegevens!$F$8)*($H13/($J13-$I13+1))*(1+Invoergegevens!$F$26)^CI$2 -> 0 | CJ13: =(CJ$2<=Invoergegevens!$F$9-Invoergegevens!$F$8)*(CJ$2>=$I13-Invoergegevens!$F$8)*(CJ$2<=$J13-Invoergegevens!$F$8)*($H13/($J13-$I13+1))*(1+Invoergegevens!$F$26)^CJ$2 -> 0 | CK13: =(CK$2<=Invoergegevens!$F$9-Invoergegevens!$F$8)*(CK$2>=$I13-Invoergegevens!$F$8)*(CK$2<=$J13-Invoergegevens!$F$8)*($H13/($J13-$I13+1))*(1+Invoergegevens!$F$26)^CK$2 -> 0 | CL13: =(CL$2<=Invoergegevens!$F$9-Invoergegevens!$F$8)*(CL$2>=$I13-Invoergegevens!$F$8)*(CL$2<=$J13-Invoergegevens!$F$8)*($H13/($J13-$I13+1))*(1+Invoergegevens!$F$26)^CL$2 -> 0 | CM13: =(CM$2<=Invoergegevens!$F$9-Invoergegevens!$F$8)*(CM$2>=$I13-Invoergegevens!$F$8)*(CM$2<=$J13-Invoergegevens!$F$8)*($H13/($J13-$I13+1))*(1+Invoergegevens!$F$26)^CM$2 -> 0 | CN13: =(CN$2<=Invoergegevens!$F$9-Invoergegevens!$F$8)*(CN$2>=$I13-Invoergegevens!$F$8)*(CN$2<=$J13-Invoergegevens!$F$8)*($H13/($J13-$I13+1))*(1+Invoergegevens!$F$26)^CN$2 -> 0 | CO13: =(CO$2<=Invoergegevens!$F$9-Invoergegevens!$F$8)*(CO$2>=$I13-Invoergegevens!$F$8)*(CO$2<=$J13-Invoergegevens!$F$8)*($H13/($J13-$I13+1))*(1+Invoergegevens!$F$26)^CO$2 -> 0 | CP13: =(CP$2<=Invoergegevens!$F$9-Invoergegevens!$F$8)*(CP$2>=$I13-Invoergegevens!$F$8)*(CP$2<=$J13-Invoergegevens!$F$8)*($H13/($J13-$I13+1))*(1+Invoergegevens!$F$26)^CP$2 -> 0 | CQ13: =(CQ$2<=Invoergegevens!$F$9-Invoergegevens!$F$8)*(CQ$2>=$I13-Invoergegevens!$F$8)*(CQ$2<=$J13-Invoergegevens!$F$8)*($H13/($J13-$I13+1))*(1+Invoergegevens!$F$26)^CQ$2 -> 0 | CR13: =(CR$2<=Invoergegevens!$F$9-Invoergegevens!$F$8)*(CR$2>=$I13-Invoergegevens!$F$8)*(CR$2<=$J13-Invoergegevens!$F$8)*($H13/($J13-$I13+1))*(1+Invoergegevens!$F$26)^CR$2 -> 0 | CS13: =(CS$2<=Invoergegevens!$F$9-Invoergegevens!$F$8)*(CS$2>=$I13-Invoergegevens!$F$8)*(CS$2<=$J13-Invoergegevens!$F$8)*($H13/($J13-$I13+1))*(1+Invoergegevens!$F$26)^CS$2 -> 0 | CT13: =(CT$2<=Invoergegevens!$F$9-Invoergegevens!$F$8)*(CT$2>=$I13-Invoergegevens!$F$8)*(CT$2<=$J13-Invoergegevens!$F$8)*($H13/($J13-$I13+1))*(1+Invoergegevens!$F$26)^CT$2 -> 0 | CU13: =(CU$2<=Invoergegevens!$F$9-Invoergegevens!$F$8)*(CU$2>=$I13-Invoergegevens!$F$8)*(CU$2<=$J13-Invoergegevens!$F$8)*($H13/($J13-$I13+1))*(1+Invoergegevens!$F$26)^CU$2 -> 0 | CV13: =(CV$2<=Invoergegevens!$F$9-Invoergegevens!$F$8)*(CV$2>=$I13-Invoergegevens!$F$8)*(CV$2<=$J13-Invoergegevens!$F$8)*($H13/($J13-$I13+1))*(1+Invoergegevens!$F$26)^CV$2 -> 0 | CW13: =(CW$2<=Invoergegevens!$F$9-Invoergegevens!$F$8)*(CW$2>=$I13-Invoergegevens!$F$8)*(CW$2<=$J13-Invoergegevens!$F$8)*($H13/($J13-$I13+1))*(1+Invoergegevens!$F$26)^CW$2 -> 0 | CX13: =(CX$2<=Invoergegevens!$F$9-Invoergegevens!$F$8)*(CX$2>=$I13-Invoergegevens!$F$8)*(CX$2<=$J13-Invoergegevens!$F$8)*($H13/($J13-$I13+1))*(1+Invoergegevens!$F$26)^CX$2 -> 0
B14: 01.9 | H14: 0 | K14: =IF($H14<>0,IF(OR($I14<Invoergegevens!$F$8,$J14>=Invoergegevens!$F$8+INDEX(Invoergegevens!$C$59:$J$74,MATCH(LEFT($B14,2),Invoergegevens!$C$59:$C$74,0),MATCH(Invoergegevens!$F$31,Invoergegevens!$C$59:$J$59,0))),"fout","goed"),"") ->  | AF14: =(AF$2<=Invoergegevens!$F$9-Invoergegevens!$F$8)*(AF$2>=$I14-Invoergegevens!$F$8)*(AF$2<=$J14-Invoergegevens!$F$8)*($H14/($J14-$I14+1))*(1+Invoergegevens!$F$26)^AF$2 -> 0 | AG14: =(AG$2<=Invoergegevens!$F$9-Invoergegevens!$F$8)*(AG$2>=$I14-Invoergegevens!$F$8)*(AG$2<=$J14-Invoergegevens!$F$8)*($H14/($J14-$I14+1))*(1+Invoergegevens!$F$26)^AG$2 -> 0 | AH14: =(AH$2<=Invoergegevens!$F$9-Invoergegevens!$F$8)*(AH$2>=$I14-Invoergegevens!$F$8)*(AH$2<=$J14-Invoergegevens!$F$8)*($H14/($J14-$I14+1))*(1+Invoergegevens!$F$26)^AH$2 -> 0 | AI14: =(AI$2<=Invoergegevens!$F$9-Invoergegevens!$F$8)*(AI$2>=$I14-Invoergegevens!$F$8)*(AI$2<=$J14-Invoergegevens!$F$8)*($H14/($J14-$I14+1))*(1+Invoergegevens!$F$26)^AI$2 -> 0 | AJ14: =(AJ$2<=Invoergegevens!$F$9-Invoergegevens!$F$8)*(AJ$2>=$I14-Invoergegevens!$F$8)*(AJ$2<=$J14-Invoergegevens!$F$8)*($H14/($J14-$I14+1))*(1+Invoergegevens!$F$26)^AJ$2 -> 0 | AK14: =(AK$2<=Invoergegevens!$F$9-Invoergegevens!$F$8)*(AK$2>=$I14-Invoergegevens!$F$8)*(AK$2<=$J14-Invoergegevens!$F$8)*($H14/($J14-$I14+1))*(1+Invoergegevens!$F$26)^AK$2 -> 0 | AL14: =(AL$2<=Invoergegevens!$F$9-Invoergegevens!$F$8)*(AL$2>=$I14-Invoergegevens!$F$8)*(AL$2<=$J14-Invoergegevens!$F$8)*($H14/($J14-$I14+1))*(1+Invoergegevens!$F$26)^AL$2 -> 0 | AM14: =(AM$2<=Invoergegevens!$F$9-Invoergegevens!$F$8)*(AM$2>=$I14-Invoergegevens!$F$8)*(AM$2<=$J14-Invoergegevens!$F$8)*($H14/($J14-$I14+1))*(1+Invoergegevens!$F$26)^AM$2 -> 0 | AN14: =(AN$2<=Invoergegevens!$F$9-Invoergegevens!$F$8)*(AN$2>=$I14-Invoergegevens!$F$8)*(AN$2<=$J14-Invoergegevens!$F$8)*($H14/($J14-$I14+1))*(1+Invoergegevens!$F$26)^AN$2 -> 0 | AO14: =(AO$2<=Invoergegevens!$F$9-Invoergegevens!$F$8)*(AO$2>=$I14-Invoergegevens!$F$8)*(AO$2<=$J14-Invoergegevens!$F$8)*($H14/($J14-$I14+1))*(1+Invoergegevens!$F$26)^AO$2 -> 0 | AP14: =(AP$2<=Invoergegevens!$F$9-Invoergegevens!$F$8)*(AP$2>=$I14-Invoergegevens!$F$8)*(AP$2<=$J14-Invoergegevens!$F$8)*($H14/($J14-$I14+1))*(1+Invoergegevens!$F$26)^AP$2 -> 0 | AQ14: =(AQ$2<=Invoergegevens!$F$9-Invoergegevens!$F$8)*(AQ$2>=$I14-Invoergegevens!$F$8)*(AQ$2<=$J14-Invoergegevens!$F$8)*($H14/($J14-$I14+1))*(1+Invoergegevens!$F$26)^AQ$2 -> 0 | AR14: =(AR$2<=Invoergegevens!$F$9-Invoergegevens!$F$8)*(AR$2>=$I14-Invoergegevens!$F$8)*(AR$2<=$J14-Invoergegevens!$F$8)*($H14/($J14-$I14+1))*(1+Invoergegevens!$F$26)^AR$2 -> 0 | AS14: =(AS$2<=Invoergegevens!$F$9-Invoergegevens!$F$8)*(AS$2>=$I14-Invoergegevens!$F$8)*(AS$2<=$J14-Invoergegevens!$F$8)*($H14/($J14-$I14+1))*(1+Invoergegevens!$F$26)^AS$2 -> 0 | AT14: =(AT$2<=Invoergegevens!$F$9-Invoergegevens!$F$8)*(AT$2>=$I14-Invoergegevens!$F$8)*(AT$2<=$J14-Invoergegevens!$F$8)*($H14/($J14-$I14+1))*(1+Invoergegevens!$F$26)^AT$2 -> 0 | AU14: =(AU$2<=Invoergegevens!$F$9-Invoergegevens!$F$8)*(AU$2>=$I14-Invoergegevens!$F$8)*(AU$2<=$J14-Invoergegevens!$F$8)*($H14/($J14-$I14+1))*(1+Invoergegevens!$F$26)^AU$2 -> 0 | AV14: =(AV$2<=Invoergegevens!$F$9-Invoergegevens!$F$8)*(AV$2>=$I14-Invoergegevens!$F$8)*(AV$2<=$J14-Invoergegevens!$F$8)*($H14/($J14-$I14+1))*(1+Invoergegevens!$F$26)^AV$2 -> 0 | AW14: =(AW$2<=Invoergegevens!$F$9-Invoergegevens!$F$8)*(AW$2>=$I14-Invoergegevens!$F$8)*(AW$2<=$J14-Invoergegevens!$F$8)*($H14/($J14-$I14+1))*(1+Invoergegevens!$F$26)^AW$2 -> 0 | AX14: =(AX$2<=Invoergegevens!$F$9-Invoergegevens!$F$8)*(AX$2>=$I14-Invoergegevens!$F$8)*(AX$2<=$J14-Invoergegevens!$F$8)*($H14/($J14-$I14+1))*(1+Invoergegevens!$F$26)^AX$2 -> 0 | AY14: =(AY$2<=Invoergegevens!$F$9-Invoergegevens!$F$8)*(AY$2>=$I14-Invoergegevens!$F$8)*(AY$2<=$J14-Invoergegevens!$F$8)*($H14/($J14-$I14+1))*(1+Invoergegevens!$F$26)^AY$2 -> 0 | AZ14: =(AZ$2<=Invoergegevens!$F$9-Invoergegevens!$F$8)*(AZ$2>=$I14-Invoergegevens!$F$8)*(AZ$2<=$J14-Invoergegevens!$F$8)*($H14/($J14-$I14+1))*(1+Invoergegevens!$F$26)^AZ$2 -> 0 | BA14: =(BA$2<=Invoergegevens!$F$9-Invoergegevens!$F$8)*(BA$2>=$I14-Invoergegevens!$F$8)*(BA$2<=$J14-Invoergegevens!$F$8)*($H14/($J14-$I14+1))*(1+Invoergegevens!$F$26)^BA$2 -> 0 | BB14: =(BB$2<=Invoergegevens!$F$9-Invoergegevens!$F$8)*(BB$2>=$I14-Invoergegevens!$F$8)*(BB$2<=$J14-Invoergegevens!$F$8)*($H14/($J14-$I14+1))*(1+Invoergegevens!$F$26)^BB$2 -> 0 | BC14: =(BC$2<=Invoergegevens!$F$9-Invoergegevens!$F$8)*(BC$2>=$I14-Invoergegevens!$F$8)*(BC$2<=$J14-Invoergegevens!$F$8)*($H14/($J14-$I14+1))*(1+Invoergegevens!$F$26)^BC$2 -> 0 | BD14: =(BD$2<=Invoergegevens!$F$9-Invoergegevens!$F$8)*(BD$2>=$I14-Invoergegevens!$F$8)*(BD$2<=$J14-Invoergegevens!$F$8)*($H14/($J14-$I14+1))*(1+Invoergegevens!$F$26)^BD$2 -> 0 | BE14: =(BE$2<=Invoergegevens!$F$9-Invoergegevens!$F$8)*(BE$2>=$I14-Invoergegevens!$F$8)*(BE$2<=$J14-Invoergegevens!$F$8)*($H14/($J14-$I14+1))*(1+Invoergegevens!$F$26)^BE$2 -> 0 | BF14: =(BF$2<=Invoergegevens!$F$9-Invoergegevens!$F$8)*(BF$2>=$I14-Invoergegevens!$F$8)*(BF$2<=$J14-Invoergegevens!$F$8)*($H14/($J14-$I14+1))*(1+Invoergegevens!$F$26)^BF$2 -> 0 | BG14: =(BG$2<=Invoergegevens!$F$9-Invoergegevens!$F$8)*(BG$2>=$I14-Invoergegevens!$F$8)*(BG$2<=$J14-Invoergegevens!$F$8)*($H14/($J14-$I14+1))*(1+Invoergegevens!$F$26)^BG$2 -> 0 | BH14: =(BH$2<=Invoergegevens!$F$9-Invoergegevens!$F$8)*(BH$2>=$I14-Invoergegevens!$F$8)*(BH$2<=$J14-Invoergegevens!$F$8)*($H14/($J14-$I14+1))*(1+Invoergegevens!$F$26)^BH$2 -> 0 | BI14: =(BI$2<=Invoergegevens!$F$9-Invoergegevens!$F$8)*(BI$2>=$I14-Invoergegevens!$F$8)*(BI$2<=$J14-Invoergegevens!$F$8)*($H14/($J14-$I14+1))*(1+Invoergegevens!$F$26)^BI$2 -> 0 | BJ14: =(BJ$2<=Invoergegevens!$F$9-Invoergegevens!$F$8)*(BJ$2>=$I14-Invoergegevens!$F$8)*(BJ$2<=$J14-Invoergegevens!$F$8)*($H14/($J14-$I14+1))*(1+Invoergegevens!$F$26)^BJ$2 -> 0 | BK14: =(BK$2<=Invoergegevens!$F$9-Invoergegevens!$F$8)*(BK$2>=$I14-Invoergegevens!$F$8)*(BK$2<=$J14-Invoergegevens!$F$8)*($H14/($J14-$I14+1))*(1+Invoergegevens!$F$26)^BK$2 -> 0 | BL14: =(BL$2<=Invoergegevens!$F$9-Invoergegevens!$F$8)*(BL$2>=$I14-Invoergegevens!$F$8)*(BL$2<=$J14-Invoergegevens!$F$8)*($H14/($J14-$I14+1))*(1+Invoergegevens!$F$26)^BL$2 -> 0 | BM14: =(BM$2<=Invoergegevens!$F$9-Invoergegevens!$F$8)*(BM$2>=$I14-Invoergegevens!$F$8)*(BM$2<=$J14-Invoergegevens!$F$8)*($H14/($J14-$I14+1))*(1+Invoergegevens!$F$26)^BM$2 -> 0 | BN14: =(BN$2<=Invoergegevens!$F$9-Invoergegevens!$F$8)*(BN$2>=$I14-Invoergegevens!$F$8)*(BN$2<=$J14-Invoergegevens!$F$8)*($H14/($J14-$I14+1))*(1+Invoergegevens!$F$26)^BN$2 -> 0 | BO14: =(BO$2<=Invoergegevens!$F$9-Invoergegevens!$F$8)*(BO$2>=$I14-Invoergegevens!$F$8)*(BO$2<=$J14-Invoergegevens!$F$8)*($H14/($J14-$I14+1))*(1+Invoergegevens!$F$26)^BO$2 -> 0 | BP14: =(BP$2<=Invoergegevens!$F$9-Invoergegevens!$F$8)*(BP$2>=$I14-Invoergegevens!$F$8)*(BP$2<=$J14-Invoergegevens!$F$8)*($H14/($J14-$I14+1))*(1+Invoergegevens!$F$26)^BP$2 -> 0 | BQ14: =(BQ$2<=Invoergegevens!$F$9-Invoergegevens!$F$8)*(BQ$2>=$I14-Invoergegevens!$F$8)*(BQ$2<=$J14-Invoergegevens!$F$8)*($H14/($J14-$I14+1))*(1+Invoergegevens!$F$26)^BQ$2 -> 0 | BR14: =(BR$2<=Invoergegevens!$F$9-Invoergegevens!$F$8)*(BR$2>=$I14-Invoergegevens!$F$8)*(BR$2<=$J14-Invoergegevens!$F$8)*($H14/($J14-$I14+1))*(1+Invoergegevens!$F$26)^BR$2 -> 0 | BS14: =(BS$2<=Invoergegevens!$F$9-Invoergegevens!$F$8)*(BS$2>=$I14-Invoergegevens!$F$8)*(BS$2<=$J14-Invoergegevens!$F$8)*($H14/($J14-$I14+1))*(1+Invoergegevens!$F$26)^BS$2 -> 0 | BT14: =(BT$2<=Invoergegevens!$F$9-Invoergegevens!$F$8)*(BT$2>=$I14-Invoergegevens!$F$8)*(BT$2<=$J14-Invoergegevens!$F$8)*($H14/($J14-$I14+1))*(1+Invoergegevens!$F$26)^BT$2 -> 0 | BU14: =(BU$2<=Invoergegevens!$F$9-Invoergegevens!$F$8)*(BU$2>=$I14-Invoergegevens!$F$8)*(BU$2<=$J14-Invoergegevens!$F$8)*($H14/($J14-$I14+1))*(1+Invoergegevens!$F$26)^BU$2 -> 0 | BV14: =(BV$2<=Invoergegevens!$F$9-Invoergegevens!$F$8)*(BV$2>=$I14-Invoergegevens!$F$8)*(BV$2<=$J14-Invoergegevens!$F$8)*($H14/($J14-$I14+1))*(1+Invoergegevens!$F$26)^BV$2 -> 0 | BW14: =(BW$2<=Invoergegevens!$F$9-Invoergegevens!$F$8)*(BW$2>=$I14-Invoergegevens!$F$8)*(BW$2<=$J14-Invoergegevens!$F$8)*($H14/($J14-$I14+1))*(1+Invoergegevens!$F$26)^BW$2 -> 0 | BX14: =(BX$2<=Invoergegevens!$F$9-Invoergegevens!$F$8)*(BX$2>=$I14-Invoergegevens!$F$8)*(BX$2<=$J14-Invoergegevens!$F$8)*($H14/($J14-$I14+1))*(1+Invoergegevens!$F$26)^BX$2 -> 0 | BY14: =(BY$2<=Invoergegevens!$F$9-Invoergegevens!$F$8)*(BY$2>=$I14-Invoergegevens!$F$8)*(BY$2<=$J14-Invoergegevens!$F$8)*($H14/($J14-$I14+1))*(1+Invoergegevens!$F$26)^BY$2 -> 0 | BZ14: =(BZ$2<=Invoergegevens!$F$9-Invoergegevens!$F$8)*(BZ$2>=$I14-Invoergegevens!$F$8)*(BZ$2<=$J14-Invoergegevens!$F$8)*($H14/($J14-$I14+1))*(1+Invoergegevens!$F$26)^BZ$2 -> 0 | CA14: =(CA$2<=Invoergegevens!$F$9-Invoergegevens!$F$8)*(CA$2>=$I14-Invoergegevens!$F$8)*(CA$2<=$J14-Invoergegevens!$F$8)*($H14/($J14-$I14+1))*(1+Invoergegevens!$F$26)^CA$2 -> 0 | CB14: =(CB$2<=Invoergegevens!$F$9-Invoergegevens!$F$8)*(CB$2>=$I14-Invoergegevens!$F$8)*(CB$2<=$J14-Invoergegevens!$F$8)*($H14/($J14-$I14+1))*(1+Invoergegevens!$F$26)^CB$2 -> 0 | CC14: =(CC$2<=Invoergegevens!$F$9-Invoergegevens!$F$8)*(CC$2>=$I14-Invoergegevens!$F$8)*(CC$2<=$J14-Invoergegevens!$F$8)*($H14/($J14-$I14+1))*(1+Invoergegevens!$F$26)^CC$2 -> 0 | CD14: =(CD$2<=Invoergegevens!$F$9-Invoergegevens!$F$8)*(CD$2>=$I14-Invoergegevens!$F$8)*(CD$2<=$J14-Invoergegevens!$F$8)*($H14/($J14-$I14+1))*(1+Invoergegevens!$F$26)^CD$2 -> 0 | CE14: =(CE$2<=Invoergegevens!$F$9-Invoergegevens!$F$8)*(CE$2>=$I14-Invoergegevens!$F$8)*(CE$2<=$J14-Invoergegevens!$F$8)*($H14/($J14-$I14+1))*(1+Invoergegevens!$F$26)^CE$2 -> 0 | CF14: =(CF$2<=Invoergegevens!$F$9-Invoergegevens!$F$8)*(CF$2>=$I14-Invoergegevens!$F$8)*(CF$2<=$J14-Invoergegevens!$F$8)*($H14/($J14-$I14+1))*(1+Invoergegevens!$F$26)^CF$2 -> 0 | CG14: =(CG$2<=Invoergegevens!$F$9-Invoergegevens!$F$8)*(CG$2>=$I14-Invoergegevens!$F$8)*(CG$2<=$J14-Invoergegevens!$F$8)*($H14/($J14-$I14+1))*(1+Invoergegevens!$F$26)^CG$2 -> 0 | CH14: =(CH$2<=Invoergegevens!$F$9-Invoergegevens!$F$8)*(CH$2>=$I14-Invoergegevens!$F$8)*(CH$2<=$J14-Invoergegevens!$F$8)*($H14/($J14-$I14+1))*(1+Invoergegevens!$F$26)^CH$2 -> 0 | CI14: =(CI$2<=Invoergegevens!$F$9-Invoergegevens!$F$8)*(CI$2>=$I14-Invoergegevens!$F$8)*(CI$2<=$J14-Invoergegevens!$F$8)*($H14/($J14-$I14+1))*(1+Invoergegevens!$F$26)^CI$2 -> 0 | CJ14: =(CJ$2<=Invoergegevens!$F$9-Invoergegevens!$F$8)*(CJ$2>=$I14-Invoergegevens!$F$8)*(CJ$2<=$J14-Invoergegevens!$F$8)*($H14/($J14-$I14+1))*(1+Invoergegevens!$F$26)^CJ$2 -> 0 | CK14: =(CK$2<=Invoergegevens!$F$9-Invoergegevens!$F$8)*(CK$2>=$I14-Invoergegevens!$F$8)*(CK$2<=$J14-Invoergegevens!$F$8)*($H14/($J14-$I14+1))*(1+Invoergegevens!$F$26)^CK$2 -> 0 | CL14: =(CL$2<=Invoergegevens!$F$9-Invoergegevens!$F$8)*(CL$2>=$I14-Invoergegevens!$F$8)*(CL$2<=$J14-Invoergegevens!$F$8)*($H14/($J14-$I14+1))*(1+Invoergegevens!$F$26)^CL$2 -> 0 | CM14: =(CM$2<=Invoergegevens!$F$9-Invoergegevens!$F$8)*(CM$2>=$I14-Invoergegevens!$F$8)*(CM$2<=$J14-Invoergegevens!$F$8)*($H14/($J14-$I14+1))*(1+Invoergegevens!$F$26)^CM$2 -> 0 | CN14: =(CN$2<=Invoergegevens!$F$9-Invoergegevens!$F$8)*(CN$2>=$I14-Invoergegevens!$F$8)*(CN$2<=$J14-Invoergegevens!$F$8)*($H14/($J14-$I14+1))*(1+Invoergegevens!$F$26)^CN$2 -> 0 | CO14: =(CO$2<=Invoergegevens!$F$9-Invoergegevens!$F$8)*(CO$2>=$I14-Invoergegevens!$F$8)*(CO$2<=$J14-Invoergegevens!$F$8)*($H14/($J14-$I14+1))*(1+Invoergegevens!$F$26)^CO$2 -> 0 | CP14: =(CP$2<=Invoergegevens!$F$9-Invoergegevens!$F$8)*(CP$2>=$I14-Invoergegevens!$F$8)*(CP$2<=$J14-Invoergegevens!$F$8)*($H14/($J14-$I14+1))*(1+Invoergegevens!$F$26)^CP$2 -> 0 | CQ14: =(CQ$2<=Invoergegevens!$F$9-Invoergegevens!$F$8)*(CQ$2>=$I14-Invoergegevens!$F$8)*(CQ$2<=$J14-Invoergegevens!$F$8)*($H14/($J14-$I14+1))*(1+Invoergegevens!$F$26)^CQ$2 -> 0 | CR14: =(CR$2<=Invoergegevens!$F$9-Invoergegevens!$F$8)*(CR$2>=$I14-Invoergegevens!$F$8)*(CR$2<=$J14-Invoergegevens!$F$8)*($H14/($J14-$I14+1))*(1+Invoergegevens!$F$26)^CR$2 -> 0 | CS14: =(CS$2<=Invoergegevens!$F$9-Invoergegevens!$F$8)*(CS$2>=$I14-Invoergegevens!$F$8)*(CS$2<=$J14-Invoergegevens!$F$8)*($H14/($J14-$I14+1))*(1+Invoergegevens!$F$26)^CS$2 -> 0 | CT14: =(CT$2<=Invoergegevens!$F$9-Invoergegevens!$F$8)*(CT$2>=$I14-Invoergegevens!$F$8)*(CT$2<=$J14-Invoergegevens!$F$8)*($H14/($J14-$I14+1))*(1+Invoergegevens!$F$26)^CT$2 -> 0 | CU14: =(CU$2<=Invoergegevens!$F$9-Invoergegevens!$F$8)*(CU$2>=$I14-Invoergegevens!$F$8)*(CU$2<=$J14-Invoergegevens!$F$8)*($H14/($J14-$I14+1))*(1+Invoergegevens!$F$26)^CU$2 -> 0 | CV14: =(CV$2<=Invoergegevens!$F$9-Invoergegevens!$F$8)*(CV$2>=$I14-Invoergegevens!$F$8)*(CV$2<=$J14-Invoergegevens!$F$8)*($H14/($J14-$I14+1))*(1+Invoergegevens!$F$26)^CV$2 -> 0 | CW14: =(CW$2<=Invoergegevens!$F$9-Invoergegevens!$F$8)*(CW$2>=$I14-Invoergegevens!$F$8)*(CW$2<=$J14-Invoergegevens!$F$8)*($H14/($J14-$I14+1))*(1+Invoergegevens!$F$26)^CW$2 -> 0 | CX14: =(CX$2<=Invoergegevens!$F$9-Invoergegevens!$F$8)*(CX$2>=$I14-Invoergegevens!$F$8)*(CX$2<=$J14-Invoergegevens!$F$8)*($H14/($J14-$I14+1))*(1+Invoergegevens!$F$26)^CX$2 -> 0
B15: 01.10 | H15: 0 | K15: =IF($H15<>0,IF(OR($I15<Invoergegevens!$F$8,$J15>=Invoergegevens!$F$8+INDEX(Invoergegevens!$C$59:$J$74,MATCH(LEFT($B15,2),Invoergegevens!$C$59:$C$74,0),MATCH(Invoergegevens!$F$31,Invoergegevens!$C$59:$J$59,0))),"fout","goed"),"") ->  | AF15: =(AF$2<=Invoergegevens!$F$9-Invoergegevens!$F$8)*(AF$2>=$I15-Invoergegevens!$F$8)*(AF$2<=$J15-Invoergegevens!$F$8)*($H15/($J15-$I15+1))*(1+Invoergegevens!$F$26)^AF$2 -> 0 | AG15: =(AG$2<=Invoergegevens!$F$9-Invoergegevens!$F$8)*(AG$2>=$I15-Invoergegevens!$F$8)*(AG$2<=$J15-Invoergegevens!$F$8)*($H15/($J15-$I15+1))*(1+Invoergegevens!$F$26)^AG$2 -> 0 | AH15: =(AH$2<=Invoergegevens!$F$9-Invoergegevens!$F$8)*(AH$2>=$I15-Invoergegevens!$F$8)*(AH$2<=$J15-Invoergegevens!$F$8)*($H15/($J15-$I15+1))*(1+Invoergegevens!$F$26)^AH$2 -> 0 | AI15: =(AI$2<=Invoergegevens!$F$9-Invoergegevens!$F$8)*(AI$2>=$I15-Invoergegevens!$F$8)*(AI$2<=$J15-Invoergegevens!$F$8)*($H15/($J15-$I15+1))*(1+Invoergegevens!$F$26)^AI$2 -> 0 | AJ15: =(AJ$2<=Invoergegevens!$F$9-Invoergegevens!$F$8)*(AJ$2>=$I15-Invoergegevens!$F$8)*(AJ$2<=$J15-Invoergegevens!$F$8)*($H15/($J15-$I15+1))*(1+Invoergegevens!$F$26)^AJ$2 -> 0 | AK15: =(AK$2<=Invoergegevens!$F$9-Invoergegevens!$F$8)*(AK$2>=$I15-Invoergegevens!$F$8)*(AK$2<=$J15-Invoergegevens!$F$8)*($H15/($J15-$I15+1))*(1+Invoergegevens!$F$26)^AK$2 -> 0 | AL15: =(AL$2<=Invoergegevens!$F$9-Invoergegevens!$F$8)*(AL$2>=$I15-Invoergegevens!$F$8)*(AL$2<=$J15-Invoergegevens!$F$8)*($H15/($J15-$I15+1))*(1+Invoergegevens!$F$26)^AL$2 -> 0 | AM15: =(AM$2<=Invoergegevens!$F$9-Invoergegevens!$F$8)*(AM$2>=$I15-Invoergegevens!$F$8)*(AM$2<=$J15-Invoergegevens!$F$8)*($H15/($J15-$I15+1))*(1+Invoergegevens!$F$26)^AM$2 -> 0 | AN15: =(AN$2<=Invoergegevens!$F$9-Invoergegevens!$F$8)*(AN$2>=$I15-Invoergegevens!$F$8)*(AN$2<=$J15-Invoergegevens!$F$8)*($H15/($J15-$I15+1))*(1+Invoergegevens!$F$26)^AN$2 -> 0 | AO15: =(AO$2<=Invoergegevens!$F$9-Invoergegevens!$F$8)*(AO$2>=$I15-Invoergegevens!$F$8)*(AO$2<=$J15-Invoergegevens!$F$8)*($H15/($J15-$I15+1))*(1+Invoergegevens!$F$26)^AO$2 -> 0 | AP15: =(AP$2<=Invoergegevens!$F$9-Invoergegevens!$F$8)*(AP$2>=$I15-Invoergegevens!$F$8)*(AP$2<=$J15-Invoergegevens!$F$8)*($H15/($J15-$I15+1))*(1+Invoergegevens!$F$26)^AP$2 -> 0 | AQ15: =(AQ$2<=Invoergegevens!$F$9-Invoergegevens!$F$8)*(AQ$2>=$I15-Invoergegevens!$F$8)*(AQ$2<=$J15-Invoergegevens!$F$8)*($H15/($J15-$I15+1))*(1+Invoergegevens!$F$26)^AQ$2 -> 0 | AR15: =(AR$2<=Invoergegevens!$F$9-Invoergegevens!$F$8)*(AR$2>=$I15-Invoergegevens!$F$8)*(AR$2<=$J15-Invoergegevens!$F$8)*($H15/($J15-$I15+1))*(1+Invoergegevens!$F$26)^AR$2 -> 0 | AS15: =(AS$2<=Invoergegevens!$F$9-Invoergegevens!$F$8)*(AS$2>=$I15-Invoergegevens!$F$8)*(AS$2<=$J15-Invoergegevens!$F$8)*($H15/($J15-$I15+1))*(1+Invoergegevens!$F$26)^AS$2 -> 0 | AT15: =(AT$2<=Invoergegevens!$F$9-Invoergegevens!$F$8)*(AT$2>=$I15-Invoergegevens!$F$8)*(AT$2<=$J15-Invoergegevens!$F$8)*($H15/($J15-$I15+1))*(1+Invoergegevens!$F$26)^AT$2 -> 0 | AU15: =(AU$2<=Invoergegevens!$F$9-Invoergegevens!$F$8)*(AU$2>=$I15-Invoergegevens!$F$8)*(AU$2<=$J15-Invoergegevens!$F$8)*($H15/($J15-$I15+1))*(1+Invoergegevens!$F$26)^AU$2 -> 0 | AV15: =(AV$2<=Invoergegevens!$F$9-Invoergegevens!$F$8)*(AV$2>=$I15-Invoergegevens!$F$8)*(AV$2<=$J15-Invoergegevens!$F$8)*($H15/($J15-$I15+1))*(1+Invoergegevens!$F$26)^AV$2 -> 0 | AW15: =(AW$2<=Invoergegevens!$F$9-Invoergegevens!$F$8)*(AW$2>=$I15-Invoergegevens!$F$8)*(AW$2<=$J15-Invoergegevens!$F$8)*($H15/($J15-$I15+1))*(1+Invoergegevens!$F$26)^AW$2 -> 0 | AX15: =(AX$2<=Invoergegevens!$F$9-Invoergegevens!$F$8)*(AX$2>=$I15-Invoergegevens!$F$8)*(AX$2<=$J15-Invoergegevens!$F$8)*($H15/($J15-$I15+1))*(1+Invoergegevens!$F$26)^AX$2 -> 0 | AY15: =(AY$2<=Invoergegevens!$F$9-Invoergegevens!$F$8)*(AY$2>=$I15-Invoergegevens!$F$8)*(AY$2<=$J15-Invoergegevens!$F$8)*($H15/($J15-$I15+1))*(1+Invoergegevens!$F$26)^AY$2 -> 0 | AZ15: =(AZ$2<=Invoergegevens!$F$9-Invoergegevens!$F$8)*(AZ$2>=$I15-Invoergegevens!$F$8)*(AZ$2<=$J15-Invoergegevens!$F$8)*($H15/($J15-$I15+1))*(1+Invoergegevens!$F$26)^AZ$2 -> 0 | BA15: =(BA$2<=Invoergegevens!$F$9-Invoergegevens!$F$8)*(BA$2>=$I15-Invoergegevens!$F$8)*(BA$2<=$J15-Invoergegevens!$F$8)*($H15/($J15-$I15+1))*(1+Invoergegevens!$F$26)^BA$2 -> 0 | BB15: =(BB$2<=Invoergegevens!$F$9-Invoergegevens!$F$8)*(BB$2>=$I15-Invoergegevens!$F$8)*(BB$2<=$J15-Invoergegevens!$F$8)*($H15/($J15-$I15+1))*(1+Invoergegevens!$F$26)^BB$2 -> 0 | BC15: =(BC$2<=Invoergegevens!$F$9-Invoergegevens!$F$8)*(BC$2>=$I15-Invoergegevens!$F$8)*(BC$2<=$J15-Invoergegevens!$F$8)*($H15/($J15-$I15+1))*(1+Invoergegevens!$F$26)^BC$2 -> 0 | BD15: =(BD$2<=Invoergegevens!$F$9-Invoergegevens!$F$8)*(BD$2>=$I15-Invoergegevens!$F$8)*(BD$2<=$J15-Invoergegevens!$F$8)*($H15/($J15-$I15+1))*(1+Invoergegevens!$F$26)^BD$2 -> 0 | BE15: =(BE$2<=Invoergegevens!$F$9-Invoergegevens!$F$8)*(BE$2>=$I15-Invoergegevens!$F$8)*(BE$2<=$J15-Invoergegevens!$F$8)*($H15/($J15-$I15+1))*(1+Invoergegevens!$F$26)^BE$2 -> 0 | BF15: =(BF$2<=Invoergegevens!$F$9-Invoergegevens!$F$8)*(BF$2>=$I15-Invoergegevens!$F$8)*(BF$2<=$J15-Invoergegevens!$F$8)*($H15/($J15-$I15+1))*(1+Invoergegevens!$F$26)^BF$2 -> 0 | BG15: =(BG$2<=Invoergegevens!$F$9-Invoergegevens!$F$8)*(BG$2>=$I15-Invoergegevens!$F$8)*(BG$2<=$J15-Invoergegevens!$F$8)*($H15/($J15-$I15+1))*(1+Invoergegevens!$F$26)^BG$2 -> 0 | BH15: =(BH$2<=Invoergegevens!$F$9-Invoergegevens!$F$8)*(BH$2>=$I15-Invoergegevens!$F$8)*(BH$2<=$J15-Invoergegevens!$F$8)*($H15/($J15-$I15+1))*(1+Invoergegevens!$F$26)^BH$2 -> 0 | BI15: =(BI$2<=Invoergegevens!$F$9-Invoergegevens!$F$8)*(BI$2>=$I15-Invoergegevens!$F$8)*(BI$2<=$J15-Invoergegevens!$F$8)*($H15/($J15-$I15+1))*(1+Invoergegevens!$F$26)^BI$2 -> 0 | BJ15: =(BJ$2<=Invoergegevens!$F$9-Invoergegevens!$F$8)*(BJ$2>=$I15-Invoergegevens!$F$8)*(BJ$2<=$J15-Invoergegevens!$F$8)*($H15/($J15-$I15+1))*(1+Invoergegevens!$F$26)^BJ$2 -> 0 | BK15: =(BK$2<=Invoergegevens!$F$9-Invoergegevens!$F$8)*(BK$2>=$I15-Invoergegevens!$F$8)*(BK$2<=$J15-Invoergegevens!$F$8)*($H15/($J15-$I15+1))*(1+Invoergegevens!$F$26)^BK$2 -> 0 | BL15: =(BL$2<=Invoergegevens!$F$9-Invoergegevens!$F$8)*(BL$2>=$I15-Invoergegevens!$F$8)*(BL$2<=$J15-Invoergegevens!$F$8)*($H15/($J15-$I15+1))*(1+Invoergegevens!$F$26)^BL$2 -> 0 | BM15: =(BM$2<=Invoergegevens!$F$9-Invoergegevens!$F$8)*(BM$2>=$I15-Invoergegevens!$F$8)*(BM$2<=$J15-Invoergegevens!$F$8)*($H15/($J15-$I15+1))*(1+Invoergegevens!$F$26)^BM$2 -> 0 | BN15: =(BN$2<=Invoergegevens!$F$9-Invoergegevens!$F$8)*(BN$2>=$I15-Invoergegevens!$F$8)*(BN$2<=$J15-Invoergegevens!$F$8)*($H15/($J15-$I15+1))*(1+Invoergegevens!$F$26)^BN$2 -> 0 | BO15: =(BO$2<=Invoergegevens!$F$9-Invoergegevens!$F$8)*(BO$2>=$I15-Invoergegevens!$F$8)*(BO$2<=$J15-Invoergegevens!$F$8)*($H15/($J15-$I15+1))*(1+Invoergegevens!$F$26)^BO$2 -> 0 | BP15: =(BP$2<=Invoergegevens!$F$9-Invoergegevens!$F$8)*(BP$2>=$I15-Invoergegevens!$F$8)*(BP$2<=$J15-Invoergegevens!$F$8)*($H15/($J15-$I15+1))*(1+Invoergegevens!$F$26)^BP$2 -> 0 | BQ15: =(BQ$2<=Invoergegevens!$F$9-Invoergegevens!$F$8)*(BQ$2>=$I15-Invoergegevens!$F$8)*(BQ$2<=$J15-Invoergegevens!$F$8)*($H15/($J15-$I15+1))*(1+Invoergegevens!$F$26)^BQ$2 -> 0 | BR15: =(BR$2<=Invoergegevens!$F$9-Invoergegevens!$F$8)*(BR$2>=$I15-Invoergegevens!$F$8)*(BR$2<=$J15-Invoergegevens!$F$8)*($H15/($J15-$I15+1))*(1+Invoergegevens!$F$26)^BR$2 -> 0 | BS15: =(BS$2<=Invoergegevens!$F$9-Invoergegevens!$F$8)*(BS$2>=$I15-Invoergegevens!$F$8)*(BS$2<=$J15-Invoergegevens!$F$8)*($H15/($J15-$I15+1))*(1+Invoergegevens!$F$26)^BS$2 -> 0 | BT15: =(BT$2<=Invoergegevens!$F$9-Invoergegevens!$F$8)*(BT$2>=$I15-Invoergegevens!$F$8)*(BT$2<=$J15-Invoergegevens!$F$8)*($H15/($J15-$I15+1))*(1+Invoergegevens!$F$26)^BT$2 -> 0 | BU15: =(BU$2<=Invoergegevens!$F$9-Invoergegevens!$F$8)*(BU$2>=$I15-Invoergegevens!$F$8)*(BU$2<=$J15-Invoergegevens!$F$8)*($H15/($J15-$I15+1))*(1+Invoergegevens!$F$26)^BU$2 -> 0 | BV15: =(BV$2<=Invoergegevens!$F$9-Invoergegevens!$F$8)*(BV$2>=$I15-Invoergegevens!$F$8)*(BV$2<=$J15-Invoergegevens!$F$8)*($H15/($J15-$I15+1))*(1+Invoergegevens!$F$26)^BV$2 -> 0 | BW15: =(BW$2<=Invoergegevens!$F$9-Invoergegevens!$F$8)*(BW$2>=$I15-Invoergegevens!$F$8)*(BW$2<=$J15-Invoergegevens!$F$8)*($H15/($J15-$I15+1))*(1+Invoergegevens!$F$26)^BW$2 -> 0 | BX15: =(BX$2<=Invoergegevens!$F$9-Invoergegevens!$F$8)*(BX$2>=$I15-Invoergegevens!$F$8)*(BX$2<=$J15-Invoergegevens!$F$8)*($H15/($J15-$I15+1))*(1+Invoergegevens!$F$26)^BX$2 -> 0 | BY15: =(BY$2<=Invoergegevens!$F$9-Invoergegevens!$F$8)*(BY$2>=$I15-Invoergegevens!$F$8)*(BY$2<=$J15-Invoergegevens!$F$8)*($H15/($J15-$I15+1))*(1+Invoergegevens!$F$26)^BY$2 -> 0 | BZ15: =(BZ$2<=Invoergegevens!$F$9-Invoergegevens!$F$8)*(BZ$2>=$I15-Invoergegevens!$F$8)*(BZ$2<=$J15-Invoergegevens!$F$8)*($H15/($J15-$I15+1))*(1+Invoergegevens!$F$26)^BZ$2 -> 0 | CA15: =(CA$2<=Invoergegevens!$F$9-Invoergegevens!$F$8)*(CA$2>=$I15-Invoergegevens!$F$8)*(CA$2<=$J15-Invoergegevens!$F$8)*($H15/($J15-$I15+1))*(1+Invoergegevens!$F$26)^CA$2 -> 0 | CB15: =(CB$2<=Invoergegevens!$F$9-Invoergegevens!$F$8)*(CB$2>=$I15-Invoergegevens!$F$8)*(CB$2<=$J15-Invoergegevens!$F$8)*($H15/($J15-$I15+1))*(1+Invoergegevens!$F$26)^CB$2 -> 0 | CC15: =(CC$2<=Invoergegevens!$F$9-Invoergegevens!$F$8)*(CC$2>=$I15-Invoergegevens!$F$8)*(CC$2<=$J15-Invoergegevens!$F$8)*($H15/($J15-$I15+1))*(1+Invoergegevens!$F$26)^CC$2 -> 0 | CD15: =(CD$2<=Invoergegevens!$F$9-Invoergegevens!$F$8)*(CD$2>=$I15-Invoergegevens!$F$8)*(CD$2<=$J15-Invoergegevens!$F$8)*($H15/($J15-$I15+1))*(1+Invoergegevens!$F$26)^CD$2 -> 0 | CE15: =(CE$2<=Invoergegevens!$F$9-Invoergegevens!$F$8)*(CE$2>=$I15-Invoergegevens!$F$8)*(CE$2<=$J15-Invoergegevens!$F$8)*($H15/($J15-$I15+1))*(1+Invoergegevens!$F$26)^CE$2 -> 0 | CF15: =(CF$2<=Invoergegevens!$F$9-Invoergegevens!$F$8)*(CF$2>=$I15-Invoergegevens!$F$8)*(CF$2<=$J15-Invoergegevens!$F$8)*($H15/($J15-$I15+1))*(1+Invoergegevens!$F$26)^CF$2 -> 0 | CG15: =(CG$2<=Invoergegevens!$F$9-Invoergegevens!$F$8)*(CG$2>=$I15-Invoergegevens!$F$8)*(CG$2<=$J15-Invoergegevens!$F$8)*($H15/($J15-$I15+1))*(1+Invoergegevens!$F$26)^CG$2 -> 0 | CH15: =(CH$2<=Invoergegevens!$F$9-Invoergegevens!$F$8)*(CH$2>=$I15-Invoergegevens!$F$8)*(CH$2<=$J15-Invoergegevens!$F$8)*($H15/($J15-$I15+1))*(1+Invoergegevens!$F$26)^CH$2 -> 0 | CI15: =(CI$2<=Invoergegevens!$F$9-Invoergegevens!$F$8)*(CI$2>=$I15-Invoergegevens!$F$8)*(CI$2<=$J15-Invoergegevens!$F$8)*($H15/($J15-$I15+1))*(1+Invoergegevens!$F$26)^CI$2 -> 0 | CJ15: =(CJ$2<=Invoergegevens!$F$9-Invoergegevens!$F$8)*(CJ$2>=$I15-Invoergegevens!$F$8)*(CJ$2<=$J15-Invoergegevens!$F$8)*($H15/($J15-$I15+1))*(1+Invoergegevens!$F$26)^CJ$2 -> 0 | CK15: =(CK$2<=Invoergegevens!$F$9-Invoergegevens!$F$8)*(CK$2>=$I15-Invoergegevens!$F$8)*(CK$2<=$J15-Invoergegevens!$F$8)*($H15/($J15-$I15+1))*(1+Invoergegevens!$F$26)^CK$2 -> 0 | CL15: =(CL$2<=Invoergegevens!$F$9-Invoergegevens!$F$8)*(CL$2>=$I15-Invoergegevens!$F$8)*(CL$2<=$J15-Invoergegevens!$F$8)*($H15/($J15-$I15+1))*(1+Invoergegevens!$F$26)^CL$2 -> 0 | CM15: =(CM$2<=Invoergegevens!$F$9-Invoergegevens!$F$8)*(CM$2>=$I15-Invoergegevens!$F$8)*(CM$2<=$J15-Invoergegevens!$F$8)*($H15/($J15-$I15+1))*(1+Invoergegevens!$F$26)^CM$2 -> 0 | CN15: =(CN$2<=Invoergegevens!$F$9-Invoergegevens!$F$8)*(CN$2>=$I15-Invoergegevens!$F$8)*(CN$2<=$J15-Invoergegevens!$F$8)*($H15/($J15-$I15+1))*(1+Invoergegevens!$F$26)^CN$2 -> 0 | CO15: =(CO$2<=Invoergegevens!$F$9-Invoergegevens!$F$8)*(CO$2>=$I15-Invoergegevens!$F$8)*(CO$2<=$J15-Invoergegevens!$F$8)*($H15/($J15-$I15+1))*(1+Invoergegevens!$F$26)^CO$2 -> 0 | CP15: =(CP$2<=Invoergegevens!$F$9-Invoergegevens!$F$8)*(CP$2>=$I15-Invoergegevens!$F$8)*(CP$2<=$J15-Invoergegevens!$F$8)*($H15/($J15-$I15+1))*(1+Invoergegevens!$F$26)^CP$2 -> 0 | CQ15: =(CQ$2<=Invoergegevens!$F$9-Invoergegevens!$F$8)*(CQ$2>=$I15-Invoergegevens!$F$8)*(CQ$2<=$J15-Invoergegevens!$F$8)*($H15/($J15-$I15+1))*(1+Invoergegevens!$F$26)^CQ$2 -> 0 | CR15: =(CR$2<=Invoergegevens!$F$9-Invoergegevens!$F$8)*(CR$2>=$I15-Invoergegevens!$F$8)*(CR$2<=$J15-Invoergegevens!$F$8)*($H15/($J15-$I15+1))*(1+Invoergegevens!$F$26)^CR$2 -> 0 | CS15: =(CS$2<=Invoergegevens!$F$9-Invoergegevens!$F$8)*(CS$2>=$I15-Invoergegevens!$F$8)*(CS$2<=$J15-Invoergegevens!$F$8)*($H15/($J15-$I15+1))*(1+Invoergegevens!$F$26)^CS$2 -> 0 | CT15: =(CT$2<=Invoergegevens!$F$9-Invoergegevens!$F$8)*(CT$2>=$I15-Invoergegevens!$F$8)*(CT$2<=$J15-Invoergegevens!$F$8)*($H15/($J15-$I15+1))*(1+Invoergegevens!$F$26)^CT$2 -> 0 | CU15: =(CU$2<=Invoergegevens!$F$9-Invoergegevens!$F$8)*(CU$2>=$I15-Invoergegevens!$F$8)*(CU$2<=$J15-Invoergegevens!$F$8)*($H15/($J15-$I15+1))*(1+Invoergegevens!$F$26)^CU$2 -> 0 | CV15: =(CV$2<=Invoergegevens!$F$9-Invoergegevens!$F$8)*(CV$2>=$I15-Invoergegevens!$F$8)*(CV$2<=$J15-Invoergegevens!$F$8)*($H15/($J15-$I15+1))*(1+Invoergegevens!$F$26)^CV$2 -> 0 | CW15: =(CW$2<=Invoergegevens!$F$9-Invoergegevens!$F$8)*(CW$2>=$I15-Invoergegevens!$F$8)*(CW$2<=$J15-Invoergegevens!$F$8)*($H15/($J15-$I15+1))*(1+Invoergegevens!$F$26)^CW$2 -> 0 | CX15: =(CX$2<=Invoergegevens!$F$9-Invoergegevens!$F$8)*(CX$2>=$I15-Invoergegevens!$F$8)*(CX$2<=$J15-Invoergegevens!$F$8)*($H15/($J15-$I15+1))*(1+Invoergegevens!$F$26)^CX$2 -> 0
... 16 more rows

Sheet Onderhoud
C1: ONDERHOUDSKOSTEN
AF3: 0 | AG3: 1 | AH3: 2 | AI3: 3 | AJ3: 4 | AK3: 5 | AL3: 6 | AM3: 7 | AN3: 8 | AO3: 9 | AP3: 10 | AQ3: 11 | AR3: 12 | AS3: 13 | AT3: 14 | AU3: 15 | AV3: 16 | AW3: 17 | AX3: 18 | AY3: 19 | AZ3: 20 | BA3: 21 | BB3: 22 | BC3: 23 | BD3: 24 | BE3: 25 | BF3: 26 | BG3: 27 | BH3: 28 | BI3: 29 | BJ3: 30 | BK3: 31 | BL3: 32 | BM3: 33 | BN3: 34 | BO3: 35 | BP3: 36 | BQ3: 37 | BR3: 38 | BS3: 39 | BT3: 40 | BU3: 41 | BV3: 42 | BW3: 43 | BX3: 44 | BY3: 45 | BZ3: 46 | CA3: 47 | CB3: 48 | CC3: 49 | CD3: 50 | CE3: 51 | CF3: 52 | CG3: 53 | CH3: 54 | CI3: 55 | CJ3: 56 | CK3: 57 | CL3: 58 | CM3: 59 | CN3: 60 | CO3: 61 | CP3: 62 | CQ3: 63 | CR3: 64 | CS3: 65 | CT3: 66 | CU3: 67 | CV3: 68 | CW3: 69 | CX3: 70
Q4: Mate van bijdrage stakeholders (in %) | W4: Totaal (moet gelijk zijn aan 100% | AA4: Van toepassing op varianten | AD4: Selecteer minimaal 1 variant | AF4: =Invoergegevens!F8 -> 2021 | AG4: =IF(COLUMN()-COLUMN($AF$4)<=Invoergegevens!$F$9-Invoergegevens!$F$8,AF4+1,0) -> 2022 | AH4: =IF(COLUMN()-COLUMN($AF$4)<=Invoergegevens!$F$9-Invoergegevens!$F$8,AG4+1,0) -> 2023 | AI4: =IF(COLUMN()-COLUMN($AF$4)<=Invoergegevens!$F$9-Invoergegevens!$F$8,AH4+1,0) -> 2024 | AJ4: =IF(COLUMN()-COLUMN($AF$4)<=Invoergegevens!$F$9-Invoergegevens!$F$8,AI4+1,0) -> 2025 | AK4: =IF(COLUMN()-COLUMN($AF$4)<=Invoergegevens!$F$9-Invoergegevens!$F$8,AJ4+1,0) -> 2026 | AL4: =IF(COLUMN()-COLUMN($AF$4)<=Invoergegevens!$F$9-Invoergegevens!$F$8,AK4+1,0) -> 2027 | AM4: =IF(COLUMN()-COLUMN($AF$4)<=Invoergegevens!$F$9-Invoergegevens!$F$8,AL4+1,0) -> 2028 | AN4: =IF(COLUMN()-COLUMN($AF$4)<=Invoergegevens!$F$9-Invoergegevens!$F$8,AM4+1,0) -> 2029 | AO4: =IF(COLUMN()-COLUMN($AF$4)<=Invoergegevens!$F$9-Invoergegevens!$F$8,AN4+1,0) -> 2030 | AP4: =IF(COLUMN()-COLUMN($AF$4)<=Invoergegevens!$F$9-Invoergegevens!$F$8,AO4+1,0) -> 2031 | AQ4: =IF(COLUMN()-COLUMN($AF$4)<=Invoergegevens!$F$9-Invoergegevens!$F$8,AP4+1,0) -> 2032 | AR4: =IF(COLUMN()-COLUMN($AF$4)<=Invoergegevens!$F$9-Invoergegevens!$F$8,AQ4+1,0) -> 2033 | AS4: =IF(COLUMN()-COLUMN($AF$4)<=Invoergegevens!$F$9-Invoergegevens!$F$8,AR4+1,0) -> 2034 | AT4: =IF(COLUMN()-COLUMN($AF$4)<=Invoergegevens!$F$9-Invoergegevens!$F$8,AS4+1,0) -> 2035 | AU4: =IF(COLUMN()-COLUMN($AF$4)<=Invoergegevens!$F$9-Invoergegevens!$F$8,AT4+1,0) -> 2036 | AV4: =IF(COLUMN()-COLUMN($AF$4)<=Invoergegevens!$F$9-Invoergegevens!$F$8,AU4+1,0) -> 2037 | AW4: =IF(COLUMN()-COLUMN($AF$4)<=Invoergegevens!$F$9-Invoergegevens!$F$8,AV4+1,0) -> 2038 | AX4: =IF(COLUMN()-COLUMN($AF$4)<=Invoergegevens!$F$9-Invoergegevens!$F$8,AW4+1,0) -> 2039 | AY4: =IF(COLUMN()-COLUMN($AF$4)<=Invoergegevens!$F$9-Invoergegevens!$F$8,AX4+1,0) -> 2040 | AZ4: =IF(COLUMN()-COLUMN($AF$4)<=Invoergegevens!$F$9-Invoergegevens!$F$8,AY4+1,0) -> 2041 | BA4: =IF(COLUMN()-COLUMN($AF$4)<=Invoergegevens!$F$9-Invoergegevens!$F$8,AZ4+1,0) -> 2042 | BB4: =IF(COLUMN()-COLUMN($AF$4)<=Invoergegevens!$F$9-Invoergegevens!$F$8,BA4+1,0) -> 2043 | BC4: =IF(COLUMN()-COLUMN($AF$4)<=Invoergegevens!$F$9-Invoergegevens!$F$8,BB4+1,0) -> 2044 | BD4: =IF(COLUMN()-COLUMN($AF$4)<=Invoergegevens!$F$9-Invoergegevens!$F$8,BC4+1,0) -> 2045 | BE4: =IF(COLUMN()-COLUMN($AF$4)<=Invoergegevens!$F$9-Invoergegevens!$F$8,BD4+1,0) -> 2046 | BF4: =IF(COLUMN()-COLUMN($AF$4)<=Invoergegevens!$F$9-Invoergegevens!$F$8,BE4+1,0) -> 2047 | BG4: =IF(COLUMN()-COLUMN($AF$4)<=Invoergegevens!$F$9-Invoergegevens!$F$8,BF4+1,0) -> 2048 | BH4: =IF(COLUMN()-COLUMN($AF$4)<=Invoergegevens!$F$9-Invoergegevens!$F$8,BG4+1,0) -> 2049 | BI4: =IF(COLUMN()-COLUMN($AF$4)<=Invoergegevens!$F$9-Invoergegevens!$F$8,BH4+1,0) -> 2050 | BJ4: =IF(COLUMN()-COLUMN($AF$4)<=Invoergegevens!$F$9-Invoergegevens!$F$8,BI4+1,0) -> 2051 | BK4: =IF(COLUMN()-COLUMN($AF$4)<=Invoergegevens!$F$9-Invoergegevens!$F$8,BJ4+1,0) -> 2052 | BL4: =IF(COLUMN()-COLUMN($AF$4)<=Invoergegevens!$F$9-Invoergegevens!$F$8,BK4+1,0) -> 2053 | BM4: =IF(COLUMN()-COLUMN($AF$4)<=Invoergegevens!$F$9-Invoergegevens!$F$8,BL4+1,0) -> 2054 | BN4: =IF(COLUMN()-COLUMN($AF$4)<=Invoergegevens!$F$9-Invoergegevens!$F$8,BM4+1,0) -> 2055 | BO4: =IF(COLUMN()-COLUMN($AF$4)<=Invoergegevens!$F$9-Invoergegevens!$F$8,BN4+1,0) -> 2056 | BP4: =IF(COLUMN()-COLUMN($AF$4)<=Invoergegevens!$F$9-Invoergegevens!$F$8,BO4+1,0) -> 2057 | BQ4: =IF(COLUMN()-COLUMN($AF$4)<=Invoergegevens!$F$9-Invoergegevens!$F$8,BP4+1,0) -> 2058 | BR4: =IF(COLUMN()-COLUMN($AF$4)<=Invoergegevens!$F$9-Invoergegevens!$F$8,BQ4+1,0) -> 2059 | BS4: =IF(COLUMN()-COLUMN($AF$4)<=Invoergegevens!$F$9-Invoergegevens!$F$8,BR4+1,0) -> 2060 | BT4: =IF(COLUMN()-COLUMN($AF$4)<=Invoergegevens!$F$9-Invoergegevens!$F$8,BS4+1,0) -> 2061 | BU4: =IF(COLUMN()-COLUMN($AF$4)<=Invoergegevens!$F$9-Invoergegevens!$F$8,BT4+1,0) -> 2062 | BV4: =IF(COLUMN()-COLUMN($AF$4)<=Invoergegevens!$F$9-Invoergegevens!$F$8,BU4+1,0) -> 2063 | BW4: =IF(COLUMN()-COLUMN($AF$4)<=Invoergegevens!$F$9-Invoergegevens!$F$8,BV4+1,0) -> 2064 | BX4: =IF(COLUMN()-COLUMN($AF$4)<=Invoergegevens!$F$9-Invoergegevens!$F$8,BW4+1,0) -> 2065 | BY4: =IF(COLUMN()-COLUMN($AF$4)<=Invoergegevens!$F$9-Invoergegevens!$F$8,BX4+1,0) -> 2066 | BZ4: =IF(COLUMN()-COLUMN($AF$4)<=Invoergegevens!$F$9-Invoergegevens!$F$8,BY4+1,0) -> 2067 | CA4: =IF(COLUMN()-COLUMN($AF$4)<=Invoergegevens!$F$9-Invoergegevens!$F$8,BZ4+1,0) -> 2068 | CB4: =IF(COLUMN()-COLUMN($AF$4)<=Invoergegevens!$F$9-Invoergegevens!$F$8,CA4+1,0) -> 2069 | CC4: =IF(COLUMN()-COLUMN($AF$4)<=Invoergegevens!$F$9-Invoergegevens!$F$8,CB4+1,0) -> 2070 | CD4: =IF(COLUMN()-COLUMN($AF$4)<=Invoergegevens!$F$9-Invoergegevens!$F$8,CC4+1,0) -> 0 | CE4: =IF(COLUMN()-COLUMN($AF$4)<=Invoergegevens!$F$9-Invoergegevens!$F$8,CD4+1,0) -> 0 | CF4: =IF(COLUMN()-COLUMN($AF$4)<=Invoergegevens!$F$9-Invoergegevens!$F$8,CE4+1,0) -> 0 | CG4: =IF(COLUMN()-COLUMN($AF$4)<=Invoergegevens!$F$9-Invoergegevens!$F$8,CF4+1,0) -> 0 | CH4: =IF(COLUMN()-COLUMN($AF$4)<=Invoergegevens!$F$9-Invoergegevens!$F$8,CG4+1,0) -> 0 | CI4: =IF(COLUMN()-COLUMN($AF$4)<=Invoergegevens!$F$9-Invoergegevens!$F$8,CH4+1,0) -> 0 | CJ4: =IF(COLUMN()-COLUMN($AF$4)<=Invoergegevens!$F$9-Invoergegevens!$F$8,CI4+1,0) -> 0 | CK4: =IF(COLUMN()-COLUMN($AF$4)<=Invoergegevens!$F$9-Invoergegevens!$F$8,CJ4+1,0) -> 0 | CL4: =IF(COLUMN()-COLUMN($AF$4)<=Invoergegevens!$F$9-Invoergegevens!$F$8,CK4+1,0) -> 0 | CM4: =IF(COLUMN()-COLUMN($AF$4)<=Invoergegevens!$F$9-Invoergegevens!$F$8,CL4+1,0) -> 0 | CN4: =IF(COLUMN()-COLUMN($AF$4)<=Invoergegevens!$F$9-Invoergegevens!$F$8,CM4+1,0) -> 0 | CO4: =IF(COLUMN()-COLUMN($AF$4)<=Invoergegevens!$F$9-Invoergegevens!$F$8,CN4+1,0) -> 0 | CP4: =IF(COLUMN()-COLUMN($AF$4)<=Invoergegevens!$F$9-Invoergegevens!$F$8,CO4+1,0) -> 0 | CQ4: =IF(COLUMN()-COLUMN($AF$4)<=Invoergegevens!$F$9-Invoergegevens!$F$8,CP4+1,0) -> 0 | CR4: =IF(COLUMN()-COLUMN($AF$4)<=Invoergegevens!$F$9-Invoergegevens!$F$8,CQ4+1,0) -> 0 | CS4: =IF(COLUMN()-COLUMN($AF$4)<=Invoergegevens!$F$9-Invoergegevens!$F$8,CR4+1,0) -> 0 | CT4: =IF(COLUMN()-COLUMN($AF$4)<=Invoergegevens!$F$9-Invoergegevens!$F$8,CS4+1,0) -> 0 | CU4: =IF(COLUMN()-COLUMN($AF$4)<=Invoergegevens!$F$9-Invoergegevens!$F$8,CT4+1,0) -> 0 | CV4: =IF(COLUMN()-COLUMN($AF$4)<=Invoergegevens!$F$9-Invoergegevens!$F$8,CU4+1,0) -> 0 | CW4: =IF(COLUMN()-COLUMN($AF$4)<=Invoergegevens!$F$9-Invoergegevens!$F$8,CV4+1,0) -> 0 | CX4: =IF(COLUMN()-COLUMN($AF$4)<=Invoergegevens!$F$9-Invoergegevens!$F$8,CW4+1,0) -> 0
B5: Nr | C5: Investering | D5: Onderdeel | E5: Specificatie | F5: Aantal | G5: Eenheid | H5: € / eenheid (excl. BTW) | I5: Totaal | J5: Cyclus (aantal jaren) | K5: Afhankelijk van volloop-tempo? | M5: =Invoergegevens!D47 -> Partij 1 | N5: =Invoergegevens!D48 -> Partij 2 | O5: =Invoergegevens!D49 -> Partij 3 | P5: =Invoergegevens!D50 -> Partij 4 | Q5: =Invoergegevens!D51 -> Partij 5 | R5: =Invoergegevens!D52 -> Partij 6 | S5: =Invoergegevens!D53 -> Partij 7 | T5: =Invoergegevens!D54 -> Partij 8 | U5: =Invoergegevens!D55 -> Partij 9 | V5: =Invoergegevens!D56 -> Partij 10 | W5: Controle | Y5: =Invoergegevens!$D$38 -> Variant 1 | Z5: =Invoergegevens!$D$39 -> Variant 2 | AA5: =Invoergegevens!$D$40 -> Variant 3 | AB5: =Invoergegevens!$D$41 -> Variant 4 | AC5: =Invoergegevens!$D$42 -> Variant 5
I6: =F6*H6 -> 0 | J6: 1 | W6: =IF(I6<>0,IF(SUM(M6:V6)=1,"goed","fout"),"") ->  | AD6: =IF(I6<>0,IF(COUNTA(Y6:AC6)>0,"goed","fout"),"") ->  | AF6: =($I6<>0)*(AF$3<=Invoergegevens!$F$9-Invoergegevens!$F$8) *(MOD(AF$3,$J6)=0)*($I6*($K6="Nee") +$I6*(AF$3+Invoergegevens!$F$8<=Invoergegevens!$J$14)*(AF$3+Invoergegevens!$F$8>=Invoergegevens!$H$14)*((AF$3+Invoergegevens!$F$8-Invoergegevens!$H$14)/(Invoergegevens!$J$14-Invoergegevens!$H$14+1))*($K6="Ja")+$I6*(AF$3+Invoergegevens!$F$8>Invoergegevens!$J$14)*($K6="Ja")) -> 0 | AG6: =($I6<>0)*(AG$3<=Invoergegevens!$F$9-Invoergegevens!$F$8) *(MOD(AG$3,$J6)=0)*($I6*($K6="Nee") +$I6*(AG$3+Invoergegevens!$F$8<=Invoergegevens!$J$14)*(AG$3+Invoergegevens!$F$8>=Invoergegevens!$H$14)*((AG$3+Invoergegevens!$F$8-Invoergegevens!$H$14)/(Invoergegevens!$J$14-Invoergegevens!$H$14+1))*($K6="Ja")+$I6*(AG$3+Invoergegevens!$F$8>Invoergegevens!$J$14)*($K6="Ja")) -> 0 | AH6: =($I6<>0)*(AH$3<=Invoergegevens!$F$9-Invoergegevens!$F$8) *(MOD(AH$3,$J6)=0)*($I6*($K6="Nee") +$I6*(AH$3+Invoergegevens!$F$8<=Invoergegevens!$J$14)*(AH$3+Invoergegevens!$F$8>=Invoergegevens!$H$14)*((AH$3+Invoergegevens!$F$8-Invoergegevens!$H$14)/(Invoergegevens!$J$14-Invoergegevens!$H$14+1))*($K6="Ja")+$I6*(AH$3+Invoergegevens!$F$8>Invoergegevens!$J$14)*($K6="Ja")) -> 0 | AI6: =($I6<>0)*(AI$3<=Invoergegevens!$F$9-Invoergegevens!$F$8) *(MOD(AI$3,$J6)=0)*($I6*($K6="Nee") +$I6*(AI$3+Invoergegevens!$F$8<=Invoergegevens!$J$14)*(AI$3+Invoergegevens!$F$8>=Invoergegevens!$H$14)*((AI$3+Invoergegevens!$F$8-Invoergegevens!$H$14)/(Invoergegevens!$J$14-Invoergegevens!$H$14+1))*($K6="Ja")+$I6*(AI$3+Invoergegevens!$F$8>Invoergegevens!$J$14)*($K6="Ja")) -> 0 | AJ6: =($I6<>0)*(AJ$3<=Invoergegevens!$F$9-Invoergegevens!$F$8) *(MOD(AJ$3,$J6)=0)*($I6*($K6="Nee") +$I6*(AJ$3+Invoergegevens!$F$8<=Invoergegevens!$J$14)*(AJ$3+Invoergegevens!$F$8>=Invoergegevens!$H$14)*((AJ$3+Invoergegevens!$F$8-Invoergegevens!$H$14)/(Invoergegevens!$J$14-Invoergegevens!$H$14+1))*($K6="Ja")+$I6*(AJ$3+Invoergegevens!$F$8>Invoergegevens!$J$14)*($K6="Ja")) -> 0 | AK6: =($I6<>0)*(AK$3<=Invoergegevens!$F$9-Invoergegevens!$F$8) *(MOD(AK$3,$J6)=0)*($I6*($K6="Nee") +$I6*(AK$3+Invoergegevens!$F$8<=Invoergegevens!$J$14)*(AK$3+Invoergegevens!$F$8>=Invoergegevens!$H$14)*((AK$3+Invoergegevens!$F$8-Invoergegevens!$H$14)/(Invoergegevens!$J$14-Invoergegevens!$H$14+1))*($K6="Ja")+$I6*(AK$3+Invoergegevens!$F$8>Invoergegevens!$J$14)*($K6="Ja")) -> 0 | AL6: =($I6<>0)*(AL$3<=Invoergegevens!$F$9-Invoergegevens!$F$8) *(MOD(AL$3,$J6)=0)*($I6*($K6="Nee") +$I6*(AL$3+Invoergegevens!$F$8<=Invoergegevens!$J$14)*(AL$3+Invoergegevens!$F$8>=Invoergegevens!$H$14)*((AL$3+Invoergegevens!$F$8-Invoergegevens!$H$14)/(Invoergegevens!$J$14-Invoergegevens!$H$14+1))*($K6="Ja")+$I6*(AL$3+Invoergegevens!$F$8>Invoergegevens!$J$14)*($K6="Ja")) -> 0 | AM6: =($I6<>0)*(AM$3<=Invoergegevens!$F$9-Invoergegevens!$F$8) *(MOD(AM$3,$J6)=0)*($I6*($K6="Nee") +$I6*(AM$3+Invoergegevens!$F$8<=Invoergegevens!$J$14)*(AM$3+Invoergegevens!$F$8>=Invoergegevens!$H$14)*((AM$3+Invoergegevens!$F$8-Invoergegevens!$H$14)/(Invoergegevens!$J$14-Invoergegevens!$H$14+1))*($K6="Ja")+$I6*(AM$3+Invoergegevens!$F$8>Invoergegevens!$J$14)*($K6="Ja")) -> 0 | AN6: =($I6<>0)*(AN$3<=Invoergegevens!$F$9-Invoergegevens!$F$8) *(MOD(AN$3,$J6)=0)*($I6*($K6="Nee") +$I6*(AN$3+Invoergegevens!$F$8<=Invoergegevens!$J$14)*(AN$3+Invoergegevens!$F$8>=Invoergegevens!$H$14)*((AN$3+Invoergegevens!$F$8-Invoergegevens!$H$14)/(Invoergegevens!$J$14-Invoergegevens!$H$14+1))*($K6="Ja")+$I6*(AN$3+Invoergegevens!$F$8>Invoergegevens!$J$14)*($K6="Ja")) -> 0 | AO6: =($I6<>0)*(AO$3<=Invoergegevens!$F$9-Invoergegevens!$F$8) *(MOD(AO$3,$J6)=0)*($I6*($K6="Nee") +$I6*(AO$3+Invoergegevens!$F$8<=Invoergegevens!$J$14)*(AO$3+Invoergegevens!$F$8>=Invoergegevens!$H$14)*((AO$3+Invoergegevens!$F$8-Invoergegevens!$H$14)/(Invoergegevens!$J$14-Invoergegevens!$H$14+1))*($K6="Ja")+$I6*(AO$3+Invoergegevens!$F$8>Invoergegevens!$J$14)*($K6="Ja")) -> 0 | AP6: =($I6<>0)*(AP$3<=Invoergegevens!$F$9-Invoergegevens!$F$8) *(MOD(AP$3,$J6)=0)*($I6*($K6="Nee") +$I6*(AP$3+Invoergegevens!$F$8<=Invoergegevens!$J$14)*(AP$3+Invoergegevens!$F$8>=Invoergegevens!$H$14)*((AP$3+Invoergegevens!$F$8-Invoergegevens!$H$14)/(Invoergegevens!$J$14-Invoergegevens!$H$14+1))*($K6="Ja")+$I6*(AP$3+Invoergegevens!$F$8>Invoergegevens!$J$14)*($K6="Ja")) -> 0 | AQ6: =($I6<>0)*(AQ$3<=Invoergegevens!$F$9-Invoergegevens!$F$8) *(MOD(AQ$3,$J6)=0)*($I6*($K6="Nee") +$I6*(AQ$3+Invoergegevens!$F$8<=Invoergegevens!$J$14)*(AQ$3+Invoergegevens!$F$8>=Invoergegevens!$H$14)*((AQ$3+Invoergegevens!$F$8-Invoergegevens!$H$14)/(Invoergegevens!$J$14-Invoergegevens!$H$14+1))*($K6="Ja")+$I6*(AQ$3+Invoergegevens!$F$8>Invoergegevens!$J$14)*($K6="Ja")) -> 0 | AR6: =($I6<>0)*(AR$3<=Invoergegevens!$F$9-Invoergegevens!$F$8) *(MOD(AR$3,$J6)=0)*($I6*($K6="Nee") +$I6*(AR$3+Invoergegevens!$F$8<=Invoergegevens!$J$14)*(AR$3+Invoergegevens!$F$8>=Invoergegevens!$H$14)*((AR$3+Invoergegevens!$F$8-Invoergegevens!$H$14)/(Invoergegevens!$J$14-Invoergegevens!$H$14+1))*($K6="Ja")+$I6*(AR$3+Invoergegevens!$F$8>Invoergegevens!$J$14)*($K6="Ja")) -> 0 | AS6: =($I6<>0)*(AS$3<=Invoergegevens!$F$9-Invoergegevens!$F$8) *(MOD(AS$3,$J6)=0)*($I6*($K6="Nee") +$I6*(AS$3+Invoergegevens!$F$8<=Invoergegevens!$J$14)*(AS$3+Invoergegevens!$F$8>=Invoergegevens!$H$14)*((AS$3+Invoergegevens!$F$8-Invoergegevens!$H$14)/(Invoergegevens!$J$14-Invoergegevens!$H$14+1))*($K6="Ja")+$I6*(AS$3+Invoergegevens!$F$8>Invoergegevens!$J$14)*($K6="Ja")) -> 0 | AT6: =($I6<>0)*(AT$3<=Invoergegevens!$F$9-Invoergegevens!$F$8) *(MOD(AT$3,$J6)=0)*($I6*($K6="Nee") +$I6*(AT$3+Invoergegevens!$F$8<=Invoergegevens!$J$14)*(AT$3+Invoergegevens!$F$8>=Invoergegevens!$H$14)*((AT$3+Invoergegevens!$F$8-Invoergegevens!$H$14)/(Invoergegevens!$J$14-Invoergegevens!$H$14+1))*($K6="Ja")+$I6*(AT$3+Invoergegevens!$F$8>Invoergegevens!$J$14)*($K6="Ja")) -> 0 | AU6: =($I6<>0)*(AU$3<=Invoergegevens!$F$9-Invoergegevens!$F$8) *(MOD(AU$3,$J6)=0)*($I6*($K6="Nee") +$I6*(AU$3+Invoergegevens!$F$8<=Invoergegevens!$J$14)*(AU$3+Invoergegevens!$F$8>=Invoergegevens!$H$14)*((AU$3+Invoergegevens!$F$8-Invoergegevens!$H$14)/(Invoergegevens!$J$14-Invoergegevens!$H$14+1))*($K6="Ja")+$I6*(AU$3+Invoergegevens!$F$8>Invoergegevens!$J$14)*($K6="Ja")) -> 0 | AV6: =($I6<>0)*(AV$3<=Invoergegevens!$F$9-Invoergegevens!$F$8) *(MOD(AV$3,$J6)=0)*($I6*($K6="Nee") +$I6*(AV$3+Invoergegevens!$F$8<=Invoergegevens!$J$14)*(AV$3+Invoergegevens!$F$8>=Invoergegevens!$H$14)*((AV$3+Invoergegevens!$F$8-Invoergegevens!$H$14)/(Invoergegevens!$J$14-Invoergegevens!$H$14+1))*($K6="Ja")+$I6*(AV$3+Invoergegevens!$F$8>Invoergegevens!$J$14)*($K6="Ja")) -> 0 | AW6: =($I6<>0)*(AW$3<=Invoergegevens!$F$9-Invoergegevens!$F$8) *(MOD(AW$3,$J6)=0)*($I6*($K6="Nee") +$I6*(AW$3+Invoergegevens!$F$8<=Invoergegevens!$J$14)*(AW$3+Invoergegevens!$F$8>=Invoergegevens!$H$14)*((AW$3+Invoergegevens!$F$8-Invoergegevens!$H$14)/(Invoergegevens!$J$14-Invoergegevens!$H$14+1))*($K6="Ja")+$I6*(AW$3+Invoergegevens!$F$8>Invoergegevens!$J$14)*($K6="Ja")) -> 0 | AX6: =($I6<>0)*(AX$3<=Invoergegevens!$F$9-Invoergegevens!$F$8) *(MOD(AX$3,$J6)=0)*($I6*($K6="Nee") +$I6*(AX$3+Invoergegevens!$F$8<=Invoergegevens!$J$14)*(AX$3+Invoergegevens!$F$8>=Invoergegevens!$H$14)*((AX$3+Invoergegevens!$F$8-Invoergegevens!$H$14)/(Invoergegevens!$J$14-Invoergegevens!$H$14+1))*($K6="Ja")+$I6*(AX$3+Invoergegevens!$F$8>Invoergegevens!$J$14)*($K6="Ja")) -> 0 | AY6: =($I6<>0)*(AY$3<=Invoergegevens!$F$9-Invoergegevens!$F$8) *(MOD(AY$3,$J6)=0)*($I6*($K6="Nee") +$I6*(AY$3+Invoergegevens!$F$8<=Invoergegevens!$J$14)*(AY$3+Invoergegevens!$F$8>=Invoergegevens!$H$14)*((AY$3+Invoergegevens!$F$8-Invoergegevens!$H$14)/(Invoergegevens!$J$14-Invoergegevens!$H$14+1))*($K6="Ja")+$I6*(AY$3+Invoergegevens!$F$8>Invoergegevens!$J$14)*($K6="Ja")) -> 0 | AZ6: =($I6<>0)*(AZ$3<=Invoergegevens!$F$9-Invoergegevens!$F$8) *(MOD(AZ$3,$J6)=0)*($I6*($K6="Nee") +$I6*(AZ$3+Invoergegevens!$F$8<=Invoergegevens!$J$14)*(AZ$3+Invoergegevens!$F$8>=Invoergegevens!$H$14)*((AZ$3+Invoergegevens!$F$8-Invoergegevens!$H$14)/(Invoergegevens!$J$14-Invoergegevens!$H$14+1))*($K6="Ja")+$I6*(AZ$3+Invoergegevens!$F$8>Invoergegevens!$J$14)*($K6="Ja")) -> 0 | BA6: =($I6<>0)*(BA$3<=Invoergegevens!$F$9-Invoergegevens!$F$8) *(MOD(BA$3,$J6)=0)*($I6*($K6="Nee") +$I6*(BA$3+Invoergegevens!$F$8<=Invoergegevens!$J$14)*(BA$3+Invoergegevens!$F$8>=Invoergegevens!$H$14)*((BA$3+Invoergegevens!$F$8-Invoergegevens!$H$14)/(Invoergegevens!$J$14-Invoergegevens!$H$14+1))*($K6="Ja")+$I6*(BA$3+Invoergegevens!$F$8>Invoergegevens!$J$14)*($K6="Ja")) -> 0 | BB6: =($I6<>0)*(BB$3<=Invoergegevens!$F$9-Invoergegevens!$F$8) *(MOD(BB$3,$J6)=0)*($I6*($K6="Nee") +$I6*(BB$3+Invoergegevens!$F$8<=Invoergegevens!$J$14)*(BB$3+Invoergegevens!$F$8>=Invoergegevens!$H$14)*((BB$3+Invoergegevens!$F$8-Invoergegevens!$H$14)/(Invoergegevens!$J$14-Invoergegevens!$H$14+1))*($K6="Ja")+$I6*(BB$3+Invoergegevens!$F$8>Invoergegevens!$J$14)*($K6="Ja")) -> 0 | BC6: =($I6<>0)*(BC$3<=Invoergegevens!$F$9-Invoergegevens!$F$8) *(MOD(BC$3,$J6)=0)*($I6*($K6="Nee") +$I6*(BC$3+Invoergegevens!$F$8<=Invoergegevens!$J$14)*(BC$3+Invoergegevens!$F$8>=Invoergegevens!$H$14)*((BC$3+Invoergegevens!$F$8-Invoergegevens!$H$14)/(Invoergegevens!$J$14-Invoergegevens!$H$14+1))*($K6="Ja")+$I6*(BC$3+Invoergegevens!$F$8>Invoergegevens!$J$14)*($K6="Ja")) -> 0 | BD6: =($I6<>0)*(BD$3<=Invoergegevens!$F$9-Invoergegevens!$F$8) *(MOD(BD$3,$J6)=0)*($I6*($K6="Nee") +$I6*(BD$3+Invoergegevens!$F$8<=Invoergegevens!$J$14)*(BD$3+Invoergegevens!$F$8>=Invoergegevens!$H$14)*((BD$3+Invoergegevens!$F$8-Invoergegevens!$H$14)/(Invoergegevens!$J$14-Invoergegevens!$H$14+1))*($K6="Ja")+$I6*(BD$3+Invoergegevens!$F$8>Invoergegevens!$J$14)*($K6="Ja")) -> 0 | BE6: =($I6<>0)*(BE$3<=Invoergegevens!$F$9-Invoergegevens!$F$8) *(MOD(BE$3,$J6)=0)*($I6*($K6="Nee") +$I6*(BE$3+Invoergegevens!$F$8<=Invoergegevens!$J$14)*(BE$3+Invoergegevens!$F$8>=Invoergegevens!$H$14)*((BE$3+Invoergegevens!$F$8-Invoergegevens!$H$14)/(Invoergegevens!$J$14-Invoergegevens!$H$14+1))*($K6="Ja")+$I6*(BE$3+Invoergegevens!$F$8>Invoergegevens!$J$14)*($K6="Ja")) -> 0 | BF6: =($I6<>0)*(BF$3<=Invoergegevens!$F$9-Invoergegevens!$F$8) *(MOD(BF$3,$J6)=0)*($I6*($K6="Nee") +$I6*(BF$3+Invoergegevens!$F$8<=Invoergegevens!$J$14)*(BF$3+Invoergegevens!$F$8>=Invoergegevens!$H$14)*((BF$3+Invoergegevens!$F$8-Invoergegevens!$H$14)/(Invoergegevens!$J$14-Invoergegevens!$H$14+1))*($K6="Ja")+$I6*(BF$3+Invoergegevens!$F$8>Invoergegevens!$J$14)*($K6="Ja")) -> 0 | BG6: =($I6<>0)*(BG$3<=Invoergegevens!$F$9-Invoergegevens!$F$8) *(MOD(BG$3,$J6)=0)*($I6*($K6="Nee") +$I6*(BG$3+Invoergegevens!$F$8<=Invoergegevens!$J$14)*(BG$3+Invoergegevens!$F$8>=Invoergegevens!$H$14)*((BG$3+Invoergegevens!$F$8-Invoergegevens!$H$14)/(Invoergegevens!$J$14-Invoergegevens!$H$14+1))*($K6="Ja")+$I6*(BG$3+Invoergegevens!$F$8>Invoergegevens!$J$14)*($K6="Ja")) -> 0 | BH6: =($I6<>0)*(BH$3<=Invoergegevens!$F$9-Invoergegevens!$F$8) *(MOD(BH$3,$J6)=0)*($I6*($K6="Nee") +$I6*(BH$3+Invoergegevens!$F$8<=Invoergegevens!$J$14)*(BH$3+Invoergegevens!$F$8>=Invoergegevens!$H$14)*((BH$3+Invoergegevens!$F$8-Invoergegevens!$H$14)/(Invoergegevens!$J$14-Invoergegevens!$H$14+1))*($K6="Ja")+$I6*(BH$3+Invoergegevens!$F$8>Invoergegevens!$J$14)*($K6="Ja")) -> 0 | BI6: =($I6<>0)*(BI$3<=Invoergegevens!$F$9-Invoergegevens!$F$8) *(MOD(BI$3,$J6)=0)*($I6*($K6="Nee") +$I6*(BI$3+Invoergegevens!$F$8<=Invoergegevens!$J$14)*(BI$3+Invoergegevens!$F$8>=Invoergegevens!$H$14)*((BI$3+Invoergegevens!$F$8-Invoergegevens!$H$14)/(Invoergegevens!$J$14-Invoergegevens!$H$14+1))*($K6="Ja")+$I6*(BI$3+Invoergegevens!$F$8>Invoergegevens!$J$14)*($K6="Ja")) -> 0 | BJ6: =($I6<>0)*(BJ$3<=Invoergegevens!$F$9-Invoergegevens!$F$8) *(MOD(BJ$3,$J6)=0)*($I6*($K6="Nee") +$I6*(BJ$3+Invoergegevens!$F$8<=Invoergegevens!$J$14)*(BJ$3+Invoergegevens!$F$8>=Invoergegevens!$H$14)*((BJ$3+Invoergegevens!$F$8-Invoergegevens!$H$14)/(Invoergegevens!$J$14-Invoergegevens!$H$14+1))*($K6="Ja")+$I6*(BJ$3+Invoergegevens!$F$8>Invoergegevens!$J$14)*($K6="Ja")) -> 0 | BK6: =($I6<>0)*(BK$3<=Invoergegevens!$F$9-Invoergegevens!$F$8) *(MOD(BK$3,$J6)=0)*($I6*($K6="Nee") +$I6*(BK$3+Invoergegevens!$F$8<=Invoergegevens!$J$14)*(BK$3+Invoergegevens!$F$8>=Invoergegevens!$H$14)*((BK$3+Invoergegevens!$F$8-Invoergegevens!$H$14)/(Invoergegevens!$J$14-Invoergegevens!$H$14+1))*($K6="Ja")+$I6*(BK$3+Invoergegevens!$F$8>Invoergegevens!$J$14)*($K6="Ja")) -> 0 | BL6: =($I6<>0)*(BL$3<=Invoergegevens!$F$9-Invoergegevens!$F$8) *(MOD(BL$3,$J6)=0)*($I6*($K6="Nee") +$I6*(BL$3+Invoergegevens!$F$8<=Invoergegevens!$J$14)*(BL$3+Invoergegevens!$F$8>=Invoergegevens!$H$14)*((BL$3+Invoergegevens!$F$8-Invoergegevens!$H$14)/(Invoergegevens!$J$14-Invoergegevens!$H$14+1))*($K6="Ja")+$I6*(BL$3+Invoergegevens!$F$8>Invoergegevens!$J$14)*($K6="Ja")) -> 0 | BM6: =($I6<>0)*(BM$3<=Invoergegevens!$F$9-Invoergegevens!$F$8) *(MOD(BM$3,$J6)=0)*($I6*($K6="Nee") +$I6*(BM$3+Invoergegevens!$F$8<=Invoergegevens!$J$14)*(BM$3+Invoergegevens!$F$8>=Invoergegevens!$H$14)*((BM$3+Invoergegevens!$F$8-Invoergegevens!$H$14)/(Invoergegevens!$J$14-Invoergegevens!$H$14+1))*($K6="Ja")+$I6*(BM$3+Invoergegevens!$F$8>Invoergegevens!$J$14)*($K6="Ja")) -> 0 | BN6: =($I6<>0)*(BN$3<=Invoergegevens!$F$9-Invoergegevens!$F$8) *(MOD(BN$3,$J6)=0)*($I6*($K6="Nee") +$I6*(BN$3+Invoergegevens!$F$8<=Invoergegevens!$J$14)*(BN$3+Invoergegevens!$F$8>=Invoergegevens!$H$14)*((BN$3+Invoergegevens!$F$8-Invoergegevens!$H$14)/(Invoergegevens!$J$14-Invoergegevens!$H$14+1))*($K6="Ja")+$I6*(BN$3+Invoergegevens!$F$8>Invoergegevens!$J$14)*($K6="Ja")) -> 0 | BO6: =($I6<>0)*(BO$3<=Invoergegevens!$F$9-Invoergegevens!$F$8) *(MOD(BO$3,$J6)=0)*($I6*($K6="Nee") +$I6*(BO$3+Invoergegevens!$F$8<=Invoergegevens!$J$14)*(BO$3+Invoergegevens!$F$8>=Invoergegevens!$H$14)*((BO$3+Invoergegevens!$F$8-Invoergegevens!$H$14)/(Invoergegevens!$J$14-Invoergegevens!$H$14+1))*($K6="Ja")+$I6*(BO$3+Invoergegevens!$F$8>Invoergegevens!$J$14)*($K6="Ja")) -> 0 | BP6: =($I6<>0)*(BP$3<=Invoergegevens!$F$9-Invoergegevens!$F$8) *(MOD(BP$3,$J6)=0)*($I6*($K6="Nee") +$I6*(BP$3+Invoergegevens!$F$8<=Invoergegevens!$J$14)*(BP$3+Invoergegevens!$F$8>=Invoergegevens!$H$14)*((BP$3+Invoergegevens!$F$8-Invoergegevens!$H$14)/(Invoergegevens!$J$14-Invoergegevens!$H$14+1))*($K6="Ja")+$I6*(BP$3+Invoergegevens!$F$8>Invoergegevens!$J$14)*($K6="Ja")) -> 0 | BQ6: =($I6<>0)*(BQ$3<=Invoergegevens!$F$9-Invoergegevens!$F$8) *(MOD(BQ$3,$J6)=0)*($I6*($K6="Nee") +$I6*(BQ$3+Invoergegevens!$F$8<=Invoergegevens!$J$14)*(BQ$3+Invoergegevens!$F$8>=Invoergegevens!$H$14)*((BQ$3+Invoergegevens!$F$8-Invoergegevens!$H$14)/(Invoergegevens!$J$14-Invoergegevens!$H$14+1))*($K6="Ja")+$I6*(BQ$3+Invoergegevens!$F$8>Invoergegevens!$J$14)*($K6="Ja")) -> 0 | BR6: =($I6<>0)*(BR$3<=Invoergegevens!$F$9-Invoergegevens!$F$8) *(MOD(BR$3,$J6)=0)*($I6*($K6="Nee") +$I6*(BR$3+Invoergegevens!$F$8<=Invoergegevens!$J$14)*(BR$3+Invoergegevens!$F$8>=Invoergegevens!$H$14)*((BR$3+Invoergegevens!$F$8-Invoergegevens!$H$14)/(Invoergegevens!$J$14-Invoergegevens!$H$14+1))*($K6="Ja")+$I6*(BR$3+Invoergegevens!$F$8>Invoergegevens!$J$14)*($K6="Ja")) -> 0 | BS6: =($I6<>0)*(BS$3<=Invoergegevens!$F$9-Invoergegevens!$F$8) *(MOD(BS$3,$J6)=0)*($I6*($K6="Nee") +$I6*(BS$3+Invoergegevens!$F$8<=Invoergegevens!$J$14)*(BS$3+Invoergegevens!$F$8>=Invoergegevens!$H$14)*((BS$3+Invoergegevens!$F$8-Invoergegevens!$H$14)/(Invoergegevens!$J$14-Invoergegevens!$H$14+1))*($K6="Ja")+$I6*(BS$3+Invoergegevens!$F$8>Invoergegevens!$J$14)*($K6="Ja")) -> 0 | BT6: =($I6<>0)*(BT$3<=Invoergegevens!$F$9-Invoergegevens!$F$8) *(MOD(BT$3,$J6)=0)*($I6*($K6="Nee") +$I6*(BT$3+Invoergegevens!$F$8<=Invoergegevens!$J$14)*(BT$3+Invoergegevens!$F$8>=Invoergegevens!$H$14)*((BT$3+Invoergegevens!$F$8-Invoergegevens!$H$14)/(Invoergegevens!$J$14-Invoergegevens!$H$14+1))*($K6="Ja")+$I6*(BT$3+Invoergegevens!$F$8>Invoergegevens!$J$14)*($K6="Ja")) -> 0 | BU6: =($I6<>0)*(BU$3<=Invoergegevens!$F$9-Invoergegevens!$F$8) *(MOD(BU$3,$J6)=0)*($I6*($K6="Nee") +$I6*(BU$3+Invoergegevens!$F$8<=Invoergegevens!$J$14)*(BU$3+Invoergegevens!$F$8>=Invoergegevens!$H$14)*((BU$3+Invoergegevens!$F$8-Invoergegevens!$H$14)/(Invoergegevens!$J$14-Invoergegevens!$H$14+1))*($K6="Ja")+$I6*(BU$3+Invoergegevens!$F$8>Invoergegevens!$J$14)*($K6="Ja")) -> 0 | BV6: =($I6<>0)*(BV$3<=Invoergegevens!$F$9-Invoergegevens!$F$8) *(MOD(BV$3,$J6)=0)*($I6*($K6="Nee") +$I6*(BV$3+Invoergegevens!$F$8<=Invoergegevens!$J$14)*(BV$3+Invoergegevens!$F$8>=Invoergegevens!$H$14)*((BV$3+Invoergegevens!$F$8-Invoergegevens!$H$14)/(Invoergegevens!$J$14-Invoergegevens!$H$14+1))*($K6="Ja")+$I6*(BV$3+Invoergegevens!$F$8>Invoergegevens!$J$14)*($K6="Ja")) -> 0 | BW6: =($I6<>0)*(BW$3<=Invoergegevens!$F$9-Invoergegevens!$F$8) *(MOD(BW$3,$J6)=0)*($I6*($K6="Nee") +$I6*(BW$3+Invoergegevens!$F$8<=Invoergegevens!$J$14)*(BW$3+Invoergegevens!$F$8>=Invoergegevens!$H$14)*((BW$3+Invoergegevens!$F$8-Invoergegevens!$H$14)/(Invoergegevens!$J$14-Invoergegevens!$H$14+1))*($K6="Ja")+$I6*(BW$3+Invoergegevens!$F$8>Invoergegevens!$J$14)*($K6="Ja")) -> 0 | BX6: =($I6<>0)*(BX$3<=Invoergegevens!$F$9-Invoergegevens!$F$8) *(MOD(BX$3,$J6)=0)*($I6*($K6="Nee") +$I6*(BX$3+Invoergegevens!$F$8<=Invoergegevens!$J$14)*(BX$3+Invoergegevens!$F$8>=Invoergegevens!$H$14)*((BX$3+Invoergegevens!$F$8-Invoergegevens!$H$14)/(Invoergegevens!$J$14-Invoergegevens!$H$14+1))*($K6="Ja")+$I6*(BX$3+Invoergegevens!$F$8>Invoergegevens!$J$14)*($K6="Ja")) -> 0 | BY6: =($I6<>0)*(BY$3<=Invoergegevens!$F$9-Invoergegevens!$F$8) *(MOD(BY$3,$J6)=0)*($I6*($K6="Nee") +$I6*(BY$3+Invoergegevens!$F$8<=Invoergegevens!$J$14)*(BY$3+Invoergegevens!$F$8>=Invoergegevens!$H$14)*((BY$3+Invoergegevens!$F$8-Invoergegevens!$H$14)/(Invoergegevens!$J$14-Invoergegevens!$H$14+1))*($K6="Ja")+$I6*(BY$3+Invoergegevens!$F$8>Invoergegevens!$J$14)*($K6="Ja")) -> 0 | BZ6: =($I6<>0)*(BZ$3<=Invoergegevens!$F$9-Invoergegevens!$F$8) *(MOD(BZ$3,$J6)=0)*($I6*($K6="Nee") +$I6*(BZ$3+Invoergegevens!$F$8<=Invoergegevens!$J$14)*(BZ$3+Invoergegevens!$F$8>=Invoergegevens!$H$14)*((BZ$3+Invoergegevens!$F$8-Invoergegevens!$H$14)/(Invoergegevens!$J$14-Invoergegevens!$H$14+1))*($K6="Ja")+$I6*(BZ$3+Invoergegevens!$F$8>Invoergegevens!$J$14)*($K6="Ja")) -> 0 | CA6: =($I6<>0)*(CA$3<=Invoergegevens!$F$9-Invoergegevens!$F$8) *(MOD(CA$3,$J6)=0)*($I6*($K6="Nee") +$I6*(CA$3+Invoergegevens!$F$8<=Invoergegevens!$J$14)*(CA$3+Invoergegevens!$F$8>=Invoergegevens!$H$14)*((CA$3+Invoergegevens!$F$8-Invoergegevens!$H$14)/(Invoergegevens!$J$14-Invoergegevens!$H$14+1))*($K6="Ja")+$I6*(CA$3+Invoergegevens!$F$8>Invoergegevens!$J$14)*($K6="Ja")) -> 0 | CB6: =($I6<>0)*(CB$3<=Invoergegevens!$F$9-Invoergegevens!$F$8) *(MOD(CB$3,$J6)=0)*($I6*($K6="Nee") +$I6*(CB$3+Invoergegevens!$F$8<=Invoergegevens!$J$14)*(CB$3+Invoergegevens!$F$8>=Invoergegevens!$H$14)*((CB$3+Invoergegevens!$F$8-Invoergegevens!$H$14)/(Invoergegevens!$J$14-Invoergegevens!$H$14+1))*($K6="Ja")+$I6*(CB$3+Invoergegevens!$F$8>Invoergegevens!$J$14)*($K6="Ja")) -> 0 | CC6: =($I6<>0)*(CC$3<=Invoergegevens!$F$9-Invoergegevens!$F$8) *(MOD(CC$3,$J6)=0)*($I6*($K6="Nee") +$I6*(CC$3+Invoergegevens!$F$8<=Invoergegevens!$J$14)*(CC$3+Invoergegevens!$F$8>=Invoergegevens!$H$14)*((CC$3+Invoergegevens!$F$8-Invoergegevens!$H$14)/(Invoergegevens!$J$14-Invoergegevens!$H$14+1))*($K6="Ja")+$I6*(CC$3+Invoergegevens!$F$8>Invoergegevens!$J$14)*($K6="Ja")) -> 0 | CD6: =($I6<>0)*(CD$3<=Invoergegevens!$F$9-Invoergegevens!$F$8) *(MOD(CD$3,$J6)=0)*($I6*($K6="Nee") +$I6*(CD$3+Invoergegevens!$F$8<=Invoergegevens!$J$14)*(CD$3+Invoergegevens!$F$8>=Invoergegevens!$H$14)*((CD$3+Invoergegevens!$F$8-Invoergegevens!$H$14)/(Invoergegevens!$J$14-Invoergegevens!$H$14+1))*($K6="Ja")+$I6*(CD$3+Invoergegevens!$F$8>Invoergegevens!$J$14)*($K6="Ja")) -> 0 | CE6: =($I6<>0)*(CE$3<=Invoergegevens!$F$9-Invoergegevens!$F$8) *(MOD(CE$3,$J6)=0)*($I6*($K6="Nee") +$I6*(CE$3+Invoergegevens!$F$8<=Invoergegevens!$J$14)*(CE$3+Invoergegevens!$F$8>=Invoergegevens!$H$14)*((CE$3+Invoergegevens!$F$8-Invoergegevens!$H$14)/(Invoergegevens!$J$14-Invoergegevens!$H$14+1))*($K6="Ja")+$I6*(CE$3+Invoergegevens!$F$8>Invoergegevens!$J$14)*($K6="Ja")) -> 0 | CF6: =($I6<>0)*(CF$3<=Invoergegevens!$F$9-Invoergegevens!$F$8) *(MOD(CF$3,$J6)=0)*($I6*($K6="Nee") +$I6*(CF$3+Invoergegevens!$F$8<=Invoergegevens!$J$14)*(CF$3+Invoergegevens!$F$8>=Invoergegevens!$H$14)*((CF$3+Invoergegevens!$F$8-Invoergegevens!$H$14)/(Invoergegevens!$J$14-Invoergegevens!$H$14+1))*($K6="Ja")+$I6*(CF$3+Invoergegevens!$F$8>Invoergegevens!$J$14)*($K6="Ja")) -> 0 | CG6: =($I6<>0)*(CG$3<=Invoergegevens!$F$9-Invoergegevens!$F$8) *(MOD(CG$3,$J6)=0)*($I6*($K6="Nee") +$I6*(CG$3+Invoergegevens!$F$8<=Invoergegevens!$J$14)*(CG$3+Invoergegevens!$F$8>=Invoergegevens!$H$14)*((CG$3+Invoergegevens!$F$8-Invoergegevens!$H$14)/(Invoergegevens!$J$14-Invoergegevens!$H$14+1))*($K6="Ja")+$I6*(CG$3+Invoergegevens!$F$8>Invoergegevens!$J$14)*($K6="Ja")) -> 0 | CH6: =($I6<>0)*(CH$3<=Invoergegevens!$F$9-Invoergegevens!$F$8) *(MOD(CH$3,$J6)=0)*($I6*($K6="Nee") +$I6*(CH$3+Invoergegevens!$F$8<=Invoergegevens!$J$14)*(CH$3+Invoergegevens!$F$8>=Invoergegevens!$H$14)*((CH$3+Invoergegevens!$F$8-Invoergegevens!$H$14)/(Invoergegevens!$J$14-Invoergegevens!$H$14+1))*($K6="Ja")+$I6*(CH$3+Invoergegevens!$F$8>Invoergegevens!$J$14)*($K6="Ja")) -> 0 | CI6: =($I6<>0)*(CI$3<=Invoergegevens!$F$9-Invoergegevens!$F$8) *(MOD(CI$3,$J6)=0)*($I6*($K6="Nee") +$I6*(CI$3+Invoergegevens!$F$8<=Invoergegevens!$J$14)*(CI$3+Invoergegevens!$F$8>=Invoergegevens!$H$14)*((CI$3+Invoergegevens!$F$8-Invoergegevens!$H$14)/(Invoergegevens!$J$14-Invoergegevens!$H$14+1))*($K6="Ja")+$I6*(CI$3+Invoergegevens!$F$8>Invoergegevens!$J$14)*($K6="Ja")) -> 0 | CJ6: =($I6<>0)*(CJ$3<=Invoergegevens!$F$9-Invoergegevens!$F$8) *(MOD(CJ$3,$J6)=0)*($I6*($K6="Nee") +$I6*(CJ$3+Invoergegevens!$F$8<=Invoergegevens!$J$14)*(CJ$3+Invoergegevens!$F$8>=Invoergegevens!$H$14)*((CJ$3+Invoergegevens!$F$8-Invoergegevens!$H$14)/(Invoergegevens!$J$14-Invoergegevens!$H$14+1))*($K6="Ja")+$I6*(CJ$3+Invoergegevens!$F$8>Invoergegevens!$J$14)*($K6="Ja")) -> 0 | CK6: =($I6<>0)*(CK$3<=Invoergegevens!$F$9-Invoergegevens!$F$8) *(MOD(CK$3,$J6)=0)*($I6*($K6="Nee") +$I6*(CK$3+Invoergegevens!$F$8<=Invoergegevens!$J$14)*(CK$3+Invoergegevens!$F$8>=Invoergegevens!$H$14)*((CK$3+Invoergegevens!$F$8-Invoergegevens!$H$14)/(Invoergegevens!$J$14-Invoergegevens!$H$14+1))*($K6="Ja")+$I6*(CK$3+Invoergegevens!$F$8>Invoergegevens!$J$14)*($K6="Ja")) -> 0 | CL6: =($I6<>0)*(CL$3<=Invoergegevens!$F$9-Invoergegevens!$F$8) *(MOD(CL$3,$J6)=0)*($I6*($K6="Nee") +$I6*(CL$3+Invoergegevens!$F$8<=Invoergegevens!$J$14)*(CL$3+Invoergegevens!$F$8>=Invoergegevens!$H$14)*((CL$3+Invoergegevens!$F$8-Invoergegevens!$H$14)/(Invoergegevens!$J$14-Invoergegevens!$H$14+1))*($K6="Ja")+$I6*(CL$3+Invoergegevens!$F$8>Invoergegevens!$J$14)*($K6="Ja")) -> 0 | CM6: =($I6<>0)*(CM$3<=Invoergegevens!$F$9-Invoergegevens!$F$8) *(MOD(CM$3,$J6)=0)*($I6*($K6="Nee") +$I6*(CM$3+Invoergegevens!$F$8<=Invoergegevens!$J$14)*(CM$3+Invoergegevens!$F$8>=Invoergegevens!$H$14)*((CM$3+Invoergegevens!$F$8-Invoergegevens!$H$14)/(Invoergegevens!$J$14-Invoergegevens!$H$14+1))*($K6="Ja")+$I6*(CM$3+Invoergegevens!$F$8>Invoergegevens!$J$14)*($K6="Ja")) -> 0 | CN6: =($I6<>0)*(CN$3<=Invoergegevens!$F$9-Invoergegevens!$F$8) *(MOD(CN$3,$J6)=0)*($I6*($K6="Nee") +$I6*(CN$3+Invoergegevens!$F$8<=Invoergegevens!$J$14)*(CN$3+Invoergegevens!$F$8>=Invoergegevens!$H$14)*((CN$3+Invoergegevens!$F$8-Invoergegevens!$H$14)/(Invoergegevens!$J$14-Invoergegevens!$H$14+1))*($K6="Ja")+$I6*(CN$3+Invoergegevens!$F$8>Invoergegevens!$J$14)*($K6="Ja")) -> 0 | CO6: =($I6<>0)*(CO$3<=Invoergegevens!$F$9-Invoergegevens!$F$8) *(MOD(CO$3,$J6)=0)*($I6*($K6="Nee") +$I6*(CO$3+Invoergegevens!$F$8<=Invoergegevens!$J$14)*(CO$3+Invoergegevens!$F$8>=Invoergegevens!$H$14)*((CO$3+Invoergegevens!$F$8-Invoergegevens!$H$14)/(Invoergegevens!$J$14-Invoergegevens!$H$14+1))*($K6="Ja")+$I6*(CO$3+Invoergegevens!$F$8>Invoergegevens!$J$14)*($K6="Ja")) -> 0 | CP6: =($I6<>0)*(CP$3<=Invoergegevens!$F$9-Invoergegevens!$F$8) *(MOD(CP$3,$J6)=0)*($I6*($K6="Nee") +$I6*(CP$3+Invoergegevens!$F$8<=Invoergegevens!$J$14)*(CP$3+Invoergegevens!$F$8>=Invoergegevens!$H$14)*((CP$3+Invoergegevens!$F$8-Invoergegevens!$H$14)/(Invoergegevens!$J$14-Invoergegevens!$H$14+1))*($K6="Ja")+$I6*(CP$3+Invoergegevens!$F$8>Invoergegevens!$J$14)*($K6="Ja")) -> 0 | CQ6: =($I6<>0)*(CQ$3<=Invoergegevens!$F$9-Invoergegevens!$F$8) *(MOD(CQ$3,$J6)=0)*($I6*($K6="Nee") +$I6*(CQ$3+Invoergegevens!$F$8<=Invoergegevens!$J$14)*(CQ$3+Invoergegevens!$F$8>=Invoergegevens!$H$14)*((CQ$3+Invoergegevens!$F$8-Invoergegevens!$H$14)/(Invoergegevens!$J$14-Invoergegevens!$H$14+1))*($K6="Ja")+$I6*(CQ$3+Invoergegevens!$F$8>Invoergegevens!$J$14)*($K6="Ja")) -> 0 | CR6: =($I6<>0)*(CR$3<=Invoergegevens!$F$9-Invoergegevens!$F$8) *(MOD(CR$3,$J6)=0)*($I6*($K6="Nee") +$I6*(CR$3+Invoergegevens!$F$8<=Invoergegevens!$J$14)*(CR$3+Invoergegevens!$F$8>=Invoergegevens!$H$14)*((CR$3+Invoergegevens!$F$8-Invoergegevens!$H$14)/(Invoergegevens!$J$14-Invoergegevens!$H$14+1))*($K6="Ja")+$I6*(CR$3+Invoergegevens!$F$8>Invoergegevens!$J$14)*($K6="Ja")) -> 0 | CS6: =($I6<>0)*(CS$3<=Invoergegevens!$F$9-Invoergegevens!$F$8) *(MOD(CS$3,$J6)=0)*($I6*($K6="Nee") +$I6*(CS$3+Invoergegevens!$F$8<=Invoergegevens!$J$14)*(CS$3+Invoergegevens!$F$8>=Invoergegevens!$H$14)*((CS$3+Invoergegevens!$F$8-Invoergegevens!$H$14)/(Invoergegevens!$J$14-Invoergegevens!$H$14+1))*($K6="Ja")+$I6*(CS$3+Invoergegevens!$F$8>Invoergegevens!$J$14)*($K6="Ja")) -> 0 | CT6: =($I6<>0)*(CT$3<=Invoergegevens!$F$9-Invoergegevens!$F$8) *(MOD(CT$3,$J6)=0)*($I6*($K6="Nee") +$I6*(CT$3+Invoergegevens!$F$8<=Invoergegevens!$J$14)*(CT$3+Invoergegevens!$F$8>=Invoergegevens!$H$14)*((CT$3+Invoergegevens!$F$8-Invoergegevens!$H$14)/(Invoergegevens!$J$14-Invoergegevens!$H$14+1))*($K6="Ja")+$I6*(CT$3+Invoergegevens!$F$8>Invoergegevens!$J$14)*($K6="Ja")) -> 0 | CU6: =($I6<>0)*(CU$3<=Invoergegevens!$F$9-Invoergegevens!$F$8) *(MOD(CU$3,$J6)=0)*($I6*($K6="Nee") +$I6*(CU$3+Invoergegevens!$F$8<=Invoergegevens!$J$14)*(CU$3+Invoergegevens!$F$8>=Invoergegevens!$H$14)*((CU$3+Invoergegevens!$F$8-Invoergegevens!$H$14)/(Invoergegevens!$J$14-Invoergegevens!$H$14+1))*($K6="Ja")+$I6*(CU$3+Invoergegevens!$F$8>Invoergegevens!$J$14)*($K6="Ja")) -> 0 | CV6: =($I6<>0)*(CV$3<=Invoergegevens!$F$9-Invoergegevens!$F$8) *(MOD(CV$3,$J6)=0)*($I6*($K6="Nee") +$I6*(CV$3+Invoergegevens!$F$8<=Invoergegevens!$J$14)*(CV$3+Invoergegevens!$F$8>=Invoergegevens!$H$14)*((CV$3+Invoergegevens!$F$8-Invoergegevens!$H$14)/(Invoergegevens!$J$14-Invoergegevens!$H$14+1))*($K6="Ja")+$I6*(CV$3+Invoergegevens!$F$8>Invoergegevens!$J$14)*($K6="Ja")) -> 0 | CW6: =($I6<>0)*(CW$3<=Invoergegevens!$F$9-Invoergegevens!$F$8) *(MOD(CW$3,$J6)=0)*($I6*($K6="Nee") +$I6*(CW$3+Invoergegevens!$F$8<=Invoergegevens!$J$14)*(CW$3+Invoergegevens!$F$8>=Invoergegevens!$H$14)*((CW$3+Invoergegevens!$F$8-Invoergegevens!$H$14)/(Invoergegevens!$J$14-Invoergegevens!$H$14+1))*($K6="Ja")+$I6*(CW$3+Invoergegevens!$F$8>Invoergegevens!$J$14)*($K6="Ja")) -> 0 | CX6: =($I6<>0)*(CX$3<=Invoergegevens!$F$9-Invoergegevens!$F$8) *(MOD(CX$3,$J6)=0)*($I6*($K6="Nee") +$I6*(CX$3+Invoergegevens!$F$8<=Invoergegevens!$J$14)*(CX$3+Invoergegevens!$F$8>=Invoergegevens!$H$14)*((CX$3+Invoergegevens!$F$8-Invoergegevens!$H$14)/(Invoergegevens!$J$14-Invoergegevens!$H$14+1))*($K6="Ja")+$I6*(CX$3+Invoergegevens!$F$8>Invoergegevens!$J$14)*($K6="Ja")) -> 0
B7: 01.1 | I7: 0 | J7: 1 | K7: Ja | AF7: =($I7<>0)*(AF$3<=Invoergegevens!$F$9-Invoergegevens!$F$8) *(MOD(AF$3,$J7)=0)*($I7*($K7="Nee") +$I7*(AF$3+Invoergegevens!$F$8<=Invoergegevens!$J$14)*(AF$3+Invoergegevens!$F$8>=Invoergegevens!$H$14)*((AF$3+Invoergegevens!$F$8-Invoergegevens!$H$14)/(Invoergegevens!$J$14-Invoergegevens!$H$14+1))*($K7="Ja")+$I7*(AF$3+Invoergegevens!$F$8>Invoergegevens!$J$14)*($K7="Ja")) -> 0 | AG7: =($I7<>0)*(AG$3<=Invoergegevens!$F$9-Invoergegevens!$F$8) *(MOD(AG$3,$J7)=0)*($I7*($K7="Nee") +$I7*(AG$3+Invoergegevens!$F$8<=Invoergegevens!$J$14)*(AG$3+Invoergegevens!$F$8>=Invoergegevens!$H$14)*((AG$3+Invoergegevens!$F$8-Invoergegevens!$H$14)/(Invoergegevens!$J$14-Invoergegevens!$H$14+1))*($K7="Ja")+$I7*(AG$3+Invoergegevens!$F$8>Invoergegevens!$J$14)*($K7="Ja")) -> 0 | AH7: =($I7<>0)*(AH$3<=Invoergegevens!$F$9-Invoergegevens!$F$8) *(MOD(AH$3,$J7)=0)*($I7*($K7="Nee") +$I7*(AH$3+Invoergegevens!$F$8<=Invoergegevens!$J$14)*(AH$3+Invoergegevens!$F$8>=Invoergegevens!$H$14)*((AH$3+Invoergegevens!$F$8-Invoergegevens!$H$14)/(Invoergegevens!$J$14-Invoergegevens!$H$14+1))*($K7="Ja")+$I7*(AH$3+Invoergegevens!$F$8>Invoergegevens!$J$14)*($K7="Ja")) -> 0 | AI7: =($I7<>0)*(AI$3<=Invoergegevens!$F$9-Invoergegevens!$F$8) *(MOD(AI$3,$J7)=0)*($I7*($K7="Nee") +$I7*(AI$3+Invoergegevens!$F$8<=Invoergegevens!$J$14)*(AI$3+Invoergegevens!$F$8>=Invoergegevens!$H$14)*((AI$3+Invoergegevens!$F$8-Invoergegevens!$H$14)/(Invoergegevens!$J$14-Invoergegevens!$H$14+1))*($K7="Ja")+$I7*(AI$3+Invoergegevens!$F$8>Invoergegevens!$J$14)*($K7="Ja")) -> 0 | AJ7: =($I7<>0)*(AJ$3<=Invoergegevens!$F$9-Invoergegevens!$F$8) *(MOD(AJ$3,$J7)=0)*($I7*($K7="Nee") +$I7*(AJ$3+Invoergegevens!$F$8<=Invoergegevens!$J$14)*(AJ$3+Invoergegevens!$F$8>=Invoergegevens!$H$14)*((AJ$3+Invoergegevens!$F$8-Invoergegevens!$H$14)/(Invoergegevens!$J$14-Invoergegevens!$H$14+1))*($K7="Ja")+$I7*(AJ$3+Invoergegevens!$F$8>Invoergegevens!$J$14)*($K7="Ja")) -> 0 | AK7: =($I7<>0)*(AK$3<=Invoergegevens!$F$9-Invoergegevens!$F$8) *(MOD(AK$3,$J7)=0)*($I7*($K7="Nee") +$I7*(AK$3+Invoergegevens!$F$8<=Invoergegevens!$J$14)*(AK$3+Invoergegevens!$F$8>=Invoergegevens!$H$14)*((AK$3+Invoergegevens!$F$8-Invoergegevens!$H$14)/(Invoergegevens!$J$14-Invoergegevens!$H$14+1))*($K7="Ja")+$I7*(AK$3+Invoergegevens!$F$8>Invoergegevens!$J$14)*($K7="Ja")) -> 0 | AL7: =($I7<>0)*(AL$3<=Invoergegevens!$F$9-Invoergegevens!$F$8) *(MOD(AL$3,$J7)=0)*($I7*($K7="Nee") +$I7*(AL$3+Invoergegevens!$F$8<=Invoergegevens!$J$14)*(AL$3+Invoergegevens!$F$8>=Invoergegevens!$H$14)*((AL$3+Invoergegevens!$F$8-Invoergegevens!$H$14)/(Invoergegevens!$J$14-Invoergegevens!$H$14+1))*($K7="Ja")+$I7*(AL$3+Invoergegevens!$F$8>Invoergegevens!$J$14)*($K7="Ja")) -> 0 | AM7: =($I7<>0)*(AM$3<=Invoergegevens!$F$9-Invoergegevens!$F$8) *(MOD(AM$3,$J7)=0)*($I7*($K7="Nee") +$I7*(AM$3+Invoergegevens!$F$8<=Invoergegevens!$J$14)*(AM$3+Invoergegevens!$F$8>=Invoergegevens!$H$14)*((AM$3+Invoergegevens!$F$8-Invoergegevens!$H$14)/(Invoergegevens!$J$14-Invoergegevens!$H$14+1))*($K7="Ja")+$I7*(AM$3+Invoergegevens!$F$8>Invoergegevens!$J$14)*($K7="Ja")) -> 0 | AN7: =($I7<>0)*(AN$3<=Invoergegevens!$F$9-Invoergegevens!$F$8) *(MOD(AN$3,$J7)=0)*($I7*($K7="Nee") +$I7*(AN$3+Invoergegevens!$F$8<=Invoergegevens!$J$14)*(AN$3+Invoergegevens!$F$8>=Invoergegevens!$H$14)*((AN$3+Invoergegevens!$F$8-Invoergegevens!$H$14)/(Invoergegevens!$J$14-Invoergegevens!$H$14+1))*($K7="Ja")+$I7*(AN$3+Invoergegevens!$F$8>Invoergegevens!$J$14)*($K7="Ja")) -> 0 | AO7: =($I7<>0)*(AO$3<=Invoergegevens!$F$9-Invoergegevens!$F$8) *(MOD(AO$3,$J7)=0)*($I7*($K7="Nee") +$I7*(AO$3+Invoergegevens!$F$8<=Invoergegevens!$J$14)*(AO$3+Invoergegevens!$F$8>=Invoergegevens!$H$14)*((AO$3+Invoergegevens!$F$8-Invoergegevens!$H$14)/(Invoergegevens!$J$14-Invoergegevens!$H$14+1))*($K7="Ja")+$I7*(AO$3+Invoergegevens!$F$8>Invoergegevens!$J$14)*($K7="Ja")) -> 0 | AP7: =($I7<>0)*(AP$3<=Invoergegevens!$F$9-Invoergegevens!$F$8) *(MOD(AP$3,$J7)=0)*($I7*($K7="Nee") +$I7*(AP$3+Invoergegevens!$F$8<=Invoergegevens!$J$14)*(AP$3+Invoergegevens!$F$8>=Invoergegevens!$H$14)*((AP$3+Invoergegevens!$F$8-Invoergegevens!$H$14)/(Invoergegevens!$J$14-Invoergegevens!$H$14+1))*($K7="Ja")+$I7*(AP$3+Invoergegevens!$F$8>Invoergegevens!$J$14)*($K7="Ja")) -> 0 | AQ7: =($I7<>0)*(AQ$3<=Invoergegevens!$F$9-Invoergegevens!$F$8) *(MOD(AQ$3,$J7)=0)*($I7*($K7="Nee") +$I7*(AQ$3+Invoergegevens!$F$8<=Invoergegevens!$J$14)*(AQ$3+Invoergegevens!$F$8>=Invoergegevens!$H$14)*((AQ$3+Invoergegevens!$F$8-Invoergegevens!$H$14)/(Invoergegevens!$J$14-Invoergegevens!$H$14+1))*($K7="Ja")+$I7*(AQ$3+Invoergegevens!$F$8>Invoergegevens!$J$14)*($K7="Ja")) -> 0 | AR7: =($I7<>0)*(AR$3<=Invoergegevens!$F$9-Invoergegevens!$F$8) *(MOD(AR$3,$J7)=0)*($I7*($K7="Nee") +$I7*(AR$3+Invoergegevens!$F$8<=Invoergegevens!$J$14)*(AR$3+Invoergegevens!$F$8>=Invoergegevens!$H$14)*((AR$3+Invoergegevens!$F$8-Invoergegevens!$H$14)/(Invoergegevens!$J$14-Invoergegevens!$H$14+1))*($K7="Ja")+$I7*(AR$3+Invoergegevens!$F$8>Invoergegevens!$J$14)*($K7="Ja")) -> 0 | AS7: =($I7<>0)*(AS$3<=Invoergegevens!$F$9-Invoergegevens!$F$8) *(MOD(AS$3,$J7)=0)*($I7*($K7="Nee") +$I7*(AS$3+Invoergegevens!$F$8<=Invoergegevens!$J$14)*(AS$3+Invoergegevens!$F$8>=Invoergegevens!$H$14)*((AS$3+Invoergegevens!$F$8-Invoergegevens!$H$14)/(Invoergegevens!$J$14-Invoergegevens!$H$14+1))*($K7="Ja")+$I7*(AS$3+Invoergegevens!$F$8>Invoergegevens!$J$14)*($K7="Ja")) -> 0 | AT7: =($I7<>0)*(AT$3<=Invoergegevens!$F$9-Invoergegevens!$F$8) *(MOD(AT$3,$J7)=0)*($I7*($K7="Nee") +$I7*(AT$3+Invoergegevens!$F$8<=Invoergegevens!$J$14)*(AT$3+Invoergegevens!$F$8>=Invoergegevens!$H$14)*((AT$3+Invoergegevens!$F$8-Invoergegevens!$H$14)/(Invoergegevens!$J$14-Invoergegevens!$H$14+1))*($K7="Ja")+$I7*(AT$3+Invoergegevens!$F$8>Invoergegevens!$J$14)*($K7="Ja")) -> 0 | AU7: =($I7<>0)*(AU$3<=Invoergegevens!$F$9-Invoergegevens!$F$8) *(MOD(AU$3,$J7)=0)*($I7*($K7="Nee") +$I7*(AU$3+Invoergegevens!$F$8<=Invoergegevens!$J$14)*(AU$3+Invoergegevens!$F$8>=Invoergegevens!$H$14)*((AU$3+Invoergegevens!$F$8-Invoergegevens!$H$14)/(Invoergegevens!$J$14-Invoergegevens!$H$14+1))*($K7="Ja")+$I7*(AU$3+Invoergegevens!$F$8>Invoergegevens!$J$14)*($K7="Ja")) -> 0 | AV7: =($I7<>0)*(AV$3<=Invoergegevens!$F$9-Invoergegevens!$F$8) *(MOD(AV$3,$J7)=0)*($I7*($K7="Nee") +$I7*(AV$3+Invoergegevens!$F$8<=Invoergegevens!$J$14)*(AV$3+Invoergegevens!$F$8>=Invoergegevens!$H$14)*((AV$3+Invoergegevens!$F$8-Invoergegevens!$H$14)/(Invoergegevens!$J$14-Invoergegevens!$H$14+1))*($K7="Ja")+$I7*(AV$3+Invoergegevens!$F$8>Invoergegevens!$J$14)*($K7="Ja")) -> 0 | AW7: =($I7<>0)*(AW$3<=Invoergegevens!$F$9-Invoergegevens!$F$8) *(MOD(AW$3,$J7)=0)*($I7*($K7="Nee") +$I7*(AW$3+Invoergegevens!$F$8<=Invoergegevens!$J$14)*(AW$3+Invoergegevens!$F$8>=Invoergegevens!$H$14)*((AW$3+Invoergegevens!$F$8-Invoergegevens!$H$14)/(Invoergegevens!$J$14-Invoergegevens!$H$14+1))*($K7="Ja")+$I7*(AW$3+Invoergegevens!$F$8>Invoergegevens!$J$14)*($K7="Ja")) -> 0 | AX7: =($I7<>0)*(AX$3<=Invoergegevens!$F$9-Invoergegevens!$F$8) *(MOD(AX$3,$J7)=0)*($I7*($K7="Nee") +$I7*(AX$3+Invoergegevens!$F$8<=Invoergegevens!$J$14)*(AX$3+Invoergegevens!$F$8>=Invoergegevens!$H$14)*((AX$3+Invoergegevens!$F$8-Invoergegevens!$H$14)/(Invoergegevens!$J$14-Invoergegevens!$H$14+1))*($K7="Ja")+$I7*(AX$3+Invoergegevens!$F$8>Invoergegevens!$J$14)*($K7="Ja")) -> 0 | AY7: =($I7<>0)*(AY$3<=Invoergegevens!$F$9-Invoergegevens!$F$8) *(MOD(AY$3,$J7)=0)*($I7*($K7="Nee") +$I7*(AY$3+Invoergegevens!$F$8<=Invoergegevens!$J$14)*(AY$3+Invoergegevens!$F$8>=Invoergegevens!$H$14)*((AY$3+Invoergegevens!$F$8-Invoergegevens!$H$14)/(Invoergegevens!$J$14-Invoergegevens!$H$14+1))*($K7="Ja")+$I7*(AY$3+Invoergegevens!$F$8>Invoergegevens!$J$14)*($K7="Ja")) -> 0 | AZ7: =($I7<>0)*(AZ$3<=Invoergegevens!$F$9-Invoergegevens!$F$8) *(MOD(AZ$3,$J7)=0)*($I7*($K7="Nee") +$I7*(AZ$3+Invoergegevens!$F$8<=Invoergegevens!$J$14)*(AZ$3+Invoergegevens!$F$8>=Invoergegevens!$H$14)*((AZ$3+Invoergegevens!$F$8-Invoergegevens!$H$14)/(Invoergegevens!$J$14-Invoergegevens!$H$14+1))*($K7="Ja")+$I7*(AZ$3+Invoergegevens!$F$8>Invoergegevens!$J$14)*($K7="Ja")) -> 0 | BA7: =($I7<>0)*(BA$3<=Invoergegevens!$F$9-Invoergegevens!$F$8) *(MOD(BA$3,$J7)=0)*($I7*($K7="Nee") +$I7*(BA$3+Invoergegevens!$F$8<=Invoergegevens!$J$14)*(BA$3+Invoergegevens!$F$8>=Invoergegevens!$H$14)*((BA$3+Invoergegevens!$F$8-Invoergegevens!$H$14)/(Invoergegevens!$J$14-Invoergegevens!$H$14+1))*($K7="Ja")+$I7*(BA$3+Invoergegevens!$F$8>Invoergegevens!$J$14)*($K7="Ja")) -> 0 | BB7: =($I7<>0)*(BB$3<=Invoergegevens!$F$9-Invoergegevens!$F$8) *(MOD(BB$3,$J7)=0)*($I7*($K7="Nee") +$I7*(BB$3+Invoergegevens!$F$8<=Invoergegevens!$J$14)*(BB$3+Invoergegevens!$F$8>=Invoergegevens!$H$14)*((BB$3+Invoergegevens!$F$8-Invoergegevens!$H$14)/(Invoergegevens!$J$14-Invoergegevens!$H$14+1))*($K7="Ja")+$I7*(BB$3+Invoergegevens!$F$8>Invoergegevens!$J$14)*($K7="Ja")) -> 0 | BC7: =($I7<>0)*(BC$3<=Invoergegevens!$F$9-Invoergegevens!$F$8) *(MOD(BC$3,$J7)=0)*($I7*($K7="Nee") +$I7*(BC$3+Invoergegevens!$F$8<=Invoergegevens!$J$14)*(BC$3+Invoergegevens!$F$8>=Invoergegevens!$H$14)*((BC$3+Invoergegevens!$F$8-Invoergegevens!$H$14)/(Invoergegevens!$J$14-Invoergegevens!$H$14+1))*($K7="Ja")+$I7*(BC$3+Invoergegevens!$F$8>Invoergegevens!$J$14)*($K7="Ja")) -> 0 | BD7: =($I7<>0)*(BD$3<=Invoergegevens!$F$9-Invoergegevens!$F$8) *(MOD(BD$3,$J7)=0)*($I7*($K7="Nee") +$I7*(BD$3+Invoergegevens!$F$8<=Invoergegevens!$J$14)*(BD$3+Invoergegevens!$F$8>=Invoergegevens!$H$14)*((BD$3+Invoergegevens!$F$8-Invoergegevens!$H$14)/(Invoergegevens!$J$14-Invoergegevens!$H$14+1))*($K7="Ja")+$I7*(BD$3+Invoergegevens!$F$8>Invoergegevens!$J$14)*($K7="Ja")) -> 0 | BE7: =($I7<>0)*(BE$3<=Invoergegevens!$F$9-Invoergegevens!$F$8) *(MOD(BE$3,$J7)=0)*($I7*($K7="Nee") +$I7*(BE$3+Invoergegevens!$F$8<=Invoergegevens!$J$14)*(BE$3+Invoergegevens!$F$8>=Invoergegevens!$H$14)*((BE$3+Invoergegevens!$F$8-Invoergegevens!$H$14)/(Invoergegevens!$J$14-Invoergegevens!$H$14+1))*($K7="Ja")+$I7*(BE$3+Invoergegevens!$F$8>Invoergegevens!$J$14)*($K7="Ja")) -> 0 | BF7: =($I7<>0)*(BF$3<=Invoergegevens!$F$9-Invoergegevens!$F$8) *(MOD(BF$3,$J7)=0)*($I7*($K7="Nee") +$I7*(BF$3+Invoergegevens!$F$8<=Invoergegevens!$J$14)*(BF$3+Invoergegevens!$F$8>=Invoergegevens!$H$14)*((BF$3+Invoergegevens!$F$8-Invoergegevens!$H$14)/(Invoergegevens!$J$14-Invoergegevens!$H$14+1))*($K7="Ja")+$I7*(BF$3+Invoergegevens!$F$8>Invoergegevens!$J$14)*($K7="Ja")) -> 0 | BG7: =($I7<>0)*(BG$3<=Invoergegevens!$F$9-Invoergegevens!$F$8) *(MOD(BG$3,$J7)=0)*($I7*($K7="Nee") +$I7*(BG$3+Invoergegevens!$F$8<=Invoergegevens!$J$14)*(BG$3+Invoergegevens!$F$8>=Invoergegevens!$H$14)*((BG$3+Invoergegevens!$F$8-Invoergegevens!$H$14)/(Invoergegevens!$J$14-Invoergegevens!$H$14+1))*($K7="Ja")+$I7*(BG$3+Invoergegevens!$F$8>Invoergegevens!$J$14)*($K7="Ja")) -> 0 | BH7: =($I7<>0)*(BH$3<=Invoergegevens!$F$9-Invoergegevens!$F$8) *(MOD(BH$3,$J7)=0)*($I7*($K7="Nee") +$I7*(BH$3+Invoergegevens!$F$8<=Invoergegevens!$J$14)*(BH$3+Invoergegevens!$F$8>=Invoergegevens!$H$14)*((BH$3+Invoergegevens!$F$8-Invoergegevens!$H$14)/(Invoergegevens!$J$14-Invoergegevens!$H$14+1))*($K7="Ja")+$I7*(BH$3+Invoergegevens!$F$8>Invoergegevens!$J$14)*($K7="Ja")) -> 0 | BI7: =($I7<>0)*(BI$3<=Invoergegevens!$F$9-Invoergegevens!$F$8) *(MOD(BI$3,$J7)=0)*($I7*($K7="Nee") +$I7*(BI$3+Invoergegevens!$F$8<=Invoergegevens!$J$14)*(BI$3+Invoergegevens!$F$8>=Invoergegevens!$H$14)*((BI$3+Invoergegevens!$F$8-Invoergegevens!$H$14)/(Invoergegevens!$J$14-Invoergegevens!$H$14+1))*($K7="Ja")+$I7*(BI$3+Invoergegevens!$F$8>Invoergegevens!$J$14)*($K7="Ja")) -> 0 | BJ7: =($I7<>0)*(BJ$3<=Invoergegevens!$F$9-Invoergegevens!$F$8) *(MOD(BJ$3,$J7)=0)*($I7*($K7="Nee") +$I7*(BJ$3+Invoergegevens!$F$8<=Invoergegevens!$J$14)*(BJ$3+Invoergegevens!$F$8>=Invoergegevens!$H$14)*((BJ$3+Invoergegevens!$F$8-Invoergegevens!$H$14)/(Invoergegevens!$J$14-Invoergegevens!$H$14+1))*($K7="Ja")+$I7*(BJ$3+Invoergegevens!$F$8>Invoergegevens!$J$14)*($K7="Ja")) -> 0 | BK7: =($I7<>0)*(BK$3<=Invoergegevens!$F$9-Invoergegevens!$F$8) *(MOD(BK$3,$J7)=0)*($I7*($K7="Nee") +$I7*(BK$3+Invoergegevens!$F$8<=Invoergegevens!$J$14)*(BK$3+Invoergegevens!$F$8>=Invoergegevens!$H$14)*((BK$3+Invoergegevens!$F$8-Invoergegevens!$H$14)/(Invoergegevens!$J$14-Invoergegevens!$H$14+1))*($K7="Ja")+$I7*(BK$3+Invoergegevens!$F$8>Invoergegevens!$J$14)*($K7="Ja")) -> 0 | BL7: =($I7<>0)*(BL$3<=Invoergegevens!$F$9-Invoergegevens!$F$8) *(MOD(BL$3,$J7)=0)*($I7*($K7="Nee") +$I7*(BL$3+Invoergegevens!$F$8<=Invoergegevens!$J$14)*(BL$3+Invoergegevens!$F$8>=Invoergegevens!$H$14)*((BL$3+Invoergegevens!$F$8-Invoergegevens!$H$14)/(Invoergegevens!$J$14-Invoergegevens!$H$14+1))*($K7="Ja")+$I7*(BL$3+Invoergegevens!$F$8>Invoergegevens!$J$14)*($K7="Ja")) -> 0 | BM7: =($I7<>0)*(BM$3<=Invoergegevens!$F$9-Invoergegevens!$F$8) *(MOD(BM$3,$J7)=0)*($I7*($K7="Nee") +$I7*(BM$3+Invoergegevens!$F$8<=Invoergegevens!$J$14)*(BM$3+Invoergegevens!$F$8>=Invoergegevens!$H$14)*((BM$3+Invoergegevens!$F$8-Invoergegevens!$H$14)/(Invoergegevens!$J$14-Invoergegevens!$H$14+1))*($K7="Ja")+$I7*(BM$3+Invoergegevens!$F$8>Invoergegevens!$J$14)*($K7="Ja")) -> 0 | BN7: =($I7<>0)*(BN$3<=Invoergegevens!$F$9-Invoergegevens!$F$8) *(MOD(BN$3,$J7)=0)*($I7*($K7="Nee") +$I7*(BN$3+Invoergegevens!$F$8<=Invoergegevens!$J$14)*(BN$3+Invoergegevens!$F$8>=Invoergegevens!$H$14)*((BN$3+Invoergegevens!$F$8-Invoergegevens!$H$14)/(Invoergegevens!$J$14-Invoergegevens!$H$14+1))*($K7="Ja")+$I7*(BN$3+Invoergegevens!$F$8>Invoergegevens!$J$14)*($K7="Ja")) -> 0 | BO7: =($I7<>0)*(BO$3<=Invoergegevens!$F$9-Invoergegevens!$F$8) *(MOD(BO$3,$J7)=0)*($I7*($K7="Nee") +$I7*(BO$3+Invoergegevens!$F$8<=Invoergegevens!$J$14)*(BO$3+Invoergegevens!$F$8>=Invoergegevens!$H$14)*((BO$3+Invoergegevens!$F$8-Invoergegevens!$H$14)/(Invoergegevens!$J$14-Invoergegevens!$H$14+1))*($K7="Ja")+$I7*(BO$3+Invoergegevens!$F$8>Invoergegevens!$J$14)*($K7="Ja")) -> 0 | BP7: =($I7<>0)*(BP$3<=Invoergegevens!$F$9-Invoergegevens!$F$8) *(MOD(BP$3,$J7)=0)*($I7*($K7="Nee") +$I7*(BP$3+Invoergegevens!$F$8<=Invoergegevens!$J$14)*(BP$3+Invoergegevens!$F$8>=Invoergegevens!$H$14)*((BP$3+Invoergegevens!$F$8-Invoergegevens!$H$14)/(Invoergegevens!$J$14-Invoergegevens!$H$14+1))*($K7="Ja")+$I7*(BP$3+Invoergegevens!$F$8>Invoergegevens!$J$14)*($K7="Ja")) -> 0 | BQ7: =($I7<>0)*(BQ$3<=Invoergegevens!$F$9-Invoergegevens!$F$8) *(MOD(BQ$3,$J7)=0)*($I7*($K7="Nee") +$I7*(BQ$3+Invoergegevens!$F$8<=Invoergegevens!$J$14)*(BQ$3+Invoergegevens!$F$8>=Invoergegevens!$H$14)*((BQ$3+Invoergegevens!$F$8-Invoergegevens!$H$14)/(Invoergegevens!$J$14-Invoergegevens!$H$14+1))*($K7="Ja")+$I7*(BQ$3+Invoergegevens!$F$8>Invoergegevens!$J$14)*($K7="Ja")) -> 0 | BR7: =($I7<>0)*(BR$3<=Invoergegevens!$F$9-Invoergegevens!$F$8) *(MOD(BR$3,$J7)=0)*($I7*($K7="Nee") +$I7*(BR$3+Invoergegevens!$F$8<=Invoergegevens!$J$14)*(BR$3+Invoergegevens!$F$8>=Invoergegevens!$H$14)*((BR$3+Invoergegevens!$F$8-Invoergegevens!$H$14)/(Invoergegevens!$J$14-Invoergegevens!$H$14+1))*($K7="Ja")+$I7*(BR$3+Invoergegevens!$F$8>Invoergegevens!$J$14)*($K7="Ja")) -> 0 | BS7: =($I7<>0)*(BS$3<=Invoergegevens!$F$9-Invoergegevens!$F$8) *(MOD(BS$3,$J7)=0)*($I7*($K7="Nee") +$I7*(BS$3+Invoergegevens!$F$8<=Invoergegevens!$J$14)*(BS$3+Invoergegevens!$F$8>=Invoergegevens!$H$14)*((BS$3+Invoergegevens!$F$8-Invoergegevens!$H$14)/(Invoergegevens!$J$14-Invoergegevens!$H$14+1))*($K7="Ja")+$I7*(BS$3+Invoergegevens!$F$8>Invoergegevens!$J$14)*($K7="Ja")) -> 0 | BT7: =($I7<>0)*(BT$3<=Invoergegevens!$F$9-Invoergegevens!$F$8) *(MOD(BT$3,$J7)=0)*($I7*($K7="Nee") +$I7*(BT$3+Invoergegevens!$F$8<=Invoergegevens!$J$14)*(BT$3+Invoergegevens!$F$8>=Invoergegevens!$H$14)*((BT$3+Invoergegevens!$F$8-Invoergegevens!$H$14)/(Invoergegevens!$J$14-Invoergegevens!$H$14+1))*($K7="Ja")+$I7*(BT$3+Invoergegevens!$F$8>Invoergegevens!$J$14)*($K7="Ja")) -> 0 | BU7: =($I7<>0)*(BU$3<=Invoergegevens!$F$9-Invoergegevens!$F$8) *(MOD(BU$3,$J7)=0)*($I7*($K7="Nee") +$I7*(BU$3+Invoergegevens!$F$8<=Invoergegevens!$J$14)*(BU$3+Invoergegevens!$F$8>=Invoergegevens!$H$14)*((BU$3+Invoergegevens!$F$8-Invoergegevens!$H$14)/(Invoergegevens!$J$14-Invoergegevens!$H$14+1))*($K7="Ja")+$I7*(BU$3+Invoergegevens!$F$8>Invoergegevens!$J$14)*($K7="Ja")) -> 0 | BV7: =($I7<>0)*(BV$3<=Invoergegevens!$F$9-Invoergegevens!$F$8) *(MOD(BV$3,$J7)=0)*($I7*($K7="Nee") +$I7*(BV$3+Invoergegevens!$F$8<=Invoergegevens!$J$14)*(BV$3+Invoergegevens!$F$8>=Invoergegevens!$H$14)*((BV$3+Invoergegevens!$F$8-Invoergegevens!$H$14)/(Invoergegevens!$J$14-Invoergegevens!$H$14+1))*($K7="Ja")+$I7*(BV$3+Invoergegevens!$F$8>Invoergegevens!$J$14)*($K7="Ja")) -> 0 | BW7: =($I7<>0)*(BW$3<=Invoergegevens!$F$9-Invoergegevens!$F$8) *(MOD(BW$3,$J7)=0)*($I7*($K7="Nee") +$I7*(BW$3+Invoergegevens!$F$8<=Invoergegevens!$J$14)*(BW$3+Invoergegevens!$F$8>=Invoergegevens!$H$14)*((BW$3+Invoergegevens!$F$8-Invoergegevens!$H$14)/(Invoergegevens!$J$14-Invoergegevens!$H$14+1))*($K7="Ja")+$I7*(BW$3+Invoergegevens!$F$8>Invoergegevens!$J$14)*($K7="Ja")) -> 0 | BX7: =($I7<>0)*(BX$3<=Invoergegevens!$F$9-Invoergegevens!$F$8) *(MOD(BX$3,$J7)=0)*($I7*($K7="Nee") +$I7*(BX$3+Invoergegevens!$F$8<=Invoergegevens!$J$14)*(BX$3+Invoergegevens!$F$8>=Invoergegevens!$H$14)*((BX$3+Invoergegevens!$F$8-Invoergegevens!$H$14)/(Invoergegevens!$J$14-Invoergegevens!$H$14+1))*($K7="Ja")+$I7*(BX$3+Invoergegevens!$F$8>Invoergegevens!$J$14)*($K7="Ja")) -> 0 | BY7: =($I7<>0)*(BY$3<=Invoergegevens!$F$9-Invoergegevens!$F$8) *(MOD(BY$3,$J7)=0)*($I7*($K7="Nee") +$I7*(BY$3+Invoergegevens!$F$8<=Invoergegevens!$J$14)*(BY$3+Invoergegevens!$F$8>=Invoergegevens!$H$14)*((BY$3+Invoergegevens!$F$8-Invoergegevens!$H$14)/(Invoergegevens!$J$14-Invoergegevens!$H$14+1))*($K7="Ja")+$I7*(BY$3+Invoergegevens!$F$8>Invoergegevens!$J$14)*($K7="Ja")) -> 0 | BZ7: =($I7<>0)*(BZ$3<=Invoergegevens!$F$9-Invoergegevens!$F$8) *(MOD(BZ$3,$J7)=0)*($I7*($K7="Nee") +$I7*(BZ$3+Invoergegevens!$F$8<=Invoergegevens!$J$14)*(BZ$3+Invoergegevens!$F$8>=Invoergegevens!$H$14)*((BZ$3+Invoergegevens!$F$8-Invoergegevens!$H$14)/(Invoergegevens!$J$14-Invoergegevens!$H$14+1))*($K7="Ja")+$I7*(BZ$3+Invoergegevens!$F$8>Invoergegevens!$J$14)*($K7="Ja")) -> 0 | CA7: =($I7<>0)*(CA$3<=Invoergegevens!$F$9-Invoergegevens!$F$8) *(MOD(CA$3,$J7)=0)*($I7*($K7="Nee") +$I7*(CA$3+Invoergegevens!$F$8<=Invoergegevens!$J$14)*(CA$3+Invoergegevens!$F$8>=Invoergegevens!$H$14)*((CA$3+Invoergegevens!$F$8-Invoergegevens!$H$14)/(Invoergegevens!$J$14-Invoergegevens!$H$14+1))*($K7="Ja")+$I7*(CA$3+Invoergegevens!$F$8>Invoergegevens!$J$14)*($K7="Ja")) -> 0 | CB7: =($I7<>0)*(CB$3<=Invoergegevens!$F$9-Invoergegevens!$F$8) *(MOD(CB$3,$J7)=0)*($I7*($K7="Nee") +$I7*(CB$3+Invoergegevens!$F$8<=Invoergegevens!$J$14)*(CB$3+Invoergegevens!$F$8>=Invoergegevens!$H$14)*((CB$3+Invoergegevens!$F$8-Invoergegevens!$H$14)/(Invoergegevens!$J$14-Invoergegevens!$H$14+1))*($K7="Ja")+$I7*(CB$3+Invoergegevens!$F$8>Invoergegevens!$J$14)*($K7="Ja")) -> 0 | CC7: =($I7<>0)*(CC$3<=Invoergegevens!$F$9-Invoergegevens!$F$8) *(MOD(CC$3,$J7)=0)*($I7*($K7="Nee") +$I7*(CC$3+Invoergegevens!$F$8<=Invoergegevens!$J$14)*(CC$3+Invoergegevens!$F$8>=Invoergegevens!$H$14)*((CC$3+Invoergegevens!$F$8-Invoergegevens!$H$14)/(Invoergegevens!$J$14-Invoergegevens!$H$14+1))*($K7="Ja")+$I7*(CC$3+Invoergegevens!$F$8>Invoergegevens!$J$14)*($K7="Ja")) -> 0 | CD7: =($I7<>0)*(CD$3<=Invoergegevens!$F$9-Invoergegevens!$F$8) *(MOD(CD$3,$J7)=0)*($I7*($K7="Nee") +$I7*(CD$3+Invoergegevens!$F$8<=Invoergegevens!$J$14)*(CD$3+Invoergegevens!$F$8>=Invoergegevens!$H$14)*((CD$3+Invoergegevens!$F$8-Invoergegevens!$H$14)/(Invoergegevens!$J$14-Invoergegevens!$H$14+1))*($K7="Ja")+$I7*(CD$3+Invoergegevens!$F$8>Invoergegevens!$J$14)*($K7="Ja")) -> 0 | CE7: =($I7<>0)*(CE$3<=Invoergegevens!$F$9-Invoergegevens!$F$8) *(MOD(CE$3,$J7)=0)*($I7*($K7="Nee") +$I7*(CE$3+Invoergegevens!$F$8<=Invoergegevens!$J$14)*(CE$3+Invoergegevens!$F$8>=Invoergegevens!$H$14)*((CE$3+Invoergegevens!$F$8-Invoergegevens!$H$14)/(Invoergegevens!$J$14-Invoergegevens!$H$14+1))*($K7="Ja")+$I7*(CE$3+Invoergegevens!$F$8>Invoergegevens!$J$14)*($K7="Ja")) -> 0 | CF7: =($I7<>0)*(CF$3<=Invoergegevens!$F$9-Invoergegevens!$F$8) *(MOD(CF$3,$J7)=0)*($I7*($K7="Nee") +$I7*(CF$3+Invoergegevens!$F$8<=Invoergegevens!$J$14)*(CF$3+Invoergegevens!$F$8>=Invoergegevens!$H$14)*((CF$3+Invoergegevens!$F$8-Invoergegevens!$H$14)/(Invoergegevens!$J$14-Invoergegevens!$H$14+1))*($K7="Ja")+$I7*(CF$3+Invoergegevens!$F$8>Invoergegevens!$J$14)*($K7="Ja")) -> 0 | CG7: =($I7<>0)*(CG$3<=Invoergegevens!$F$9-Invoergegevens!$F$8) *(MOD(CG$3,$J7)=0)*($I7*($K7="Nee") +$I7*(CG$3+Invoergegevens!$F$8<=Invoergegevens!$J$14)*(CG$3+Invoergegevens!$F$8>=Invoergegevens!$H$14)*((CG$3+Invoergegevens!$F$8-Invoergegevens!$H$14)/(Invoergegevens!$J$14-Invoergegevens!$H$14+1))*($K7="Ja")+$I7*(CG$3+Invoergegevens!$F$8>Invoergegevens!$J$14)*($K7="Ja")) -> 0 | CH7: =($I7<>0)*(CH$3<=Invoergegevens!$F$9-Invoergegevens!$F$8) *(MOD(CH$3,$J7)=0)*($I7*($K7="Nee") +$I7*(CH$3+Invoergegevens!$F$8<=Invoergegevens!$J$14)*(CH$3+Invoergegevens!$F$8>=Invoergegevens!$H$14)*((CH$3+Invoergegevens!$F$8-Invoergegevens!$H$14)/(Invoergegevens!$J$14-Invoergegevens!$H$14+1))*($K7="Ja")+$I7*(CH$3+Invoergegevens!$F$8>Invoergegevens!$J$14)*($K7="Ja")) -> 0 | CI7: =($I7<>0)*(CI$3<=Invoergegevens!$F$9-Invoergegevens!$F$8) *(MOD(CI$3,$J7)=0)*($I7*($K7="Nee") +$I7*(CI$3+Invoergegevens!$F$8<=Invoergegevens!$J$14)*(CI$3+Invoergegevens!$F$8>=Invoergegevens!$H$14)*((CI$3+Invoergegevens!$F$8-Invoergegevens!$H$14)/(Invoergegevens!$J$14-Invoergegevens!$H$14+1))*($K7="Ja")+$I7*(CI$3+Invoergegevens!$F$8>Invoergegevens!$J$14)*($K7="Ja")) -> 0 | CJ7: =($I7<>0)*(CJ$3<=Invoergegevens!$F$9-Invoergegevens!$F$8) *(MOD(CJ$3,$J7)=0)*($I7*($K7="Nee") +$I7*(CJ$3+Invoergegevens!$F$8<=Invoergegevens!$J$14)*(CJ$3+Invoergegevens!$F$8>=Invoergegevens!$H$14)*((CJ$3+Invoergegevens!$F$8-Invoergegevens!$H$14)/(Invoergegevens!$J$14-Invoergegevens!$H$14+1))*($K7="Ja")+$I7*(CJ$3+Invoergegevens!$F$8>Invoergegevens!$J$14)*($K7="Ja")) -> 0 | CK7: =($I7<>0)*(CK$3<=Invoergegevens!$F$9-Invoergegevens!$F$8) *(MOD(CK$3,$J7)=0)*($I7*($K7="Nee") +$I7*(CK$3+Invoergegevens!$F$8<=Invoergegevens!$J$14)*(CK$3+Invoergegevens!$F$8>=Invoergegevens!$H$14)*((CK$3+Invoergegevens!$F$8-Invoergegevens!$H$14)/(Invoergegevens!$J$14-Invoergegevens!$H$14+1))*($K7="Ja")+$I7*(CK$3+Invoergegevens!$F$8>Invoergegevens!$J$14)*($K7="Ja")) -> 0 | CL7: =($I7<>0)*(CL$3<=Invoergegevens!$F$9-Invoergegevens!$F$8) *(MOD(CL$3,$J7)=0)*($I7*($K7="Nee") +$I7*(CL$3+Invoergegevens!$F$8<=Invoergegevens!$J$14)*(CL$3+Invoergegevens!$F$8>=Invoergegevens!$H$14)*((CL$3+Invoergegevens!$F$8-Invoergegevens!$H$14)/(Invoergegevens!$J$14-Invoergegevens!$H$14+1))*($K7="Ja")+$I7*(CL$3+Invoergegevens!$F$8>Invoergegevens!$J$14)*($K7="Ja")) -> 0 | CM7: =($I7<>0)*(CM$3<=Invoergegevens!$F$9-Invoergegevens!$F$8) *(MOD(CM$3,$J7)=0)*($I7*($K7="Nee") +$I7*(CM$3+Invoergegevens!$F$8<=Invoergegevens!$J$14)*(CM$3+Invoergegevens!$F$8>=Invoergegevens!$H$14)*((CM$3+Invoergegevens!$F$8-Invoergegevens!$H$14)/(Invoergegevens!$J$14-Invoergegevens!$H$14+1))*($K7="Ja")+$I7*(CM$3+Invoergegevens!$F$8>Invoergegevens!$J$14)*($K7="Ja")) -> 0 | CN7: =($I7<>0)*(CN$3<=Invoergegevens!$F$9-Invoergegevens!$F$8) *(MOD(CN$3,$J7)=0)*($I7*($K7="Nee") +$I7*(CN$3+Invoergegevens!$F$8<=Invoergegevens!$J$14)*(CN$3+Invoergegevens!$F$8>=Invoergegevens!$H$14)*((CN$3+Invoergegevens!$F$8-Invoergegevens!$H$14)/(Invoergegevens!$J$14-Invoergegevens!$H$14+1))*($K7="Ja")+$I7*(CN$3+Invoergegevens!$F$8>Invoergegevens!$J$14)*($K7="Ja")) -> 0 | CO7: =($I7<>0)*(CO$3<=Invoergegevens!$F$9-Invoergegevens!$F$8) *(MOD(CO$3,$J7)=0)*($I7*($K7="Nee") +$I7*(CO$3+Invoergegevens!$F$8<=Invoergegevens!$J$14)*(CO$3+Invoergegevens!$F$8>=Invoergegevens!$H$14)*((CO$3+Invoergegevens!$F$8-Invoergegevens!$H$14)/(Invoergegevens!$J$14-Invoergegevens!$H$14+1))*($K7="Ja")+$I7*(CO$3+Invoergegevens!$F$8>Invoergegevens!$J$14)*($K7="Ja")) -> 0 | CP7: =($I7<>0)*(CP$3<=Invoergegevens!$F$9-Invoergegevens!$F$8) *(MOD(CP$3,$J7)=0)*($I7*($K7="Nee") +$I7*(CP$3+Invoergegevens!$F$8<=Invoergegevens!$J$14)*(CP$3+Invoergegevens!$F$8>=Invoergegevens!$H$14)*((CP$3+Invoergegevens!$F$8-Invoergegevens!$H$14)/(Invoergegevens!$J$14-Invoergegevens!$H$14+1))*($K7="Ja")+$I7*(CP$3+Invoergegevens!$F$8>Invoergegevens!$J$14)*($K7="Ja")) -> 0 | CQ7: =($I7<>0)*(CQ$3<=Invoergegevens!$F$9-Invoergegevens!$F$8) *(MOD(CQ$3,$J7)=0)*($I7*($K7="Nee") +$I7*(CQ$3+Invoergegevens!$F$8<=Invoergegevens!$J$14)*(CQ$3+Invoergegevens!$F$8>=Invoergegevens!$H$14)*((CQ$3+Invoergegevens!$F$8-Invoergegevens!$H$14)/(Invoergegevens!$J$14-Invoergegevens!$H$14+1))*($K7="Ja")+$I7*(CQ$3+Invoergegevens!$F$8>Invoergegevens!$J$14)*($K7="Ja")) -> 0 | CR7: =($I7<>0)*(CR$3<=Invoergegevens!$F$9-Invoergegevens!$F$8) *(MOD(CR$3,$J7)=0)*($I7*($K7="Nee") +$I7*(CR$3+Invoergegevens!$F$8<=Invoergegevens!$J$14)*(CR$3+Invoergegevens!$F$8>=Invoergegevens!$H$14)*((CR$3+Invoergegevens!$F$8-Invoergegevens!$H$14)/(Invoergegevens!$J$14-Invoergegevens!$H$14+1))*($K7="Ja")+$I7*(CR$3+Invoergegevens!$F$8>Invoergegevens!$J$14)*($K7="Ja")) -> 0 | CS7: =($I7<>0)*(CS$3<=Invoergegevens!$F$9-Invoergegevens!$F$8) *(MOD(CS$3,$J7)=0)*($I7*($K7="Nee") +$I7*(CS$3+Invoergegevens!$F$8<=Invoergegevens!$J$14)*(CS$3+Invoergegevens!$F$8>=Invoergegevens!$H$14)*((CS$3+Invoergegevens!$F$8-Invoergegevens!$H$14)/(Invoergegevens!$J$14-Invoergegevens!$H$14+1))*($K7="Ja")+$I7*(CS$3+Invoergegevens!$F$8>Invoergegevens!$J$14)*($K7="Ja")) -> 0 | CT7: =($I7<>0)*(CT$3<=Invoergegevens!$F$9-Invoergegevens!$F$8) *(MOD(CT$3,$J7)=0)*($I7*($K7="Nee") +$I7*(CT$3+Invoergegevens!$F$8<=Invoergegevens!$J$14)*(CT$3+Invoergegevens!$F$8>=Invoergegevens!$H$14)*((CT$3+Invoergegevens!$F$8-Invoergegevens!$H$14)/(Invoergegevens!$J$14-Invoergegevens!$H$14+1))*($K7="Ja")+$I7*(CT$3+Invoergegevens!$F$8>Invoergegevens!$J$14)*($K7="Ja")) -> 0 | CU7: =($I7<>0)*(CU$3<=Invoergegevens!$F$9-Invoergegevens!$F$8) *(MOD(CU$3,$J7)=0)*($I7*($K7="Nee") +$I7*(CU$3+Invoergegevens!$F$8<=Invoergegevens!$J$14)*(CU$3+Invoergegevens!$F$8>=Invoergegevens!$H$14)*((CU$3+Invoergegevens!$F$8-Invoergegevens!$H$14)/(Invoergegevens!$J$14-Invoergegevens!$H$14+1))*($K7="Ja")+$I7*(CU$3+Invoergegevens!$F$8>Invoergegevens!$J$14)*($K7="Ja")) -> 0 | CV7: =($I7<>0)*(CV$3<=Invoergegevens!$F$9-Invoergegevens!$F$8) *(MOD(CV$3,$J7)=0)*($I7*($K7="Nee") +$I7*(CV$3+Invoergegevens!$F$8<=Invoergegevens!$J$14)*(CV$3+Invoergegevens!$F$8>=Invoergegevens!$H$14)*((CV$3+Invoergegevens!$F$8-Invoergegevens!$H$14)/(Invoergegevens!$J$14-Invoergegevens!$H$14+1))*($K7="Ja")+$I7*(CV$3+Invoergegevens!$F$8>Invoergegevens!$J$14)*($K7="Ja")) -> 0 | CW7: =($I7<>0)*(CW$3<=Invoergegevens!$F$9-Invoergegevens!$F$8) *(MOD(CW$3,$J7)=0)*($I7*($K7="Nee") +$I7*(CW$3+Invoergegevens!$F$8<=Invoergegevens!$J$14)*(CW$3+Invoergegevens!$F$8>=Invoergegevens!$H$14)*((CW$3+Invoergegevens!$F$8-Invoergegevens!$H$14)/(Invoergegevens!$J$14-Invoergegevens!$H$14+1))*($K7="Ja")+$I7*(CW$3+Invoergegevens!$F$8>Invoergegevens!$J$14)*($K7="Ja")) -> 0 | CX7: =($I7<>0)*(CX$3<=Invoergegevens!$F$9-Invoergegevens!$F$8) *(MOD(CX$3,$J7)=0)*($I7*($K7="Nee") +$I7*(CX$3+Invoergegevens!$F$8<=Invoergegevens!$J$14)*(CX$3+Invoergegevens!$F$8>=Invoergegevens!$H$14)*((CX$3+Invoergegevens!$F$8-Invoergegevens!$H$14)/(Invoergegevens!$J$14-Invoergegevens!$H$14+1))*($K7="Ja")+$I7*(CX$3+Invoergegevens!$F$8>Invoergegevens!$J$14)*($K7="Ja")) -> 0
B8: 01.2 | I8: 0 | J8: 1 | K8: Ja | AF8: =($I8<>0)*(AF$3<=Invoergegevens!$F$9-Invoergegevens!$F$8) *(MOD(AF$3,$J8)=0)*($I8*($K8="Nee") +$I8*(AF$3+Invoergegevens!$F$8<=Invoergegevens!$J$14)*(AF$3+Invoergegevens!$F$8>=Invoergegevens!$H$14)*((AF$3+Invoergegevens!$F$8-Invoergegevens!$H$14)/(Invoergegevens!$J$14-Invoergegevens!$H$14+1))*($K8="Ja")+$I8*(AF$3+Invoergegevens!$F$8>Invoergegevens!$J$14)*($K8="Ja")) -> 0 | AG8: =($I8<>0)*(AG$3<=Invoergegevens!$F$9-Invoergegevens!$F$8) *(MOD(AG$3,$J8)=0)*($I8*($K8="Nee") +$I8*(AG$3+Invoergegevens!$F$8<=Invoergegevens!$J$14)*(AG$3+Invoergegevens!$F$8>=Invoergegevens!$H$14)*((AG$3+Invoergegevens!$F$8-Invoergegevens!$H$14)/(Invoergegevens!$J$14-Invoergegevens!$H$14+1))*($K8="Ja")+$I8*(AG$3+Invoergegevens!$F$8>Invoergegevens!$J$14)*($K8="Ja")) -> 0 | AH8: =($I8<>0)*(AH$3<=Invoergegevens!$F$9-Invoergegevens!$F$8) *(MOD(AH$3,$J8)=0)*($I8*($K8="Nee") +$I8*(AH$3+Invoergegevens!$F$8<=Invoergegevens!$J$14)*(AH$3+Invoergegevens!$F$8>=Invoergegevens!$H$14)*((AH$3+Invoergegevens!$F$8-Invoergegevens!$H$14)/(Invoergegevens!$J$14-Invoergegevens!$H$14+1))*($K8="Ja")+$I8*(AH$3+Invoergegevens!$F$8>Invoergegevens!$J$14)*($K8="Ja")) -> 0 | AI8: =($I8<>0)*(AI$3<=Invoergegevens!$F$9-Invoergegevens!$F$8) *(MOD(AI$3,$J8)=0)*($I8*($K8="Nee") +$I8*(AI$3+Invoergegevens!$F$8<=Invoergegevens!$J$14)*(AI$3+Invoergegevens!$F$8>=Invoergegevens!$H$14)*((AI$3+Invoergegevens!$F$8-Invoergegevens!$H$14)/(Invoergegevens!$J$14-Invoergegevens!$H$14+1))*($K8="Ja")+$I8*(AI$3+Invoergegevens!$F$8>Invoergegevens!$J$14)*($K8="Ja")) -> 0 | AJ8: =($I8<>0)*(AJ$3<=Invoergegevens!$F$9-Invoergegevens!$F$8) *(MOD(AJ$3,$J8)=0)*($I8*($K8="Nee") +$I8*(AJ$3+Invoergegevens!$F$8<=Invoergegevens!$J$14)*(AJ$3+Invoergegevens!$F$8>=Invoergegevens!$H$14)*((AJ$3+Invoergegevens!$F$8-Invoergegevens!$H$14)/(Invoergegevens!$J$14-Invoergegevens!$H$14+1))*($K8="Ja")+$I8*(AJ$3+Invoergegevens!$F$8>Invoergegevens!$J$14)*($K8="Ja")) -> 0 | AK8: =($I8<>0)*(AK$3<=Invoergegevens!$F$9-Invoergegevens!$F$8) *(MOD(AK$3,$J8)=0)*($I8*($K8="Nee") +$I8*(AK$3+Invoergegevens!$F$8<=Invoergegevens!$J$14)*(AK$3+Invoergegevens!$F$8>=Invoergegevens!$H$14)*((AK$3+Invoergegevens!$F$8-Invoergegevens!$H$14)/(Invoergegevens!$J$14-Invoergegevens!$H$14+1))*($K8="Ja")+$I8*(AK$3+Invoergegevens!$F$8>Invoergegevens!$J$14)*($K8="Ja")) -> 0 | AL8: =($I8<>0)*(AL$3<=Invoergegevens!$F$9-Invoergegevens!$F$8) *(MOD(AL$3,$J8)=0)*($I8*($K8="Nee") +$I8*(AL$3+Invoergegevens!$F$8<=Invoergegevens!$J$14)*(AL$3+Invoergegevens!$F$8>=Invoergegevens!$H$14)*((AL$3+Invoergegevens!$F$8-Invoergegevens!$H$14)/(Invoergegevens!$J$14-Invoergegevens!$H$14+1))*($K8="Ja")+$I8*(AL$3+Invoergegevens!$F$8>Invoergegevens!$J$14)*($K8="Ja")) -> 0 | AM8: =($I8<>0)*(AM$3<=Invoergegevens!$F$9-Invoergegevens!$F$8) *(MOD(AM$3,$J8)=0)*($I8*($K8="Nee") +$I8*(AM$3+Invoergegevens!$F$8<=Invoergegevens!$J$14)*(AM$3+Invoergegevens!$F$8>=Invoergegevens!$H$14)*((AM$3+Invoergegevens!$F$8-Invoergegevens!$H$14)/(Invoergegevens!$J$14-Invoergegevens!$H$14+1))*($K8="Ja")+$I8*(AM$3+Invoergegevens!$F$8>Invoergegevens!$J$14)*($K8="Ja")) -> 0 | AN8: =($I8<>0)*(AN$3<=Invoergegevens!$F$9-Invoergegevens!$F$8) *(MOD(AN$3,$J8)=0)*($I8*($K8="Nee") +$I8*(AN$3+Invoergegevens!$F$8<=Invoergegevens!$J$14)*(AN$3+Invoergegevens!$F$8>=Invoergegevens!$H$14)*((AN$3+Invoergegevens!$F$8-Invoergegevens!$H$14)/(Invoergegevens!$J$14-Invoergegevens!$H$14+1))*($K8="Ja")+$I8*(AN$3+Invoergegevens!$F$8>Invoergegevens!$J$14)*($K8="Ja")) -> 0 | AO8: =($I8<>0)*(AO$3<=Invoergegevens!$F$9-Invoergegevens!$F$8) *(MOD(AO$3,$J8)=0)*($I8*($K8="Nee") +$I8*(AO$3+Invoergegevens!$F$8<=Invoergegevens!$J$14)*(AO$3+Invoergegevens!$F$8>=Invoergegevens!$H$14)*((AO$3+Invoergegevens!$F$8-Invoergegevens!$H$14)/(Invoergegevens!$J$14-Invoergegevens!$H$14+1))*($K8="Ja")+$I8*(AO$3+Invoergegevens!$F$8>Invoergegevens!$J$14)*($K8="Ja")) -> 0 | AP8: =($I8<>0)*(AP$3<=Invoergegevens!$F$9-Invoergegevens!$F$8) *(MOD(AP$3,$J8)=0)*($I8*($K8="Nee") +$I8*(AP$3+Invoergegevens!$F$8<=Invoergegevens!$J$14)*(AP$3+Invoergegevens!$F$8>=Invoergegevens!$H$14)*((AP$3+Invoergegevens!$F$8-Invoergegevens!$H$14)/(Invoergegevens!$J$14-Invoergegevens!$H$14+1))*($K8="Ja")+$I8*(AP$3+Invoergegevens!$F$8>Invoergegevens!$J$14)*($K8="Ja")) -> 0 | AQ8: =($I8<>0)*(AQ$3<=Invoergegevens!$F$9-Invoergegevens!$F$8) *(MOD(AQ$3,$J8)=0)*($I8*($K8="Nee") +$I8*(AQ$3+Invoergegevens!$F$8<=Invoergegevens!$J$14)*(AQ$3+Invoergegevens!$F$8>=Invoergegevens!$H$14)*((AQ$3+Invoergegevens!$F$8-Invoergegevens!$H$14)/(Invoergegevens!$J$14-Invoergegevens!$H$14+1))*($K8="Ja")+$I8*(AQ$3+Invoergegevens!$F$8>Invoergegevens!$J$14)*($K8="Ja")) -> 0 | AR8: =($I8<>0)*(AR$3<=Invoergegevens!$F$9-Invoergegevens!$F$8) *(MOD(AR$3,$J8)=0)*($I8*($K8="Nee") +$I8*(AR$3+Invoergegevens!$F$8<=Invoergegevens!$J$14)*(AR$3+Invoergegevens!$F$8>=Invoergegevens!$H$14)*((AR$3+Invoergegevens!$F$8-Invoergegevens!$H$14)/(Invoergegevens!$J$14-Invoergegevens!$H$14+1))*($K8="Ja")+$I8*(AR$3+Invoergegevens!$F$8>Invoergegevens!$J$14)*($K8="Ja")) -> 0 | AS8: =($I8<>0)*(AS$3<=Invoergegevens!$F$9-Invoergegevens!$F$8) *(MOD(AS$3,$J8)=0)*($I8*($K8="Nee") +$I8*(AS$3+Invoergegevens!$F$8<=Invoergegevens!$J$14)*(AS$3+Invoergegevens!$F$8>=Invoergegevens!$H$14)*((AS$3+Invoergegevens!$F$8-Invoergegevens!$H$14)/(Invoergegevens!$J$14-Invoergegevens!$H$14+1))*($K8="Ja")+$I8*(AS$3+Invoergegevens!$F$8>Invoergegevens!$J$14)*($K8="Ja")) -> 0 | AT8: =($I8<>0)*(AT$3<=Invoergegevens!$F$9-Invoergegevens!$F$8) *(MOD(AT$3,$J8)=0)*($I8*($K8="Nee") +$I8*(AT$3+Invoergegevens!$F$8<=Invoergegevens!$J$14)*(AT$3+Invoergegevens!$F$8>=Invoergegevens!$H$14)*((AT$3+Invoergegevens!$F$8-Invoergegevens!$H$14)/(Invoergegevens!$J$14-Invoergegevens!$H$14+1))*($K8="Ja")+$I8*(AT$3+Invoergegevens!$F$8>Invoergegevens!$J$14)*($K8="Ja")) -> 0 | AU8: =($I8<>0)*(AU$3<=Invoergegevens!$F$9-Invoergegevens!$F$8) *(MOD(AU$3,$J8)=0)*($I8*($K8="Nee") +$I8*(AU$3+Invoergegevens!$F$8<=Invoergegevens!$J$14)*(AU$3+Invoergegevens!$F$8>=Invoergegevens!$H$14)*((AU$3+Invoergegevens!$F$8-Invoergegevens!$H$14)/(Invoergegevens!$J$14-Invoergegevens!$H$14+1))*($K8="Ja")+$I8*(AU$3+Invoergegevens!$F$8>Invoergegevens!$J$14)*($K8="Ja")) -> 0 | AV8: =($I8<>0)*(AV$3<=Invoergegevens!$F$9-Invoergegevens!$F$8) *(MOD(AV$3,$J8)=0)*($I8*($K8="Nee") +$I8*(AV$3+Invoergegevens!$F$8<=Invoergegevens!$J$14)*(AV$3+Invoergegevens!$F$8>=Invoergegevens!$H$14)*((AV$3+Invoergegevens!$F$8-Invoergegevens!$H$14)/(Invoergegevens!$J$14-Invoergegevens!$H$14+1))*($K8="Ja")+$I8*(AV$3+Invoergegevens!$F$8>Invoergegevens!$J$14)*($K8="Ja")) -> 0 | AW8: =($I8<>0)*(AW$3<=Invoergegevens!$F$9-Invoergegevens!$F$8) *(MOD(AW$3,$J8)=0)*($I8*($K8="Nee") +$I8*(AW$3+Invoergegevens!$F$8<=Invoergegevens!$J$14)*(AW$3+Invoergegevens!$F$8>=Invoergegevens!$H$14)*((AW$3+Invoergegevens!$F$8-Invoergegevens!$H$14)/(Invoergegevens!$J$14-Invoergegevens!$H$14+1))*($K8="Ja")+$I8*(AW$3+Invoergegevens!$F$8>Invoergegevens!$J$14)*($K8="Ja")) -> 0 | AX8: =($I8<>0)*(AX$3<=Invoergegevens!$F$9-Invoergegevens!$F$8) *(MOD(AX$3,$J8)=0)*($I8*($K8="Nee") +$I8*(AX$3+Invoergegevens!$F$8<=Invoergegevens!$J$14)*(AX$3+Invoergegevens!$F$8>=Invoergegevens!$H$14)*((AX$3+Invoergegevens!$F$8-Invoergegevens!$H$14)/(Invoergegevens!$J$14-Invoergegevens!$H$14+1))*($K8="Ja")+$I8*(AX$3+Invoergegevens!$F$8>Invoergegevens!$J$14)*($K8="Ja")) -> 0 | AY8: =($I8<>0)*(AY$3<=Invoergegevens!$F$9-Invoergegevens!$F$8) *(MOD(AY$3,$J8)=0)*($I8*($K8="Nee") +$I8*(AY$3+Invoergegevens!$F$8<=Invoergegevens!$J$14)*(AY$3+Invoergegevens!$F$8>=Invoergegevens!$H$14)*((AY$3+Invoergegevens!$F$8-Invoergegevens!$H$14)/(Invoergegevens!$J$14-Invoergegevens!$H$14+1))*($K8="Ja")+$I8*(AY$3+Invoergegevens!$F$8>Invoergegevens!$J$14)*($K8="Ja")) -> 0 | AZ8: =($I8<>0)*(AZ$3<=Invoergegevens!$F$9-Invoergegevens!$F$8) *(MOD(AZ$3,$J8)=0)*($I8*($K8="Nee") +$I8*(AZ$3+Invoergegevens!$F$8<=Invoergegevens!$J$14)*(AZ$3+Invoergegevens!$F$8>=Invoergegevens!$H$14)*((AZ$3+Invoergegevens!$F$8-Invoergegevens!$H$14)/(Invoergegevens!$J$14-Invoergegevens!$H$14+1))*($K8="Ja")+$I8*(AZ$3+Invoergegevens!$F$8>Invoergegevens!$J$14)*($K8="Ja")) -> 0 | BA8: =($I8<>0)*(BA$3<=Invoergegevens!$F$9-Invoergegevens!$F$8) *(MOD(BA$3,$J8)=0)*($I8*($K8="Nee") +$I8*(BA$3+Invoergegevens!$F$8<=Invoergegevens!$J$14)*(BA$3+Invoergegevens!$F$8>=Invoergegevens!$H$14)*((BA$3+Invoergegevens!$F$8-Invoergegevens!$H$14)/(Invoergegevens!$J$14-Invoergegevens!$H$14+1))*($K8="Ja")+$I8*(BA$3+Invoergegevens!$F$8>Invoergegevens!$J$14)*($K8="Ja")) -> 0 | BB8: =($I8<>0)*(BB$3<=Invoergegevens!$F$9-Invoergegevens!$F$8) *(MOD(BB$3,$J8)=0)*($I8*($K8="Nee") +$I8*(BB$3+Invoergegevens!$F$8<=Invoergegevens!$J$14)*(BB$3+Invoergegevens!$F$8>=Invoergegevens!$H$14)*((BB$3+Invoergegevens!$F$8-Invoergegevens!$H$14)/(Invoergegevens!$J$14-Invoergegevens!$H$14+1))*($K8="Ja")+$I8*(BB$3+Invoergegevens!$F$8>Invoergegevens!$J$14)*($K8="Ja")) -> 0 | BC8: =($I8<>0)*(BC$3<=Invoergegevens!$F$9-Invoergegevens!$F$8) *(MOD(BC$3,$J8)=0)*($I8*($K8="Nee") +$I8*(BC$3+Invoergegevens!$F$8<=Invoergegevens!$J$14)*(BC$3+Invoergegevens!$F$8>=Invoergegevens!$H$14)*((BC$3+Invoergegevens!$F$8-Invoergegevens!$H$14)/(Invoergegevens!$J$14-Invoergegevens!$H$14+1))*($K8="Ja")+$I8*(BC$3+Invoergegevens!$F$8>Invoergegevens!$J$14)*($K8="Ja")) -> 0 | BD8: =($I8<>0)*(BD$3<=Invoergegevens!$F$9-Invoergegevens!$F$8) *(MOD(BD$3,$J8)=0)*($I8*($K8="Nee") +$I8*(BD$3+Invoergegevens!$F$8<=Invoergegevens!$J$14)*(BD$3+Invoergegevens!$F$8>=Invoergegevens!$H$14)*((BD$3+Invoergegevens!$F$8-Invoergegevens!$H$14)/(Invoergegevens!$J$14-Invoergegevens!$H$14+1))*($K8="Ja")+$I8*(BD$3+Invoergegevens!$F$8>Invoergegevens!$J$14)*($K8="Ja")) -> 0 | BE8: =($I8<>0)*(BE$3<=Invoergegevens!$F$9-Invoergegevens!$F$8) *(MOD(BE$3,$J8)=0)*($I8*($K8="Nee") +$I8*(BE$3+Invoergegevens!$F$8<=Invoergegevens!$J$14)*(BE$3+Invoergegevens!$F$8>=Invoergegevens!$H$14)*((BE$3+Invoergegevens!$F$8-Invoergegevens!$H$14)/(Invoergegevens!$J$14-Invoergegevens!$H$14+1))*($K8="Ja")+$I8*(BE$3+Invoergegevens!$F$8>Invoergegevens!$J$14)*($K8="Ja")) -> 0 | BF8: =($I8<>0)*(BF$3<=Invoergegevens!$F$9-Invoergegevens!$F$8) *(MOD(BF$3,$J8)=0)*($I8*($K8="Nee") +$I8*(BF$3+Invoergegevens!$F$8<=Invoergegevens!$J$14)*(BF$3+Invoergegevens!$F$8>=Invoergegevens!$H$14)*((BF$3+Invoergegevens!$F$8-Invoergegevens!$H$14)/(Invoergegevens!$J$14-Invoergegevens!$H$14+1))*($K8="Ja")+$I8*(BF$3+Invoergegevens!$F$8>Invoergegevens!$J$14)*($K8="Ja")) -> 0 | BG8: =($I8<>0)*(BG$3<=Invoergegevens!$F$9-Invoergegevens!$F$8) *(MOD(BG$3,$J8)=0)*($I8*($K8="Nee") +$I8*(BG$3+Invoergegevens!$F$8<=Invoergegevens!$J$14)*(BG$3+Invoergegevens!$F$8>=Invoergegevens!$H$14)*((BG$3+Invoergegevens!$F$8-Invoergegevens!$H$14)/(Invoergegevens!$J$14-Invoergegevens!$H$14+1))*($K8="Ja")+$I8*(BG$3+Invoergegevens!$F$8>Invoergegevens!$J$14)*($K8="Ja")) -> 0 | BH8: =($I8<>0)*(BH$3<=Invoergegevens!$F$9-Invoergegevens!$F$8) *(MOD(BH$3,$J8)=0)*($I8*($K8="Nee") +$I8*(BH$3+Invoergegevens!$F$8<=Invoergegevens!$J$14)*(BH$3+Invoergegevens!$F$8>=Invoergegevens!$H$14)*((BH$3+Invoergegevens!$F$8-Invoergegevens!$H$14)/(Invoergegevens!$J$14-Invoergegevens!$H$14+1))*($K8="Ja")+$I8*(BH$3+Invoergegevens!$F$8>Invoergegevens!$J$14)*($K8="Ja")) -> 0 | BI8: =($I8<>0)*(BI$3<=Invoergegevens!$F$9-Invoergegevens!$F$8) *(MOD(BI$3,$J8)=0)*($I8*($K8="Nee") +$I8*(BI$3+Invoergegevens!$F$8<=Invoergegevens!$J$14)*(BI$3+Invoergegevens!$F$8>=Invoergegevens!$H$14)*((BI$3+Invoergegevens!$F$8-Invoergegevens!$H$14)/(Invoergegevens!$J$14-Invoergegevens!$H$14+1))*($K8="Ja")+$I8*(BI$3+Invoergegevens!$F$8>Invoergegevens!$J$14)*($K8="Ja")) -> 0 | BJ8: =($I8<>0)*(BJ$3<=Invoergegevens!$F$9-Invoergegevens!$F$8) *(MOD(BJ$3,$J8)=0)*($I8*($K8="Nee") +$I8*(BJ$3+Invoergegevens!$F$8<=Invoergegevens!$J$14)*(BJ$3+Invoergegevens!$F$8>=Invoergegevens!$H$14)*((BJ$3+Invoergegevens!$F$8-Invoergegevens!$H$14)/(Invoergegevens!$J$14-Invoergegevens!$H$14+1))*($K8="Ja")+$I8*(BJ$3+Invoergegevens!$F$8>Invoergegevens!$J$14)*($K8="Ja")) -> 0 | BK8: =($I8<>0)*(BK$3<=Invoergegevens!$F$9-Invoergegevens!$F$8) *(MOD(BK$3,$J8)=0)*($I8*($K8="Nee") +$I8*(BK$3+Invoergegevens!$F$8<=Invoergegevens!$J$14)*(BK$3+Invoergegevens!$F$8>=Invoergegevens!$H$14)*((BK$3+Invoergegevens!$F$8-Invoergegevens!$H$14)/(Invoergegevens!$J$14-Invoergegevens!$H$14+1))*($K8="Ja")+$I8*(BK$3+Invoergegevens!$F$8>Invoergegevens!$J$14)*($K8="Ja")) -> 0 | BL8: =($I8<>0)*(BL$3<=Invoergegevens!$F$9-Invoergegevens!$F$8) *(MOD(BL$3,$J8)=0)*($I8*($K8="Nee") +$I8*(BL$3+Invoergegevens!$F$8<=Invoergegevens!$J$14)*(BL$3+Invoergegevens!$F$8>=Invoergegevens!$H$14)*((BL$3+Invoergegevens!$F$8-Invoergegevens!$H$14)/(Invoergegevens!$J$14-Invoergegevens!$H$14+1))*($K8="Ja")+$I8*(BL$3+Invoergegevens!$F$8>Invoergegevens!$J$14)*($K8="Ja")) -> 0 | BM8: =($I8<>0)*(BM$3<=Invoergegevens!$F$9-Invoergegevens!$F$8) *(MOD(BM$3,$J8)=0)*($I8*($K8="Nee") +$I8*(BM$3+Invoergegevens!$F$8<=Invoergegevens!$J$14)*(BM$3+Invoergegevens!$F$8>=Invoergegevens!$H$14)*((BM$3+Invoergegevens!$F$8-Invoergegevens!$H$14)/(Invoergegevens!$J$14-Invoergegevens!$H$14+1))*($K8="Ja")+$I8*(BM$3+Invoergegevens!$F$8>Invoergegevens!$J$14)*($K8="Ja")) -> 0 | BN8: =($I8<>0)*(BN$3<=Invoergegevens!$F$9-Invoergegevens!$F$8) *(MOD(BN$3,$J8)=0)*($I8*($K8="Nee") +$I8*(BN$3+Invoergegevens!$F$8<=Invoergegevens!$J$14)*(BN$3+Invoergegevens!$F$8>=Invoergegevens!$H$14)*((BN$3+Invoergegevens!$F$8-Invoergegevens!$H$14)/(Invoergegevens!$J$14-Invoergegevens!$H$14+1))*($K8="Ja")+$I8*(BN$3+Invoergegevens!$F$8>Invoergegevens!$J$14)*($K8="Ja")) -> 0 | BO8: =($I8<>0)*(BO$3<=Invoergegevens!$F$9-Invoergegevens!$F$8) *(MOD(BO$3,$J8)=0)*($I8*($K8="Nee") +$I8*(BO$3+Invoergegevens!$F$8<=Invoergegevens!$J$14)*(BO$3+Invoergegevens!$F$8>=Invoergegevens!$H$14)*((BO$3+Invoergegevens!$F$8-Invoergegevens!$H$14)/(Invoergegevens!$J$14-Invoergegevens!$H$14+1))*($K8="Ja")+$I8*(BO$3+Invoergegevens!$F$8>Invoergegevens!$J$14)*($K8="Ja")) -> 0 | BP8: =($I8<>0)*(BP$3<=Invoergegevens!$F$9-Invoergegevens!$F$8) *(MOD(BP$3,$J8)=0)*($I8*($K8="Nee") +$I8*(BP$3+Invoergegevens!$F$8<=Invoergegevens!$J$14)*(BP$3+Invoergegevens!$F$8>=Invoergegevens!$H$14)*((BP$3+Invoergegevens!$F$8-Invoergegevens!$H$14)/(Invoergegevens!$J$14-Invoergegevens!$H$14+1))*($K8="Ja")+$I8*(BP$3+Invoergegevens!$F$8>Invoergegevens!$J$14)*($K8="Ja")) -> 0 | BQ8: =($I8<>0)*(BQ$3<=Invoergegevens!$F$9-Invoergegevens!$F$8) *(MOD(BQ$3,$J8)=0)*($I8*($K8="Nee") +$I8*(BQ$3+Invoergegevens!$F$8<=Invoergegevens!$J$14)*(BQ$3+Invoergegevens!$F$8>=Invoergegevens!$H$14)*((BQ$3+Invoergegevens!$F$8-Invoergegevens!$H$14)/(Invoergegevens!$J$14-Invoergegevens!$H$14+1))*($K8="Ja")+$I8*(BQ$3+Invoergegevens!$F$8>Invoergegevens!$J$14)*($K8="Ja")) -> 0 | BR8: =($I8<>0)*(BR$3<=Invoergegevens!$F$9-Invoergegevens!$F$8) *(MOD(BR$3,$J8)=0)*($I8*($K8="Nee") +$I8*(BR$3+Invoergegevens!$F$8<=Invoergegevens!$J$14)*(BR$3+Invoergegevens!$F$8>=Invoergegevens!$H$14)*((BR$3+Invoergegevens!$F$8-Invoergegevens!$H$14)/(Invoergegevens!$J$14-Invoergegevens!$H$14+1))*($K8="Ja")+$I8*(BR$3+Invoergegevens!$F$8>Invoergegevens!$J$14)*($K8="Ja")) -> 0 | BS8: =($I8<>0)*(BS$3<=Invoergegevens!$F$9-Invoergegevens!$F$8) *(MOD(BS$3,$J8)=0)*($I8*($K8="Nee") +$I8*(BS$3+Invoergegevens!$F$8<=Invoergegevens!$J$14)*(BS$3+Invoergegevens!$F$8>=Invoergegevens!$H$14)*((BS$3+Invoergegevens!$F$8-Invoergegevens!$H$14)/(Invoergegevens!$J$14-Invoergegevens!$H$14+1))*($K8="Ja")+$I8*(BS$3+Invoergegevens!$F$8>Invoergegevens!$J$14)*($K8="Ja")) -> 0 | BT8: =($I8<>0)*(BT$3<=Invoergegevens!$F$9-Invoergegevens!$F$8) *(MOD(BT$3,$J8)=0)*($I8*($K8="Nee") +$I8*(BT$3+Invoergegevens!$F$8<=Invoergegevens!$J$14)*(BT$3+Invoergegevens!$F$8>=Invoergegevens!$H$14)*((BT$3+Invoergegevens!$F$8-Invoergegevens!$H$14)/(Invoergegevens!$J$14-Invoergegevens!$H$14+1))*($K8="Ja")+$I8*(BT$3+Invoergegevens!$F$8>Invoergegevens!$J$14)*($K8="Ja")) -> 0 | BU8: =($I8<>0)*(BU$3<=Invoergegevens!$F$9-Invoergegevens!$F$8) *(MOD(BU$3,$J8)=0)*($I8*($K8="Nee") +$I8*(BU$3+Invoergegevens!$F$8<=Invoergegevens!$J$14)*(BU$3+Invoergegevens!$F$8>=Invoergegevens!$H$14)*((BU$3+Invoergegevens!$F$8-Invoergegevens!$H$14)/(Invoergegevens!$J$14-Invoergegevens!$H$14+1))*($K8="Ja")+$I8*(BU$3+Invoergegevens!$F$8>Invoergegevens!$J$14)*($K8="Ja")) -> 0 | BV8: =($I8<>0)*(BV$3<=Invoergegevens!$F$9-Invoergegevens!$F$8) *(MOD(BV$3,$J8)=0)*($I8*($K8="Nee") +$I8*(BV$3+Invoergegevens!$F$8<=Invoergegevens!$J$14)*(BV$3+Invoergegevens!$F$8>=Invoergegevens!$H$14)*((BV$3+Invoergegevens!$F$8-Invoergegevens!$H$14)/(Invoergegevens!$J$14-Invoergegevens!$H$14+1))*($K8="Ja")+$I8*(BV$3+Invoergegevens!$F$8>Invoergegevens!$J$14)*($K8="Ja")) -> 0 | BW8: =($I8<>0)*(BW$3<=Invoergegevens!$F$9-Invoergegevens!$F$8) *(MOD(BW$3,$J8)=0)*($I8*($K8="Nee") +$I8*(BW$3+Invoergegevens!$F$8<=Invoergegevens!$J$14)*(BW$3+Invoergegevens!$F$8>=Invoergegevens!$H$14)*((BW$3+Invoergegevens!$F$8-Invoergegevens!$H$14)/(Invoergegevens!$J$14-Invoergegevens!$H$14+1))*($K8="Ja")+$I8*(BW$3+Invoergegevens!$F$8>Invoergegevens!$J$14)*($K8="Ja")) -> 0 | BX8: =($I8<>0)*(BX$3<=Invoergegevens!$F$9-Invoergegevens!$F$8) *(MOD(BX$3,$J8)=0)*($I8*($K8="Nee") +$I8*(BX$3+Invoergegevens!$F$8<=Invoergegevens!$J$14)*(BX$3+Invoergegevens!$F$8>=Invoergegevens!$H$14)*((BX$3+Invoergegevens!$F$8-Invoergegevens!$H$14)/(Invoergegevens!$J$14-Invoergegevens!$H$14+1))*($K8="Ja")+$I8*(BX$3+Invoergegevens!$F$8>Invoergegevens!$J$14)*($K8="Ja")) -> 0 | BY8: =($I8<>0)*(BY$3<=Invoergegevens!$F$9-Invoergegevens!$F$8) *(MOD(BY$3,$J8)=0)*($I8*($K8="Nee") +$I8*(BY$3+Invoergegevens!$F$8<=Invoergegevens!$J$14)*(BY$3+Invoergegevens!$F$8>=Invoergegevens!$H$14)*((BY$3+Invoergegevens!$F$8-Invoergegevens!$H$14)/(Invoergegevens!$J$14-Invoergegevens!$H$14+1))*($K8="Ja")+$I8*(BY$3+Invoergegevens!$F$8>Invoergegevens!$J$14)*($K8="Ja")) -> 0 | BZ8: =($I8<>0)*(BZ$3<=Invoergegevens!$F$9-Invoergegevens!$F$8) *(MOD(BZ$3,$J8)=0)*($I8*($K8="Nee") +$I8*(BZ$3+Invoergegevens!$F$8<=Invoergegevens!$J$14)*(BZ$3+Invoergegevens!$F$8>=Invoergegevens!$H$14)*((BZ$3+Invoergegevens!$F$8-Invoergegevens!$H$14)/(Invoergegevens!$J$14-Invoergegevens!$H$14+1))*($K8="Ja")+$I8*(BZ$3+Invoergegevens!$F$8>Invoergegevens!$J$14)*($K8="Ja")) -> 0 | CA8: =($I8<>0)*(CA$3<=Invoergegevens!$F$9-Invoergegevens!$F$8) *(MOD(CA$3,$J8)=0)*($I8*($K8="Nee") +$I8*(CA$3+Invoergegevens!$F$8<=Invoergegevens!$J$14)*(CA$3+Invoergegevens!$F$8>=Invoergegevens!$H$14)*((CA$3+Invoergegevens!$F$8-Invoergegevens!$H$14)/(Invoergegevens!$J$14-Invoergegevens!$H$14+1))*($K8="Ja")+$I8*(CA$3+Invoergegevens!$F$8>Invoergegevens!$J$14)*($K8="Ja")) -> 0 | CB8: =($I8<>0)*(CB$3<=Invoergegevens!$F$9-Invoergegevens!$F$8) *(MOD(CB$3,$J8)=0)*($I8*($K8="Nee") +$I8*(CB$3+Invoergegevens!$F$8<=Invoergegevens!$J$14)*(CB$3+Invoergegevens!$F$8>=Invoergegevens!$H$14)*((CB$3+Invoergegevens!$F$8-Invoergegevens!$H$14)/(Invoergegevens!$J$14-Invoergegevens!$H$14+1))*($K8="Ja")+$I8*(CB$3+Invoergegevens!$F$8>Invoergegevens!$J$14)*($K8="Ja")) -> 0 | CC8: =($I8<>0)*(CC$3<=Invoergegevens!$F$9-Invoergegevens!$F$8) *(MOD(CC$3,$J8)=0)*($I8*($K8="Nee") +$I8*(CC$3+Invoergegevens!$F$8<=Invoergegevens!$J$14)*(CC$3+Invoergegevens!$F$8>=Invoergegevens!$H$14)*((CC$3+Invoergegevens!$F$8-Invoergegevens!$H$14)/(Invoergegevens!$J$14-Invoergegevens!$H$14+1))*($K8="Ja")+$I8*(CC$3+Invoergegevens!$F$8>Invoergegevens!$J$14)*($K8="Ja")) -> 0 | CD8: =($I8<>0)*(CD$3<=Invoergegevens!$F$9-Invoergegevens!$F$8) *(MOD(CD$3,$J8)=0)*($I8*($K8="Nee") +$I8*(CD$3+Invoergegevens!$F$8<=Invoergegevens!$J$14)*(CD$3+Invoergegevens!$F$8>=Invoergegevens!$H$14)*((CD$3+Invoergegevens!$F$8-Invoergegevens!$H$14)/(Invoergegevens!$J$14-Invoergegevens!$H$14+1))*($K8="Ja")+$I8*(CD$3+Invoergegevens!$F$8>Invoergegevens!$J$14)*($K8="Ja")) -> 0 | CE8: =($I8<>0)*(CE$3<=Invoergegevens!$F$9-Invoergegevens!$F$8) *(MOD(CE$3,$J8)=0)*($I8*($K8="Nee") +$I8*(CE$3+Invoergegevens!$F$8<=Invoergegevens!$J$14)*(CE$3+Invoergegevens!$F$8>=Invoergegevens!$H$14)*((CE$3+Invoergegevens!$F$8-Invoergegevens!$H$14)/(Invoergegevens!$J$14-Invoergegevens!$H$14+1))*($K8="Ja")+$I8*(CE$3+Invoergegevens!$F$8>Invoergegevens!$J$14)*($K8="Ja")) -> 0 | CF8: =($I8<>0)*(CF$3<=Invoergegevens!$F$9-Invoergegevens!$F$8) *(MOD(CF$3,$J8)=0)*($I8*($K8="Nee") +$I8*(CF$3+Invoergegevens!$F$8<=Invoergegevens!$J$14)*(CF$3+Invoergegevens!$F$8>=Invoergegevens!$H$14)*((CF$3+Invoergegevens!$F$8-Invoergegevens!$H$14)/(Invoergegevens!$J$14-Invoergegevens!$H$14+1))*($K8="Ja")+$I8*(CF$3+Invoergegevens!$F$8>Invoergegevens!$J$14)*($K8="Ja")) -> 0 | CG8: =($I8<>0)*(CG$3<=Invoergegevens!$F$9-Invoergegevens!$F$8) *(MOD(CG$3,$J8)=0)*($I8*($K8="Nee") +$I8*(CG$3+Invoergegevens!$F$8<=Invoergegevens!$J$14)*(CG$3+Invoergegevens!$F$8>=Invoergegevens!$H$14)*((CG$3+Invoergegevens!$F$8-Invoergegevens!$H$14)/(Invoergegevens!$J$14-Invoergegevens!$H$14+1))*($K8="Ja")+$I8*(CG$3+Invoergegevens!$F$8>Invoergegevens!$J$14)*($K8="Ja")) -> 0 | CH8: =($I8<>0)*(CH$3<=Invoergegevens!$F$9-Invoergegevens!$F$8) *(MOD(CH$3,$J8)=0)*($I8*($K8="Nee") +$I8*(CH$3+Invoergegevens!$F$8<=Invoergegevens!$J$14)*(CH$3+Invoergegevens!$F$8>=Invoergegevens!$H$14)*((CH$3+Invoergegevens!$F$8-Invoergegevens!$H$14)/(Invoergegevens!$J$14-Invoergegevens!$H$14+1))*($K8="Ja")+$I8*(CH$3+Invoergegevens!$F$8>Invoergegevens!$J$14)*($K8="Ja")) -> 0 | CI8: =($I8<>0)*(CI$3<=Invoergegevens!$F$9-Invoergegevens!$F$8) *(MOD(CI$3,$J8)=0)*($I8*($K8="Nee") +$I8*(CI$3+Invoergegevens!$F$8<=Invoergegevens!$J$14)*(CI$3+Invoergegevens!$F$8>=Invoergegevens!$H$14)*((CI$3+Invoergegevens!$F$8-Invoergegevens!$H$14)/(Invoergegevens!$J$14-Invoergegevens!$H$14+1))*($K8="Ja")+$I8*(CI$3+Invoergegevens!$F$8>Invoergegevens!$J$14)*($K8="Ja")) -> 0 | CJ8: =($I8<>0)*(CJ$3<=Invoergegevens!$F$9-Invoergegevens!$F$8) *(MOD(CJ$3,$J8)=0)*($I8*($K8="Nee") +$I8*(CJ$3+Invoergegevens!$F$8<=Invoergegevens!$J$14)*(CJ$3+Invoergegevens!$F$8>=Invoergegevens!$H$14)*((CJ$3+Invoergegevens!$F$8-Invoergegevens!$H$14)/(Invoergegevens!$J$14-Invoergegevens!$H$14+1))*($K8="Ja")+$I8*(CJ$3+Invoergegevens!$F$8>Invoergegevens!$J$14)*($K8="Ja")) -> 0 | CK8: =($I8<>0)*(CK$3<=Invoergegevens!$F$9-Invoergegevens!$F$8) *(MOD(CK$3,$J8)=0)*($I8*($K8="Nee") +$I8*(CK$3+Invoergegevens!$F$8<=Invoergegevens!$J$14)*(CK$3+Invoergegevens!$F$8>=Invoergegevens!$H$14)*((CK$3+Invoergegevens!$F$8-Invoergegevens!$H$14)/(Invoergegevens!$J$14-Invoergegevens!$H$14+1))*($K8="Ja")+$I8*(CK$3+Invoergegevens!$F$8>Invoergegevens!$J$14)*($K8="Ja")) -> 0 | CL8: =($I8<>0)*(CL$3<=Invoergegevens!$F$9-Invoergegevens!$F$8) *(MOD(CL$3,$J8)=0)*($I8*($K8="Nee") +$I8*(CL$3+Invoergegevens!$F$8<=Invoergegevens!$J$14)*(CL$3+Invoergegevens!$F$8>=Invoergegevens!$H$14)*((CL$3+Invoergegevens!$F$8-Invoergegevens!$H$14)/(Invoergegevens!$J$14-Invoergegevens!$H$14+1))*($K8="Ja")+$I8*(CL$3+Invoergegevens!$F$8>Invoergegevens!$J$14)*($K8="Ja")) -> 0 | CM8: =($I8<>0)*(CM$3<=Invoergegevens!$F$9-Invoergegevens!$F$8) *(MOD(CM$3,$J8)=0)*($I8*($K8="Nee") +$I8*(CM$3+Invoergegevens!$F$8<=Invoergegevens!$J$14)*(CM$3+Invoergegevens!$F$8>=Invoergegevens!$H$14)*((CM$3+Invoergegevens!$F$8-Invoergegevens!$H$14)/(Invoergegevens!$J$14-Invoergegevens!$H$14+1))*($K8="Ja")+$I8*(CM$3+Invoergegevens!$F$8>Invoergegevens!$J$14)*($K8="Ja")) -> 0 | CN8: =($I8<>0)*(CN$3<=Invoergegevens!$F$9-Invoergegevens!$F$8) *(MOD(CN$3,$J8)=0)*($I8*($K8="Nee") +$I8*(CN$3+Invoergegevens!$F$8<=Invoergegevens!$J$14)*(CN$3+Invoergegevens!$F$8>=Invoergegevens!$H$14)*((CN$3+Invoergegevens!$F$8-Invoergegevens!$H$14)/(Invoergegevens!$J$14-Invoergegevens!$H$14+1))*($K8="Ja")+$I8*(CN$3+Invoergegevens!$F$8>Invoergegevens!$J$14)*($K8="Ja")) -> 0 | CO8: =($I8<>0)*(CO$3<=Invoergegevens!$F$9-Invoergegevens!$F$8) *(MOD(CO$3,$J8)=0)*($I8*($K8="Nee") +$I8*(CO$3+Invoergegevens!$F$8<=Invoergegevens!$J$14)*(CO$3+Invoergegevens!$F$8>=Invoergegevens!$H$14)*((CO$3+Invoergegevens!$F$8-Invoergegevens!$H$14)/(Invoergegevens!$J$14-Invoergegevens!$H$14+1))*($K8="Ja")+$I8*(CO$3+Invoergegevens!$F$8>Invoergegevens!$J$14)*($K8="Ja")) -> 0 | CP8: =($I8<>0)*(CP$3<=Invoergegevens!$F$9-Invoergegevens!$F$8) *(MOD(CP$3,$J8)=0)*($I8*($K8="Nee") +$I8*(CP$3+Invoergegevens!$F$8<=Invoergegevens!$J$14)*(CP$3+Invoergegevens!$F$8>=Invoergegevens!$H$14)*((CP$3+Invoergegevens!$F$8-Invoergegevens!$H$14)/(Invoergegevens!$J$14-Invoergegevens!$H$14+1))*($K8="Ja")+$I8*(CP$3+Invoergegevens!$F$8>Invoergegevens!$J$14)*($K8="Ja")) -> 0 | CQ8: =($I8<>0)*(CQ$3<=Invoergegevens!$F$9-Invoergegevens!$F$8) *(MOD(CQ$3,$J8)=0)*($I8*($K8="Nee") +$I8*(CQ$3+Invoergegevens!$F$8<=Invoergegevens!$J$14)*(CQ$3+Invoergegevens!$F$8>=Invoergegevens!$H$14)*((CQ$3+Invoergegevens!$F$8-Invoergegevens!$H$14)/(Invoergegevens!$J$14-Invoergegevens!$H$14+1))*($K8="Ja")+$I8*(CQ$3+Invoergegevens!$F$8>Invoergegevens!$J$14)*($K8="Ja")) -> 0 | CR8: =($I8<>0)*(CR$3<=Invoergegevens!$F$9-Invoergegevens!$F$8) *(MOD(CR$3,$J8)=0)*($I8*($K8="Nee") +$I8*(CR$3+Invoergegevens!$F$8<=Invoergegevens!$J$14)*(CR$3+Invoergegevens!$F$8>=Invoergegevens!$H$14)*((CR$3+Invoergegevens!$F$8-Invoergegevens!$H$14)/(Invoergegevens!$J$14-Invoergegevens!$H$14+1))*($K8="Ja")+$I8*(CR$3+Invoergegevens!$F$8>Invoergegevens!$J$14)*($K8="Ja")) -> 0 | CS8: =($I8<>0)*(CS$3<=Invoergegevens!$F$9-Invoergegevens!$F$8) *(MOD(CS$3,$J8)=0)*($I8*($K8="Nee") +$I8*(CS$3+Invoergegevens!$F$8<=Invoergegevens!$J$14)*(CS$3+Invoergegevens!$F$8>=Invoergegevens!$H$14)*((CS$3+Invoergegevens!$F$8-Invoergegevens!$H$14)/(Invoergegevens!$J$14-Invoergegevens!$H$14+1))*($K8="Ja")+$I8*(CS$3+Invoergegevens!$F$8>Invoergegevens!$J$14)*($K8="Ja")) -> 0 | CT8: =($I8<>0)*(CT$3<=Invoergegevens!$F$9-Invoergegevens!$F$8) *(MOD(CT$3,$J8)=0)*($I8*($K8="Nee") +$I8*(CT$3+Invoergegevens!$F$8<=Invoergegevens!$J$14)*(CT$3+Invoergegevens!$F$8>=Invoergegevens!$H$14)*((CT$3+Invoergegevens!$F$8-Invoergegevens!$H$14)/(Invoergegevens!$J$14-Invoergegevens!$H$14+1))*($K8="Ja")+$I8*(CT$3+Invoergegevens!$F$8>Invoergegevens!$J$14)*($K8="Ja")) -> 0 | CU8: =($I8<>0)*(CU$3<=Invoergegevens!$F$9-Invoergegevens!$F$8) *(MOD(CU$3,$J8)=0)*($I8*($K8="Nee") +$I8*(CU$3+Invoergegevens!$F$8<=Invoergegevens!$J$14)*(CU$3+Invoergegevens!$F$8>=Invoergegevens!$H$14)*((CU$3+Invoergegevens!$F$8-Invoergegevens!$H$14)/(Invoergegevens!$J$14-Invoergegevens!$H$14+1))*($K8="Ja")+$I8*(CU$3+Invoergegevens!$F$8>Invoergegevens!$J$14)*($K8="Ja")) -> 0 | CV8: =($I8<>0)*(CV$3<=Invoergegevens!$F$9-Invoergegevens!$F$8) *(MOD(CV$3,$J8)=0)*($I8*($K8="Nee") +$I8*(CV$3+Invoergegevens!$F$8<=Invoergegevens!$J$14)*(CV$3+Invoergegevens!$F$8>=Invoergegevens!$H$14)*((CV$3+Invoergegevens!$F$8-Invoergegevens!$H$14)/(Invoergegevens!$J$14-Invoergegevens!$H$14+1))*($K8="Ja")+$I8*(CV$3+Invoergegevens!$F$8>Invoergegevens!$J$14)*($K8="Ja")) -> 0 | CW8: =($I8<>0)*(CW$3<=Invoergegevens!$F$9-Invoergegevens!$F$8) *(MOD(CW$3,$J8)=0)*($I8*($K8="Nee") +$I8*(CW$3+Invoergegevens!$F$8<=Invoergegevens!$J$14)*(CW$3+Invoergegevens!$F$8>=Invoergegevens!$H$14)*((CW$3+Invoergegevens!$F$8-Invoergegevens!$H$14)/(Invoergegevens!$J$14-Invoergegevens!$H$14+1))*($K8="Ja")+$I8*(CW$3+Invoergegevens!$F$8>Invoergegevens!$J$14)*($K8="Ja")) -> 0 | CX8: =($I8<>0)*(CX$3<=Invoergegevens!$F$9-Invoergegevens!$F$8) *(MOD(CX$3,$J8)=0)*($I8*($K8="Nee") +$I8*(CX$3+Invoergegevens!$F$8<=Invoergegevens!$J$14)*(CX$3+Invoergegevens!$F$8>=Invoergegevens!$H$14)*((CX$3+Invoergegevens!$F$8-Invoergegevens!$H$14)/(Invoergegevens!$J$14-Invoergegevens!$H$14+1))*($K8="Ja")+$I8*(CX$3+Invoergegevens!$F$8>Invoergegevens!$J$14)*($K8="Ja")) -> 0
